Workbook

Sheet ADP-Rank (hidden)
A1: PLAYERNAME | B1: PlayerID | C1: Pos | D1: OF Pos | E1: TEAM | F1: Age | G1: FT | H1: High | I1: Low | J1: Yahoo | K1: High | L1: Low | M1: CBS ADP | N1: High | O1: Low | P1: ESPN | Q1: High | R1: Low | S1: Fpros | T1: High | U1: Low | V1: NFBC | W1: High | X1: Low | Y1: Comb ADP | Z1: High | AA1: Low | AB1: RotoChamp | AC1: Yahoo Staff | AD1: ESPN Tristan | AE1: ESPN Karabell | AF1: Fantasy Pros Avg | AG1: MC | AH1: Team In Sheet? | AI1: Rank Chosen | AJ1: Filtered-Rank | AK1: Chosen-ADP | AL1: Filtered-ADP-Rank | AM1: ADP Round | AN1: Early | AO1: Late | AP1: Filtered-Early | AQ1: Filtered-Late | AR1: ImportADP | AS1: High | AT1: Low | AU1: =IF(VLOOKUP(A2,'Name-Sort'!$D$2:$E$949,2,FALSE)="",A2,"") -> Bryan Abreu | AV1: =IFERROR(INDEX($AU$1:$AU$948,SMALL(IF($AU$1:$AU$948<>"",ROW($AU$1:$AU$948)),ROW(AU1))),"") -> Bryan Abreu
A2: Bryan Abreu | B2: abreubr01 | C2: RP | E2: HOU | F2: 22 | H2: =MIN(G2*0.75,IFERROR($W2,999),IFERROR($N2,999)) ->  | I2: =MAX(G2*1.33,IFERROR($X2,1),IFERROR($O2,1)) ->  | K2: =MIN(J2*0.75,IFERROR($W2,999),IFERROR($N2,999)) ->  | L2: =MAX(J2*1.33,IFERROR($X2,1),IFERROR($O2,1)) ->  | Q2: =MIN(P2*0.75,IFERROR($W2,999),IFERROR($N2,999)) ->  | R2: =MAX(P2*1.33,IFERROR($X2,1),IFERROR($O2,1)) ->  | T2: =MIN(S2*0.75,IFERROR($W2,999),IFERROR($N2,999)) ->  | U2: =MAX(S2*1.33,IFERROR($X2,1),IFERROR($O2,1)) ->  | V2: 653.85 | W2: 331 | X2: 656 | Y2: =IFERROR((IFERROR(V2,0)+IFERROR(S2,0)+IFERROR(M2,0)+IFERROR(G2,0)+IFERROR(P2,0)+IFERROR(J2,0))/(IF(ISERROR(V2),0,1)+IF(ISERROR(S2),0,1)+IF(ISERROR(M2),0,1)+IF(ISERROR(G2),0,1)+IF(ISERROR(P2),0,1)+IF(ISERROR(J2),0,1)),#N/A) -> 653.85 | Z2: =MIN(Y2*0.75,IFERROR($W2,999),IFERROR($N2,999)) -> 331 | AA2: =MAX(Y2*1.33,IFERROR($X2,1),IFERROR($O2,1)) -> 869.6205 | AF2: 551 | AH2: =IFERROR(INDEX('Guts-2'!$K$1:$K$30,MATCH(E2,'Guts-2'!$J$1:$J$30,0)),TRUE) -> TRUE | AI2: =IF(AH2=FALSE,"",IFERROR(CHOOSE('Guts-2'!$D$27,AB2,AC2,AD2,AE2,AF2,AG2),"")) -> 551 | AJ2: =IFERROR(RANK(AI2,$AI$2:$AI$948,1),"") -> 543 | AK2: =IF(AH2=FALSE,"",IFERROR(CHOOSE('Guts-2'!$D$26,G2,J2,M2,P2,S2,V2,Y2,AR2),"")) ->  | AL2: =IFERROR(IF(Settings!$M$5="Mixed (Standard)",AK2,RANK(AK2,$AK$2:$AK$948,1)),"") ->  | AM2: =IFERROR(IF(Settings!$M$5="Mixed (Standard)",(RANK(AK2,$AK$2:$AK$948,1)/('Guts-2'!$N$1+1))+1,(RANK(AL2,$AL$2:$AL$948,1)/('Guts-2'!$N$1+1))+1),"") ->  | AN2: =IFERROR(CHOOSE('Guts-2'!$D$26,H2,K2,N2,Q2,T2,W2,Z2,AS2),"") ->  | AO2: =IFERROR(CHOOSE('Guts-2'!$D$26,I2,L2,O2,R2,U2,X2,AA2,AT2),"") ->  | AP2: =IFERROR(IF(AH2=TRUE,IF((AN2-COUNTIFS($AN$2:$AN$948,"<"&AN2,$AH$2:$AH$948,FALSE))<1,1,AN2-COUNTIFS($AN$2:$AN$948,"<"&AN2,$AH$2:$AH$948,FALSE)),""),"") ->  | AQ2: =IFERROR(IF(AH2=FALSE,"",IF((AO2-COUNTIFS($AO$2:$AO$948,"<"&AO2,$AH$2:$AH$948,FALSE))<1,1,AO2-COUNTIFS($AO$2:$AO$948,"<"&AO2,$AH$2:$AH$948,FALSE))),"") ->  | AR2: =INDEX('Import (ADP)'!$C$2:$C$999,MATCH(A2, 'Import (ADP)'!$B$2:$B$999,0)) ->  | AS2: =IFERROR(MIN(N2,W2,ROUND(AR2*0.75,0)),ROUND(AR2*0.75,0)) ->  | AT2: =IFERROR(MAX(O2,X2,ROUND(AR2*1.25,0)),ROUND(AS2*1.25,0)) ->  | AU2: =IF(VLOOKUP(A3,'Name-Sort'!$D$2:$E$949,2,FALSE)="",A3,"") -> Jose Abreu | AV2: =IFERROR(INDEX($AU$1:$AU$948,SMALL(IF($AU$1:$AU$948<>"",ROW($AU$1:$AU$948)),ROW(AU2))),"") -> Jose Abreu
A3: Jose Abreu | B3: abreujo02 | C3: 1B | E3: CHW | F3: 33 | G3: 70 | H3: =MIN(G3*0.75,IFERROR($W3,999),IFERROR($N3,999)) -> 45 | I3: =MAX(G3*1.33,IFERROR($X3,1),IFERROR($O3,1)) -> 110 | J3: 76 | K3: =MIN(J3*0.75,IFERROR($W3,999),IFERROR($N3,999)) -> 45 | L3: =MAX(J3*1.33,IFERROR($X3,1),IFERROR($O3,1)) -> 110 | M3: 80.08 | N3: 45 | O3: 108 | P3: 69 | Q3: =MIN(P3*0.75,IFERROR($W3,999),IFERROR($N3,999)) -> 45 | R3: =MAX(P3*1.33,IFERROR($X3,1),IFERROR($O3,1)) -> 110 | S3: 72.2 | T3: =MIN(S3*0.75,IFERROR($W3,999),IFERROR($N3,999)) -> 45 | U3: =MAX(S3*1.33,IFERROR($X3,1),IFERROR($O3,1)) -> 110 | V3: 75.52 | W3: 51 | X3: 110 | Y3: =IFERROR((IFERROR(V3,0)+IFERROR(S3,0)+IFERROR(M3,0)+IFERROR(G3,0)+IFERROR(P3,0)+IFERROR(J3,0))/(IF(ISERROR(V3),0,1)+IF(ISERROR(S3),0,1)+IF(ISERROR(M3),0,1)+IF(ISERROR(G3),0,1)+IF(ISERROR(P3),0,1)+IF(ISERROR(J3),0,1)),#N/A) -> 73.8 | Z3: =MIN(Y3*0.75,IFERROR($W3,999),IFERROR($N3,999)) -> 45 | AA3: =MAX(Y3*1.33,IFERROR($X3,1),IFERROR($O3,1)) -> 110 | AB3: 84 | AC3: 73 | AD3: 65 | AE3: 74 | AF3: 59 | AH3: =IFERROR(INDEX('Guts-2'!$K$1:$K$30,MATCH(E3,'Guts-2'!$J$1:$J$30,0)),TRUE) -> TRUE | AI3: =IF(AH3=FALSE,"",IFERROR(CHOOSE('Guts-2'!$D$27,AB3,AC3,AD3,AE3,AF3,AG3),"")) -> 59 | AJ3: 59 | AK3: =IF(AH3=FALSE,"",IFERROR(CHOOSE('Guts-2'!$D$26,G3,J3,M3,P3,S3,V3,Y3,AR3),"")) -> 72.2 | AL3: =IFERROR(IF(Settings!$M$5="Mixed (Standard)",AK3,RANK(AK3,$AK$2:$AK$948,1)),"") -> 72.2 | AM3: =IFERROR(IF(Settings!$M$5="Mixed (Standard)",(RANK(AK3,$AK$2:$AK$948,1)/('Guts-2'!$N$1+1))+1,(RANK(AL3,$AL$2:$AL$948,1)/('Guts-2'!$N$1+1))+1),"") -> 6.461538462 | AN3: =IFERROR(CHOOSE('Guts-2'!$D$26,H3,K3,N3,Q3,T3,W3,Z3,AS3),"") -> 45 | AO3: =IFERROR(CHOOSE('Guts-2'!$D$26,I3,L3,O3,R3,U3,X3,AA3,AT3),"") -> 110 | AP3: 45 | AQ3: 110 | AR3: =INDEX('Import (ADP)'!$C$2:$C$999,MATCH(A3, 'Import (ADP)'!$B$2:$B$999,0)) ->  | AU3: =IF(VLOOKUP(A4,'Name-Sort'!$D$2:$E$949,2,FALSE)="",A4,"") -> Ronald Acuna | AV3: =IFERROR(INDEX($AU$1:$AU$948,SMALL(IF($AU$1:$AU$948<>"",ROW($AU$1:$AU$948)),ROW(AU3))),"") -> Ronald Acuna
A4: Ronald Acuna | B4: acunaro01 | C4: OF | D4: LF,CF,RF | E4: ATL | F4: 22 | G4: 2 | H4: 1 | I4: 4 | J4: 1 | K4: 0.75 | L4: 4 | M4: 1.99 | N4: 1 | O4: 4 | P4: 3 | Q4: 1 | R4: 4 | S4: 1.4 | T4: 1 | U4: 4 | V4: 1.6 | W4: 1 | X4: 4 | Y4: 1.831666667 | Z4: 1 | AA4: 4 | AB4: 1 | AC4: 1 | AD4: 2 | AE4: 1 | AF4: 1 | AH4: =IFERROR(INDEX('Guts-2'!$K$1:$K$30,MATCH(E4,'Guts-2'!$J$1:$J$30,0)),TRUE) -> TRUE | AI4: =IF(AH4=FALSE,"",IFERROR(CHOOSE('Guts-2'!$D$27,AB4,AC4,AD4,AE4,AF4,AG4),"")) -> 1 | AJ4: 1 | AK4: =IF(AH4=FALSE,"",IFERROR(CHOOSE('Guts-2'!$D$26,G4,J4,M4,P4,S4,V4,Y4,AR4),"")) -> 1.4 | AL4: =IFERROR(IF(Settings!$M$5="Mixed (Standard)",AK4,RANK(AK4,$AK$2:$AK$948,1)),"") -> 1.4 | AM4: =IFERROR(IF(Settings!$M$5="Mixed (Standard)",(RANK(AK4,$AK$2:$AK$948,1)/('Guts-2'!$N$1+1))+1,(RANK(AL4,$AL$2:$AL$948,1)/('Guts-2'!$N$1+1))+1),"") -> 1.076923077 | AN4: =IFERROR(CHOOSE('Guts-2'!$D$26,H4,K4,N4,Q4,T4,W4,Z4,AS4),"") -> 1 | AO4: =IFERROR(CHOOSE('Guts-2'!$D$26,I4,L4,O4,R4,U4,X4,AA4,AT4),"") -> 4 | AP4: 1 | AQ4: 4 | AR4: =INDEX('Import (ADP)'!$C$2:$C$999,MATCH(A4, 'Import (ADP)'!$B$2:$B$999,0)) -> 5 | AS4: 1 | AT4: 6 | AU4: =IF(VLOOKUP(A5,'Name-Sort'!$D$2:$E$949,2,FALSE)="",A5,"") -> Willy Adames | AV4: =IFERROR(INDEX($AU$1:$AU$948,SMALL(IF($AU$1:$AU$948<>"",ROW($AU$1:$AU$948)),ROW(AU4))),"") -> Willy Adames
A5: Willy Adames | B5: adamewi01 | C5: SS | E5: TB | F5: 24 | G5: 314 | H5: 170 | I5: 417.62 | J5: 387 | K5: 170 | L5: 514.71 | M5: 288.65 | N5: 170 | O5: 366 | S5: 350.2 | T5: 170 | U5: 465.766 | V5: 411.87 | W5: 217 | X5: 386 | Y5: 350.344 | Z5: 170 | AA5: 465.95752 | AC5: 305 | AD5: 287 | AE5: 298 | AF5: 271 | AH5: =IFERROR(INDEX('Guts-2'!$K$1:$K$30,MATCH(E5,'Guts-2'!$J$1:$J$30,0)),TRUE) -> TRUE | AI5: =IF(AH5=FALSE,"",IFERROR(CHOOSE('Guts-2'!$D$27,AB5,AC5,AD5,AE5,AF5,AG5),"")) -> 271 | AJ5: 270 | AK5: =IF(AH5=FALSE,"",IFERROR(CHOOSE('Guts-2'!$D$26,G5,J5,M5,P5,S5,V5,Y5,AR5),"")) -> 350.2 | AL5: =IFERROR(IF(Settings!$M$5="Mixed (Standard)",AK5,RANK(AK5,$AK$2:$AK$948,1)),"") -> 350.2 | AM5: =IFERROR(IF(Settings!$M$5="Mixed (Standard)",(RANK(AK5,$AK$2:$AK$948,1)/('Guts-2'!$N$1+1))+1,(RANK(AL5,$AL$2:$AL$948,1)/('Guts-2'!$N$1+1))+1),"") -> 28.38461538 | AN5: =IFERROR(CHOOSE('Guts-2'!$D$26,H5,K5,N5,Q5,T5,W5,Z5,AS5),"") -> 170 | AO5: =IFERROR(CHOOSE('Guts-2'!$D$26,I5,L5,O5,R5,U5,X5,AA5,AT5),"") -> 465.766 | AP5: 170 | AQ5: 465.766 | AR5: =INDEX('Import (ADP)'!$C$2:$C$999,MATCH(A5, 'Import (ADP)'!$B$2:$B$999,0)) ->  | AU5: =IF(VLOOKUP(A6,'Name-Sort'!$D$2:$E$949,2,FALSE)="",A6,"") -> Matt Adams | AV5: =IFERROR(INDEX($AU$1:$AU$948,SMALL(IF($AU$1:$AU$948<>"",ROW($AU$1:$AU$948)),ROW(AU5))),"") -> Matt Adams
A6: Matt Adams | B6: adamsma01 | C6: 1B | E6: NYM | F6: 31 | V6: 747.35 | W6: 651 | X6: 721 | Y6: 747.35 | Z6: 560.5125 | AA6: 993.9755 | AF6: 705 | AH6: =IFERROR(INDEX('Guts-2'!$K$1:$K$30,MATCH(E6,'Guts-2'!$J$1:$J$30,0)),TRUE) -> TRUE | AI6: =IF(AH6=FALSE,"",IFERROR(CHOOSE('Guts-2'!$D$27,AB6,AC6,AD6,AE6,AF6,AG6),"")) -> 705 | AJ6: 648 | AK6: =IF(AH6=FALSE,"",IFERROR(CHOOSE('Guts-2'!$D$26,G6,J6,M6,P6,S6,V6,Y6,AR6),"")) ->  | AL6: =IFERROR(IF(Settings!$M$5="Mixed (Standard)",AK6,RANK(AK6,$AK$2:$AK$948,1)),"") ->  | AM6: =IFERROR(IF(Settings!$M$5="Mixed (Standard)",(RANK(AK6,$AK$2:$AK$948,1)/('Guts-2'!$N$1+1))+1,(RANK(AL6,$AL$2:$AL$948,1)/('Guts-2'!$N$1+1))+1),"") ->  | AN6: =IFERROR(CHOOSE('Guts-2'!$D$26,H6,K6,N6,Q6,T6,W6,Z6,AS6),"") ->  | AO6: =IFERROR(CHOOSE('Guts-2'!$D$26,I6,L6,O6,R6,U6,X6,AA6,AT6),"") ->  | AR6: =INDEX('Import (ADP)'!$C$2:$C$999,MATCH(A6, 'Import (ADP)'!$B$2:$B$999,0)) ->  | AU6: =IF(VLOOKUP(A7,'Name-Sort'!$D$2:$E$949,2,FALSE)="",A7,"") -> Jo Adell | AV6: =IFERROR(INDEX($AU$1:$AU$948,SMALL(IF($AU$1:$AU$948<>"",ROW($AU$1:$AU$948)),ROW(AU6))),"") -> Jo Adell
A7: Jo Adell | B7: adelljo01 | C7: OF | D7: LF,CF,RF | E7: LAA | F7: 20 | G7: 219 | H7: 125 | I7: 434 | J7: 306 | K7: 125 | L7: 434 | M7: 239.84 | N7: 125 | O7: 339 | P7: 308 | Q7: 125 | R7: 434 | S7: 252.2 | T7: 125 | U7: 434 | V7: 300.56 | W7: 198 | X7: 434 | Y7: 270.9333333 | Z7: 125 | AA7: 434 | AC7: 283 | AE7: 224 | AF7: 322 | AH7: =IFERROR(INDEX('Guts-2'!$K$1:$K$30,MATCH(E7,'Guts-2'!$J$1:$J$30,0)),TRUE) -> TRUE | AI7: =IF(AH7=FALSE,"",IFERROR(CHOOSE('Guts-2'!$D$27,AB7,AC7,AD7,AE7,AF7,AG7),"")) -> 322 | AJ7: 321 | AK7: =IF(AH7=FALSE,"",IFERROR(CHOOSE('Guts-2'!$D$26,G7,J7,M7,P7,S7,V7,Y7,AR7),"")) -> 252.2 | AL7: =IFERROR(IF(Settings!$M$5="Mixed (Standard)",AK7,RANK(AK7,$AK$2:$AK$948,1)),"") -> 252.2 | AM7: =IFERROR(IF(Settings!$M$5="Mixed (Standard)",(RANK(AK7,$AK$2:$AK$948,1)/('Guts-2'!$N$1+1))+1,(RANK(AL7,$AL$2:$AL$948,1)/('Guts-2'!$N$1+1))+1),"") -> 19.61538462 | AN7: =IFERROR(CHOOSE('Guts-2'!$D$26,H7,K7,N7,Q7,T7,W7,Z7,AS7),"") -> 125 | AO7: =IFERROR(CHOOSE('Guts-2'!$D$26,I7,L7,O7,R7,U7,X7,AA7,AT7),"") -> 434 | AP7: 125 | AQ7: 434 | AR7: =INDEX('Import (ADP)'!$C$2:$C$999,MATCH(A7, 'Import (ADP)'!$B$2:$B$999,0)) ->  | AU7: =IF(VLOOKUP(A8,'Name-Sort'!$D$2:$E$949,2,FALSE)="",A8,"") -> Ehire Adrianza | AV7: =IFERROR(INDEX($AU$1:$AU$948,SMALL(IF($AU$1:$AU$948<>"",ROW($AU$1:$AU$948)),ROW(AU7))),"") -> Ehire Adrianza
A8: Ehire Adrianza | B8: adriaeh01 | C8: SS | D8: RF | E8: MIN | F8: 30 | G8: 747 | H8: 453 | I8: 993.51 | P8: 391 | Q8: 293.25 | R8: 702 | S8: 586.7 | T8: 440.025 | U8: 780.311 | V8: 724.46 | W8: 453 | X8: 702 | Y8: 612.29 | Z8: 453 | AA8: 814.3457 | AF8: 668 | AH8: =IFERROR(INDEX('Guts-2'!$K$1:$K$30,MATCH(E8,'Guts-2'!$J$1:$J$30,0)),TRUE) -> TRUE | AI8: =IF(AH8=FALSE,"",IFERROR(CHOOSE('Guts-2'!$D$27,AB8,AC8,AD8,AE8,AF8,AG8),"")) -> 668 | AJ8: 624 | AK8: =IF(AH8=FALSE,"",IFERROR(CHOOSE('Guts-2'!$D$26,G8,J8,M8,P8,S8,V8,Y8,AR8),"")) -> 586.7 | AL8: =IFERROR(IF(Settings!$M$5="Mixed (Standard)",AK8,RANK(AK8,$AK$2:$AK$948,1)),"") -> 586.7 | AM8: =IFERROR(IF(Settings!$M$5="Mixed (Standard)",(RANK(AK8,$AK$2:$AK$948,1)/('Guts-2'!$N$1+1))+1,(RANK(AL8,$AL$2:$AL$948,1)/('Guts-2'!$N$1+1))+1),"") -> 45.69230769 | AN8: =IFERROR(CHOOSE('Guts-2'!$D$26,H8,K8,N8,Q8,T8,W8,Z8,AS8),"") -> 440.025 | AO8: =IFERROR(CHOOSE('Guts-2'!$D$26,I8,L8,O8,R8,U8,X8,AA8,AT8),"") -> 780.311 | AP8: 440.025 | AQ8: 780.311 | AR8: =INDEX('Import (ADP)'!$C$2:$C$999,MATCH(A8, 'Import (ADP)'!$B$2:$B$999,0)) ->  | AU8: =IF(VLOOKUP(A9,'Name-Sort'!$D$2:$E$949,2,FALSE)="",A9,"") -> Dario Agrazal | AV8: =IFERROR(INDEX($AU$1:$AU$948,SMALL(IF($AU$1:$AU$948<>"",ROW($AU$1:$AU$948)),ROW(AU8))),"") -> Dario Agrazal
A9: Dario Agrazal | B9: agrazda01 | C9: RP | E9: DET | F9: 25 | AH9: =IFERROR(INDEX('Guts-2'!$K$1:$K$30,MATCH(E9,'Guts-2'!$J$1:$J$30,0)),TRUE) -> TRUE | AI9: =IF(AH9=FALSE,"",IFERROR(CHOOSE('Guts-2'!$D$27,AB9,AC9,AD9,AE9,AF9,AG9),"")) ->  | AK9: =IF(AH9=FALSE,"",IFERROR(CHOOSE('Guts-2'!$D$26,G9,J9,M9,P9,S9,V9,Y9,AR9),"")) ->  | AL9: =IFERROR(IF(Settings!$M$5="Mixed (Standard)",AK9,RANK(AK9,$AK$2:$AK$948,1)),"") ->  | AM9: =IFERROR(IF(Settings!$M$5="Mixed (Standard)",(RANK(AK9,$AK$2:$AK$948,1)/('Guts-2'!$N$1+1))+1,(RANK(AL9,$AL$2:$AL$948,1)/('Guts-2'!$N$1+1))+1),"") ->  | AN9: =IFERROR(CHOOSE('Guts-2'!$D$26,H9,K9,N9,Q9,T9,W9,Z9,AS9),"") ->  | AO9: =IFERROR(CHOOSE('Guts-2'!$D$26,I9,L9,O9,R9,U9,X9,AA9,AT9),"") ->  | AR9: =INDEX('Import (ADP)'!$C$2:$C$999,MATCH(A9, 'Import (ADP)'!$B$2:$B$999,0)) ->  | AU9: =IF(VLOOKUP(A10,'Name-Sort'!$D$2:$E$949,2,FALSE)="",A10,"") -> Jesus Aguilar | AV9: =IFERROR(INDEX($AU$1:$AU$948,SMALL(IF($AU$1:$AU$948<>"",ROW($AU$1:$AU$948)),ROW(AU9))),"") -> Jesus Aguilar
A10: Jesus Aguilar | B10: aguilje01 | C10: 1B | E10: MIA | F10: 29 | G10: 380 | H10: 282 | I10: 505.4 | S10: 390.3 | T10: 282 | U10: 519.099 | V10: 490.6 | W10: 282 | X10: 438 | Y10: 420.3 | Z10: 282 | AA10: 558.999 | AC10: 382 | AE10: 276 | AF10: 331 | AH10: =IFERROR(INDEX('Guts-2'!$K$1:$K$30,MATCH(E10,'Guts-2'!$J$1:$J$30,0)),TRUE) -> TRUE | AI10: =IF(AH10=FALSE,"",IFERROR(CHOOSE('Guts-2'!$D$27,AB10,AC10,AD10,AE10,AF10,AG10),"")) -> 331 | AJ10: 330 | AK10: =IF(AH10=FALSE,"",IFERROR(CHOOSE('Guts-2'!$D$26,G10,J10,M10,P10,S10,V10,Y10,AR10),"")) -> 390.3 | AL10: =IFERROR(IF(Settings!$M$5="Mixed (Standard)",AK10,RANK(AK10,$AK$2:$AK$948,1)),"") -> 390.3 | AM10: =IFERROR(IF(Settings!$M$5="Mixed (Standard)",(RANK(AK10,$AK$2:$AK$948,1)/('Guts-2'!$N$1+1))+1,(RANK(AL10,$AL$2:$AL$948,1)/('Guts-2'!$N$1+1))+1),"") -> 32.23076923 | AN10: =IFERROR(CHOOSE('Guts-2'!$D$26,H10,K10,N10,Q10,T10,W10,Z10,AS10),"") -> 282 | AO10: =IFERROR(CHOOSE('Guts-2'!$D$26,I10,L10,O10,R10,U10,X10,AA10,AT10),"") -> 519.099 | AP10: 282 | AQ10: 519.099 | AR10: =INDEX('Import (ADP)'!$C$2:$C$999,MATCH(A10, 'Import (ADP)'!$B$2:$B$999,0)) ->  | AU10: =IF(VLOOKUP(A11,'Name-Sort'!$D$2:$E$949,2,FALSE)="",A11,"") -> Nick Ahmed | AV10: =IFERROR(INDEX($AU$1:$AU$948,SMALL(IF($AU$1:$AU$948<>"",ROW($AU$1:$AU$948)),ROW(AU10))),"") -> Nick Ahmed
A11: Nick Ahmed | B11: ahmedni01 | C11: SS | E11: ARI | F11: 30 | G11: 353 | H11: 197 | I11: 469.49 | J11: 369 | K11: 197 | L11: 490.77 | M11: 318.18 | N11: 197 | O11: 401 | S11: 349 | T11: 197 | U11: 464.17 | V11: 581.69 | W11: 265 | X11: 461 | Y11: 394.174 | Z11: 197 | AA11: 524.25142 | AC11: 358 | AF11: 321 | AH11: =IFERROR(INDEX('Guts-2'!$K$1:$K$30,MATCH(E11,'Guts-2'!$J$1:$J$30,0)),TRUE) -> TRUE | AI11: =IF(AH11=FALSE,"",IFERROR(CHOOSE('Guts-2'!$D$27,AB11,AC11,AD11,AE11,AF11,AG11),"")) -> 321 | AJ11: 320 | AK11: =IF(AH11=FALSE,"",IFERROR(CHOOSE('Guts-2'!$D$26,G11,J11,M11,P11,S11,V11,Y11,AR11),"")) -> 349 | AL11: =IFERROR(IF(Settings!$M$5="Mixed (Standard)",AK11,RANK(AK11,$AK$2:$AK$948,1)),"") -> 349 | AM11: =IFERROR(IF(Settings!$M$5="Mixed (Standard)",(RANK(AK11,$AK$2:$AK$948,1)/('Guts-2'!$N$1+1))+1,(RANK(AL11,$AL$2:$AL$948,1)/('Guts-2'!$N$1+1))+1),"") -> 28.30769231 | AN11: =IFERROR(CHOOSE('Guts-2'!$D$26,H11,K11,N11,Q11,T11,W11,Z11,AS11),"") -> 197 | AO11: =IFERROR(CHOOSE('Guts-2'!$D$26,I11,L11,O11,R11,U11,X11,AA11,AT11),"") -> 464.17 | AP11: 197 | AQ11: 464.17 | AR11: =INDEX('Import (ADP)'!$C$2:$C$999,MATCH(A11, 'Import (ADP)'!$B$2:$B$999,0)) ->  | AU11: =IF(VLOOKUP(A12,'Name-Sort'!$D$2:$E$949,2,FALSE)="",A12,"") -> Shogo Akiyama | AV11: =IFERROR(INDEX($AU$1:$AU$948,SMALL(IF($AU$1:$AU$948<>"",ROW($AU$1:$AU$948)),ROW(AU11))),"") -> Shogo Akiyama
A12: Shogo Akiyama | B12: akimash01 | C12: OF | E12: CIN | F12: 31 | G12: 269 | H12: 155 | I12: 357.77 | J12: 237 | K12: 155 | L12: 347 | M12: 266.59 | N12: 155 | O12: 347 | P12: 271 | Q12: 155 | R12: 360.43 | S12: 284.2 | T12: 155 | U12: 377.986 | V12: 265.64 | W12: 186 | X12: 333 | Y12: 265.5716667 | Z12: 155 | AA12: 353.2103167 | AC12: 338 | AF12: 233 | AH12: =IFERROR(INDEX('Guts-2'!$K$1:$K$30,MATCH(E12,'Guts-2'!$J$1:$J$30,0)),TRUE) -> TRUE | AI12: =IF(AH12=FALSE,"",IFERROR(CHOOSE('Guts-2'!$D$27,AB12,AC12,AD12,AE12,AF12,AG12),"")) -> 233 | AJ12: 233 | AK12: =IF(AH12=FALSE,"",IFERROR(CHOOSE('Guts-2'!$D$26,G12,J12,M12,P12,S12,V12,Y12,AR12),"")) -> 284.2 | AL12: =IFERROR(IF(Settings!$M$5="Mixed (Standard)",AK12,RANK(AK12,$AK$2:$AK$948,1)),"") -> 284.2 | AM12: =IFERROR(IF(Settings!$M$5="Mixed (Standard)",(RANK(AK12,$AK$2:$AK$948,1)/('Guts-2'!$N$1+1))+1,(RANK(AL12,$AL$2:$AL$948,1)/('Guts-2'!$N$1+1))+1),"") -> 22.23076923 | AN12: =IFERROR(CHOOSE('Guts-2'!$D$26,H12,K12,N12,Q12,T12,W12,Z12,AS12),"") -> 155 | AO12: =IFERROR(CHOOSE('Guts-2'!$D$26,I12,L12,O12,R12,U12,X12,AA12,AT12),"") -> 377.986 | AP12: 155 | AQ12: 377.986 | AR12: =INDEX('Import (ADP)'!$C$2:$C$999,MATCH(A12, 'Import (ADP)'!$B$2:$B$999,0)) ->  | AU12: =IF(VLOOKUP(A13,'Name-Sort'!$D$2:$E$949,2,FALSE)="",A13,"") -> Hanser Alberto | AV12: =IFERROR(INDEX($AU$1:$AU$948,SMALL(IF($AU$1:$AU$948<>"",ROW($AU$1:$AU$948)),ROW(AU12))),"") -> Hanser Alberto
A13: Hanser Alberto | B13: alberha01 | C13: 2B | E13: BAL | F13: 27 | G13: 325 | H13: 243.75 | I13: 446 | J13: 358 | K13: 268.5 | L13: 476.14 | S13: 378.3 | T13: 283.725 | U13: 503.139 | V13: 547.36 | W13: 287 | X13: 446 | Y13: 402.165 | Z13: 287 | AA13: 534.87945 | AC13: 354 | AF13: 334 | AH13: =IFERROR(INDEX('Guts-2'!$K$1:$K$30,MATCH(E13,'Guts-2'!$J$1:$J$30,0)),TRUE) -> TRUE | AI13: =IF(AH13=FALSE,"",IFERROR(CHOOSE('Guts-2'!$D$27,AB13,AC13,AD13,AE13,AF13,AG13),"")) -> 334 | AJ13: 333 | AK13: =IF(AH13=FALSE,"",IFERROR(CHOOSE('Guts-2'!$D$26,G13,J13,M13,P13,S13,V13,Y13,AR13),"")) -> 378.3 | AL13: =IFERROR(IF(Settings!$M$5="Mixed (Standard)",AK13,RANK(AK13,$AK$2:$AK$948,1)),"") -> 378.3 | AM13: =IFERROR(IF(Settings!$M$5="Mixed (Standard)",(RANK(AK13,$AK$2:$AK$948,1)/('Guts-2'!$N$1+1))+1,(RANK(AL13,$AL$2:$AL$948,1)/('Guts-2'!$N$1+1))+1),"") -> 31.15384615 | AN13: =IFERROR(CHOOSE('Guts-2'!$D$26,H13,K13,N13,Q13,T13,W13,Z13,AS13),"") -> 283.725 | AO13: =IFERROR(CHOOSE('Guts-2'!$D$26,I13,L13,O13,R13,U13,X13,AA13,AT13),"") -> 503.139 | AP13: 283.725 | AQ13: 503.139 | AR13: =INDEX('Import (ADP)'!$C$2:$C$999,MATCH(A13, 'Import (ADP)'!$B$2:$B$999,0)) ->  | AU13: =IF(VLOOKUP(A14,'Name-Sort'!$D$2:$E$949,2,FALSE)="",A14,"") -> Ozzie Albies | AV13: =IFERROR(INDEX($AU$1:$AU$948,SMALL(IF($AU$1:$AU$948<>"",ROW($AU$1:$AU$948)),ROW(AU13))),"") -> Ozzie Albies
A14: Ozzie Albies | B14: albieoz01 | C14: 2B | E14: ATL | F14: 23 | G14: 34 | H14: 19 | I14: 58 | J14: 37 | K14: 19 | L14: 58 | M14: 40.8 | N14: 27 | O14: 58 | P14: 37 | Q14: 19 | R14: 58 | S14: 37 | T14: 19 | U14: 58 | V14: 32.27 | W14: 19 | X14: 47 | Y14: 36.345 | Z14: 19 | AA14: 58 | AB14: 20 | AC14: 39 | AD14: 46 | AE14: 47 | AF14: 32 | AH14: =IFERROR(INDEX('Guts-2'!$K$1:$K$30,MATCH(E14,'Guts-2'!$J$1:$J$30,0)),TRUE) -> TRUE | AI14: =IF(AH14=FALSE,"",IFERROR(CHOOSE('Guts-2'!$D$27,AB14,AC14,AD14,AE14,AF14,AG14),"")) -> 32 | AJ14: 32 | AK14: =IF(AH14=FALSE,"",IFERROR(CHOOSE('Guts-2'!$D$26,G14,J14,M14,P14,S14,V14,Y14,AR14),"")) -> 37 | AL14: =IFERROR(IF(Settings!$M$5="Mixed (Standard)",AK14,RANK(AK14,$AK$2:$AK$948,1)),"") -> 37 | AM14: =IFERROR(IF(Settings!$M$5="Mixed (Standard)",(RANK(AK14,$AK$2:$AK$948,1)/('Guts-2'!$N$1+1))+1,(RANK(AL14,$AL$2:$AL$948,1)/('Guts-2'!$N$1+1))+1),"") -> 3.769230769 | AN14: =IFERROR(CHOOSE('Guts-2'!$D$26,H14,K14,N14,Q14,T14,W14,Z14,AS14),"") -> 19 | AO14: =IFERROR(CHOOSE('Guts-2'!$D$26,I14,L14,O14,R14,U14,X14,AA14,AT14),"") -> 58 | AP14: 19 | AQ14: 58 | AR14: =INDEX('Import (ADP)'!$C$2:$C$999,MATCH(A14, 'Import (ADP)'!$B$2:$B$999,0)) ->  | AU14: =IF(VLOOKUP(A15,'Name-Sort'!$D$2:$E$949,2,FALSE)="",A15,"") -> Sandy Alcantara | AV14: =IFERROR(INDEX($AU$1:$AU$948,SMALL(IF($AU$1:$AU$948<>"",ROW($AU$1:$AU$948)),ROW(AU14))),"") -> Sandy Alcantara
A15: Sandy Alcantara | B15: alcansa01 | C15: SP | E15: MIA | F15: 24 | G15: 233 | H15: 165 | I15: 352 | J15: 283 | K15: 165 | L15: 376.39 | M15: 267.95 | N15: 175 | O15: 351 | P15: 294 | Q15: 165 | R15: 391.02 | S15: 279.4 | T15: 165 | U15: 371.602 | V15: 284.64 | W15: 165 | X15: 352 | Y15: 273.665 | Z15: 165 | AA15: 363.97445 | AC15: 277 | AD15: 289 | AE15: 182 | AF15: 258 | AH15: =IFERROR(INDEX('Guts-2'!$K$1:$K$30,MATCH(E15,'Guts-2'!$J$1:$J$30,0)),TRUE) -> TRUE | AI15: =IF(AH15=FALSE,"",IFERROR(CHOOSE('Guts-2'!$D$27,AB15,AC15,AD15,AE15,AF15,AG15),"")) -> 258 | AJ15: 257 | AK15: =IF(AH15=FALSE,"",IFERROR(CHOOSE('Guts-2'!$D$26,G15,J15,M15,P15,S15,V15,Y15,AR15),"")) -> 279.4 | AL15: =IFERROR(IF(Settings!$M$5="Mixed (Standard)",AK15,RANK(AK15,$AK$2:$AK$948,1)),"") -> 279.4 | AM15: =IFERROR(IF(Settings!$M$5="Mixed (Standard)",(RANK(AK15,$AK$2:$AK$948,1)/('Guts-2'!$N$1+1))+1,(RANK(AL15,$AL$2:$AL$948,1)/('Guts-2'!$N$1+1))+1),"") -> 21.30769231 | AN15: =IFERROR(CHOOSE('Guts-2'!$D$26,H15,K15,N15,Q15,T15,W15,Z15,AS15),"") -> 165 | AO15: =IFERROR(CHOOSE('Guts-2'!$D$26,I15,L15,O15,R15,U15,X15,AA15,AT15),"") -> 371.602 | AP15: 165 | AQ15: 371.602 | AR15: =INDEX('Import (ADP)'!$C$2:$C$999,MATCH(A15, 'Import (ADP)'!$B$2:$B$999,0)) ->  | AU15: =IF(VLOOKUP(A16,'Name-Sort'!$D$2:$E$949,2,FALSE)="",A16,"") -> Jorge Alfaro | AV15: =IFERROR(INDEX($AU$1:$AU$948,SMALL(IF($AU$1:$AU$948<>"",ROW($AU$1:$AU$948)),ROW(AU15))),"") -> Jorge Alfaro
A16: Jorge Alfaro | B16: alfarjo01 | C16: C | E16: MIA | F16: 26 | G16: 316 | H16: 125 | I16: 420.28 | J16: 231 | K16: 125 | L16: 314 | M16: 234.49 | N16: 158 | O16: 314 | S16: 239 | T16: 125 | U16: 317.87 | V16: 222.64 | W16: 125 | X16: 267 | Y16: 248.626 | Z16: 125 | AA16: 330.67258 | AB16: 255 | AC16: 286 | AF16: 288 | AH16: =IFERROR(INDEX('Guts-2'!$K$1:$K$30,MATCH(E16,'Guts-2'!$J$1:$J$30,0)),TRUE) -> TRUE | AI16: =IF(AH16=FALSE,"",IFERROR(CHOOSE('Guts-2'!$D$27,AB16,AC16,AD16,AE16,AF16,AG16),"")) -> 288 | AJ16: 287 | AK16: =IF(AH16=FALSE,"",IFERROR(CHOOSE('Guts-2'!$D$26,G16,J16,M16,P16,S16,V16,Y16,AR16),"")) -> 239 | AL16: =IFERROR(IF(Settings!$M$5="Mixed (Standard)",AK16,RANK(AK16,$AK$2:$AK$948,1)),"") -> 239 | AM16: =IFERROR(IF(Settings!$M$5="Mixed (Standard)",(RANK(AK16,$AK$2:$AK$948,1)/('Guts-2'!$N$1+1))+1,(RANK(AL16,$AL$2:$AL$948,1)/('Guts-2'!$N$1+1))+1),"") -> 19.07692308 | AN16: =IFERROR(CHOOSE('Guts-2'!$D$26,H16,K16,N16,Q16,T16,W16,Z16,AS16),"") -> 125 | AO16: =IFERROR(CHOOSE('Guts-2'!$D$26,I16,L16,O16,R16,U16,X16,AA16,AT16),"") -> 317.87 | AP16: 125 | AQ16: 317.87 | AR16: =INDEX('Import (ADP)'!$C$2:$C$999,MATCH(A16, 'Import (ADP)'!$B$2:$B$999,0)) ->  | AU16: =IF(VLOOKUP(A17,'Name-Sort'!$D$2:$E$949,2,FALSE)="",A17,"") -> Kolby Allard | AV16: =IFERROR(INDEX($AU$1:$AU$948,SMALL(IF($AU$1:$AU$948<>"",ROW($AU$1:$AU$948)),ROW(AU16))),"") -> Kolby Allard
A17: Kolby Allard | B17: allarko01 | C17: SP | E17: TEX | F17: 22 | V17: 744.98 | W17: 546 | X17: 705 | Y17: 744.98 | Z17: 546 | AA17: 990.8234 | AF17: 679 | AH17: =IFERROR(INDEX('Guts-2'!$K$1:$K$30,MATCH(E17,'Guts-2'!$J$1:$J$30,0)),TRUE) -> TRUE | AI17: =IF(AH17=FALSE,"",IFERROR(CHOOSE('Guts-2'!$D$27,AB17,AC17,AD17,AE17,AF17,AG17),"")) -> 679 | AJ17: 633 | AK17: =IF(AH17=FALSE,"",IFERROR(CHOOSE('Guts-2'!$D$26,G17,J17,M17,P17,S17,V17,Y17,AR17),"")) ->  | AL17: =IFERROR(IF(Settings!$M$5="Mixed (Standard)",AK17,RANK(AK17,$AK$2:$AK$948,1)),"") ->  | AM17: =IFERROR(IF(Settings!$M$5="Mixed (Standard)",(RANK(AK17,$AK$2:$AK$948,1)/('Guts-2'!$N$1+1))+1,(RANK(AL17,$AL$2:$AL$948,1)/('Guts-2'!$N$1+1))+1),"") ->  | AN17: =IFERROR(CHOOSE('Guts-2'!$D$26,H17,K17,N17,Q17,T17,W17,Z17,AS17),"") ->  | AO17: =IFERROR(CHOOSE('Guts-2'!$D$26,I17,L17,O17,R17,U17,X17,AA17,AT17),"") ->  | AR17: =INDEX('Import (ADP)'!$C$2:$C$999,MATCH(A17, 'Import (ADP)'!$B$2:$B$999,0)) ->  | AU17: =IF(VLOOKUP(A18,'Name-Sort'!$D$2:$E$949,2,FALSE)="",A18,"") -> Austin Allen | AV17: =IFERROR(INDEX($AU$1:$AU$948,SMALL(IF($AU$1:$AU$948<>"",ROW($AU$1:$AU$948)),ROW(AU17))),"") -> Austin Allen
A18: Austin Allen | B18: allenau01 | C18: C | E18: OAK | F18: 26 | G18: 624 | H18: 367 | I18: 829.92 | S18: 547 | T18: 367 | U18: 727.51 | V18: 679.76 | W18: 367 | X18: 593 | Y18: 616.92 | Z18: 367 | AA18: 820.5036 | AF18: 752 | AH18: =IFERROR(INDEX('Guts-2'!$K$1:$K$30,MATCH(E18,'Guts-2'!$J$1:$J$30,0)),TRUE) -> TRUE | AI18: =IF(AH18=FALSE,"",IFERROR(CHOOSE('Guts-2'!$D$27,AB18,AC18,AD18,AE18,AF18,AG18),"")) -> 752 | AJ18: 668 | AK18: =IF(AH18=FALSE,"",IFERROR(CHOOSE('Guts-2'!$D$26,G18,J18,M18,P18,S18,V18,Y18,AR18),"")) -> 547 | AL18: =IFERROR(IF(Settings!$M$5="Mixed (Standard)",AK18,RANK(AK18,$AK$2:$AK$948,1)),"") -> 547 | AM18: =IFERROR(IF(Settings!$M$5="Mixed (Standard)",(RANK(AK18,$AK$2:$AK$948,1)/('Guts-2'!$N$1+1))+1,(RANK(AL18,$AL$2:$AL$948,1)/('Guts-2'!$N$1+1))+1),"") -> 43.07692308 | AN18: =IFERROR(CHOOSE('Guts-2'!$D$26,H18,K18,N18,Q18,T18,W18,Z18,AS18),"") -> 367 | AO18: =IFERROR(CHOOSE('Guts-2'!$D$26,I18,L18,O18,R18,U18,X18,AA18,AT18),"") -> 727.51 | AP18: 367 | AQ18: 727.51 | AR18: =INDEX('Import (ADP)'!$C$2:$C$999,MATCH(A18, 'Import (ADP)'!$B$2:$B$999,0)) ->  | AU18: =IF(VLOOKUP(A19,'Name-Sort'!$D$2:$E$949,2,FALSE)="",A19,"") -> Greg Allen | AV18: =IFERROR(INDEX($AU$1:$AU$948,SMALL(IF($AU$1:$AU$948<>"",ROW($AU$1:$AU$948)),ROW(AU18))),"") -> Greg Allen
A19: Greg Allen | B19: allengr01 | C19: OF | D19: LF,CF,RF | E19: CLE | F19: 27 | V19: 747.63 | W19: 636 | X19: 713 | Y19: 747.63 | Z19: 560.7225 | AA19: 994.3479 | AF19: 684 | AH19: =IFERROR(INDEX('Guts-2'!$K$1:$K$30,MATCH(E19,'Guts-2'!$J$1:$J$30,0)),TRUE) -> TRUE | AI19: =IF(AH19=FALSE,"",IFERROR(CHOOSE('Guts-2'!$D$27,AB19,AC19,AD19,AE19,AF19,AG19),"")) -> 684 | AJ19: 637 | AK19: =IF(AH19=FALSE,"",IFERROR(CHOOSE('Guts-2'!$D$26,G19,J19,M19,P19,S19,V19,Y19,AR19),"")) ->  | AL19: =IFERROR(IF(Settings!$M$5="Mixed (Standard)",AK19,RANK(AK19,$AK$2:$AK$948,1)),"") ->  | AM19: =IFERROR(IF(Settings!$M$5="Mixed (Standard)",(RANK(AK19,$AK$2:$AK$948,1)/('Guts-2'!$N$1+1))+1,(RANK(AL19,$AL$2:$AL$948,1)/('Guts-2'!$N$1+1))+1),"") ->  | AN19: =IFERROR(CHOOSE('Guts-2'!$D$26,H19,K19,N19,Q19,T19,W19,Z19,AS19),"") ->  | AO19: =IFERROR(CHOOSE('Guts-2'!$D$26,I19,L19,O19,R19,U19,X19,AA19,AT19),"") ->  | AR19: =INDEX('Import (ADP)'!$C$2:$C$999,MATCH(A19, 'Import (ADP)'!$B$2:$B$999,0)) ->  | AU19: =IF(VLOOKUP(A20,'Name-Sort'!$D$2:$E$949,2,FALSE)="",A20,"") -> Logan Allen | AV19: =IFERROR(INDEX($AU$1:$AU$948,SMALL(IF($AU$1:$AU$948<>"",ROW($AU$1:$AU$948)),ROW(AU19))),"") -> Logan Allen
A20: Logan Allen | B20: allenlo01 | C20: RP | E20: CLE | F20: 22 | V20: 749.02 | W20: 673 | X20: 719 | Y20: 749.02 | Z20: 561.765 | AA20: 996.1966 | AF20: 669 | AH20: =IFERROR(INDEX('Guts-2'!$K$1:$K$30,MATCH(E20,'Guts-2'!$J$1:$J$30,0)),TRUE) -> TRUE | AI20: =IF(AH20=FALSE,"",IFERROR(CHOOSE('Guts-2'!$D$27,AB20,AC20,AD20,AE20,AF20,AG20),"")) -> 669 | AJ20: 625 | AK20: =IF(AH20=FALSE,"",IFERROR(CHOOSE('Guts-2'!$D$26,G20,J20,M20,P20,S20,V20,Y20,AR20),"")) ->  | AL20: =IFERROR(IF(Settings!$M$5="Mixed (Standard)",AK20,RANK(AK20,$AK$2:$AK$948,1)),"") ->  | AM20: =IFERROR(IF(Settings!$M$5="Mixed (Standard)",(RANK(AK20,$AK$2:$AK$948,1)/('Guts-2'!$N$1+1))+1,(RANK(AL20,$AL$2:$AL$948,1)/('Guts-2'!$N$1+1))+1),"") ->  | AN20: =IFERROR(CHOOSE('Guts-2'!$D$26,H20,K20,N20,Q20,T20,W20,Z20,AS20),"") ->  | AO20: =IFERROR(CHOOSE('Guts-2'!$D$26,I20,L20,O20,R20,U20,X20,AA20,AT20),"") ->  | AR20: =INDEX('Import (ADP)'!$C$2:$C$999,MATCH(A20, 'Import (ADP)'!$B$2:$B$999,0)) ->  | AU20: =IF(VLOOKUP(A21,'Name-Sort'!$D$2:$E$949,2,FALSE)="",A21,"") -> Albert Almora | AV20: =IFERROR(INDEX($AU$1:$AU$948,SMALL(IF($AU$1:$AU$948<>"",ROW($AU$1:$AU$948)),ROW(AU20))),"") -> Albert Almora
A21: Albert Almora | B21: almoral01 | C21: OF | D21: CF | E21: CHC | F21: 25 | G21: 807 | H21: 522 | I21: 1073.31 | P21: 363 | Q21: 272.25 | R21: 656 | S21: 620.7 | T21: 465.525 | U21: 825.531 | V21: 727.96 | W21: 522 | X21: 656 | Y21: 629.665 | Z21: 472.24875 | AA21: 837.45445 | AF21: 746 | AH21: =IFERROR(INDEX('Guts-2'!$K$1:$K$30,MATCH(E21,'Guts-2'!$J$1:$J$30,0)),TRUE) -> TRUE | AI21: =IF(AH21=FALSE,"",IFERROR(CHOOSE('Guts-2'!$D$27,AB21,AC21,AD21,AE21,AF21,AG21),"")) -> 746 | AJ21: 666 | AK21: =IF(AH21=FALSE,"",IFERROR(CHOOSE('Guts-2'!$D$26,G21,J21,M21,P21,S21,V21,Y21,AR21),"")) -> 620.7 | AL21: =IFERROR(IF(Settings!$M$5="Mixed (Standard)",AK21,RANK(AK21,$AK$2:$AK$948,1)),"") -> 620.7 | AM21: =IFERROR(IF(Settings!$M$5="Mixed (Standard)",(RANK(AK21,$AK$2:$AK$948,1)/('Guts-2'!$N$1+1))+1,(RANK(AL21,$AL$2:$AL$948,1)/('Guts-2'!$N$1+1))+1),"") -> 47.38461538 | AN21: =IFERROR(CHOOSE('Guts-2'!$D$26,H21,K21,N21,Q21,T21,W21,Z21,AS21),"") -> 465.525 | AO21: =IFERROR(CHOOSE('Guts-2'!$D$26,I21,L21,O21,R21,U21,X21,AA21,AT21),"") -> 825.531 | AP21: 465.525 | AQ21: 825.531 | AR21: =INDEX('Import (ADP)'!$C$2:$C$999,MATCH(A21, 'Import (ADP)'!$B$2:$B$999,0)) ->  | AU21: =IF(VLOOKUP(A22,'Name-Sort'!$D$2:$E$949,2,FALSE)="",A22,"") -> Pete Alonso | AV21: =IFERROR(INDEX($AU$1:$AU$948,SMALL(IF($AU$1:$AU$948<>"",ROW($AU$1:$AU$948)),ROW(AU21))),"") -> Pete Alonso
A22: Pete Alonso | B22: alonspe01 | C22: 1B | E22: NYM | F22: 25 | G22: 27 | H22: 13 | I22: 54 | J22: 24 | K22: 13 | L22: 54 | M22: 29.98 | N22: 16 | O22: 43 | P22: 24 | Q22: 13 | R22: 54 | S22: 25.8 | T22: 13 | U22: 54 | V22: 33.76 | W22: 13 | X22: 54 | Y22: 27.42333333 | Z22: 13 | AA22: 54 | AB22: 53 | AC22: 24 | AD22: 30 | AE22: 25 | AF22: 35 | AH22: =IFERROR(INDEX('Guts-2'!$K$1:$K$30,MATCH(E22,'Guts-2'!$J$1:$J$30,0)),TRUE) -> TRUE | AI22: =IF(AH22=FALSE,"",IFERROR(CHOOSE('Guts-2'!$D$27,AB22,AC22,AD22,AE22,AF22,AG22),"")) -> 35 | AJ22: 35 | AK22: =IF(AH22=FALSE,"",IFERROR(CHOOSE('Guts-2'!$D$26,G22,J22,M22,P22,S22,V22,Y22,AR22),"")) -> 25.8 | AL22: =IFERROR(IF(Settings!$M$5="Mixed (Standard)",AK22,RANK(AK22,$AK$2:$AK$948,1)),"") -> 25.8 | AM22: =IFERROR(IF(Settings!$M$5="Mixed (Standard)",(RANK(AK22,$AK$2:$AK$948,1)/('Guts-2'!$N$1+1))+1,(RANK(AL22,$AL$2:$AL$948,1)/('Guts-2'!$N$1+1))+1),"") -> 3 | AN22: =IFERROR(CHOOSE('Guts-2'!$D$26,H22,K22,N22,Q22,T22,W22,Z22,AS22),"") -> 13 | AO22: =IFERROR(CHOOSE('Guts-2'!$D$26,I22,L22,O22,R22,U22,X22,AA22,AT22),"") -> 54 | AP22: 13 | AQ22: 54 | AR22: =INDEX('Import (ADP)'!$C$2:$C$999,MATCH(A22, 'Import (ADP)'!$B$2:$B$999,0)) -> 32 | AS22: 13 | AT22: 54 | AU22: =IF(VLOOKUP(A23,'Name-Sort'!$D$2:$E$949,2,FALSE)="",A23,"") -> Yonder Alonso | AV22: =IFERROR(INDEX($AU$1:$AU$948,SMALL(IF($AU$1:$AU$948<>"",ROW($AU$1:$AU$948)),ROW(AU22))),"") -> Yonder Alonso
A23: Yonder Alonso | B23: alonsyo01 | C23: 1B | E23: COL | F23: 32 | P23: 386 | Q23: 289.5 | R23: 743 | S23: 651.5 | T23: 488.625 | U23: 866.495 | V23: 749.08 | W23: 532 | X23: 743 | Y23: 595.5266667 | Z23: 446.645 | AA23: 792.0504667 | AF23: 786 | AH23: =IFERROR(INDEX('Guts-2'!$K$1:$K$30,MATCH(E23,'Guts-2'!$J$1:$J$30,0)),TRUE) -> TRUE | AI23: =IF(AH23=FALSE,"",IFERROR(CHOOSE('Guts-2'!$D$27,AB23,AC23,AD23,AE23,AF23,AG23),"")) -> 786 | AJ23: 686 | AK23: =IF(AH23=FALSE,"",IFERROR(CHOOSE('Guts-2'!$D$26,G23,J23,M23,P23,S23,V23,Y23,AR23),"")) -> 651.5 | AL23: =IFERROR(IF(Settings!$M$5="Mixed (Standard)",AK23,RANK(AK23,$AK$2:$AK$948,1)),"") -> 651.5 | AM23: =IFERROR(IF(Settings!$M$5="Mixed (Standard)",(RANK(AK23,$AK$2:$AK$948,1)/('Guts-2'!$N$1+1))+1,(RANK(AL23,$AL$2:$AL$948,1)/('Guts-2'!$N$1+1))+1),"") -> 48.61538462 | AN23: =IFERROR(CHOOSE('Guts-2'!$D$26,H23,K23,N23,Q23,T23,W23,Z23,AS23),"") -> 488.625 | AO23: =IFERROR(CHOOSE('Guts-2'!$D$26,I23,L23,O23,R23,U23,X23,AA23,AT23),"") -> 866.495 | AP23: 488.625 | AQ23: 866.495 | AR23: =INDEX('Import (ADP)'!$C$2:$C$999,MATCH(A23, 'Import (ADP)'!$B$2:$B$999,0)) ->  | AU23: =IF(VLOOKUP(A24,'Name-Sort'!$D$2:$E$949,2,FALSE)="",A24,"") -> Jose Altuve | AV23: =IFERROR(INDEX($AU$1:$AU$948,SMALL(IF($AU$1:$AU$948<>"",ROW($AU$1:$AU$948)),ROW(AU23))),"") -> Jose Altuve
A24: Jose Altuve | B24: altuvjo01 | C24: 2B | E24: HOU | F24: 29 | G24: 32 | H24: 19 | I24: 56 | J24: 31 | K24: 19 | L24: 56 | M24: 31.62 | N24: 19 | O24: 44 | P24: 26 | Q24: 19 | R24: 56 | S24: 31.6 | T24: 19 | U24: 56 | V24: 38.96 | W24: 24 | X24: 56 | Y24: 31.86333333 | Z24: 19 | AA24: 56 | AB24: 16 | AC24: 36 | AD24: 21 | AE24: 23 | AF24: 29 | AH24: =IFERROR(INDEX('Guts-2'!$K$1:$K$30,MATCH(E24,'Guts-2'!$J$1:$J$30,0)),TRUE) -> TRUE | AI24: =IF(AH24=FALSE,"",IFERROR(CHOOSE('Guts-2'!$D$27,AB24,AC24,AD24,AE24,AF24,AG24),"")) -> 29 | AJ24: 29 | AK24: =IF(AH24=FALSE,"",IFERROR(CHOOSE('Guts-2'!$D$26,G24,J24,M24,P24,S24,V24,Y24,AR24),"")) -> 31.6 | AL24: =IFERROR(IF(Settings!$M$5="Mixed (Standard)",AK24,RANK(AK24,$AK$2:$AK$948,1)),"") -> 31.6 | AM24: =IFERROR(IF(Settings!$M$5="Mixed (Standard)",(RANK(AK24,$AK$2:$AK$948,1)/('Guts-2'!$N$1+1))+1,(RANK(AL24,$AL$2:$AL$948,1)/('Guts-2'!$N$1+1))+1),"") -> 3.384615385 | AN24: =IFERROR(CHOOSE('Guts-2'!$D$26,H24,K24,N24,Q24,T24,W24,Z24,AS24),"") -> 19 | AO24: =IFERROR(CHOOSE('Guts-2'!$D$26,I24,L24,O24,R24,U24,X24,AA24,AT24),"") -> 56 | AP24: 19 | AQ24: 56 | AR24: =INDEX('Import (ADP)'!$C$2:$C$999,MATCH(A24, 'Import (ADP)'!$B$2:$B$999,0)) -> 22 | AS24: 17 | AT24: 56 | AU24: =IF(VLOOKUP(A25,'Name-Sort'!$D$2:$E$949,2,FALSE)="",A25,"") -> Jose Alvarado | AV24: =IFERROR(INDEX($AU$1:$AU$948,SMALL(IF($AU$1:$AU$948<>"",ROW($AU$1:$AU$948)),ROW(AU24))),"") -> Jose Alvarado
A25: Jose Alvarado | B25: alvarjo03 | C25: RP | E25: TB | F25: 24 | G25: 431 | H25: 185 | I25: 573.23 | J25: 322 | K25: 185 | L25: 551 | P25: 466 | Q25: 185 | R25: 619.78 | S25: 401 | T25: 185 | U25: 551 | V25: 547.14 | W25: 185 | X25: 551 | Y25: 433.428 | Z25: 185 | AA25: 576.45924 | AB25: 298 | AF25: 367 | AH25: =IFERROR(INDEX('Guts-2'!$K$1:$K$30,MATCH(E25,'Guts-2'!$J$1:$J$30,0)),TRUE) -> TRUE | AI25: =IF(AH25=FALSE,"",IFERROR(CHOOSE('Guts-2'!$D$27,AB25,AC25,AD25,AE25,AF25,AG25),"")) -> 367 | AJ25: 365 | AK25: =IF(AH25=FALSE,"",IFERROR(CHOOSE('Guts-2'!$D$26,G25,J25,M25,P25,S25,V25,Y25,AR25),"")) -> 401 | AL25: =IFERROR(IF(Settings!$M$5="Mixed (Standard)",AK25,RANK(AK25,$AK$2:$AK$948,1)),"") -> 401 | AM25: =IFERROR(IF(Settings!$M$5="Mixed (Standard)",(RANK(AK25,$AK$2:$AK$948,1)/('Guts-2'!$N$1+1))+1,(RANK(AL25,$AL$2:$AL$948,1)/('Guts-2'!$N$1+1))+1),"") -> 33.30769231 | AN25: =IFERROR(CHOOSE('Guts-2'!$D$26,H25,K25,N25,Q25,T25,W25,Z25,AS25),"") -> 185 | AO25: =IFERROR(CHOOSE('Guts-2'!$D$26,I25,L25,O25,R25,U25,X25,AA25,AT25),"") -> 551 | AP25: 185 | AQ25: 551 | AR25: =INDEX('Import (ADP)'!$C$2:$C$999,MATCH(A25, 'Import (ADP)'!$B$2:$B$999,0)) ->  | AU25: =IF(VLOOKUP(A26,'Name-Sort'!$D$2:$E$949,2,FALSE)="",A26,"") -> Yordan Alvarez | AV25: =IFERROR(INDEX($AU$1:$AU$948,SMALL(IF($AU$1:$AU$948<>"",ROW($AU$1:$AU$948)),ROW(AU25))),"") -> Yordan Alvarez
A26: Yordan Alvarez | B26: alvaryo01 | C26: DH | D26: LF | E26: HOU | F26: 22 | G26: 36 | H26: 25 | I26: 138 | J26: 34 | K26: 25 | L26: 138 | M26: 46.94 | N26: 25 | O26: 114 | P26: 57 | Q26: 25 | R26: 138 | S26: 41.2 | T26: 25 | U26: 138 | V26: 72.04 | W26: 29 | X26: 138 | Y26: 47.86333333 | Z26: 25 | AA26: 138 | AB26: 55 | AC26: 35 | AD26: 31 | AE26: 46 | AF26: 49 | AH26: =IFERROR(INDEX('Guts-2'!$K$1:$K$30,MATCH(E26,'Guts-2'!$J$1:$J$30,0)),TRUE) -> TRUE | AI26: =IF(AH26=FALSE,"",IFERROR(CHOOSE('Guts-2'!$D$27,AB26,AC26,AD26,AE26,AF26,AG26),"")) -> 49 | AJ26: 49 | AK26: =IF(AH26=FALSE,"",IFERROR(CHOOSE('Guts-2'!$D$26,G26,J26,M26,P26,S26,V26,Y26,AR26),"")) -> 41.2 | AL26: =IFERROR(IF(Settings!$M$5="Mixed (Standard)",AK26,RANK(AK26,$AK$2:$AK$948,1)),"") -> 41.2 | AM26: =IFERROR(IF(Settings!$M$5="Mixed (Standard)",(RANK(AK26,$AK$2:$AK$948,1)/('Guts-2'!$N$1+1))+1,(RANK(AL26,$AL$2:$AL$948,1)/('Guts-2'!$N$1+1))+1),"") -> 4.076923077 | AN26: =IFERROR(CHOOSE('Guts-2'!$D$26,H26,K26,N26,Q26,T26,W26,Z26,AS26),"") -> 25 | AO26: =IFERROR(CHOOSE('Guts-2'!$D$26,I26,L26,O26,R26,U26,X26,AA26,AT26),"") -> 138 | AP26: 25 | AQ26: 138 | AR26: =INDEX('Import (ADP)'!$C$2:$C$999,MATCH(A26, 'Import (ADP)'!$B$2:$B$999,0)) ->  | AU26: =IF(VLOOKUP(A27,'Name-Sort'!$D$2:$E$949,2,FALSE)="",A27,"") -> Adbert Alzolay | AV26: =IFERROR(INDEX($AU$1:$AU$948,SMALL(IF($AU$1:$AU$948<>"",ROW($AU$1:$AU$948)),ROW(AU26))),"") -> Adbert Alzolay
A27: Adbert Alzolay | B27: alzolad01 | C27: SP | E27: CHC | F27: 25 | V27: 745.97 | W27: 572 | X27: 722 | Y27: 745.97 | Z27: 559.4775 | AA27: 992.1401 | AH27: =IFERROR(INDEX('Guts-2'!$K$1:$K$30,MATCH(E27,'Guts-2'!$J$1:$J$30,0)),TRUE) -> TRUE | AI27: =IF(AH27=FALSE,"",IFERROR(CHOOSE('Guts-2'!$D$27,AB27,AC27,AD27,AE27,AF27,AG27),"")) ->  | AK27: =IF(AH27=FALSE,"",IFERROR(CHOOSE('Guts-2'!$D$26,G27,J27,M27,P27,S27,V27,Y27,AR27),"")) ->  | AL27: =IFERROR(IF(Settings!$M$5="Mixed (Standard)",AK27,RANK(AK27,$AK$2:$AK$948,1)),"") ->  | AM27: =IFERROR(IF(Settings!$M$5="Mixed (Standard)",(RANK(AK27,$AK$2:$AK$948,1)/('Guts-2'!$N$1+1))+1,(RANK(AL27,$AL$2:$AL$948,1)/('Guts-2'!$N$1+1))+1),"") ->  | AN27: =IFERROR(CHOOSE('Guts-2'!$D$26,H27,K27,N27,Q27,T27,W27,Z27,AS27),"") ->  | AO27: =IFERROR(CHOOSE('Guts-2'!$D$26,I27,L27,O27,R27,U27,X27,AA27,AT27),"") ->  | AR27: =INDEX('Import (ADP)'!$C$2:$C$999,MATCH(A27, 'Import (ADP)'!$B$2:$B$999,0)) ->  | AU27: =IF(VLOOKUP(A28,'Name-Sort'!$D$2:$E$949,2,FALSE)="",A28,"") -> Brett Anderson | AV27: =IFERROR(INDEX($AU$1:$AU$948,SMALL(IF($AU$1:$AU$948<>"",ROW($AU$1:$AU$948)),ROW(AU27))),"") -> Brett Anderson
A28: Brett Anderson | B28: anderbr04 | C28: SP | E28: MIL | F28: 32 | G28: 525 | H28: 393.75 | I28: 698.25 | S28: 509 | T28: 381.75 | U28: 682 | V28: 714.42 | W28: 453 | X28: 682 | Y28: 582.8066667 | Z28: 437.105 | AA28: 775.1328667 | AF28: 515 | AH28: =IFERROR(INDEX('Guts-2'!$K$1:$K$30,MATCH(E28,'Guts-2'!$J$1:$J$30,0)),TRUE) -> TRUE | AI28: =IF(AH28=FALSE,"",IFERROR(CHOOSE('Guts-2'!$D$27,AB28,AC28,AD28,AE28,AF28,AG28),"")) -> 515 | AJ28: 509 | AK28: =IF(AH28=FALSE,"",IFERROR(CHOOSE('Guts-2'!$D$26,G28,J28,M28,P28,S28,V28,Y28,AR28),"")) -> 509 | AL28: =IFERROR(IF(Settings!$M$5="Mixed (Standard)",AK28,RANK(AK28,$AK$2:$AK$948,1)),"") -> 509 | AM28: =IFERROR(IF(Settings!$M$5="Mixed (Standard)",(RANK(AK28,$AK$2:$AK$948,1)/('Guts-2'!$N$1+1))+1,(RANK(AL28,$AL$2:$AL$948,1)/('Guts-2'!$N$1+1))+1),"") -> 40.84615385 | AN28: =IFERROR(CHOOSE('Guts-2'!$D$26,H28,K28,N28,Q28,T28,W28,Z28,AS28),"") -> 381.75 | AO28: =IFERROR(CHOOSE('Guts-2'!$D$26,I28,L28,O28,R28,U28,X28,AA28,AT28),"") -> 682 | AP28: 381.75 | AQ28: 682 | AR28: =INDEX('Import (ADP)'!$C$2:$C$999,MATCH(A28, 'Import (ADP)'!$B$2:$B$999,0)) ->  | AU28: =IF(VLOOKUP(A29,'Name-Sort'!$D$2:$E$949,2,FALSE)="",A29,"") -> Brian Anderson | AV28: =IFERROR(INDEX($AU$1:$AU$948,SMALL(IF($AU$1:$AU$948<>"",ROW($AU$1:$AU$948)),ROW(AU28))),"") -> Brian Anderson
A29: Brian Anderson | B29: anderbr06 | C29: 3B | D29: RF | E29: MIA | F29: 26 | G29: 423 | H29: 142 | I29: 562.59 | J29: 393 | K29: 142 | L29: 522.69 | M29: 220.42 | N29: 142 | O29: 286 | P29: 180 | Q29: 135 | R29: 303 | S29: 261.8 | T29: 142 | U29: 348.194 | V29: 222.91 | W29: 168 | X29: 303 | Y29: 283.5216667 | Z29: 142 | AA29: 377.0838167 | AB29: 266 | AC29: 265 | AD29: 145 | AE29: 175 | AF29: 228 | AH29: =IFERROR(INDEX('Guts-2'!$K$1:$K$30,MATCH(E29,'Guts-2'!$J$1:$J$30,0)),TRUE) -> TRUE | AI29: =IF(AH29=FALSE,"",IFERROR(CHOOSE('Guts-2'!$D$27,AB29,AC29,AD29,AE29,AF29,AG29),"")) -> 228 | AJ29: 228 | AK29: =IF(AH29=FALSE,"",IFERROR(CHOOSE('Guts-2'!$D$26,G29,J29,M29,P29,S29,V29,Y29,AR29),"")) -> 261.8 | AL29: =IFERROR(IF(Settings!$M$5="Mixed (Standard)",AK29,RANK(AK29,$AK$2:$AK$948,1)),"") -> 261.8 | AM29: =IFERROR(IF(Settings!$M$5="Mixed (Standard)",(RANK(AK29,$AK$2:$AK$948,1)/('Guts-2'!$N$1+1))+1,(RANK(AL29,$AL$2:$AL$948,1)/('Guts-2'!$N$1+1))+1),"") -> 20.30769231 | AN29: =IFERROR(CHOOSE('Guts-2'!$D$26,H29,K29,N29,Q29,T29,W29,Z29,AS29),"") -> 142 | AO29: =IFERROR(CHOOSE('Guts-2'!$D$26,I29,L29,O29,R29,U29,X29,AA29,AT29),"") -> 348.194 | AP29: 142 | AQ29: 348.194 | AR29: =INDEX('Import (ADP)'!$C$2:$C$999,MATCH(A29, 'Import (ADP)'!$B$2:$B$999,0)) ->  | AU29: =IF(VLOOKUP(A30,'Name-Sort'!$D$2:$E$949,2,FALSE)="",A30,"") -> Chase Anderson | AV29: =IFERROR(INDEX($AU$1:$AU$948,SMALL(IF($AU$1:$AU$948<>"",ROW($AU$1:$AU$948)),ROW(AU29))),"") -> Chase Anderson
A30: Chase Anderson | B30: anderch01 | C30: SP | E30: TOR | F30: 32 | G30: 460 | H30: 327 | I30: 611.8 | S30: 478.3 | T30: 327 | U30: 636.139 | V30: 695.89 | W30: 327 | X30: 582 | Y30: 544.73 | Z30: 327 | AA30: 724.4909 | AF30: 455 | AH30: =IFERROR(INDEX('Guts-2'!$K$1:$K$30,MATCH(E30,'Guts-2'!$J$1:$J$30,0)),TRUE) -> TRUE | AI30: =IF(AH30=FALSE,"",IFERROR(CHOOSE('Guts-2'!$D$27,AB30,AC30,AD30,AE30,AF30,AG30),"")) -> 455 | AJ30: 450 | AK30: =IF(AH30=FALSE,"",IFERROR(CHOOSE('Guts-2'!$D$26,G30,J30,M30,P30,S30,V30,Y30,AR30),"")) -> 478.3 | AL30: =IFERROR(IF(Settings!$M$5="Mixed (Standard)",AK30,RANK(AK30,$AK$2:$AK$948,1)),"") -> 478.3 | AM30: =IFERROR(IF(Settings!$M$5="Mixed (Standard)",(RANK(AK30,$AK$2:$AK$948,1)/('Guts-2'!$N$1+1))+1,(RANK(AL30,$AL$2:$AL$948,1)/('Guts-2'!$N$1+1))+1),"") -> 38.23076923 | AN30: =IFERROR(CHOOSE('Guts-2'!$D$26,H30,K30,N30,Q30,T30,W30,Z30,AS30),"") -> 327 | AO30: =IFERROR(CHOOSE('Guts-2'!$D$26,I30,L30,O30,R30,U30,X30,AA30,AT30),"") -> 636.139 | AP30: 327 | AQ30: 636.139 | AR30: =INDEX('Import (ADP)'!$C$2:$C$999,MATCH(A30, 'Import (ADP)'!$B$2:$B$999,0)) ->  | AU30: =IF(VLOOKUP(A31,'Name-Sort'!$D$2:$E$949,2,FALSE)="",A31,"") -> Ian Anderson | AV30: =IFERROR(INDEX($AU$1:$AU$948,SMALL(IF($AU$1:$AU$948<>"",ROW($AU$1:$AU$948)),ROW(AU30))),"") -> Ian Anderson
A31: Ian Anderson | B31: anderia01 | C31: SP | E31: ATL | F31: 21 | G31: 648 | H31: 359 | I31: 861.84 | S31: 589 | T31: 359 | U31: 783.37 | V31: 716.14 | W31: 359 | X31: 713 | Y31: 651.0466667 | Z31: 359 | AA31: 865.8920667 | AF31: 599 | AH31: =IFERROR(INDEX('Guts-2'!$K$1:$K$30,MATCH(E31,'Guts-2'!$J$1:$J$30,0)),TRUE) -> TRUE | AI31: =IF(AH31=FALSE,"",IFERROR(CHOOSE('Guts-2'!$D$27,AB31,AC31,AD31,AE31,AF31,AG31),"")) -> 599 | AJ31: 582 | AK31: =IF(AH31=FALSE,"",IFERROR(CHOOSE('Guts-2'!$D$26,G31,J31,M31,P31,S31,V31,Y31,AR31),"")) -> 589 | AL31: =IFERROR(IF(Settings!$M$5="Mixed (Standard)",AK31,RANK(AK31,$AK$2:$AK$948,1)),"") -> 589 | AM31: =IFERROR(IF(Settings!$M$5="Mixed (Standard)",(RANK(AK31,$AK$2:$AK$948,1)/('Guts-2'!$N$1+1))+1,(RANK(AL31,$AL$2:$AL$948,1)/('Guts-2'!$N$1+1))+1),"") -> 45.76923077 | AN31: =IFERROR(CHOOSE('Guts-2'!$D$26,H31,K31,N31,Q31,T31,W31,Z31,AS31),"") -> 359 | AO31: =IFERROR(CHOOSE('Guts-2'!$D$26,I31,L31,O31,R31,U31,X31,AA31,AT31),"") -> 783.37 | AP31: 359 | AQ31: 783.37 | AR31: =INDEX('Import (ADP)'!$C$2:$C$999,MATCH(A31, 'Import (ADP)'!$B$2:$B$999,0)) ->  | AU31: =IF(VLOOKUP(A32,'Name-Sort'!$D$2:$E$949,2,FALSE)="",A32,"") -> Nick Anderson | AV31: =IFERROR(INDEX($AU$1:$AU$948,SMALL(IF($AU$1:$AU$948<>"",ROW($AU$1:$AU$948)),ROW(AU31))),"") -> Nick Anderson
... 38 more rows

Sheet Name-Sort (hidden)
B1: =IFERROR(INDEX($A$1:$A$949,SMALL(IF($A$1:$A$949<>"",ROW($A$1:$A$949)),ROW(A1))),"") -> Ronald Acuna | C1: ORDER | D1: PLAYERNAME | E1: Team | F1: Original Pos | G1: New Pos | H1: Pos to Use | I1: New Pos | J1: Show Team? | K1: Drafted | L1: Show or No | M1: ADP | N1: WERTH | O1: Expert Ranking | P1: ='Your Roto Draft'!P10 -> AVG | Q1: ='Your Roto Draft'!Q10 -> HR | R1: ='Your Roto Draft'!R10 -> R | S1: ='Your Roto Draft'!S10 -> RBI | T1: ='Your Roto Draft'!T10 -> SB | U1: ='Your Roto Draft'!U10 ->  | V1: ='Your Roto Draft'!V10 ->  | W1: ='Your Roto Draft'!W10 ->  | X1: ='Your Roto Draft'!X10 ->  | Y1: ='Your Roto Draft'!Y10 ->  | Z1: ='Your Roto Draft'!Z10 ->  | AA1: ='Your Roto Draft'!AA10 ->  | AB1: ='Your Roto Draft'!P9 -> W | AC1: ='Your Roto Draft'!Q9 -> SV | AD1: ='Your Roto Draft'!R9 -> K | AE1: ='Your Roto Draft'!S9 -> ERA | AF1: ='Your Roto Draft'!T9 -> WHIP | AG1: ='Your Roto Draft'!U9 ->  | AH1: ='Your Roto Draft'!V9 ->  | AI1: ='Your Roto Draft'!W9 ->  | AJ1: ='Your Roto Draft'!X9 ->  | AK1: ='Your Roto Draft'!Y9 ->  | AL1: ='Your Roto Draft'!Z9 ->  | AM1: ='Your Roto Draft'!AA9 ->  | AN1: Pos Adj WERTH | AP1: =IFERROR(INDEX($AO$1:$AO$949,SMALL(IF($AO$1:$AO$949<>"",ROW($AO$1:$AO$949)),ROW(AO1))),"") -> Ronald Acuna
A2: =IFERROR(IF(VLOOKUP(ROW($A1),$C$2:$N$949,9,FALSE)=FALSE,VLOOKUP(ROW($A1),$C$2:$N$949,2,FALSE),""),"") -> Ronald Acuna | B2: =IFERROR(INDEX($A$1:$A$949,SMALL(IF($A$1:$A$949<>"",ROW($A$1:$A$949)),ROW(A2))),"") -> Mike Trout | C2: =IFERROR(IF(L2=FALSE,"",CHOOSE(MATCH(RIGHT('Your Roto Draft'!$P$4,LEN('Your Roto Draft'!$P$4)-8),$M$1:$AN$1,0),1+SUMPRODUCT(($L$2:$L$950=TRUE)*($M$2:$M$950<M2))+COUNTIFS($L$2:L2,L2,$M$2:M2,M2)-1,1+SUMPRODUCT(($L$2:$L$950=TRUE)*($N$2:$N$950>N2))+COUNTIFS($L$2:L2,L2,$N$2:N2,N2)-1,1+SUMPRODUCT(($L$2:$L$950=TRUE)*($O$2:$O$950<O2))+COUNTIFS($L$2:L2,L2,$O$2:O2,O2)-1,1+SUMPRODUCT(($L$2:$L$950=TRUE)*($P$2:$P$950>P2))+COUNTIFS($L$2:L2,L2,$P$2:P2,P2)-1,1+SUMPRODUCT(($L$2:$L$950=TRUE)*($Q$2:$Q$950>Q2))+COUNTIFS($L$2:L2,L2,$Q$2:Q2,Q2)-1,1+SUMPRODUCT(($L$2:$L$950=TRUE)*($R$2:$R$950>R2))+COUNTIFS($L$2:L2,L2,$R$2:R2,R2)-1,1+SUMPRODUCT(($L$2:$L$950=TRUE)*($S$2:$S$950>S2))+COUNTIFS($L$2:L2,L2,$S$2:S2,S2)-1,1+SUMPRODUCT(($L$2:$L$950=TRUE)*($T$2:$T$950>T2))+COUNTIFS($L$2:L2,L2,$T$2:T2,T2)-1,1+SUMPRODUCT(($L$2:$L$950=TRUE)*($U$2:$U$950>U2))+COUNTIFS($L$2:L2,L2,$U$2:U2,U2)-1,1+SUMPRODUCT(($L$2:$L$950=TRUE)*($V$2:$V$950>V2))+COUNTIFS($L$2:L2,L2,$V$2:V2,V2)-1,1+SUMPRODUCT(($L$2:$L$950=TRUE)*($W$2:$W$950>W2))+COUNTIFS($L$2:L2,L2,$W$2:W2,W2)-1,1+SUMPRODUCT(($L$2:$L$950=TRUE)*($X$2:$X$950>X2))+COUNTIFS($L$2:L2,L2,$X$2:X2,X2)-1,1+SUMPRODUCT(($L$2:$L$950=TRUE)*($Y$2:$Y$950>Y2))+COUNTIFS($L$2:L2,L2,$Y$2:Y2,Y2)-1,1+SUMPRODUCT(($L$2:$L$950=TRUE)*($Z$2:$Z$950>Z2))+COUNTIFS($L$2:L2,L2,$Z$2:Z2,Z2)-1,1+SUMPRODUCT(($L$2:$L$950=TRUE)*($AA$2:$AA$950>AA2))+COUNTIFS($L$2:L2,L2,$AA$2:AA2,AA2)-1,1+SUMPRODUCT(($L$2:$L$950=TRUE)*($AB$2:$AB$950>AB2))+COUNTIFS($L$2:L2,L2,$AB$2:AB2,AB2)-1,1+SUMPRODUCT(($L$2:$L$950=TRUE)*($AC$2:$AC$950>AC2))+COUNTIFS($L$2:L2,L2,$AC$2:AC2,AC2)-1,1+SUMPRODUCT(($L$2:$L$950=TRUE)*($AD$2:$AD$950>AD2))+COUNTIFS($L$2:L2,L2,$AD$2:AD2,AD2)-1,1+SUMPRODUCT(($L$2:$L$950=TRUE)*($AE$2:$AE$950>AE2))+COUNTIFS($L$2:L2,L2,$AE$2:AE2,AE2)-1,1+SUMPRODUCT(($L$2:$L$950=TRUE)*($AF$2:$AF$950>AF2))+COUNTIFS($L$2:L2,L2,$AF$2:AF2,AF2)-1,1+SUMPRODUCT(($L$2:$L$950=TRUE)*($AG$2:$AG$950>AG2))+COUNTIFS($L$2:L2,L2,$AG$2:AG2,AG2)-1,1+SUMPRODUCT(($L$2:$L$950=TRUE)*($AH$2:$AH$950>AH2))+COUNTIFS($L$2:L2,L2,$AH$2:AH2,AH2)-1,1+SUMPRODUCT(($L$2:$L$950=TRUE)*($AI$2:$AI$950>AI2))+COUNTIFS($L$2:L2,L2,$AI$2:AI2,AI2)-1,1+SUMPRODUCT(($L$2:$L$950=TRUE)*($AJ$2:$AJ$950>AJ2))+COUNTIFS($L$2:L2,L2,$AJ$2:AJ2,AJ2)-1,1+SUMPRODUCT(($L$2:$L$950=TRUE)*($AK$2:$AK$950>AK2))+COUNTIFS($L$2:L2,L2,$AK$2:AK2,AK2)-1,1+SUMPRODUCT(($L$2:$L$950=TRUE)*($AL$2:$AL$950>AL2))+COUNTIFS($L$2:L2,L2,$AL$2:AL2,AL2)-1,1+SUMPRODUCT(($L$2:$L$950=TRUE)*($AM$2:$AM$950>AM2))+COUNTIFS($L$2:L2,L2,$AM$2:AM2,AM2)-1,1+SUMPRODUCT(($L$2:$L$950=TRUE)*($AN$2:$AN$950>AN2))+COUNTIFS($L$2:L2,L2,$AN$2:AN2,AN2)-1)),"") -> 628 | D2: Bryan Abreu | E2: =IFERROR(INDEX('Draft Log'!$D$4:$D$806,MATCH(D2,'Draft Log'!$C$4:$C$806,0)),"") ->  | F2: =IFERROR(INDEX('ADP-Rank'!$C$2:$C$819,MATCH(D2,'ADP-Rank'!$A$2:$A$819,0)),"") -> RP | G2: =IFERROR(IF(F2=I2,"",IF(INDEX('Your Roto Draft'!$B$11:$B$634,MATCH(D2,'Your Roto Draft'!$C$11:$C$634,0))="",IF(I2<>"",I2,""),INDEX('Your Roto Draft'!$B$11:$B$634,MATCH(D2,'Your Roto Draft'!$C$11:$C$634,0)))),"") ->  | H2: =IFERROR(IF(I2="",F2,IF(I2<>F2,I2,F2)),"") -> RP | J2: =INDEX('ADP-Rank'!$AH$2:$AH$819,MATCH(D2,'ADP-Rank'!$A$2:$A$819,0)) -> TRUE | K2: =IF(E2="",FALSE,TRUE) -> FALSE | L2: =IF(J2=FALSE,FALSE,IF(AND('Your Roto Draft'!$P$6="Hide Drafted Players",K2=TRUE),FALSE,IF(OR('Your Roto Draft'!$P$5="Show All Positions",AND('Your Roto Draft'!$P$5="Only Show: C",H2="C"),AND('Your Roto Draft'!$P$5="Only Show: 1B",H2="1B"),AND('Your Roto Draft'!$P$5="Only Show: 2B",H2="2B"),AND('Your Roto Draft'!$P$5="Only Show: 3B",H2="3B"),AND('Your Roto Draft'!$P$5="Only Show: SS",H2="SS"),AND('Your Roto Draft'!$P$5="Only Show: OF",H2="OF"),AND('Your Roto Draft'!$P$5="Only Show: SP",H2="SP"),AND('Your Roto Draft'!$P$5="Only Show: RP",H2="RP"),AND('Your Roto Draft'!$P$5="Only Show: CI",OR(H2={"1B","3B"})),AND('Your Roto Draft'!$P$5="Only Show: MI",OR(H2={"2B","SS"})),AND('Your Roto Draft'!$P$5="Only Show: IF",OR(H2={"C","1B","2B","3B","SS"})),AND('Your Roto Draft'!$P$5="Only Show: DH",OR(H2={"C","1B","2B","3B","SS","OF","DH"})),AND('Your Roto Draft'!$P$5="Only Show: P",OR(H2={"SP","RP"})),AND('Your Roto Draft'!$P$5="Only Show: LF",ISERROR(SEARCH("LF",VLOOKUP($D2,'ADP-Rank'!$A$2:$D$948,4,FALSE)))=FALSE),AND('Your Roto Draft'!$P$5="Only Show: RF",ISERROR(SEARCH("RF",VLOOKUP($D2,'ADP-Rank'!$A$2:$D$948,4,FALSE)))=FALSE),AND('Your Roto Draft'!$P$5="Only Show: CF",ISERROR(SEARCH("CF",VLOOKUP($D2,'ADP-Rank'!$A$2:$D$948,4,FALSE)))=FALSE)),TRUE,FALSE))) -> TRUE | M2: =IFERROR(IF(VLOOKUP($D2,'ADP-Rank'!$A$2:$AV$948,38,FALSE)="",9999,VLOOKUP($D2,'ADP-Rank'!$A$2:$AV$948,38,FALSE)),9999) -> 9999 | N2: =IF(D2="Non-Ranked Player",-1001,IFERROR(VLOOKUP($D2,'All-WERTH'!$C$2:$E$949,3,FALSE),-1000)) -> -1000 | O2: =IF(D2="Non-Ranked Player",10000,IFERROR(IF(VLOOKUP(D2,'ADP-Rank'!$A$2:$AJ$948,36,FALSE)="",9999,VLOOKUP(D2,'ADP-Rank'!$A$2:$AJ$948,36,FALSE)),9999)) -> 543 | P2: =IF($D2="Unlisted Player",-1001,IFERROR(IF(VLOOKUP($D2,'All-WERTH'!$C$2:$AC$949,4,FALSE)="",-1000,VLOOKUP($D2,'All-WERTH'!$C$2:$AC$949,4,FALSE)),-1000)) -> -1000 | Q2: =IF($D2="Unlisted Player",-1001,IFERROR(IF(VLOOKUP($D2,'All-WERTH'!$C$2:$AC$949,5,FALSE)="",-1000,VLOOKUP($D2,'All-WERTH'!$C$2:$AC$949,5,FALSE)),-1000)) -> -1000 | R2: =IF($D2="Unlisted Player",-1001,IFERROR(IF(VLOOKUP($D2,'All-WERTH'!$C$2:$AC$949,6,FALSE)="",-1000,VLOOKUP($D2,'All-WERTH'!$C$2:$AC$949,6,FALSE)),-1000)) -> -1000 | S2: =IF($D2="Unlisted Player",-1001,IFERROR(IF(VLOOKUP($D2,'All-WERTH'!$C$2:$AC$949,7,FALSE)="",-1000,VLOOKUP($D2,'All-WERTH'!$C$2:$AC$949,7,FALSE)),-1000)) -> -1000 | T2: =IF($D2="Unlisted Player",-1001,IFERROR(IF(VLOOKUP($D2,'All-WERTH'!$C$2:$AC$949,8,FALSE)="",-1000,VLOOKUP($D2,'All-WERTH'!$C$2:$AC$949,8,FALSE)),-1000)) -> -1000 | U2: =IF($D2="Unlisted Player",-1001,IFERROR(IF(VLOOKUP($D2,'All-WERTH'!$C$2:$AC$949,9,FALSE)="",-1000,VLOOKUP($D2,'All-WERTH'!$C$2:$AC$949,9,FALSE)),-1000)) -> -1000 | V2: =IF($D2="Unlisted Player",-1001,IFERROR(IF(VLOOKUP($D2,'All-WERTH'!$C$2:$AC$949,10,FALSE)="",-1000,VLOOKUP($D2,'All-WERTH'!$C$2:$AC$949,10,FALSE)),-1000)) -> -1000 | W2: =IF($D2="Unlisted Player",-1001,IFERROR(IF(VLOOKUP($D2,'All-WERTH'!$C$2:$AC$949,11,FALSE)="",-1000,VLOOKUP($D2,'All-WERTH'!$C$2:$AC$949,11,FALSE)),-1000)) -> -1000 | X2: =IF($D2="Unlisted Player",-1001,IFERROR(IF(VLOOKUP($D2,'All-WERTH'!$C$2:$AC$949,12,FALSE)="",-1000,VLOOKUP($D2,'All-WERTH'!$C$2:$AC$949,12,FALSE)),-1000)) -> -1000 | Y2: =IF($D2="Unlisted Player",-1001,IFERROR(IF(VLOOKUP($D2,'All-WERTH'!$C$2:$AC$949,13,FALSE)="",-1000,VLOOKUP($D2,'All-WERTH'!$C$2:$AC$949,13,FALSE)),-1000)) -> -1000 | Z2: =IF($D2="Unlisted Player",-1001,IFERROR(IF(VLOOKUP($D2,'All-WERTH'!$C$2:$AC$949,14,FALSE)="",-1000,VLOOKUP($D2,'All-WERTH'!$C$2:$AC$949,14,FALSE)),-1000)) -> -1000 | AA2: =IF($D2="Unlisted Player",-1001,IFERROR(IF(VLOOKUP($D2,'All-WERTH'!$C$2:$AC$949,15,FALSE)="",-1000,VLOOKUP($D2,'All-WERTH'!$C$2:$AC$949,15,FALSE)),-1000)) -> -1000 | AB2: =IF($D2="Unlisted Player",-1001,IFERROR(IF(VLOOKUP($D2,'All-WERTH'!$C$2:$AC$949,16,FALSE)="",-1000,VLOOKUP($D2,'All-WERTH'!$C$2:$AC$949,16,FALSE)),-1000)) -> -1000 | AC2: =IF($D2="Unlisted Player",-1001,IFERROR(IF(VLOOKUP($D2,'All-WERTH'!$C$2:$AC$949,17,FALSE)="",-1000,VLOOKUP($D2,'All-WERTH'!$C$2:$AC$949,17,FALSE)),-1000)) -> -1000 | AD2: =IF($D2="Unlisted Player",-1001,IFERROR(IF(VLOOKUP($D2,'All-WERTH'!$C$2:$AC$949,18,FALSE)="",-1000,VLOOKUP($D2,'All-WERTH'!$C$2:$AC$949,18,FALSE)),-1000)) -> -1000 | AE2: =IF($D2="Unlisted Player",-1001,IFERROR(IF(VLOOKUP($D2,'All-WERTH'!$C$2:$AC$949,19,FALSE)="",-1000,VLOOKUP($D2,'All-WERTH'!$C$2:$AC$949,19,FALSE)),-1000)) -> -1000 | AF2: =IF($D2="Unlisted Player",-1001,IFERROR(IF(VLOOKUP($D2,'All-WERTH'!$C$2:$AC$949,20,FALSE)="",-1000,VLOOKUP($D2,'All-WERTH'!$C$2:$AC$949,20,FALSE)),-1000)) -> -1000 | AG2: =IF($D2="Unlisted Player",-1001,IFERROR(IF(VLOOKUP($D2,'All-WERTH'!$C$2:$AC$949,21,FALSE)="",-1000,VLOOKUP($D2,'All-WERTH'!$C$2:$AC$949,21,FALSE)),-1000)) -> -1000 | AH2: =IF($D2="Unlisted Player",-1001,IFERROR(IF(VLOOKUP($D2,'All-WERTH'!$C$2:$AC$949,22,FALSE)="",-1000,VLOOKUP($D2,'All-WERTH'!$C$2:$AC$949,22,FALSE)),-1000)) -> -1000 | AI2: =IF($D2="Unlisted Player",-1001,IFERROR(IF(VLOOKUP($D2,'All-WERTH'!$C$2:$AC$949,23,FALSE)="",-1000,VLOOKUP($D2,'All-WERTH'!$C$2:$AC$949,23,FALSE)),-1000)) -> -1000 | AJ2: =IF($D2="Unlisted Player",-1001,IFERROR(IF(VLOOKUP($D2,'All-WERTH'!$C$2:$AC$949,24,FALSE)="",-1000,VLOOKUP($D2,'All-WERTH'!$C$2:$AC$949,24,FALSE)),-1000)) -> -1000 | AK2: =IF($D2="Unlisted Player",-1001,IFERROR(IF(VLOOKUP($D2,'All-WERTH'!$C$2:$AC$949,25,FALSE)="",-1000,VLOOKUP($D2,'All-WERTH'!$C$2:$AC$949,25,FALSE)),-1000)) -> -1000 | AL2: =IF($D2="Unlisted Player",-1001,IFERROR(IF(VLOOKUP($D2,'All-WERTH'!$C$2:$AC$949,26,FALSE)="",-1000,VLOOKUP($D2,'All-WERTH'!$C$2:$AC$949,26,FALSE)),-1000)) -> -1000 | AM2: =IF($D2="Unlisted Player",-1001,IFERROR(IF(VLOOKUP($D2,'All-WERTH'!$C$2:$AC$949,27,FALSE)="",-1000,VLOOKUP($D2,'All-WERTH'!$C$2:$AC$949,27,FALSE)),-1000)) -> -1000 | AN2: =IF(D2="Non-Ranked Player",-1001,IFERROR(VLOOKUP($D2,'All-WERTH'!$C$2:$AG$949,31,FALSE),-1000)) -> -997.1373084 | AO2: =IF(ISERROR(VLOOKUP($B1,Keepers!$C$2:$D$450,2,FALSE)),B1,"") -> Ronald Acuna | AP2: =IFERROR(INDEX($AO$1:$AO$949,SMALL(IF($AO$1:$AO$949<>"",ROW($AO$1:$AO$949)),ROW(AO2))),"") -> Mike Trout
A3: Mike Trout | B3: =IFERROR(INDEX($A$1:$A$949,SMALL(IF($A$1:$A$949<>"",ROW($A$1:$A$949)),ROW(A3))),"") -> Christian Yelich | C3: =IFERROR(IF(L3=FALSE,"",CHOOSE(MATCH(RIGHT('Your Roto Draft'!$P$4,LEN('Your Roto Draft'!$P$4)-8),$M$1:$AN$1,0),1+SUMPRODUCT(($L$2:$L$950=TRUE)*($M$2:$M$950<M3))+COUNTIFS($L$2:L3,L3,$M$2:M3,M3)-1,1+SUMPRODUCT(($L$2:$L$950=TRUE)*($N$2:$N$950>N3))+COUNTIFS($L$2:L3,L3,$N$2:N3,N3)-1,1+SUMPRODUCT(($L$2:$L$950=TRUE)*($O$2:$O$950<O3))+COUNTIFS($L$2:L3,L3,$O$2:O3,O3)-1,1+SUMPRODUCT(($L$2:$L$950=TRUE)*($P$2:$P$950>P3))+COUNTIFS($L$2:L3,L3,$P$2:P3,P3)-1,1+SUMPRODUCT(($L$2:$L$950=TRUE)*($Q$2:$Q$950>Q3))+COUNTIFS($L$2:L3,L3,$Q$2:Q3,Q3)-1,1+SUMPRODUCT(($L$2:$L$950=TRUE)*($R$2:$R$950>R3))+COUNTIFS($L$2:L3,L3,$R$2:R3,R3)-1,1+SUMPRODUCT(($L$2:$L$950=TRUE)*($S$2:$S$950>S3))+COUNTIFS($L$2:L3,L3,$S$2:S3,S3)-1,1+SUMPRODUCT(($L$2:$L$950=TRUE)*($T$2:$T$950>T3))+COUNTIFS($L$2:L3,L3,$T$2:T3,T3)-1,1+SUMPRODUCT(($L$2:$L$950=TRUE)*($U$2:$U$950>U3))+COUNTIFS($L$2:L3,L3,$U$2:U3,U3)-1,1+SUMPRODUCT(($L$2:$L$950=TRUE)*($V$2:$V$950>V3))+COUNTIFS($L$2:L3,L3,$V$2:V3,V3)-1,1+SUMPRODUCT(($L$2:$L$950=TRUE)*($W$2:$W$950>W3))+COUNTIFS($L$2:L3,L3,$W$2:W3,W3)-1,1+SUMPRODUCT(($L$2:$L$950=TRUE)*($X$2:$X$950>X3))+COUNTIFS($L$2:L3,L3,$X$2:X3,X3)-1,1+SUMPRODUCT(($L$2:$L$950=TRUE)*($Y$2:$Y$950>Y3))+COUNTIFS($L$2:L3,L3,$Y$2:Y3,Y3)-1,1+SUMPRODUCT(($L$2:$L$950=TRUE)*($Z$2:$Z$950>Z3))+COUNTIFS($L$2:L3,L3,$Z$2:Z3,Z3)-1,1+SUMPRODUCT(($L$2:$L$950=TRUE)*($AA$2:$AA$950>AA3))+COUNTIFS($L$2:L3,L3,$AA$2:AA3,AA3)-1,1+SUMPRODUCT(($L$2:$L$950=TRUE)*($AB$2:$AB$950>AB3))+COUNTIFS($L$2:L3,L3,$AB$2:AB3,AB3)-1,1+SUMPRODUCT(($L$2:$L$950=TRUE)*($AC$2:$AC$950>AC3))+COUNTIFS($L$2:L3,L3,$AC$2:AC3,AC3)-1,1+SUMPRODUCT(($L$2:$L$950=TRUE)*($AD$2:$AD$950>AD3))+COUNTIFS($L$2:L3,L3,$AD$2:AD3,AD3)-1,1+SUMPRODUCT(($L$2:$L$950=TRUE)*($AE$2:$AE$950>AE3))+COUNTIFS($L$2:L3,L3,$AE$2:AE3,AE3)-1,1+SUMPRODUCT(($L$2:$L$950=TRUE)*($AF$2:$AF$950>AF3))+COUNTIFS($L$2:L3,L3,$AF$2:AF3,AF3)-1,1+SUMPRODUCT(($L$2:$L$950=TRUE)*($AG$2:$AG$950>AG3))+COUNTIFS($L$2:L3,L3,$AG$2:AG3,AG3)-1,1+SUMPRODUCT(($L$2:$L$950=TRUE)*($AH$2:$AH$950>AH3))+COUNTIFS($L$2:L3,L3,$AH$2:AH3,AH3)-1,1+SUMPRODUCT(($L$2:$L$950=TRUE)*($AI$2:$AI$950>AI3))+COUNTIFS($L$2:L3,L3,$AI$2:AI3,AI3)-1,1+SUMPRODUCT(($L$2:$L$950=TRUE)*($AJ$2:$AJ$950>AJ3))+COUNTIFS($L$2:L3,L3,$AJ$2:AJ3,AJ3)-1,1+SUMPRODUCT(($L$2:$L$950=TRUE)*($AK$2:$AK$950>AK3))+COUNTIFS($L$2:L3,L3,$AK$2:AK3,AK3)-1,1+SUMPRODUCT(($L$2:$L$950=TRUE)*($AL$2:$AL$950>AL3))+COUNTIFS($L$2:L3,L3,$AL$2:AL3,AL3)-1,1+SUMPRODUCT(($L$2:$L$950=TRUE)*($AM$2:$AM$950>AM3))+COUNTIFS($L$2:L3,L3,$AM$2:AM3,AM3)-1,1+SUMPRODUCT(($L$2:$L$950=TRUE)*($AN$2:$AN$950>AN3))+COUNTIFS($L$2:L3,L3,$AN$2:AN3,AN3)-1)),"") -> 71 | D3: Jose Abreu | E3: =IFERROR(INDEX('Draft Log'!$D$4:$D$806,MATCH(D3,'Draft Log'!$C$4:$C$806,0)),"") ->  | F3: =IFERROR(INDEX('ADP-Rank'!$C$2:$C$819,MATCH(D3,'ADP-Rank'!$A$2:$A$819,0)),"") -> 1B | G3: =IFERROR(IF(F3=I3,"",IF(INDEX('Your Roto Draft'!$B$11:$B$634,MATCH(D3,'Your Roto Draft'!$C$11:$C$634,0))="",IF(I3<>"",I3,""),INDEX('Your Roto Draft'!$B$11:$B$634,MATCH(D3,'Your Roto Draft'!$C$11:$C$634,0)))),"") ->  | H3: 1B | J3: =INDEX('ADP-Rank'!$AH$2:$AH$819,MATCH(D3,'ADP-Rank'!$A$2:$A$819,0)) -> TRUE | K3: =IF(E3="",FALSE,TRUE) -> FALSE | L3: =IF(J3=FALSE,FALSE,IF(AND('Your Roto Draft'!$P$6="Hide Drafted Players",K3=TRUE),FALSE,IF(OR('Your Roto Draft'!$P$5="Show All Positions",AND('Your Roto Draft'!$P$5="Only Show: C",H3="C"),AND('Your Roto Draft'!$P$5="Only Show: 1B",H3="1B"),AND('Your Roto Draft'!$P$5="Only Show: 2B",H3="2B"),AND('Your Roto Draft'!$P$5="Only Show: 3B",H3="3B"),AND('Your Roto Draft'!$P$5="Only Show: SS",H3="SS"),AND('Your Roto Draft'!$P$5="Only Show: OF",H3="OF"),AND('Your Roto Draft'!$P$5="Only Show: SP",H3="SP"),AND('Your Roto Draft'!$P$5="Only Show: RP",H3="RP"),AND('Your Roto Draft'!$P$5="Only Show: CI",OR(H3={"1B","3B"})),AND('Your Roto Draft'!$P$5="Only Show: MI",OR(H3={"2B","SS"})),AND('Your Roto Draft'!$P$5="Only Show: IF",OR(H3={"C","1B","2B","3B","SS"})),AND('Your Roto Draft'!$P$5="Only Show: DH",OR(H3={"C","1B","2B","3B","SS","OF","DH"})),AND('Your Roto Draft'!$P$5="Only Show: P",OR(H3={"SP","RP"})),AND('Your Roto Draft'!$P$5="Only Show: LF",ISERROR(SEARCH("LF",VLOOKUP($D3,'ADP-Rank'!$A$2:$D$948,4,FALSE)))=FALSE),AND('Your Roto Draft'!$P$5="Only Show: RF",ISERROR(SEARCH("RF",VLOOKUP($D3,'ADP-Rank'!$A$2:$D$948,4,FALSE)))=FALSE),AND('Your Roto Draft'!$P$5="Only Show: CF",ISERROR(SEARCH("CF",VLOOKUP($D3,'ADP-Rank'!$A$2:$D$948,4,FALSE)))=FALSE)),TRUE,FALSE))) -> TRUE | M3: =IFERROR(IF(VLOOKUP($D3,'ADP-Rank'!$A$2:$AV$948,38,FALSE)="",9999,VLOOKUP($D3,'ADP-Rank'!$A$2:$AV$948,38,FALSE)),9999) -> 72.2 | N3: =IF(D3="Non-Ranked Player",-1001,IFERROR(VLOOKUP($D3,'All-WERTH'!$C$2:$E$949,3,FALSE),-1000)) -> 1.604575084 | O3: =IF(D3="Non-Ranked Player",10000,IFERROR(IF(VLOOKUP(D3,'ADP-Rank'!$A$2:$AJ$948,36,FALSE)="",9999,VLOOKUP(D3,'ADP-Rank'!$A$2:$AJ$948,36,FALSE)),9999)) -> 59 | P3: =IF($D3="Unlisted Player",-1001,IFERROR(IF(VLOOKUP($D3,'All-WERTH'!$C$2:$AC$949,4,FALSE)="",-1000,VLOOKUP($D3,'All-WERTH'!$C$2:$AC$949,4,FALSE)),-1000)) -> 0.4885062994 | Q3: =IF($D3="Unlisted Player",-1001,IFERROR(IF(VLOOKUP($D3,'All-WERTH'!$C$2:$AC$949,5,FALSE)="",-1000,VLOOKUP($D3,'All-WERTH'!$C$2:$AC$949,5,FALSE)),-1000)) -> 0.5625431643 | R3: =IF($D3="Unlisted Player",-1001,IFERROR(IF(VLOOKUP($D3,'All-WERTH'!$C$2:$AC$949,6,FALSE)="",-1000,VLOOKUP($D3,'All-WERTH'!$C$2:$AC$949,6,FALSE)),-1000)) -> 0.0208687885 | S3: =IF($D3="Unlisted Player",-1001,IFERROR(IF(VLOOKUP($D3,'All-WERTH'!$C$2:$AC$949,7,FALSE)="",-1000,VLOOKUP($D3,'All-WERTH'!$C$2:$AC$949,7,FALSE)),-1000)) -> 1.297055465 | T3: =IF($D3="Unlisted Player",-1001,IFERROR(IF(VLOOKUP($D3,'All-WERTH'!$C$2:$AC$949,8,FALSE)="",-1000,VLOOKUP($D3,'All-WERTH'!$C$2:$AC$949,8,FALSE)),-1000)) -> -0.764398633 | U3: =IF($D3="Unlisted Player",-1001,IFERROR(IF(VLOOKUP($D3,'All-WERTH'!$C$2:$AC$949,9,FALSE)="",-1000,VLOOKUP($D3,'All-WERTH'!$C$2:$AC$949,9,FALSE)),-1000)) -> -1000 | V3: =IF($D3="Unlisted Player",-1001,IFERROR(IF(VLOOKUP($D3,'All-WERTH'!$C$2:$AC$949,10,FALSE)="",-1000,VLOOKUP($D3,'All-WERTH'!$C$2:$AC$949,10,FALSE)),-1000)) -> -1000 | W3: =IF($D3="Unlisted Player",-1001,IFERROR(IF(VLOOKUP($D3,'All-WERTH'!$C$2:$AC$949,11,FALSE)="",-1000,VLOOKUP($D3,'All-WERTH'!$C$2:$AC$949,11,FALSE)),-1000)) -> -1000 | X3: =IF($D3="Unlisted Player",-1001,IFERROR(IF(VLOOKUP($D3,'All-WERTH'!$C$2:$AC$949,12,FALSE)="",-1000,VLOOKUP($D3,'All-WERTH'!$C$2:$AC$949,12,FALSE)),-1000)) -> -1000 | Y3: =IF($D3="Unlisted Player",-1001,IFERROR(IF(VLOOKUP($D3,'All-WERTH'!$C$2:$AC$949,13,FALSE)="",-1000,VLOOKUP($D3,'All-WERTH'!$C$2:$AC$949,13,FALSE)),-1000)) -> -1000 | Z3: =IF($D3="Unlisted Player",-1001,IFERROR(IF(VLOOKUP($D3,'All-WERTH'!$C$2:$AC$949,14,FALSE)="",-1000,VLOOKUP($D3,'All-WERTH'!$C$2:$AC$949,14,FALSE)),-1000)) -> -1000 | AA3: =IF($D3="Unlisted Player",-1001,IFERROR(IF(VLOOKUP($D3,'All-WERTH'!$C$2:$AC$949,15,FALSE)="",-1000,VLOOKUP($D3,'All-WERTH'!$C$2:$AC$949,15,FALSE)),-1000)) -> -1000 | AB3: =IF($D3="Unlisted Player",-1001,IFERROR(IF(VLOOKUP($D3,'All-WERTH'!$C$2:$AC$949,16,FALSE)="",-1000,VLOOKUP($D3,'All-WERTH'!$C$2:$AC$949,16,FALSE)),-1000)) -> -1000 | AC3: =IF($D3="Unlisted Player",-1001,IFERROR(IF(VLOOKUP($D3,'All-WERTH'!$C$2:$AC$949,17,FALSE)="",-1000,VLOOKUP($D3,'All-WERTH'!$C$2:$AC$949,17,FALSE)),-1000)) -> -1000 | AD3: =IF($D3="Unlisted Player",-1001,IFERROR(IF(VLOOKUP($D3,'All-WERTH'!$C$2:$AC$949,18,FALSE)="",-1000,VLOOKUP($D3,'All-WERTH'!$C$2:$AC$949,18,FALSE)),-1000)) -> -1000 | AE3: =IF($D3="Unlisted Player",-1001,IFERROR(IF(VLOOKUP($D3,'All-WERTH'!$C$2:$AC$949,19,FALSE)="",-1000,VLOOKUP($D3,'All-WERTH'!$C$2:$AC$949,19,FALSE)),-1000)) -> -1000 | AF3: =IF($D3="Unlisted Player",-1001,IFERROR(IF(VLOOKUP($D3,'All-WERTH'!$C$2:$AC$949,20,FALSE)="",-1000,VLOOKUP($D3,'All-WERTH'!$C$2:$AC$949,20,FALSE)),-1000)) -> -1000 | AG3: =IF($D3="Unlisted Player",-1001,IFERROR(IF(VLOOKUP($D3,'All-WERTH'!$C$2:$AC$949,21,FALSE)="",-1000,VLOOKUP($D3,'All-WERTH'!$C$2:$AC$949,21,FALSE)),-1000)) -> -1000 | AH3: =IF($D3="Unlisted Player",-1001,IFERROR(IF(VLOOKUP($D3,'All-WERTH'!$C$2:$AC$949,22,FALSE)="",-1000,VLOOKUP($D3,'All-WERTH'!$C$2:$AC$949,22,FALSE)),-1000)) -> -1000 | AI3: =IF($D3="Unlisted Player",-1001,IFERROR(IF(VLOOKUP($D3,'All-WERTH'!$C$2:$AC$949,23,FALSE)="",-1000,VLOOKUP($D3,'All-WERTH'!$C$2:$AC$949,23,FALSE)),-1000)) -> -1000 | AJ3: =IF($D3="Unlisted Player",-1001,IFERROR(IF(VLOOKUP($D3,'All-WERTH'!$C$2:$AC$949,24,FALSE)="",-1000,VLOOKUP($D3,'All-WERTH'!$C$2:$AC$949,24,FALSE)),-1000)) -> -1000 | AK3: =IF($D3="Unlisted Player",-1001,IFERROR(IF(VLOOKUP($D3,'All-WERTH'!$C$2:$AC$949,25,FALSE)="",-1000,VLOOKUP($D3,'All-WERTH'!$C$2:$AC$949,25,FALSE)),-1000)) -> -1000 | AL3: =IF($D3="Unlisted Player",-1001,IFERROR(IF(VLOOKUP($D3,'All-WERTH'!$C$2:$AC$949,26,FALSE)="",-1000,VLOOKUP($D3,'All-WERTH'!$C$2:$AC$949,26,FALSE)),-1000)) -> -1000 | AM3: =IF($D3="Unlisted Player",-1001,IFERROR(IF(VLOOKUP($D3,'All-WERTH'!$C$2:$AC$949,27,FALSE)="",-1000,VLOOKUP($D3,'All-WERTH'!$C$2:$AC$949,27,FALSE)),-1000)) -> -1000 | AN3: =IF(D3="Non-Ranked Player",-1001,IFERROR(VLOOKUP($D3,'All-WERTH'!$C$2:$AG$949,31,FALSE),-1000)) -> 4.065189172 | AO3: =IF(ISERROR(VLOOKUP($B2,Keepers!$C$2:$D$450,2,FALSE)),B2,"") -> Mike Trout | AP3: =IFERROR(INDEX($AO$1:$AO$949,SMALL(IF($AO$1:$AO$949<>"",ROW($AO$1:$AO$949)),ROW(AO3))),"") -> Christian Yelich
A4: Christian Yelich | B4: =IFERROR(INDEX($A$1:$A$949,SMALL(IF($A$1:$A$949<>"",ROW($A$1:$A$949)),ROW(A4))),"") -> Cody Bellinger | C4: =IFERROR(IF(L4=FALSE,"",CHOOSE(MATCH(RIGHT('Your Roto Draft'!$P$4,LEN('Your Roto Draft'!$P$4)-8),$M$1:$AN$1,0),1+SUMPRODUCT(($L$2:$L$950=TRUE)*($M$2:$M$950<M4))+COUNTIFS($L$2:L4,L4,$M$2:M4,M4)-1,1+SUMPRODUCT(($L$2:$L$950=TRUE)*($N$2:$N$950>N4))+COUNTIFS($L$2:L4,L4,$N$2:N4,N4)-1,1+SUMPRODUCT(($L$2:$L$950=TRUE)*($O$2:$O$950<O4))+COUNTIFS($L$2:L4,L4,$O$2:O4,O4)-1,1+SUMPRODUCT(($L$2:$L$950=TRUE)*($P$2:$P$950>P4))+COUNTIFS($L$2:L4,L4,$P$2:P4,P4)-1,1+SUMPRODUCT(($L$2:$L$950=TRUE)*($Q$2:$Q$950>Q4))+COUNTIFS($L$2:L4,L4,$Q$2:Q4,Q4)-1,1+SUMPRODUCT(($L$2:$L$950=TRUE)*($R$2:$R$950>R4))+COUNTIFS($L$2:L4,L4,$R$2:R4,R4)-1,1+SUMPRODUCT(($L$2:$L$950=TRUE)*($S$2:$S$950>S4))+COUNTIFS($L$2:L4,L4,$S$2:S4,S4)-1,1+SUMPRODUCT(($L$2:$L$950=TRUE)*($T$2:$T$950>T4))+COUNTIFS($L$2:L4,L4,$T$2:T4,T4)-1,1+SUMPRODUCT(($L$2:$L$950=TRUE)*($U$2:$U$950>U4))+COUNTIFS($L$2:L4,L4,$U$2:U4,U4)-1,1+SUMPRODUCT(($L$2:$L$950=TRUE)*($V$2:$V$950>V4))+COUNTIFS($L$2:L4,L4,$V$2:V4,V4)-1,1+SUMPRODUCT(($L$2:$L$950=TRUE)*($W$2:$W$950>W4))+COUNTIFS($L$2:L4,L4,$W$2:W4,W4)-1,1+SUMPRODUCT(($L$2:$L$950=TRUE)*($X$2:$X$950>X4))+COUNTIFS($L$2:L4,L4,$X$2:X4,X4)-1,1+SUMPRODUCT(($L$2:$L$950=TRUE)*($Y$2:$Y$950>Y4))+COUNTIFS($L$2:L4,L4,$Y$2:Y4,Y4)-1,1+SUMPRODUCT(($L$2:$L$950=TRUE)*($Z$2:$Z$950>Z4))+COUNTIFS($L$2:L4,L4,$Z$2:Z4,Z4)-1,1+SUMPRODUCT(($L$2:$L$950=TRUE)*($AA$2:$AA$950>AA4))+COUNTIFS($L$2:L4,L4,$AA$2:AA4,AA4)-1,1+SUMPRODUCT(($L$2:$L$950=TRUE)*($AB$2:$AB$950>AB4))+COUNTIFS($L$2:L4,L4,$AB$2:AB4,AB4)-1,1+SUMPRODUCT(($L$2:$L$950=TRUE)*($AC$2:$AC$950>AC4))+COUNTIFS($L$2:L4,L4,$AC$2:AC4,AC4)-1,1+SUMPRODUCT(($L$2:$L$950=TRUE)*($AD$2:$AD$950>AD4))+COUNTIFS($L$2:L4,L4,$AD$2:AD4,AD4)-1,1+SUMPRODUCT(($L$2:$L$950=TRUE)*($AE$2:$AE$950>AE4))+COUNTIFS($L$2:L4,L4,$AE$2:AE4,AE4)-1,1+SUMPRODUCT(($L$2:$L$950=TRUE)*($AF$2:$AF$950>AF4))+COUNTIFS($L$2:L4,L4,$AF$2:AF4,AF4)-1,1+SUMPRODUCT(($L$2:$L$950=TRUE)*($AG$2:$AG$950>AG4))+COUNTIFS($L$2:L4,L4,$AG$2:AG4,AG4)-1,1+SUMPRODUCT(($L$2:$L$950=TRUE)*($AH$2:$AH$950>AH4))+COUNTIFS($L$2:L4,L4,$AH$2:AH4,AH4)-1,1+SUMPRODUCT(($L$2:$L$950=TRUE)*($AI$2:$AI$950>AI4))+COUNTIFS($L$2:L4,L4,$AI$2:AI4,AI4)-1,1+SUMPRODUCT(($L$2:$L$950=TRUE)*($AJ$2:$AJ$950>AJ4))+COUNTIFS($L$2:L4,L4,$AJ$2:AJ4,AJ4)-1,1+SUMPRODUCT(($L$2:$L$950=TRUE)*($AK$2:$AK$950>AK4))+COUNTIFS($L$2:L4,L4,$AK$2:AK4,AK4)-1,1+SUMPRODUCT(($L$2:$L$950=TRUE)*($AL$2:$AL$950>AL4))+COUNTIFS($L$2:L4,L4,$AL$2:AL4,AL4)-1,1+SUMPRODUCT(($L$2:$L$950=TRUE)*($AM$2:$AM$950>AM4))+COUNTIFS($L$2:L4,L4,$AM$2:AM4,AM4)-1,1+SUMPRODUCT(($L$2:$L$950=TRUE)*($AN$2:$AN$950>AN4))+COUNTIFS($L$2:L4,L4,$AN$2:AN4,AN4)-1)),"") -> 1 | D4: Ronald Acuna | E4: =IFERROR(INDEX('Draft Log'!$D$4:$D$806,MATCH(D4,'Draft Log'!$C$4:$C$806,0)),"") ->  | F4: =IFERROR(INDEX('ADP-Rank'!$C$2:$C$819,MATCH(D4,'ADP-Rank'!$A$2:$A$819,0)),"") -> OF | G4: =IFERROR(IF(F4=I4,"",IF(INDEX('Your Roto Draft'!$B$11:$B$634,MATCH(D4,'Your Roto Draft'!$C$11:$C$634,0))="",IF(I4<>"",I4,""),INDEX('Your Roto Draft'!$B$11:$B$634,MATCH(D4,'Your Roto Draft'!$C$11:$C$634,0)))),"") ->  | H4: OF | J4: =INDEX('ADP-Rank'!$AH$2:$AH$819,MATCH(D4,'ADP-Rank'!$A$2:$A$819,0)) -> TRUE | K4: FALSE | L4: =IF(J4=FALSE,FALSE,IF(AND('Your Roto Draft'!$P$6="Hide Drafted Players",K4=TRUE),FALSE,IF(OR('Your Roto Draft'!$P$5="Show All Positions",AND('Your Roto Draft'!$P$5="Only Show: C",H4="C"),AND('Your Roto Draft'!$P$5="Only Show: 1B",H4="1B"),AND('Your Roto Draft'!$P$5="Only Show: 2B",H4="2B"),AND('Your Roto Draft'!$P$5="Only Show: 3B",H4="3B"),AND('Your Roto Draft'!$P$5="Only Show: SS",H4="SS"),AND('Your Roto Draft'!$P$5="Only Show: OF",H4="OF"),AND('Your Roto Draft'!$P$5="Only Show: SP",H4="SP"),AND('Your Roto Draft'!$P$5="Only Show: RP",H4="RP"),AND('Your Roto Draft'!$P$5="Only Show: CI",OR(H4={"1B","3B"})),AND('Your Roto Draft'!$P$5="Only Show: MI",OR(H4={"2B","SS"})),AND('Your Roto Draft'!$P$5="Only Show: IF",OR(H4={"C","1B","2B","3B","SS"})),AND('Your Roto Draft'!$P$5="Only Show: DH",OR(H4={"C","1B","2B","3B","SS","OF","DH"})),AND('Your Roto Draft'!$P$5="Only Show: P",OR(H4={"SP","RP"})),AND('Your Roto Draft'!$P$5="Only Show: LF",ISERROR(SEARCH("LF",VLOOKUP($D4,'ADP-Rank'!$A$2:$D$948,4,FALSE)))=FALSE),AND('Your Roto Draft'!$P$5="Only Show: RF",ISERROR(SEARCH("RF",VLOOKUP($D4,'ADP-Rank'!$A$2:$D$948,4,FALSE)))=FALSE),AND('Your Roto Draft'!$P$5="Only Show: CF",ISERROR(SEARCH("CF",VLOOKUP($D4,'ADP-Rank'!$A$2:$D$948,4,FALSE)))=FALSE)),TRUE,FALSE))) -> TRUE | M4: =IFERROR(IF(VLOOKUP($D4,'ADP-Rank'!$A$2:$AV$948,38,FALSE)="",9999,VLOOKUP($D4,'ADP-Rank'!$A$2:$AV$948,38,FALSE)),9999) -> 1.4 | N4: =IF(D4="Non-Ranked Player",-1001,IFERROR(VLOOKUP($D4,'All-WERTH'!$C$2:$E$949,3,FALSE),-1000)) -> 9.024892637 | O4: =IF(D4="Non-Ranked Player",10000,IFERROR(IF(VLOOKUP(D4,'ADP-Rank'!$A$2:$AJ$948,36,FALSE)="",9999,VLOOKUP(D4,'ADP-Rank'!$A$2:$AJ$948,36,FALSE)),9999)) -> 1 | P4: =IF($D4="Unlisted Player",-1001,IFERROR(IF(VLOOKUP($D4,'All-WERTH'!$C$2:$AC$949,4,FALSE)="",-1000,VLOOKUP($D4,'All-WERTH'!$C$2:$AC$949,4,FALSE)),-1000)) -> 1.168308355 | Q4: =IF($D4="Unlisted Player",-1001,IFERROR(IF(VLOOKUP($D4,'All-WERTH'!$C$2:$AC$949,5,FALSE)="",-1000,VLOOKUP($D4,'All-WERTH'!$C$2:$AC$949,5,FALSE)),-1000)) -> 1.69490253 | R4: =IF($D4="Unlisted Player",-1001,IFERROR(IF(VLOOKUP($D4,'All-WERTH'!$C$2:$AC$949,6,FALSE)="",-1000,VLOOKUP($D4,'All-WERTH'!$C$2:$AC$949,6,FALSE)),-1000)) -> 2.383145966 | S4: =IF($D4="Unlisted Player",-1001,IFERROR(IF(VLOOKUP($D4,'All-WERTH'!$C$2:$AC$949,7,FALSE)="",-1000,VLOOKUP($D4,'All-WERTH'!$C$2:$AC$949,7,FALSE)),-1000)) -> 1.116250901 | T4: =IF($D4="Unlisted Player",-1001,IFERROR(IF(VLOOKUP($D4,'All-WERTH'!$C$2:$AC$949,8,FALSE)="",-1000,VLOOKUP($D4,'All-WERTH'!$C$2:$AC$949,8,FALSE)),-1000)) -> 2.662284885 | U4: =IF($D4="Unlisted Player",-1001,IFERROR(IF(VLOOKUP($D4,'All-WERTH'!$C$2:$AC$949,9,FALSE)="",-1000,VLOOKUP($D4,'All-WERTH'!$C$2:$AC$949,9,FALSE)),-1000)) -> -1000 | V4: =IF($D4="Unlisted Player",-1001,IFERROR(IF(VLOOKUP($D4,'All-WERTH'!$C$2:$AC$949,10,FALSE)="",-1000,VLOOKUP($D4,'All-WERTH'!$C$2:$AC$949,10,FALSE)),-1000)) -> -1000 | W4: =IF($D4="Unlisted Player",-1001,IFERROR(IF(VLOOKUP($D4,'All-WERTH'!$C$2:$AC$949,11,FALSE)="",-1000,VLOOKUP($D4,'All-WERTH'!$C$2:$AC$949,11,FALSE)),-1000)) -> -1000 | X4: =IF($D4="Unlisted Player",-1001,IFERROR(IF(VLOOKUP($D4,'All-WERTH'!$C$2:$AC$949,12,FALSE)="",-1000,VLOOKUP($D4,'All-WERTH'!$C$2:$AC$949,12,FALSE)),-1000)) -> -1000 | Y4: =IF($D4="Unlisted Player",-1001,IFERROR(IF(VLOOKUP($D4,'All-WERTH'!$C$2:$AC$949,13,FALSE)="",-1000,VLOOKUP($D4,'All-WERTH'!$C$2:$AC$949,13,FALSE)),-1000)) -> -1000 | Z4: =IF($D4="Unlisted Player",-1001,IFERROR(IF(VLOOKUP($D4,'All-WERTH'!$C$2:$AC$949,14,FALSE)="",-1000,VLOOKUP($D4,'All-WERTH'!$C$2:$AC$949,14,FALSE)),-1000)) -> -1000 | AA4: =IF($D4="Unlisted Player",-1001,IFERROR(IF(VLOOKUP($D4,'All-WERTH'!$C$2:$AC$949,15,FALSE)="",-1000,VLOOKUP($D4,'All-WERTH'!$C$2:$AC$949,15,FALSE)),-1000)) -> -1000 | AB4: =IF($D4="Unlisted Player",-1001,IFERROR(IF(VLOOKUP($D4,'All-WERTH'!$C$2:$AC$949,16,FALSE)="",-1000,VLOOKUP($D4,'All-WERTH'!$C$2:$AC$949,16,FALSE)),-1000)) -> -1000 | AC4: =IF($D4="Unlisted Player",-1001,IFERROR(IF(VLOOKUP($D4,'All-WERTH'!$C$2:$AC$949,17,FALSE)="",-1000,VLOOKUP($D4,'All-WERTH'!$C$2:$AC$949,17,FALSE)),-1000)) -> -1000 | AD4: =IF($D4="Unlisted Player",-1001,IFERROR(IF(VLOOKUP($D4,'All-WERTH'!$C$2:$AC$949,18,FALSE)="",-1000,VLOOKUP($D4,'All-WERTH'!$C$2:$AC$949,18,FALSE)),-1000)) -> -1000 | AE4: =IF($D4="Unlisted Player",-1001,IFERROR(IF(VLOOKUP($D4,'All-WERTH'!$C$2:$AC$949,19,FALSE)="",-1000,VLOOKUP($D4,'All-WERTH'!$C$2:$AC$949,19,FALSE)),-1000)) -> -1000 | AF4: =IF($D4="Unlisted Player",-1001,IFERROR(IF(VLOOKUP($D4,'All-WERTH'!$C$2:$AC$949,20,FALSE)="",-1000,VLOOKUP($D4,'All-WERTH'!$C$2:$AC$949,20,FALSE)),-1000)) -> -1000 | AG4: =IF($D4="Unlisted Player",-1001,IFERROR(IF(VLOOKUP($D4,'All-WERTH'!$C$2:$AC$949,21,FALSE)="",-1000,VLOOKUP($D4,'All-WERTH'!$C$2:$AC$949,21,FALSE)),-1000)) -> -1000 | AH4: =IF($D4="Unlisted Player",-1001,IFERROR(IF(VLOOKUP($D4,'All-WERTH'!$C$2:$AC$949,22,FALSE)="",-1000,VLOOKUP($D4,'All-WERTH'!$C$2:$AC$949,22,FALSE)),-1000)) -> -1000 | AI4: =IF($D4="Unlisted Player",-1001,IFERROR(IF(VLOOKUP($D4,'All-WERTH'!$C$2:$AC$949,23,FALSE)="",-1000,VLOOKUP($D4,'All-WERTH'!$C$2:$AC$949,23,FALSE)),-1000)) -> -1000 | AJ4: =IF($D4="Unlisted Player",-1001,IFERROR(IF(VLOOKUP($D4,'All-WERTH'!$C$2:$AC$949,24,FALSE)="",-1000,VLOOKUP($D4,'All-WERTH'!$C$2:$AC$949,24,FALSE)),-1000)) -> -1000 | AK4: =IF($D4="Unlisted Player",-1001,IFERROR(IF(VLOOKUP($D4,'All-WERTH'!$C$2:$AC$949,25,FALSE)="",-1000,VLOOKUP($D4,'All-WERTH'!$C$2:$AC$949,25,FALSE)),-1000)) -> -1000 | AL4: =IF($D4="Unlisted Player",-1001,IFERROR(IF(VLOOKUP($D4,'All-WERTH'!$C$2:$AC$949,26,FALSE)="",-1000,VLOOKUP($D4,'All-WERTH'!$C$2:$AC$949,26,FALSE)),-1000)) -> -1000 | AM4: =IF($D4="Unlisted Player",-1001,IFERROR(IF(VLOOKUP($D4,'All-WERTH'!$C$2:$AC$949,27,FALSE)="",-1000,VLOOKUP($D4,'All-WERTH'!$C$2:$AC$949,27,FALSE)),-1000)) -> -1000 | AN4: =IF(D4="Non-Ranked Player",-1001,IFERROR(VLOOKUP($D4,'All-WERTH'!$C$2:$AG$949,31,FALSE),-1000)) -> 12.77721415 | AO4: =IF(ISERROR(VLOOKUP($B3,Keepers!$C$2:$D$450,2,FALSE)),B3,"") -> Christian Yelich | AP4: =IFERROR(INDEX($AO$1:$AO$949,SMALL(IF($AO$1:$AO$949<>"",ROW($AO$1:$AO$949)),ROW(AO4))),"") -> Cody Bellinger
A5: Cody Bellinger | B5: =IFERROR(INDEX($A$1:$A$949,SMALL(IF($A$1:$A$949<>"",ROW($A$1:$A$949)),ROW(A5))),"") -> Mookie Betts | C5: =IFERROR(IF(L5=FALSE,"",CHOOSE(MATCH(RIGHT('Your Roto Draft'!$P$4,LEN('Your Roto Draft'!$P$4)-8),$M$1:$AN$1,0),1+SUMPRODUCT(($L$2:$L$950=TRUE)*($M$2:$M$950<M5))+COUNTIFS($L$2:L5,L5,$M$2:M5,M5)-1,1+SUMPRODUCT(($L$2:$L$950=TRUE)*($N$2:$N$950>N5))+COUNTIFS($L$2:L5,L5,$N$2:N5,N5)-1,1+SUMPRODUCT(($L$2:$L$950=TRUE)*($O$2:$O$950<O5))+COUNTIFS($L$2:L5,L5,$O$2:O5,O5)-1,1+SUMPRODUCT(($L$2:$L$950=TRUE)*($P$2:$P$950>P5))+COUNTIFS($L$2:L5,L5,$P$2:P5,P5)-1,1+SUMPRODUCT(($L$2:$L$950=TRUE)*($Q$2:$Q$950>Q5))+COUNTIFS($L$2:L5,L5,$Q$2:Q5,Q5)-1,1+SUMPRODUCT(($L$2:$L$950=TRUE)*($R$2:$R$950>R5))+COUNTIFS($L$2:L5,L5,$R$2:R5,R5)-1,1+SUMPRODUCT(($L$2:$L$950=TRUE)*($S$2:$S$950>S5))+COUNTIFS($L$2:L5,L5,$S$2:S5,S5)-1,1+SUMPRODUCT(($L$2:$L$950=TRUE)*($T$2:$T$950>T5))+COUNTIFS($L$2:L5,L5,$T$2:T5,T5)-1,1+SUMPRODUCT(($L$2:$L$950=TRUE)*($U$2:$U$950>U5))+COUNTIFS($L$2:L5,L5,$U$2:U5,U5)-1,1+SUMPRODUCT(($L$2:$L$950=TRUE)*($V$2:$V$950>V5))+COUNTIFS($L$2:L5,L5,$V$2:V5,V5)-1,1+SUMPRODUCT(($L$2:$L$950=TRUE)*($W$2:$W$950>W5))+COUNTIFS($L$2:L5,L5,$W$2:W5,W5)-1,1+SUMPRODUCT(($L$2:$L$950=TRUE)*($X$2:$X$950>X5))+COUNTIFS($L$2:L5,L5,$X$2:X5,X5)-1,1+SUMPRODUCT(($L$2:$L$950=TRUE)*($Y$2:$Y$950>Y5))+COUNTIFS($L$2:L5,L5,$Y$2:Y5,Y5)-1,1+SUMPRODUCT(($L$2:$L$950=TRUE)*($Z$2:$Z$950>Z5))+COUNTIFS($L$2:L5,L5,$Z$2:Z5,Z5)-1,1+SUMPRODUCT(($L$2:$L$950=TRUE)*($AA$2:$AA$950>AA5))+COUNTIFS($L$2:L5,L5,$AA$2:AA5,AA5)-1,1+SUMPRODUCT(($L$2:$L$950=TRUE)*($AB$2:$AB$950>AB5))+COUNTIFS($L$2:L5,L5,$AB$2:AB5,AB5)-1,1+SUMPRODUCT(($L$2:$L$950=TRUE)*($AC$2:$AC$950>AC5))+COUNTIFS($L$2:L5,L5,$AC$2:AC5,AC5)-1,1+SUMPRODUCT(($L$2:$L$950=TRUE)*($AD$2:$AD$950>AD5))+COUNTIFS($L$2:L5,L5,$AD$2:AD5,AD5)-1,1+SUMPRODUCT(($L$2:$L$950=TRUE)*($AE$2:$AE$950>AE5))+COUNTIFS($L$2:L5,L5,$AE$2:AE5,AE5)-1,1+SUMPRODUCT(($L$2:$L$950=TRUE)*($AF$2:$AF$950>AF5))+COUNTIFS($L$2:L5,L5,$AF$2:AF5,AF5)-1,1+SUMPRODUCT(($L$2:$L$950=TRUE)*($AG$2:$AG$950>AG5))+COUNTIFS($L$2:L5,L5,$AG$2:AG5,AG5)-1,1+SUMPRODUCT(($L$2:$L$950=TRUE)*($AH$2:$AH$950>AH5))+COUNTIFS($L$2:L5,L5,$AH$2:AH5,AH5)-1,1+SUMPRODUCT(($L$2:$L$950=TRUE)*($AI$2:$AI$950>AI5))+COUNTIFS($L$2:L5,L5,$AI$2:AI5,AI5)-1,1+SUMPRODUCT(($L$2:$L$950=TRUE)*($AJ$2:$AJ$950>AJ5))+COUNTIFS($L$2:L5,L5,$AJ$2:AJ5,AJ5)-1,1+SUMPRODUCT(($L$2:$L$950=TRUE)*($AK$2:$AK$950>AK5))+COUNTIFS($L$2:L5,L5,$AK$2:AK5,AK5)-1,1+SUMPRODUCT(($L$2:$L$950=TRUE)*($AL$2:$AL$950>AL5))+COUNTIFS($L$2:L5,L5,$AL$2:AL5,AL5)-1,1+SUMPRODUCT(($L$2:$L$950=TRUE)*($AM$2:$AM$950>AM5))+COUNTIFS($L$2:L5,L5,$AM$2:AM5,AM5)-1,1+SUMPRODUCT(($L$2:$L$950=TRUE)*($AN$2:$AN$950>AN5))+COUNTIFS($L$2:L5,L5,$AN$2:AN5,AN5)-1)),"") -> 356 | D5: Willy Adames | E5: =IFERROR(INDEX('Draft Log'!$D$4:$D$806,MATCH(D5,'Draft Log'!$C$4:$C$806,0)),"") ->  | F5: =IFERROR(INDEX('ADP-Rank'!$C$2:$C$819,MATCH(D5,'ADP-Rank'!$A$2:$A$819,0)),"") -> SS | G5: =IFERROR(IF(F5=I5,"",IF(INDEX('Your Roto Draft'!$B$11:$B$634,MATCH(D5,'Your Roto Draft'!$C$11:$C$634,0))="",IF(I5<>"",I5,""),INDEX('Your Roto Draft'!$B$11:$B$634,MATCH(D5,'Your Roto Draft'!$C$11:$C$634,0)))),"") ->  | H5: SS | J5: =INDEX('ADP-Rank'!$AH$2:$AH$819,MATCH(D5,'ADP-Rank'!$A$2:$A$819,0)) -> TRUE | K5: FALSE | L5: =IF(J5=FALSE,FALSE,IF(AND('Your Roto Draft'!$P$6="Hide Drafted Players",K5=TRUE),FALSE,IF(OR('Your Roto Draft'!$P$5="Show All Positions",AND('Your Roto Draft'!$P$5="Only Show: C",H5="C"),AND('Your Roto Draft'!$P$5="Only Show: 1B",H5="1B"),AND('Your Roto Draft'!$P$5="Only Show: 2B",H5="2B"),AND('Your Roto Draft'!$P$5="Only Show: 3B",H5="3B"),AND('Your Roto Draft'!$P$5="Only Show: SS",H5="SS"),AND('Your Roto Draft'!$P$5="Only Show: OF",H5="OF"),AND('Your Roto Draft'!$P$5="Only Show: SP",H5="SP"),AND('Your Roto Draft'!$P$5="Only Show: RP",H5="RP"),AND('Your Roto Draft'!$P$5="Only Show: CI",OR(H5={"1B","3B"})),AND('Your Roto Draft'!$P$5="Only Show: MI",OR(H5={"2B","SS"})),AND('Your Roto Draft'!$P$5="Only Show: IF",OR(H5={"C","1B","2B","3B","SS"})),AND('Your Roto Draft'!$P$5="Only Show: DH",OR(H5={"C","1B","2B","3B","SS","OF","DH"})),AND('Your Roto Draft'!$P$5="Only Show: P",OR(H5={"SP","RP"})),AND('Your Roto Draft'!$P$5="Only Show: LF",ISERROR(SEARCH("LF",VLOOKUP($D5,'ADP-Rank'!$A$2:$D$948,4,FALSE)))=FALSE),AND('Your Roto Draft'!$P$5="Only Show: RF",ISERROR(SEARCH("RF",VLOOKUP($D5,'ADP-Rank'!$A$2:$D$948,4,FALSE)))=FALSE),AND('Your Roto Draft'!$P$5="Only Show: CF",ISERROR(SEARCH("CF",VLOOKUP($D5,'ADP-Rank'!$A$2:$D$948,4,FALSE)))=FALSE)),TRUE,FALSE))) -> TRUE | M5: =IFERROR(IF(VLOOKUP($D5,'ADP-Rank'!$A$2:$AV$948,38,FALSE)="",9999,VLOOKUP($D5,'ADP-Rank'!$A$2:$AV$948,38,FALSE)),9999) -> 350.2 | N5: =IF(D5="Non-Ranked Player",-1001,IFERROR(VLOOKUP($D5,'All-WERTH'!$C$2:$E$949,3,FALSE),-1000)) -> -3.020324169 | O5: =IF(D5="Non-Ranked Player",10000,IFERROR(IF(VLOOKUP(D5,'ADP-Rank'!$A$2:$AJ$948,36,FALSE)="",9999,VLOOKUP(D5,'ADP-Rank'!$A$2:$AJ$948,36,FALSE)),9999)) -> 270 | P5: =IF($D5="Unlisted Player",-1001,IFERROR(IF(VLOOKUP($D5,'All-WERTH'!$C$2:$AC$949,4,FALSE)="",-1000,VLOOKUP($D5,'All-WERTH'!$C$2:$AC$949,4,FALSE)),-1000)) -> -0.7784124986 | Q5: =IF($D5="Unlisted Player",-1001,IFERROR(IF(VLOOKUP($D5,'All-WERTH'!$C$2:$AC$949,5,FALSE)="",-1000,VLOOKUP($D5,'All-WERTH'!$C$2:$AC$949,5,FALSE)),-1000)) -> -0.6903250764 | R5: =IF($D5="Unlisted Player",-1001,IFERROR(IF(VLOOKUP($D5,'All-WERTH'!$C$2:$AC$949,6,FALSE)="",-1000,VLOOKUP($D5,'All-WERTH'!$C$2:$AC$949,6,FALSE)),-1000)) -> -0.504510422 | S5: =IF($D5="Unlisted Player",-1001,IFERROR(IF(VLOOKUP($D5,'All-WERTH'!$C$2:$AC$949,7,FALSE)="",-1000,VLOOKUP($D5,'All-WERTH'!$C$2:$AC$949,7,FALSE)),-1000)) -> -0.8669916208 | T5: =IF($D5="Unlisted Player",-1001,IFERROR(IF(VLOOKUP($D5,'All-WERTH'!$C$2:$AC$949,8,FALSE)="",-1000,VLOOKUP($D5,'All-WERTH'!$C$2:$AC$949,8,FALSE)),-1000)) -> -0.1800845514 | U5: =IF($D5="Unlisted Player",-1001,IFERROR(IF(VLOOKUP($D5,'All-WERTH'!$C$2:$AC$949,9,FALSE)="",-1000,VLOOKUP($D5,'All-WERTH'!$C$2:$AC$949,9,FALSE)),-1000)) -> -1000 | V5: =IF($D5="Unlisted Player",-1001,IFERROR(IF(VLOOKUP($D5,'All-WERTH'!$C$2:$AC$949,10,FALSE)="",-1000,VLOOKUP($D5,'All-WERTH'!$C$2:$AC$949,10,FALSE)),-1000)) -> -1000 | W5: =IF($D5="Unlisted Player",-1001,IFERROR(IF(VLOOKUP($D5,'All-WERTH'!$C$2:$AC$949,11,FALSE)="",-1000,VLOOKUP($D5,'All-WERTH'!$C$2:$AC$949,11,FALSE)),-1000)) -> -1000 | X5: =IF($D5="Unlisted Player",-1001,IFERROR(IF(VLOOKUP($D5,'All-WERTH'!$C$2:$AC$949,12,FALSE)="",-1000,VLOOKUP($D5,'All-WERTH'!$C$2:$AC$949,12,FALSE)),-1000)) -> -1000 | Y5: =IF($D5="Unlisted Player",-1001,IFERROR(IF(VLOOKUP($D5,'All-WERTH'!$C$2:$AC$949,13,FALSE)="",-1000,VLOOKUP($D5,'All-WERTH'!$C$2:$AC$949,13,FALSE)),-1000)) -> -1000 | Z5: =IF($D5="Unlisted Player",-1001,IFERROR(IF(VLOOKUP($D5,'All-WERTH'!$C$2:$AC$949,14,FALSE)="",-1000,VLOOKUP($D5,'All-WERTH'!$C$2:$AC$949,14,FALSE)),-1000)) -> -1000 | AA5: =IF($D5="Unlisted Player",-1001,IFERROR(IF(VLOOKUP($D5,'All-WERTH'!$C$2:$AC$949,15,FALSE)="",-1000,VLOOKUP($D5,'All-WERTH'!$C$2:$AC$949,15,FALSE)),-1000)) -> -1000 | AB5: =IF($D5="Unlisted Player",-1001,IFERROR(IF(VLOOKUP($D5,'All-WERTH'!$C$2:$AC$949,16,FALSE)="",-1000,VLOOKUP($D5,'All-WERTH'!$C$2:$AC$949,16,FALSE)),-1000)) -> -1000 | AC5: =IF($D5="Unlisted Player",-1001,IFERROR(IF(VLOOKUP($D5,'All-WERTH'!$C$2:$AC$949,17,FALSE)="",-1000,VLOOKUP($D5,'All-WERTH'!$C$2:$AC$949,17,FALSE)),-1000)) -> -1000 | AD5: =IF($D5="Unlisted Player",-1001,IFERROR(IF(VLOOKUP($D5,'All-WERTH'!$C$2:$AC$949,18,FALSE)="",-1000,VLOOKUP($D5,'All-WERTH'!$C$2:$AC$949,18,FALSE)),-1000)) -> -1000 | AE5: =IF($D5="Unlisted Player",-1001,IFERROR(IF(VLOOKUP($D5,'All-WERTH'!$C$2:$AC$949,19,FALSE)="",-1000,VLOOKUP($D5,'All-WERTH'!$C$2:$AC$949,19,FALSE)),-1000)) -> -1000 | AF5: =IF($D5="Unlisted Player",-1001,IFERROR(IF(VLOOKUP($D5,'All-WERTH'!$C$2:$AC$949,20,FALSE)="",-1000,VLOOKUP($D5,'All-WERTH'!$C$2:$AC$949,20,FALSE)),-1000)) -> -1000 | AG5: =IF($D5="Unlisted Player",-1001,IFERROR(IF(VLOOKUP($D5,'All-WERTH'!$C$2:$AC$949,21,FALSE)="",-1000,VLOOKUP($D5,'All-WERTH'!$C$2:$AC$949,21,FALSE)),-1000)) -> -1000 | AH5: =IF($D5="Unlisted Player",-1001,IFERROR(IF(VLOOKUP($D5,'All-WERTH'!$C$2:$AC$949,22,FALSE)="",-1000,VLOOKUP($D5,'All-WERTH'!$C$2:$AC$949,22,FALSE)),-1000)) -> -1000 | AI5: =IF($D5="Unlisted Player",-1001,IFERROR(IF(VLOOKUP($D5,'All-WERTH'!$C$2:$AC$949,23,FALSE)="",-1000,VLOOKUP($D5,'All-WERTH'!$C$2:$AC$949,23,FALSE)),-1000)) -> -1000 | AJ5: =IF($D5="Unlisted Player",-1001,IFERROR(IF(VLOOKUP($D5,'All-WERTH'!$C$2:$AC$949,24,FALSE)="",-1000,VLOOKUP($D5,'All-WERTH'!$C$2:$AC$949,24,FALSE)),-1000)) -> -1000 | AK5: =IF($D5="Unlisted Player",-1001,IFERROR(IF(VLOOKUP($D5,'All-WERTH'!$C$2:$AC$949,25,FALSE)="",-1000,VLOOKUP($D5,'All-WERTH'!$C$2:$AC$949,25,FALSE)),-1000)) -> -1000 | AL5: =IF($D5="Unlisted Player",-1001,IFERROR(IF(VLOOKUP($D5,'All-WERTH'!$C$2:$AC$949,26,FALSE)="",-1000,VLOOKUP($D5,'All-WERTH'!$C$2:$AC$949,26,FALSE)),-1000)) -> -1000 | AM5: =IF($D5="Unlisted Player",-1001,IFERROR(IF(VLOOKUP($D5,'All-WERTH'!$C$2:$AC$949,27,FALSE)="",-1000,VLOOKUP($D5,'All-WERTH'!$C$2:$AC$949,27,FALSE)),-1000)) -> -1000 | AN5: =IF(D5="Non-Ranked Player",-1001,IFERROR(VLOOKUP($D5,'All-WERTH'!$C$2:$AG$949,31,FALSE),-1000)) -> 0.191471427 | AO5: =IF(ISERROR(VLOOKUP($B4,Keepers!$C$2:$D$450,2,FALSE)),B4,"") -> Cody Bellinger | AP5: =IFERROR(INDEX($AO$1:$AO$949,SMALL(IF($AO$1:$AO$949<>"",ROW($AO$1:$AO$949)),ROW(AO5))),"") -> Mookie Betts
A6: Mookie Betts | B6: =IFERROR(INDEX($A$1:$A$949,SMALL(IF($A$1:$A$949<>"",ROW($A$1:$A$949)),ROW(A6))),"") -> Gerrit Cole | C6: =IFERROR(IF(L6=FALSE,"",CHOOSE(MATCH(RIGHT('Your Roto Draft'!$P$4,LEN('Your Roto Draft'!$P$4)-8),$M$1:$AN$1,0),1+SUMPRODUCT(($L$2:$L$950=TRUE)*($M$2:$M$950<M6))+COUNTIFS($L$2:L6,L6,$M$2:M6,M6)-1,1+SUMPRODUCT(($L$2:$L$950=TRUE)*($N$2:$N$950>N6))+COUNTIFS($L$2:L6,L6,$N$2:N6,N6)-1,1+SUMPRODUCT(($L$2:$L$950=TRUE)*($O$2:$O$950<O6))+COUNTIFS($L$2:L6,L6,$O$2:O6,O6)-1,1+SUMPRODUCT(($L$2:$L$950=TRUE)*($P$2:$P$950>P6))+COUNTIFS($L$2:L6,L6,$P$2:P6,P6)-1,1+SUMPRODUCT(($L$2:$L$950=TRUE)*($Q$2:$Q$950>Q6))+COUNTIFS($L$2:L6,L6,$Q$2:Q6,Q6)-1,1+SUMPRODUCT(($L$2:$L$950=TRUE)*($R$2:$R$950>R6))+COUNTIFS($L$2:L6,L6,$R$2:R6,R6)-1,1+SUMPRODUCT(($L$2:$L$950=TRUE)*($S$2:$S$950>S6))+COUNTIFS($L$2:L6,L6,$S$2:S6,S6)-1,1+SUMPRODUCT(($L$2:$L$950=TRUE)*($T$2:$T$950>T6))+COUNTIFS($L$2:L6,L6,$T$2:T6,T6)-1,1+SUMPRODUCT(($L$2:$L$950=TRUE)*($U$2:$U$950>U6))+COUNTIFS($L$2:L6,L6,$U$2:U6,U6)-1,1+SUMPRODUCT(($L$2:$L$950=TRUE)*($V$2:$V$950>V6))+COUNTIFS($L$2:L6,L6,$V$2:V6,V6)-1,1+SUMPRODUCT(($L$2:$L$950=TRUE)*($W$2:$W$950>W6))+COUNTIFS($L$2:L6,L6,$W$2:W6,W6)-1,1+SUMPRODUCT(($L$2:$L$950=TRUE)*($X$2:$X$950>X6))+COUNTIFS($L$2:L6,L6,$X$2:X6,X6)-1,1+SUMPRODUCT(($L$2:$L$950=TRUE)*($Y$2:$Y$950>Y6))+COUNTIFS($L$2:L6,L6,$Y$2:Y6,Y6)-1,1+SUMPRODUCT(($L$2:$L$950=TRUE)*($Z$2:$Z$950>Z6))+COUNTIFS($L$2:L6,L6,$Z$2:Z6,Z6)-1,1+SUMPRODUCT(($L$2:$L$950=TRUE)*($AA$2:$AA$950>AA6))+COUNTIFS($L$2:L6,L6,$AA$2:AA6,AA6)-1,1+SUMPRODUCT(($L$2:$L$950=TRUE)*($AB$2:$AB$950>AB6))+COUNTIFS($L$2:L6,L6,$AB$2:AB6,AB6)-1,1+SUMPRODUCT(($L$2:$L$950=TRUE)*($AC$2:$AC$950>AC6))+COUNTIFS($L$2:L6,L6,$AC$2:AC6,AC6)-1,1+SUMPRODUCT(($L$2:$L$950=TRUE)*($AD$2:$AD$950>AD6))+COUNTIFS($L$2:L6,L6,$AD$2:AD6,AD6)-1,1+SUMPRODUCT(($L$2:$L$950=TRUE)*($AE$2:$AE$950>AE6))+COUNTIFS($L$2:L6,L6,$AE$2:AE6,AE6)-1,1+SUMPRODUCT(($L$2:$L$950=TRUE)*($AF$2:$AF$950>AF6))+COUNTIFS($L$2:L6,L6,$AF$2:AF6,AF6)-1,1+SUMPRODUCT(($L$2:$L$950=TRUE)*($AG$2:$AG$950>AG6))+COUNTIFS($L$2:L6,L6,$AG$2:AG6,AG6)-1,1+SUMPRODUCT(($L$2:$L$950=TRUE)*($AH$2:$AH$950>AH6))+COUNTIFS($L$2:L6,L6,$AH$2:AH6,AH6)-1,1+SUMPRODUCT(($L$2:$L$950=TRUE)*($AI$2:$AI$950>AI6))+COUNTIFS($L$2:L6,L6,$AI$2:AI6,AI6)-1,1+SUMPRODUCT(($L$2:$L$950=TRUE)*($AJ$2:$AJ$950>AJ6))+COUNTIFS($L$2:L6,L6,$AJ$2:AJ6,AJ6)-1,1+SUMPRODUCT(($L$2:$L$950=TRUE)*($AK$2:$AK$950>AK6))+COUNTIFS($L$2:L6,L6,$AK$2:AK6,AK6)-1,1+SUMPRODUCT(($L$2:$L$950=TRUE)*($AL$2:$AL$950>AL6))+COUNTIFS($L$2:L6,L6,$AL$2:AL6,AL6)-1,1+SUMPRODUCT(($L$2:$L$950=TRUE)*($AM$2:$AM$950>AM6))+COUNTIFS($L$2:L6,L6,$AM$2:AM6,AM6)-1,1+SUMPRODUCT(($L$2:$L$950=TRUE)*($AN$2:$AN$950>AN6))+COUNTIFS($L$2:L6,L6,$AN$2:AN6,AN6)-1)),"") -> 629 | D6: Matt Adams | E6: =IFERROR(INDEX('Draft Log'!$D$4:$D$806,MATCH(D6,'Draft Log'!$C$4:$C$806,0)),"") ->  | F6: =IFERROR(INDEX('ADP-Rank'!$C$2:$C$819,MATCH(D6,'ADP-Rank'!$A$2:$A$819,0)),"") -> 1B | G6: =IFERROR(IF(F6=I6,"",IF(INDEX('Your Roto Draft'!$B$11:$B$634,MATCH(D6,'Your Roto Draft'!$C$11:$C$634,0))="",IF(I6<>"",I6,""),INDEX('Your Roto Draft'!$B$11:$B$634,MATCH(D6,'Your Roto Draft'!$C$11:$C$634,0)))),"") ->  | H6: 1B | J6: =INDEX('ADP-Rank'!$AH$2:$AH$819,MATCH(D6,'ADP-Rank'!$A$2:$A$819,0)) -> TRUE | K6: FALSE | L6: =IF(J6=FALSE,FALSE,IF(AND('Your Roto Draft'!$P$6="Hide Drafted Players",K6=TRUE),FALSE,IF(OR('Your Roto Draft'!$P$5="Show All Positions",AND('Your Roto Draft'!$P$5="Only Show: C",H6="C"),AND('Your Roto Draft'!$P$5="Only Show: 1B",H6="1B"),AND('Your Roto Draft'!$P$5="Only Show: 2B",H6="2B"),AND('Your Roto Draft'!$P$5="Only Show: 3B",H6="3B"),AND('Your Roto Draft'!$P$5="Only Show: SS",H6="SS"),AND('Your Roto Draft'!$P$5="Only Show: OF",H6="OF"),AND('Your Roto Draft'!$P$5="Only Show: SP",H6="SP"),AND('Your Roto Draft'!$P$5="Only Show: RP",H6="RP"),AND('Your Roto Draft'!$P$5="Only Show: CI",OR(H6={"1B","3B"})),AND('Your Roto Draft'!$P$5="Only Show: MI",OR(H6={"2B","SS"})),AND('Your Roto Draft'!$P$5="Only Show: IF",OR(H6={"C","1B","2B","3B","SS"})),AND('Your Roto Draft'!$P$5="Only Show: DH",OR(H6={"C","1B","2B","3B","SS","OF","DH"})),AND('Your Roto Draft'!$P$5="Only Show: P",OR(H6={"SP","RP"})),AND('Your Roto Draft'!$P$5="Only Show: LF",ISERROR(SEARCH("LF",VLOOKUP($D6,'ADP-Rank'!$A$2:$D$948,4,FALSE)))=FALSE),AND('Your Roto Draft'!$P$5="Only Show: RF",ISERROR(SEARCH("RF",VLOOKUP($D6,'ADP-Rank'!$A$2:$D$948,4,FALSE)))=FALSE),AND('Your Roto Draft'!$P$5="Only Show: CF",ISERROR(SEARCH("CF",VLOOKUP($D6,'ADP-Rank'!$A$2:$D$948,4,FALSE)))=FALSE)),TRUE,FALSE))) -> TRUE | M6: =IFERROR(IF(VLOOKUP($D6,'ADP-Rank'!$A$2:$AV$948,38,FALSE)="",9999,VLOOKUP($D6,'ADP-Rank'!$A$2:$AV$948,38,FALSE)),9999) -> 9999 | N6: =IF(D6="Non-Ranked Player",-1001,IFERROR(VLOOKUP($D6,'All-WERTH'!$C$2:$E$949,3,FALSE),-1000)) -> -1000 | O6: =IF(D6="Non-Ranked Player",10000,IFERROR(IF(VLOOKUP(D6,'ADP-Rank'!$A$2:$AJ$948,36,FALSE)="",9999,VLOOKUP(D6,'ADP-Rank'!$A$2:$AJ$948,36,FALSE)),9999)) -> 648 | P6: =IF($D6="Unlisted Player",-1001,IFERROR(IF(VLOOKUP($D6,'All-WERTH'!$C$2:$AC$949,4,FALSE)="",-1000,VLOOKUP($D6,'All-WERTH'!$C$2:$AC$949,4,FALSE)),-1000)) -> -1000 | Q6: =IF($D6="Unlisted Player",-1001,IFERROR(IF(VLOOKUP($D6,'All-WERTH'!$C$2:$AC$949,5,FALSE)="",-1000,VLOOKUP($D6,'All-WERTH'!$C$2:$AC$949,5,FALSE)),-1000)) -> -1000 | R6: =IF($D6="Unlisted Player",-1001,IFERROR(IF(VLOOKUP($D6,'All-WERTH'!$C$2:$AC$949,6,FALSE)="",-1000,VLOOKUP($D6,'All-WERTH'!$C$2:$AC$949,6,FALSE)),-1000)) -> -1000 | S6: =IF($D6="Unlisted Player",-1001,IFERROR(IF(VLOOKUP($D6,'All-WERTH'!$C$2:$AC$949,7,FALSE)="",-1000,VLOOKUP($D6,'All-WERTH'!$C$2:$AC$949,7,FALSE)),-1000)) -> -1000 | T6: =IF($D6="Unlisted Player",-1001,IFERROR(IF(VLOOKUP($D6,'All-WERTH'!$C$2:$AC$949,8,FALSE)="",-1000,VLOOKUP($D6,'All-WERTH'!$C$2:$AC$949,8,FALSE)),-1000)) -> -1000 | U6: =IF($D6="Unlisted Player",-1001,IFERROR(IF(VLOOKUP($D6,'All-WERTH'!$C$2:$AC$949,9,FALSE)="",-1000,VLOOKUP($D6,'All-WERTH'!$C$2:$AC$949,9,FALSE)),-1000)) -> -1000 | V6: =IF($D6="Unlisted Player",-1001,IFERROR(IF(VLOOKUP($D6,'All-WERTH'!$C$2:$AC$949,10,FALSE)="",-1000,VLOOKUP($D6,'All-WERTH'!$C$2:$AC$949,10,FALSE)),-1000)) -> -1000 | W6: =IF($D6="Unlisted Player",-1001,IFERROR(IF(VLOOKUP($D6,'All-WERTH'!$C$2:$AC$949,11,FALSE)="",-1000,VLOOKUP($D6,'All-WERTH'!$C$2:$AC$949,11,FALSE)),-1000)) -> -1000 | X6: =IF($D6="Unlisted Player",-1001,IFERROR(IF(VLOOKUP($D6,'All-WERTH'!$C$2:$AC$949,12,FALSE)="",-1000,VLOOKUP($D6,'All-WERTH'!$C$2:$AC$949,12,FALSE)),-1000)) -> -1000 | Y6: =IF($D6="Unlisted Player",-1001,IFERROR(IF(VLOOKUP($D6,'All-WERTH'!$C$2:$AC$949,13,FALSE)="",-1000,VLOOKUP($D6,'All-WERTH'!$C$2:$AC$949,13,FALSE)),-1000)) -> -1000 | Z6: =IF($D6="Unlisted Player",-1001,IFERROR(IF(VLOOKUP($D6,'All-WERTH'!$C$2:$AC$949,14,FALSE)="",-1000,VLOOKUP($D6,'All-WERTH'!$C$2:$AC$949,14,FALSE)),-1000)) -> -1000 | AA6: =IF($D6="Unlisted Player",-1001,IFERROR(IF(VLOOKUP($D6,'All-WERTH'!$C$2:$AC$949,15,FALSE)="",-1000,VLOOKUP($D6,'All-WERTH'!$C$2:$AC$949,15,FALSE)),-1000)) -> -1000 | AB6: =IF($D6="Unlisted Player",-1001,IFERROR(IF(VLOOKUP($D6,'All-WERTH'!$C$2:$AC$949,16,FALSE)="",-1000,VLOOKUP($D6,'All-WERTH'!$C$2:$AC$949,16,FALSE)),-1000)) -> -1000 | AC6: =IF($D6="Unlisted Player",-1001,IFERROR(IF(VLOOKUP($D6,'All-WERTH'!$C$2:$AC$949,17,FALSE)="",-1000,VLOOKUP($D6,'All-WERTH'!$C$2:$AC$949,17,FALSE)),-1000)) -> -1000 | AD6: =IF($D6="Unlisted Player",-1001,IFERROR(IF(VLOOKUP($D6,'All-WERTH'!$C$2:$AC$949,18,FALSE)="",-1000,VLOOKUP($D6,'All-WERTH'!$C$2:$AC$949,18,FALSE)),-1000)) -> -1000 | AE6: =IF($D6="Unlisted Player",-1001,IFERROR(IF(VLOOKUP($D6,'All-WERTH'!$C$2:$AC$949,19,FALSE)="",-1000,VLOOKUP($D6,'All-WERTH'!$C$2:$AC$949,19,FALSE)),-1000)) -> -1000 | AF6: =IF($D6="Unlisted Player",-1001,IFERROR(IF(VLOOKUP($D6,'All-WERTH'!$C$2:$AC$949,20,FALSE)="",-1000,VLOOKUP($D6,'All-WERTH'!$C$2:$AC$949,20,FALSE)),-1000)) -> -1000 | AG6: =IF($D6="Unlisted Player",-1001,IFERROR(IF(VLOOKUP($D6,'All-WERTH'!$C$2:$AC$949,21,FALSE)="",-1000,VLOOKUP($D6,'All-WERTH'!$C$2:$AC$949,21,FALSE)),-1000)) -> -1000 | AH6: =IF($D6="Unlisted Player",-1001,IFERROR(IF(VLOOKUP($D6,'All-WERTH'!$C$2:$AC$949,22,FALSE)="",-1000,VLOOKUP($D6,'All-WERTH'!$C$2:$AC$949,22,FALSE)),-1000)) -> -1000 | AI6: =IF($D6="Unlisted Player",-1001,IFERROR(IF(VLOOKUP($D6,'All-WERTH'!$C$2:$AC$949,23,FALSE)="",-1000,VLOOKUP($D6,'All-WERTH'!$C$2:$AC$949,23,FALSE)),-1000)) -> -1000 | AJ6: =IF($D6="Unlisted Player",-1001,IFERROR(IF(VLOOKUP($D6,'All-WERTH'!$C$2:$AC$949,24,FALSE)="",-1000,VLOOKUP($D6,'All-WERTH'!$C$2:$AC$949,24,FALSE)),-1000)) -> -1000 | AK6: =IF($D6="Unlisted Player",-1001,IFERROR(IF(VLOOKUP($D6,'All-WERTH'!$C$2:$AC$949,25,FALSE)="",-1000,VLOOKUP($D6,'All-WERTH'!$C$2:$AC$949,25,FALSE)),-1000)) -> -1000 | AL6: =IF($D6="Unlisted Player",-1001,IFERROR(IF(VLOOKUP($D6,'All-WERTH'!$C$2:$AC$949,26,FALSE)="",-1000,VLOOKUP($D6,'All-WERTH'!$C$2:$AC$949,26,FALSE)),-1000)) -> -1000 | AM6: =IF($D6="Unlisted Player",-1001,IFERROR(IF(VLOOKUP($D6,'All-WERTH'!$C$2:$AC$949,27,FALSE)="",-1000,VLOOKUP($D6,'All-WERTH'!$C$2:$AC$949,27,FALSE)),-1000)) -> -1000 | AN6: =IF(D6="Non-Ranked Player",-1001,IFERROR(VLOOKUP($D6,'All-WERTH'!$C$2:$AG$949,31,FALSE),-1000)) -> -997.5393859 | AO6: =IF(ISERROR(VLOOKUP($B5,Keepers!$C$2:$D$450,2,FALSE)),B5,"") -> Mookie Betts | AP6: =IFERROR(INDEX($AO$1:$AO$949,SMALL(IF($AO$1:$AO$949<>"",ROW($AO$1:$AO$949)),ROW(AO6))),"") -> Gerrit Cole
A7: Gerrit Cole | B7: =IFERROR(INDEX($A$1:$A$949,SMALL(IF($A$1:$A$949<>"",ROW($A$1:$A$949)),ROW(A7))),"") -> Jacob deGrom | C7: =IFERROR(IF(L7=FALSE,"",CHOOSE(MATCH(RIGHT('Your Roto Draft'!$P$4,LEN('Your Roto Draft'!$P$4)-8),$M$1:$AN$1,0),1+SUMPRODUCT(($L$2:$L$950=TRUE)*($M$2:$M$950<M7))+COUNTIFS($L$2:L7,L7,$M$2:M7,M7)-1,1+SUMPRODUCT(($L$2:$L$950=TRUE)*($N$2:$N$950>N7))+COUNTIFS($L$2:L7,L7,$N$2:N7,N7)-1,1+SUMPRODUCT(($L$2:$L$950=TRUE)*($O$2:$O$950<O7))+COUNTIFS($L$2:L7,L7,$O$2:O7,O7)-1,1+SUMPRODUCT(($L$2:$L$950=TRUE)*($P$2:$P$950>P7))+COUNTIFS($L$2:L7,L7,$P$2:P7,P7)-1,1+SUMPRODUCT(($L$2:$L$950=TRUE)*($Q$2:$Q$950>Q7))+COUNTIFS($L$2:L7,L7,$Q$2:Q7,Q7)-1,1+SUMPRODUCT(($L$2:$L$950=TRUE)*($R$2:$R$950>R7))+COUNTIFS($L$2:L7,L7,$R$2:R7,R7)-1,1+SUMPRODUCT(($L$2:$L$950=TRUE)*($S$2:$S$950>S7))+COUNTIFS($L$2:L7,L7,$S$2:S7,S7)-1,1+SUMPRODUCT(($L$2:$L$950=TRUE)*($T$2:$T$950>T7))+COUNTIFS($L$2:L7,L7,$T$2:T7,T7)-1,1+SUMPRODUCT(($L$2:$L$950=TRUE)*($U$2:$U$950>U7))+COUNTIFS($L$2:L7,L7,$U$2:U7,U7)-1,1+SUMPRODUCT(($L$2:$L$950=TRUE)*($V$2:$V$950>V7))+COUNTIFS($L$2:L7,L7,$V$2:V7,V7)-1,1+SUMPRODUCT(($L$2:$L$950=TRUE)*($W$2:$W$950>W7))+COUNTIFS($L$2:L7,L7,$W$2:W7,W7)-1,1+SUMPRODUCT(($L$2:$L$950=TRUE)*($X$2:$X$950>X7))+COUNTIFS($L$2:L7,L7,$X$2:X7,X7)-1,1+SUMPRODUCT(($L$2:$L$950=TRUE)*($Y$2:$Y$950>Y7))+COUNTIFS($L$2:L7,L7,$Y$2:Y7,Y7)-1,1+SUMPRODUCT(($L$2:$L$950=TRUE)*($Z$2:$Z$950>Z7))+COUNTIFS($L$2:L7,L7,$Z$2:Z7,Z7)-1,1+SUMPRODUCT(($L$2:$L$950=TRUE)*($AA$2:$AA$950>AA7))+COUNTIFS($L$2:L7,L7,$AA$2:AA7,AA7)-1,1+SUMPRODUCT(($L$2:$L$950=TRUE)*($AB$2:$AB$950>AB7))+COUNTIFS($L$2:L7,L7,$AB$2:AB7,AB7)-1,1+SUMPRODUCT(($L$2:$L$950=TRUE)*($AC$2:$AC$950>AC7))+COUNTIFS($L$2:L7,L7,$AC$2:AC7,AC7)-1,1+SUMPRODUCT(($L$2:$L$950=TRUE)*($AD$2:$AD$950>AD7))+COUNTIFS($L$2:L7,L7,$AD$2:AD7,AD7)-1,1+SUMPRODUCT(($L$2:$L$950=TRUE)*($AE$2:$AE$950>AE7))+COUNTIFS($L$2:L7,L7,$AE$2:AE7,AE7)-1,1+SUMPRODUCT(($L$2:$L$950=TRUE)*($AF$2:$AF$950>AF7))+COUNTIFS($L$2:L7,L7,$AF$2:AF7,AF7)-1,1+SUMPRODUCT(($L$2:$L$950=TRUE)*($AG$2:$AG$950>AG7))+COUNTIFS($L$2:L7,L7,$AG$2:AG7,AG7)-1,1+SUMPRODUCT(($L$2:$L$950=TRUE)*($AH$2:$AH$950>AH7))+COUNTIFS($L$2:L7,L7,$AH$2:AH7,AH7)-1,1+SUMPRODUCT(($L$2:$L$950=TRUE)*($AI$2:$AI$950>AI7))+COUNTIFS($L$2:L7,L7,$AI$2:AI7,AI7)-1,1+SUMPRODUCT(($L$2:$L$950=TRUE)*($AJ$2:$AJ$950>AJ7))+COUNTIFS($L$2:L7,L7,$AJ$2:AJ7,AJ7)-1,1+SUMPRODUCT(($L$2:$L$950=TRUE)*($AK$2:$AK$950>AK7))+COUNTIFS($L$2:L7,L7,$AK$2:AK7,AK7)-1,1+SUMPRODUCT(($L$2:$L$950=TRUE)*($AL$2:$AL$950>AL7))+COUNTIFS($L$2:L7,L7,$AL$2:AL7,AL7)-1,1+SUMPRODUCT(($L$2:$L$950=TRUE)*($AM$2:$AM$950>AM7))+COUNTIFS($L$2:L7,L7,$AM$2:AM7,AM7)-1,1+SUMPRODUCT(($L$2:$L$950=TRUE)*($AN$2:$AN$950>AN7))+COUNTIFS($L$2:L7,L7,$AN$2:AN7,AN7)-1)),"") -> 242 | D7: Jo Adell | E7: =IFERROR(INDEX('Draft Log'!$D$4:$D$806,MATCH(D7,'Draft Log'!$C$4:$C$806,0)),"") ->  | F7: =IFERROR(INDEX('ADP-Rank'!$C$2:$C$819,MATCH(D7,'ADP-Rank'!$A$2:$A$819,0)),"") -> OF | G7: =IFERROR(IF(F7=I7,"",IF(INDEX('Your Roto Draft'!$B$11:$B$634,MATCH(D7,'Your Roto Draft'!$C$11:$C$634,0))="",IF(I7<>"",I7,""),INDEX('Your Roto Draft'!$B$11:$B$634,MATCH(D7,'Your Roto Draft'!$C$11:$C$634,0)))),"") ->  | H7: OF | J7: =INDEX('ADP-Rank'!$AH$2:$AH$819,MATCH(D7,'ADP-Rank'!$A$2:$A$819,0)) -> TRUE | K7: FALSE | L7: =IF(J7=FALSE,FALSE,IF(AND('Your Roto Draft'!$P$6="Hide Drafted Players",K7=TRUE),FALSE,IF(OR('Your Roto Draft'!$P$5="Show All Positions",AND('Your Roto Draft'!$P$5="Only Show: C",H7="C"),AND('Your Roto Draft'!$P$5="Only Show: 1B",H7="1B"),AND('Your Roto Draft'!$P$5="Only Show: 2B",H7="2B"),AND('Your Roto Draft'!$P$5="Only Show: 3B",H7="3B"),AND('Your Roto Draft'!$P$5="Only Show: SS",H7="SS"),AND('Your Roto Draft'!$P$5="Only Show: OF",H7="OF"),AND('Your Roto Draft'!$P$5="Only Show: SP",H7="SP"),AND('Your Roto Draft'!$P$5="Only Show: RP",H7="RP"),AND('Your Roto Draft'!$P$5="Only Show: CI",OR(H7={"1B","3B"})),AND('Your Roto Draft'!$P$5="Only Show: MI",OR(H7={"2B","SS"})),AND('Your Roto Draft'!$P$5="Only Show: IF",OR(H7={"C","1B","2B","3B","SS"})),AND('Your Roto Draft'!$P$5="Only Show: DH",OR(H7={"C","1B","2B","3B","SS","OF","DH"})),AND('Your Roto Draft'!$P$5="Only Show: P",OR(H7={"SP","RP"})),AND('Your Roto Draft'!$P$5="Only Show: LF",ISERROR(SEARCH("LF",VLOOKUP($D7,'ADP-Rank'!$A$2:$D$948,4,FALSE)))=FALSE),AND('Your Roto Draft'!$P$5="Only Show: RF",ISERROR(SEARCH("RF",VLOOKUP($D7,'ADP-Rank'!$A$2:$D$948,4,FALSE)))=FALSE),AND('Your Roto Draft'!$P$5="Only Show: CF",ISERROR(SEARCH("CF",VLOOKUP($D7,'ADP-Rank'!$A$2:$D$948,4,FALSE)))=FALSE)),TRUE,FALSE))) -> TRUE | M7: =IFERROR(IF(VLOOKUP($D7,'ADP-Rank'!$A$2:$AV$948,38,FALSE)="",9999,VLOOKUP($D7,'ADP-Rank'!$A$2:$AV$948,38,FALSE)),9999) -> 252.2 | N7: =IF(D7="Non-Ranked Player",-1001,IFERROR(VLOOKUP($D7,'All-WERTH'!$C$2:$E$949,3,FALSE),-1000)) -> -5.768815941 | O7: =IF(D7="Non-Ranked Player",10000,IFERROR(IF(VLOOKUP(D7,'ADP-Rank'!$A$2:$AJ$948,36,FALSE)="",9999,VLOOKUP(D7,'ADP-Rank'!$A$2:$AJ$948,36,FALSE)),9999)) -> 321 | P7: =IF($D7="Unlisted Player",-1001,IFERROR(IF(VLOOKUP($D7,'All-WERTH'!$C$2:$AC$949,4,FALSE)="",-1000,VLOOKUP($D7,'All-WERTH'!$C$2:$AC$949,4,FALSE)),-1000)) -> -0.8792097404 | Q7: =IF($D7="Unlisted Player",-1001,IFERROR(IF(VLOOKUP($D7,'All-WERTH'!$C$2:$AC$949,5,FALSE)="",-1000,VLOOKUP($D7,'All-WERTH'!$C$2:$AC$949,5,FALSE)),-1000)) -> -1.371736609 | R7: =IF($D7="Unlisted Player",-1001,IFERROR(IF(VLOOKUP($D7,'All-WERTH'!$C$2:$AC$949,6,FALSE)="",-1000,VLOOKUP($D7,'All-WERTH'!$C$2:$AC$949,6,FALSE)),-1000)) -> -1.552040841 | S7: =IF($D7="Unlisted Player",-1001,IFERROR(IF(VLOOKUP($D7,'All-WERTH'!$C$2:$AC$949,7,FALSE)="",-1000,VLOOKUP($D7,'All-WERTH'!$C$2:$AC$949,7,FALSE)),-1000)) -> -1.662231424 | T7: =IF($D7="Unlisted Player",-1001,IFERROR(IF(VLOOKUP($D7,'All-WERTH'!$C$2:$AC$949,8,FALSE)="",-1000,VLOOKUP($D7,'All-WERTH'!$C$2:$AC$949,8,FALSE)),-1000)) -> -0.3035973261 | U7: =IF($D7="Unlisted Player",-1001,IFERROR(IF(VLOOKUP($D7,'All-WERTH'!$C$2:$AC$949,9,FALSE)="",-1000,VLOOKUP($D7,'All-WERTH'!$C$2:$AC$949,9,FALSE)),-1000)) -> -1000 | V7: =IF($D7="Unlisted Player",-1001,IFERROR(IF(VLOOKUP($D7,'All-WERTH'!$C$2:$AC$949,10,FALSE)="",-1000,VLOOKUP($D7,'All-WERTH'!$C$2:$AC$949,10,FALSE)),-1000)) -> -1000 | W7: =IF($D7="Unlisted Player",-1001,IFERROR(IF(VLOOKUP($D7,'All-WERTH'!$C$2:$AC$949,11,FALSE)="",-1000,VLOOKUP($D7,'All-WERTH'!$C$2:$AC$949,11,FALSE)),-1000)) -> -1000 | X7: =IF($D7="Unlisted Player",-1001,IFERROR(IF(VLOOKUP($D7,'All-WERTH'!$C$2:$AC$949,12,FALSE)="",-1000,VLOOKUP($D7,'All-WERTH'!$C$2:$AC$949,12,FALSE)),-1000)) -> -1000 | Y7: =IF($D7="Unlisted Player",-1001,IFERROR(IF(VLOOKUP($D7,'All-WERTH'!$C$2:$AC$949,13,FALSE)="",-1000,VLOOKUP($D7,'All-WERTH'!$C$2:$AC$949,13,FALSE)),-1000)) -> -1000 | Z7: =IF($D7="Unlisted Player",-1001,IFERROR(IF(VLOOKUP($D7,'All-WERTH'!$C$2:$AC$949,14,FALSE)="",-1000,VLOOKUP($D7,'All-WERTH'!$C$2:$AC$949,14,FALSE)),-1000)) -> -1000 | AA7: =IF($D7="Unlisted Player",-1001,IFERROR(IF(VLOOKUP($D7,'All-WERTH'!$C$2:$AC$949,15,FALSE)="",-1000,VLOOKUP($D7,'All-WERTH'!$C$2:$AC$949,15,FALSE)),-1000)) -> -1000 | AB7: =IF($D7="Unlisted Player",-1001,IFERROR(IF(VLOOKUP($D7,'All-WERTH'!$C$2:$AC$949,16,FALSE)="",-1000,VLOOKUP($D7,'All-WERTH'!$C$2:$AC$949,16,FALSE)),-1000)) -> -1000 | AC7: =IF($D7="Unlisted Player",-1001,IFERROR(IF(VLOOKUP($D7,'All-WERTH'!$C$2:$AC$949,17,FALSE)="",-1000,VLOOKUP($D7,'All-WERTH'!$C$2:$AC$949,17,FALSE)),-1000)) -> -1000 | AD7: =IF($D7="Unlisted Player",-1001,IFERROR(IF(VLOOKUP($D7,'All-WERTH'!$C$2:$AC$949,18,FALSE)="",-1000,VLOOKUP($D7,'All-WERTH'!$C$2:$AC$949,18,FALSE)),-1000)) -> -1000 | AE7: =IF($D7="Unlisted Player",-1001,IFERROR(IF(VLOOKUP($D7,'All-WERTH'!$C$2:$AC$949,19,FALSE)="",-1000,VLOOKUP($D7,'All-WERTH'!$C$2:$AC$949,19,FALSE)),-1000)) -> -1000 | AF7: =IF($D7="Unlisted Player",-1001,IFERROR(IF(VLOOKUP($D7,'All-WERTH'!$C$2:$AC$949,20,FALSE)="",-1000,VLOOKUP($D7,'All-WERTH'!$C$2:$AC$949,20,FALSE)),-1000)) -> -1000 | AG7: =IF($D7="Unlisted Player",-1001,IFERROR(IF(VLOOKUP($D7,'All-WERTH'!$C$2:$AC$949,21,FALSE)="",-1000,VLOOKUP($D7,'All-WERTH'!$C$2:$AC$949,21,FALSE)),-1000)) -> -1000 | AH7: =IF($D7="Unlisted Player",-1001,IFERROR(IF(VLOOKUP($D7,'All-WERTH'!$C$2:$AC$949,22,FALSE)="",-1000,VLOOKUP($D7,'All-WERTH'!$C$2:$AC$949,22,FALSE)),-1000)) -> -1000 | AI7: =IF($D7="Unlisted Player",-1001,IFERROR(IF(VLOOKUP($D7,'All-WERTH'!$C$2:$AC$949,23,FALSE)="",-1000,VLOOKUP($D7,'All-WERTH'!$C$2:$AC$949,23,FALSE)),-1000)) -> -1000 | AJ7: =IF($D7="Unlisted Player",-1001,IFERROR(IF(VLOOKUP($D7,'All-WERTH'!$C$2:$AC$949,24,FALSE)="",-1000,VLOOKUP($D7,'All-WERTH'!$C$2:$AC$949,24,FALSE)),-1000)) -> -1000 | AK7: =IF($D7="Unlisted Player",-1001,IFERROR(IF(VLOOKUP($D7,'All-WERTH'!$C$2:$AC$949,25,FALSE)="",-1000,VLOOKUP($D7,'All-WERTH'!$C$2:$AC$949,25,FALSE)),-1000)) -> -1000 | AL7: =IF($D7="Unlisted Player",-1001,IFERROR(IF(VLOOKUP($D7,'All-WERTH'!$C$2:$AC$949,26,FALSE)="",-1000,VLOOKUP($D7,'All-WERTH'!$C$2:$AC$949,26,FALSE)),-1000)) -> -1000 | AM7: =IF($D7="Unlisted Player",-1001,IFERROR(IF(VLOOKUP($D7,'All-WERTH'!$C$2:$AC$949,27,FALSE)="",-1000,VLOOKUP($D7,'All-WERTH'!$C$2:$AC$949,27,FALSE)),-1000)) -> -1000 | AN7: =IF(D7="Non-Ranked Player",-1001,IFERROR(VLOOKUP($D7,'All-WERTH'!$C$2:$AG$949,31,FALSE),-1000)) -> -2.016494425 | AO7: =IF(ISERROR(VLOOKUP($B6,Keepers!$C$2:$D$450,2,FALSE)),B6,"") -> Gerrit Cole | AP7: =IFERROR(INDEX($AO$1:$AO$949,SMALL(IF($AO$1:$AO$949<>"",ROW($AO$1:$AO$949)),ROW(AO7))),"") -> Jacob deGrom
A8: Jacob deGrom | B8: =IFERROR(INDEX($A$1:$A$949,SMALL(IF($A$1:$A$949<>"",ROW($A$1:$A$949)),ROW(A8))),"") -> Francisco Lindor | C8: =IFERROR(IF(L8=FALSE,"",CHOOSE(MATCH(RIGHT('Your Roto Draft'!$P$4,LEN('Your Roto Draft'!$P$4)-8),$M$1:$AN$1,0),1+SUMPRODUCT(($L$2:$L$950=TRUE)*($M$2:$M$950<M8))+COUNTIFS($L$2:L8,L8,$M$2:M8,M8)-1,1+SUMPRODUCT(($L$2:$L$950=TRUE)*($N$2:$N$950>N8))+COUNTIFS($L$2:L8,L8,$N$2:N8,N8)-1,1+SUMPRODUCT(($L$2:$L$950=TRUE)*($O$2:$O$950<O8))+COUNTIFS($L$2:L8,L8,$O$2:O8,O8)-1,1+SUMPRODUCT(($L$2:$L$950=TRUE)*($P$2:$P$950>P8))+COUNTIFS($L$2:L8,L8,$P$2:P8,P8)-1,1+SUMPRODUCT(($L$2:$L$950=TRUE)*($Q$2:$Q$950>Q8))+COUNTIFS($L$2:L8,L8,$Q$2:Q8,Q8)-1,1+SUMPRODUCT(($L$2:$L$950=TRUE)*($R$2:$R$950>R8))+COUNTIFS($L$2:L8,L8,$R$2:R8,R8)-1,1+SUMPRODUCT(($L$2:$L$950=TRUE)*($S$2:$S$950>S8))+COUNTIFS($L$2:L8,L8,$S$2:S8,S8)-1,1+SUMPRODUCT(($L$2:$L$950=TRUE)*($T$2:$T$950>T8))+COUNTIFS($L$2:L8,L8,$T$2:T8,T8)-1,1+SUMPRODUCT(($L$2:$L$950=TRUE)*($U$2:$U$950>U8))+COUNTIFS($L$2:L8,L8,$U$2:U8,U8)-1,1+SUMPRODUCT(($L$2:$L$950=TRUE)*($V$2:$V$950>V8))+COUNTIFS($L$2:L8,L8,$V$2:V8,V8)-1,1+SUMPRODUCT(($L$2:$L$950=TRUE)*($W$2:$W$950>W8))+COUNTIFS($L$2:L8,L8,$W$2:W8,W8)-1,1+SUMPRODUCT(($L$2:$L$950=TRUE)*($X$2:$X$950>X8))+COUNTIFS($L$2:L8,L8,$X$2:X8,X8)-1,1+SUMPRODUCT(($L$2:$L$950=TRUE)*($Y$2:$Y$950>Y8))+COUNTIFS($L$2:L8,L8,$Y$2:Y8,Y8)-1,1+SUMPRODUCT(($L$2:$L$950=TRUE)*($Z$2:$Z$950>Z8))+COUNTIFS($L$2:L8,L8,$Z$2:Z8,Z8)-1,1+SUMPRODUCT(($L$2:$L$950=TRUE)*($AA$2:$AA$950>AA8))+COUNTIFS($L$2:L8,L8,$AA$2:AA8,AA8)-1,1+SUMPRODUCT(($L$2:$L$950=TRUE)*($AB$2:$AB$950>AB8))+COUNTIFS($L$2:L8,L8,$AB$2:AB8,AB8)-1,1+SUMPRODUCT(($L$2:$L$950=TRUE)*($AC$2:$AC$950>AC8))+COUNTIFS($L$2:L8,L8,$AC$2:AC8,AC8)-1,1+SUMPRODUCT(($L$2:$L$950=TRUE)*($AD$2:$AD$950>AD8))+COUNTIFS($L$2:L8,L8,$AD$2:AD8,AD8)-1,1+SUMPRODUCT(($L$2:$L$950=TRUE)*($AE$2:$AE$950>AE8))+COUNTIFS($L$2:L8,L8,$AE$2:AE8,AE8)-1,1+SUMPRODUCT(($L$2:$L$950=TRUE)*($AF$2:$AF$950>AF8))+COUNTIFS($L$2:L8,L8,$AF$2:AF8,AF8)-1,1+SUMPRODUCT(($L$2:$L$950=TRUE)*($AG$2:$AG$950>AG8))+COUNTIFS($L$2:L8,L8,$AG$2:AG8,AG8)-1,1+SUMPRODUCT(($L$2:$L$950=TRUE)*($AH$2:$AH$950>AH8))+COUNTIFS($L$2:L8,L8,$AH$2:AH8,AH8)-1,1+SUMPRODUCT(($L$2:$L$950=TRUE)*($AI$2:$AI$950>AI8))+COUNTIFS($L$2:L8,L8,$AI$2:AI8,AI8)-1,1+SUMPRODUCT(($L$2:$L$950=TRUE)*($AJ$2:$AJ$950>AJ8))+COUNTIFS($L$2:L8,L8,$AJ$2:AJ8,AJ8)-1,1+SUMPRODUCT(($L$2:$L$950=TRUE)*($AK$2:$AK$950>AK8))+COUNTIFS($L$2:L8,L8,$AK$2:AK8,AK8)-1,1+SUMPRODUCT(($L$2:$L$950=TRUE)*($AL$2:$AL$950>AL8))+COUNTIFS($L$2:L8,L8,$AL$2:AL8,AL8)-1,1+SUMPRODUCT(($L$2:$L$950=TRUE)*($AM$2:$AM$950>AM8))+COUNTIFS($L$2:L8,L8,$AM$2:AM8,AM8)-1,1+SUMPRODUCT(($L$2:$L$950=TRUE)*($AN$2:$AN$950>AN8))+COUNTIFS($L$2:L8,L8,$AN$2:AN8,AN8)-1)),"") -> 581 | D8: Ehire Adrianza | E8: =IFERROR(INDEX('Draft Log'!$D$4:$D$806,MATCH(D8,'Draft Log'!$C$4:$C$806,0)),"") ->  | F8: =IFERROR(INDEX('ADP-Rank'!$C$2:$C$819,MATCH(D8,'ADP-Rank'!$A$2:$A$819,0)),"") -> SS | G8: =IFERROR(IF(F8=I8,"",IF(INDEX('Your Roto Draft'!$B$11:$B$634,MATCH(D8,'Your Roto Draft'!$C$11:$C$634,0))="",IF(I8<>"",I8,""),INDEX('Your Roto Draft'!$B$11:$B$634,MATCH(D8,'Your Roto Draft'!$C$11:$C$634,0)))),"") ->  | H8: SS | J8: =INDEX('ADP-Rank'!$AH$2:$AH$819,MATCH(D8,'ADP-Rank'!$A$2:$A$819,0)) -> TRUE | K8: FALSE | L8: =IF(J8=FALSE,FALSE,IF(AND('Your Roto Draft'!$P$6="Hide Drafted Players",K8=TRUE),FALSE,IF(OR('Your Roto Draft'!$P$5="Show All Positions",AND('Your Roto Draft'!$P$5="Only Show: C",H8="C"),AND('Your Roto Draft'!$P$5="Only Show: 1B",H8="1B"),AND('Your Roto Draft'!$P$5="Only Show: 2B",H8="2B"),AND('Your Roto Draft'!$P$5="Only Show: 3B",H8="3B"),AND('Your Roto Draft'!$P$5="Only Show: SS",H8="SS"),AND('Your Roto Draft'!$P$5="Only Show: OF",H8="OF"),AND('Your Roto Draft'!$P$5="Only Show: SP",H8="SP"),AND('Your Roto Draft'!$P$5="Only Show: RP",H8="RP"),AND('Your Roto Draft'!$P$5="Only Show: CI",OR(H8={"1B","3B"})),AND('Your Roto Draft'!$P$5="Only Show: MI",OR(H8={"2B","SS"})),AND('Your Roto Draft'!$P$5="Only Show: IF",OR(H8={"C","1B","2B","3B","SS"})),AND('Your Roto Draft'!$P$5="Only Show: DH",OR(H8={"C","1B","2B","3B","SS","OF","DH"})),AND('Your Roto Draft'!$P$5="Only Show: P",OR(H8={"SP","RP"})),AND('Your Roto Draft'!$P$5="Only Show: LF",ISERROR(SEARCH("LF",VLOOKUP($D8,'ADP-Rank'!$A$2:$D$948,4,FALSE)))=FALSE),AND('Your Roto Draft'!$P$5="Only Show: RF",ISERROR(SEARCH("RF",VLOOKUP($D8,'ADP-Rank'!$A$2:$D$948,4,FALSE)))=FALSE),AND('Your Roto Draft'!$P$5="Only Show: CF",ISERROR(SEARCH("CF",VLOOKUP($D8,'ADP-Rank'!$A$2:$D$948,4,FALSE)))=FALSE)),TRUE,FALSE))) -> TRUE | M8: =IFERROR(IF(VLOOKUP($D8,'ADP-Rank'!$A$2:$AV$948,38,FALSE)="",9999,VLOOKUP($D8,'ADP-Rank'!$A$2:$AV$948,38,FALSE)),9999) -> 586.7 | N8: =IF(D8="Non-Ranked Player",-1001,IFERROR(VLOOKUP($D8,'All-WERTH'!$C$2:$E$949,3,FALSE),-1000)) -> -11.63525315 | O8: =IF(D8="Non-Ranked Player",10000,IFERROR(IF(VLOOKUP(D8,'ADP-Rank'!$A$2:$AJ$948,36,FALSE)="",9999,VLOOKUP(D8,'ADP-Rank'!$A$2:$AJ$948,36,FALSE)),9999)) -> 624 | P8: =IF($D8="Unlisted Player",-1001,IFERROR(IF(VLOOKUP($D8,'All-WERTH'!$C$2:$AC$949,4,FALSE)="",-1000,VLOOKUP($D8,'All-WERTH'!$C$2:$AC$949,4,FALSE)),-1000)) -> -0.5552366822 | Q8: =IF($D8="Unlisted Player",-1001,IFERROR(IF(VLOOKUP($D8,'All-WERTH'!$C$2:$AC$949,5,FALSE)="",-1000,VLOOKUP($D8,'All-WERTH'!$C$2:$AC$949,5,FALSE)),-1000)) -> -2.677033071 | R8: =IF($D8="Unlisted Player",-1001,IFERROR(IF(VLOOKUP($D8,'All-WERTH'!$C$2:$AC$949,6,FALSE)="",-1000,VLOOKUP($D8,'All-WERTH'!$C$2:$AC$949,6,FALSE)),-1000)) -> -3.718236572 | S8: =IF($D8="Unlisted Player",-1001,IFERROR(IF(VLOOKUP($D8,'All-WERTH'!$C$2:$AC$949,7,FALSE)="",-1000,VLOOKUP($D8,'All-WERTH'!$C$2:$AC$949,7,FALSE)),-1000)) -> -3.695846705 | T8: =IF($D8="Unlisted Player",-1001,IFERROR(IF(VLOOKUP($D8,'All-WERTH'!$C$2:$AC$949,8,FALSE)="",-1000,VLOOKUP($D8,'All-WERTH'!$C$2:$AC$949,8,FALSE)),-1000)) -> -0.9889001202 | U8: =IF($D8="Unlisted Player",-1001,IFERROR(IF(VLOOKUP($D8,'All-WERTH'!$C$2:$AC$949,9,FALSE)="",-1000,VLOOKUP($D8,'All-WERTH'!$C$2:$AC$949,9,FALSE)),-1000)) -> -1000 | V8: =IF($D8="Unlisted Player",-1001,IFERROR(IF(VLOOKUP($D8,'All-WERTH'!$C$2:$AC$949,10,FALSE)="",-1000,VLOOKUP($D8,'All-WERTH'!$C$2:$AC$949,10,FALSE)),-1000)) -> -1000 | W8: =IF($D8="Unlisted Player",-1001,IFERROR(IF(VLOOKUP($D8,'All-WERTH'!$C$2:$AC$949,11,FALSE)="",-1000,VLOOKUP($D8,'All-WERTH'!$C$2:$AC$949,11,FALSE)),-1000)) -> -1000 | X8: =IF($D8="Unlisted Player",-1001,IFERROR(IF(VLOOKUP($D8,'All-WERTH'!$C$2:$AC$949,12,FALSE)="",-1000,VLOOKUP($D8,'All-WERTH'!$C$2:$AC$949,12,FALSE)),-1000)) -> -1000 | Y8: =IF($D8="Unlisted Player",-1001,IFERROR(IF(VLOOKUP($D8,'All-WERTH'!$C$2:$AC$949,13,FALSE)="",-1000,VLOOKUP($D8,'All-WERTH'!$C$2:$AC$949,13,FALSE)),-1000)) -> -1000 | Z8: =IF($D8="Unlisted Player",-1001,IFERROR(IF(VLOOKUP($D8,'All-WERTH'!$C$2:$AC$949,14,FALSE)="",-1000,VLOOKUP($D8,'All-WERTH'!$C$2:$AC$949,14,FALSE)),-1000)) -> -1000 | AA8: =IF($D8="Unlisted Player",-1001,IFERROR(IF(VLOOKUP($D8,'All-WERTH'!$C$2:$AC$949,15,FALSE)="",-1000,VLOOKUP($D8,'All-WERTH'!$C$2:$AC$949,15,FALSE)),-1000)) -> -1000 | AB8: =IF($D8="Unlisted Player",-1001,IFERROR(IF(VLOOKUP($D8,'All-WERTH'!$C$2:$AC$949,16,FALSE)="",-1000,VLOOKUP($D8,'All-WERTH'!$C$2:$AC$949,16,FALSE)),-1000)) -> -1000 | AC8: =IF($D8="Unlisted Player",-1001,IFERROR(IF(VLOOKUP($D8,'All-WERTH'!$C$2:$AC$949,17,FALSE)="",-1000,VLOOKUP($D8,'All-WERTH'!$C$2:$AC$949,17,FALSE)),-1000)) -> -1000 | AD8: =IF($D8="Unlisted Player",-1001,IFERROR(IF(VLOOKUP($D8,'All-WERTH'!$C$2:$AC$949,18,FALSE)="",-1000,VLOOKUP($D8,'All-WERTH'!$C$2:$AC$949,18,FALSE)),-1000)) -> -1000 | AE8: =IF($D8="Unlisted Player",-1001,IFERROR(IF(VLOOKUP($D8,'All-WERTH'!$C$2:$AC$949,19,FALSE)="",-1000,VLOOKUP($D8,'All-WERTH'!$C$2:$AC$949,19,FALSE)),-1000)) -> -1000 | AF8: =IF($D8="Unlisted Player",-1001,IFERROR(IF(VLOOKUP($D8,'All-WERTH'!$C$2:$AC$949,20,FALSE)="",-1000,VLOOKUP($D8,'All-WERTH'!$C$2:$AC$949,20,FALSE)),-1000)) -> -1000 | AG8: =IF($D8="Unlisted Player",-1001,IFERROR(IF(VLOOKUP($D8,'All-WERTH'!$C$2:$AC$949,21,FALSE)="",-1000,VLOOKUP($D8,'All-WERTH'!$C$2:$AC$949,21,FALSE)),-1000)) -> -1000 | AH8: =IF($D8="Unlisted Player",-1001,IFERROR(IF(VLOOKUP($D8,'All-WERTH'!$C$2:$AC$949,22,FALSE)="",-1000,VLOOKUP($D8,'All-WERTH'!$C$2:$AC$949,22,FALSE)),-1000)) -> -1000 | AI8: =IF($D8="Unlisted Player",-1001,IFERROR(IF(VLOOKUP($D8,'All-WERTH'!$C$2:$AC$949,23,FALSE)="",-1000,VLOOKUP($D8,'All-WERTH'!$C$2:$AC$949,23,FALSE)),-1000)) -> -1000 | AJ8: =IF($D8="Unlisted Player",-1001,IFERROR(IF(VLOOKUP($D8,'All-WERTH'!$C$2:$AC$949,24,FALSE)="",-1000,VLOOKUP($D8,'All-WERTH'!$C$2:$AC$949,24,FALSE)),-1000)) -> -1000 | AK8: =IF($D8="Unlisted Player",-1001,IFERROR(IF(VLOOKUP($D8,'All-WERTH'!$C$2:$AC$949,25,FALSE)="",-1000,VLOOKUP($D8,'All-WERTH'!$C$2:$AC$949,25,FALSE)),-1000)) -> -1000 | AL8: =IF($D8="Unlisted Player",-1001,IFERROR(IF(VLOOKUP($D8,'All-WERTH'!$C$2:$AC$949,26,FALSE)="",-1000,VLOOKUP($D8,'All-WERTH'!$C$2:$AC$949,26,FALSE)),-1000)) -> -1000 | AM8: =IF($D8="Unlisted Player",-1001,IFERROR(IF(VLOOKUP($D8,'All-WERTH'!$C$2:$AC$949,27,FALSE)="",-1000,VLOOKUP($D8,'All-WERTH'!$C$2:$AC$949,27,FALSE)),-1000)) -> -1000 | AN8: =IF(D8="Non-Ranked Player",-1001,IFERROR(VLOOKUP($D8,'All-WERTH'!$C$2:$AG$949,31,FALSE),-1000)) -> -8.423457554 | AO8: =IF(ISERROR(VLOOKUP($B7,Keepers!$C$2:$D$450,2,FALSE)),B7,"") -> Jacob deGrom | AP8: =IFERROR(INDEX($AO$1:$AO$949,SMALL(IF($AO$1:$AO$949<>"",ROW($AO$1:$AO$949)),ROW(AO8))),"") -> Francisco Lindor
A9: Francisco Lindor | B9: =IFERROR(INDEX($A$1:$A$949,SMALL(IF($A$1:$A$949<>"",ROW($A$1:$A$949)),ROW(A9))),"") -> Trevor Story | C9: =IFERROR(IF(L9=FALSE,"",CHOOSE(MATCH(RIGHT('Your Roto Draft'!$P$4,LEN('Your Roto Draft'!$P$4)-8),$M$1:$AN$1,0),1+SUMPRODUCT(($L$2:$L$950=TRUE)*($M$2:$M$950<M9))+COUNTIFS($L$2:L9,L9,$M$2:M9,M9)-1,1+SUMPRODUCT(($L$2:$L$950=TRUE)*($N$2:$N$950>N9))+COUNTIFS($L$2:L9,L9,$N$2:N9,N9)-1,1+SUMPRODUCT(($L$2:$L$950=TRUE)*($O$2:$O$950<O9))+COUNTIFS($L$2:L9,L9,$O$2:O9,O9)-1,1+SUMPRODUCT(($L$2:$L$950=TRUE)*($P$2:$P$950>P9))+COUNTIFS($L$2:L9,L9,$P$2:P9,P9)-1,1+SUMPRODUCT(($L$2:$L$950=TRUE)*($Q$2:$Q$950>Q9))+COUNTIFS($L$2:L9,L9,$Q$2:Q9,Q9)-1,1+SUMPRODUCT(($L$2:$L$950=TRUE)*($R$2:$R$950>R9))+COUNTIFS($L$2:L9,L9,$R$2:R9,R9)-1,1+SUMPRODUCT(($L$2:$L$950=TRUE)*($S$2:$S$950>S9))+COUNTIFS($L$2:L9,L9,$S$2:S9,S9)-1,1+SUMPRODUCT(($L$2:$L$950=TRUE)*($T$2:$T$950>T9))+COUNTIFS($L$2:L9,L9,$T$2:T9,T9)-1,1+SUMPRODUCT(($L$2:$L$950=TRUE)*($U$2:$U$950>U9))+COUNTIFS($L$2:L9,L9,$U$2:U9,U9)-1,1+SUMPRODUCT(($L$2:$L$950=TRUE)*($V$2:$V$950>V9))+COUNTIFS($L$2:L9,L9,$V$2:V9,V9)-1,1+SUMPRODUCT(($L$2:$L$950=TRUE)*($W$2:$W$950>W9))+COUNTIFS($L$2:L9,L9,$W$2:W9,W9)-1,1+SUMPRODUCT(($L$2:$L$950=TRUE)*($X$2:$X$950>X9))+COUNTIFS($L$2:L9,L9,$X$2:X9,X9)-1,1+SUMPRODUCT(($L$2:$L$950=TRUE)*($Y$2:$Y$950>Y9))+COUNTIFS($L$2:L9,L9,$Y$2:Y9,Y9)-1,1+SUMPRODUCT(($L$2:$L$950=TRUE)*($Z$2:$Z$950>Z9))+COUNTIFS($L$2:L9,L9,$Z$2:Z9,Z9)-1,1+SUMPRODUCT(($L$2:$L$950=TRUE)*($AA$2:$AA$950>AA9))+COUNTIFS($L$2:L9,L9,$AA$2:AA9,AA9)-1,1+SUMPRODUCT(($L$2:$L$950=TRUE)*($AB$2:$AB$950>AB9))+COUNTIFS($L$2:L9,L9,$AB$2:AB9,AB9)-1,1+SUMPRODUCT(($L$2:$L$950=TRUE)*($AC$2:$AC$950>AC9))+COUNTIFS($L$2:L9,L9,$AC$2:AC9,AC9)-1,1+SUMPRODUCT(($L$2:$L$950=TRUE)*($AD$2:$AD$950>AD9))+COUNTIFS($L$2:L9,L9,$AD$2:AD9,AD9)-1,1+SUMPRODUCT(($L$2:$L$950=TRUE)*($AE$2:$AE$950>AE9))+COUNTIFS($L$2:L9,L9,$AE$2:AE9,AE9)-1,1+SUMPRODUCT(($L$2:$L$950=TRUE)*($AF$2:$AF$950>AF9))+COUNTIFS($L$2:L9,L9,$AF$2:AF9,AF9)-1,1+SUMPRODUCT(($L$2:$L$950=TRUE)*($AG$2:$AG$950>AG9))+COUNTIFS($L$2:L9,L9,$AG$2:AG9,AG9)-1,1+SUMPRODUCT(($L$2:$L$950=TRUE)*($AH$2:$AH$950>AH9))+COUNTIFS($L$2:L9,L9,$AH$2:AH9,AH9)-1,1+SUMPRODUCT(($L$2:$L$950=TRUE)*($AI$2:$AI$950>AI9))+COUNTIFS($L$2:L9,L9,$AI$2:AI9,AI9)-1,1+SUMPRODUCT(($L$2:$L$950=TRUE)*($AJ$2:$AJ$950>AJ9))+COUNTIFS($L$2:L9,L9,$AJ$2:AJ9,AJ9)-1,1+SUMPRODUCT(($L$2:$L$950=TRUE)*($AK$2:$AK$950>AK9))+COUNTIFS($L$2:L9,L9,$AK$2:AK9,AK9)-1,1+SUMPRODUCT(($L$2:$L$950=TRUE)*($AL$2:$AL$950>AL9))+COUNTIFS($L$2:L9,L9,$AL$2:AL9,AL9)-1,1+SUMPRODUCT(($L$2:$L$950=TRUE)*($AM$2:$AM$950>AM9))+COUNTIFS($L$2:L9,L9,$AM$2:AM9,AM9)-1,1+SUMPRODUCT(($L$2:$L$950=TRUE)*($AN$2:$AN$950>AN9))+COUNTIFS($L$2:L9,L9,$AN$2:AN9,AN9)-1)),"") -> 630 | D9: Dario Agrazal | E9: =IFERROR(INDEX('Draft Log'!$D$4:$D$806,MATCH(D9,'Draft Log'!$C$4:$C$806,0)),"") ->  | F9: =IFERROR(INDEX('ADP-Rank'!$C$2:$C$819,MATCH(D9,'ADP-Rank'!$A$2:$A$819,0)),"") -> RP | G9: =IFERROR(IF(F9=I9,"",IF(INDEX('Your Roto Draft'!$B$11:$B$634,MATCH(D9,'Your Roto Draft'!$C$11:$C$634,0))="",IF(I9<>"",I9,""),INDEX('Your Roto Draft'!$B$11:$B$634,MATCH(D9,'Your Roto Draft'!$C$11:$C$634,0)))),"") ->  | H9: RP | J9: =INDEX('ADP-Rank'!$AH$2:$AH$819,MATCH(D9,'ADP-Rank'!$A$2:$A$819,0)) -> TRUE | K9: FALSE | L9: =IF(J9=FALSE,FALSE,IF(AND('Your Roto Draft'!$P$6="Hide Drafted Players",K9=TRUE),FALSE,IF(OR('Your Roto Draft'!$P$5="Show All Positions",AND('Your Roto Draft'!$P$5="Only Show: C",H9="C"),AND('Your Roto Draft'!$P$5="Only Show: 1B",H9="1B"),AND('Your Roto Draft'!$P$5="Only Show: 2B",H9="2B"),AND('Your Roto Draft'!$P$5="Only Show: 3B",H9="3B"),AND('Your Roto Draft'!$P$5="Only Show: SS",H9="SS"),AND('Your Roto Draft'!$P$5="Only Show: OF",H9="OF"),AND('Your Roto Draft'!$P$5="Only Show: SP",H9="SP"),AND('Your Roto Draft'!$P$5="Only Show: RP",H9="RP"),AND('Your Roto Draft'!$P$5="Only Show: CI",OR(H9={"1B","3B"})),AND('Your Roto Draft'!$P$5="Only Show: MI",OR(H9={"2B","SS"})),AND('Your Roto Draft'!$P$5="Only Show: IF",OR(H9={"C","1B","2B","3B","SS"})),AND('Your Roto Draft'!$P$5="Only Show: DH",OR(H9={"C","1B","2B","3B","SS","OF","DH"})),AND('Your Roto Draft'!$P$5="Only Show: P",OR(H9={"SP","RP"})),AND('Your Roto Draft'!$P$5="Only Show: LF",ISERROR(SEARCH("LF",VLOOKUP($D9,'ADP-Rank'!$A$2:$D$948,4,FALSE)))=FALSE),AND('Your Roto Draft'!$P$5="Only Show: RF",ISERROR(SEARCH("RF",VLOOKUP($D9,'ADP-Rank'!$A$2:$D$948,4,FALSE)))=FALSE),AND('Your Roto Draft'!$P$5="Only Show: CF",ISERROR(SEARCH("CF",VLOOKUP($D9,'ADP-Rank'!$A$2:$D$948,4,FALSE)))=FALSE)),TRUE,FALSE))) -> TRUE | M9: =IFERROR(IF(VLOOKUP($D9,'ADP-Rank'!$A$2:$AV$948,38,FALSE)="",9999,VLOOKUP($D9,'ADP-Rank'!$A$2:$AV$948,38,FALSE)),9999) -> 9999 | N9: =IF(D9="Non-Ranked Player",-1001,IFERROR(VLOOKUP($D9,'All-WERTH'!$C$2:$E$949,3,FALSE),-1000)) -> -1000 | O9: =IF(D9="Non-Ranked Player",10000,IFERROR(IF(VLOOKUP(D9,'ADP-Rank'!$A$2:$AJ$948,36,FALSE)="",9999,VLOOKUP(D9,'ADP-Rank'!$A$2:$AJ$948,36,FALSE)),9999)) -> 9999 | P9: =IF($D9="Unlisted Player",-1001,IFERROR(IF(VLOOKUP($D9,'All-WERTH'!$C$2:$AC$949,4,FALSE)="",-1000,VLOOKUP($D9,'All-WERTH'!$C$2:$AC$949,4,FALSE)),-1000)) -> -1000 | Q9: =IF($D9="Unlisted Player",-1001,IFERROR(IF(VLOOKUP($D9,'All-WERTH'!$C$2:$AC$949,5,FALSE)="",-1000,VLOOKUP($D9,'All-WERTH'!$C$2:$AC$949,5,FALSE)),-1000)) -> -1000 | R9: =IF($D9="Unlisted Player",-1001,IFERROR(IF(VLOOKUP($D9,'All-WERTH'!$C$2:$AC$949,6,FALSE)="",-1000,VLOOKUP($D9,'All-WERTH'!$C$2:$AC$949,6,FALSE)),-1000)) -> -1000 | S9: =IF($D9="Unlisted Player",-1001,IFERROR(IF(VLOOKUP($D9,'All-WERTH'!$C$2:$AC$949,7,FALSE)="",-1000,VLOOKUP($D9,'All-WERTH'!$C$2:$AC$949,7,FALSE)),-1000)) -> -1000 | T9: =IF($D9="Unlisted Player",-1001,IFERROR(IF(VLOOKUP($D9,'All-WERTH'!$C$2:$AC$949,8,FALSE)="",-1000,VLOOKUP($D9,'All-WERTH'!$C$2:$AC$949,8,FALSE)),-1000)) -> -1000 | U9: =IF($D9="Unlisted Player",-1001,IFERROR(IF(VLOOKUP($D9,'All-WERTH'!$C$2:$AC$949,9,FALSE)="",-1000,VLOOKUP($D9,'All-WERTH'!$C$2:$AC$949,9,FALSE)),-1000)) -> -1000 | V9: =IF($D9="Unlisted Player",-1001,IFERROR(IF(VLOOKUP($D9,'All-WERTH'!$C$2:$AC$949,10,FALSE)="",-1000,VLOOKUP($D9,'All-WERTH'!$C$2:$AC$949,10,FALSE)),-1000)) -> -1000 | W9: =IF($D9="Unlisted Player",-1001,IFERROR(IF(VLOOKUP($D9,'All-WERTH'!$C$2:$AC$949,11,FALSE)="",-1000,VLOOKUP($D9,'All-WERTH'!$C$2:$AC$949,11,FALSE)),-1000)) -> -1000 | X9: =IF($D9="Unlisted Player",-1001,IFERROR(IF(VLOOKUP($D9,'All-WERTH'!$C$2:$AC$949,12,FALSE)="",-1000,VLOOKUP($D9,'All-WERTH'!$C$2:$AC$949,12,FALSE)),-1000)) -> -1000 | Y9: =IF($D9="Unlisted Player",-1001,IFERROR(IF(VLOOKUP($D9,'All-WERTH'!$C$2:$AC$949,13,FALSE)="",-1000,VLOOKUP($D9,'All-WERTH'!$C$2:$AC$949,13,FALSE)),-1000)) -> -1000 | Z9: =IF($D9="Unlisted Player",-1001,IFERROR(IF(VLOOKUP($D9,'All-WERTH'!$C$2:$AC$949,14,FALSE)="",-1000,VLOOKUP($D9,'All-WERTH'!$C$2:$AC$949,14,FALSE)),-1000)) -> -1000 | AA9: =IF($D9="Unlisted Player",-1001,IFERROR(IF(VLOOKUP($D9,'All-WERTH'!$C$2:$AC$949,15,FALSE)="",-1000,VLOOKUP($D9,'All-WERTH'!$C$2:$AC$949,15,FALSE)),-1000)) -> -1000 | AB9: =IF($D9="Unlisted Player",-1001,IFERROR(IF(VLOOKUP($D9,'All-WERTH'!$C$2:$AC$949,16,FALSE)="",-1000,VLOOKUP($D9,'All-WERTH'!$C$2:$AC$949,16,FALSE)),-1000)) -> -1000 | AC9: =IF($D9="Unlisted Player",-1001,IFERROR(IF(VLOOKUP($D9,'All-WERTH'!$C$2:$AC$949,17,FALSE)="",-1000,VLOOKUP($D9,'All-WERTH'!$C$2:$AC$949,17,FALSE)),-1000)) -> -1000 | AD9: =IF($D9="Unlisted Player",-1001,IFERROR(IF(VLOOKUP($D9,'All-WERTH'!$C$2:$AC$949,18,FALSE)="",-1000,VLOOKUP($D9,'All-WERTH'!$C$2:$AC$949,18,FALSE)),-1000)) -> -1000 | AE9: =IF($D9="Unlisted Player",-1001,IFERROR(IF(VLOOKUP($D9,'All-WERTH'!$C$2:$AC$949,19,FALSE)="",-1000,VLOOKUP($D9,'All-WERTH'!$C$2:$AC$949,19,FALSE)),-1000)) -> -1000 | AF9: =IF($D9="Unlisted Player",-1001,IFERROR(IF(VLOOKUP($D9,'All-WERTH'!$C$2:$AC$949,20,FALSE)="",-1000,VLOOKUP($D9,'All-WERTH'!$C$2:$AC$949,20,FALSE)),-1000)) -> -1000 | AG9: =IF($D9="Unlisted Player",-1001,IFERROR(IF(VLOOKUP($D9,'All-WERTH'!$C$2:$AC$949,21,FALSE)="",-1000,VLOOKUP($D9,'All-WERTH'!$C$2:$AC$949,21,FALSE)),-1000)) -> -1000 | AH9: =IF($D9="Unlisted Player",-1001,IFERROR(IF(VLOOKUP($D9,'All-WERTH'!$C$2:$AC$949,22,FALSE)="",-1000,VLOOKUP($D9,'All-WERTH'!$C$2:$AC$949,22,FALSE)),-1000)) -> -1000 | AI9: =IF($D9="Unlisted Player",-1001,IFERROR(IF(VLOOKUP($D9,'All-WERTH'!$C$2:$AC$949,23,FALSE)="",-1000,VLOOKUP($D9,'All-WERTH'!$C$2:$AC$949,23,FALSE)),-1000)) -> -1000 | AJ9: =IF($D9="Unlisted Player",-1001,IFERROR(IF(VLOOKUP($D9,'All-WERTH'!$C$2:$AC$949,24,FALSE)="",-1000,VLOOKUP($D9,'All-WERTH'!$C$2:$AC$949,24,FALSE)),-1000)) -> -1000 | AK9: =IF($D9="Unlisted Player",-1001,IFERROR(IF(VLOOKUP($D9,'All-WERTH'!$C$2:$AC$949,25,FALSE)="",-1000,VLOOKUP($D9,'All-WERTH'!$C$2:$AC$949,25,FALSE)),-1000)) -> -1000 | AL9: =IF($D9="Unlisted Player",-1001,IFERROR(IF(VLOOKUP($D9,'All-WERTH'!$C$2:$AC$949,26,FALSE)="",-1000,VLOOKUP($D9,'All-WERTH'!$C$2:$AC$949,26,FALSE)),-1000)) -> -1000 | AM9: =IF($D9="Unlisted Player",-1001,IFERROR(IF(VLOOKUP($D9,'All-WERTH'!$C$2:$AC$949,27,FALSE)="",-1000,VLOOKUP($D9,'All-WERTH'!$C$2:$AC$949,27,FALSE)),-1000)) -> -1000 | AN9: =IF(D9="Non-Ranked Player",-1001,IFERROR(VLOOKUP($D9,'All-WERTH'!$C$2:$AG$949,31,FALSE),-1000)) -> -997.1373084 | AO9: =IF(ISERROR(VLOOKUP($B8,Keepers!$C$2:$D$450,2,FALSE)),B8,"") -> Francisco Lindor | AP9: =IFERROR(INDEX($AO$1:$AO$949,SMALL(IF($AO$1:$AO$949<>"",ROW($AO$1:$AO$949)),ROW(AO9))),"") -> Trevor Story
A10: Trevor Story | B10: =IFERROR(INDEX($A$1:$A$949,SMALL(IF($A$1:$A$949<>"",ROW($A$1:$A$949)),ROW(A10))),"") -> Nolan Arenado | C10: =IFERROR(IF(L10=FALSE,"",CHOOSE(MATCH(RIGHT('Your Roto Draft'!$P$4,LEN('Your Roto Draft'!$P$4)-8),$M$1:$AN$1,0),1+SUMPRODUCT(($L$2:$L$950=TRUE)*($M$2:$M$950<M10))+COUNTIFS($L$2:L10,L10,$M$2:M10,M10)-1,1+SUMPRODUCT(($L$2:$L$950=TRUE)*($N$2:$N$950>N10))+COUNTIFS($L$2:L10,L10,$N$2:N10,N10)-1,1+SUMPRODUCT(($L$2:$L$950=TRUE)*($O$2:$O$950<O10))+COUNTIFS($L$2:L10,L10,$O$2:O10,O10)-1,1+SUMPRODUCT(($L$2:$L$950=TRUE)*($P$2:$P$950>P10))+COUNTIFS($L$2:L10,L10,$P$2:P10,P10)-1,1+SUMPRODUCT(($L$2:$L$950=TRUE)*($Q$2:$Q$950>Q10))+COUNTIFS($L$2:L10,L10,$Q$2:Q10,Q10)-1,1+SUMPRODUCT(($L$2:$L$950=TRUE)*($R$2:$R$950>R10))+COUNTIFS($L$2:L10,L10,$R$2:R10,R10)-1,1+SUMPRODUCT(($L$2:$L$950=TRUE)*($S$2:$S$950>S10))+COUNTIFS($L$2:L10,L10,$S$2:S10,S10)-1,1+SUMPRODUCT(($L$2:$L$950=TRUE)*($T$2:$T$950>T10))+COUNTIFS($L$2:L10,L10,$T$2:T10,T10)-1,1+SUMPRODUCT(($L$2:$L$950=TRUE)*($U$2:$U$950>U10))+COUNTIFS($L$2:L10,L10,$U$2:U10,U10)-1,1+SUMPRODUCT(($L$2:$L$950=TRUE)*($V$2:$V$950>V10))+COUNTIFS($L$2:L10,L10,$V$2:V10,V10)-1,1+SUMPRODUCT(($L$2:$L$950=TRUE)*($W$2:$W$950>W10))+COUNTIFS($L$2:L10,L10,$W$2:W10,W10)-1,1+SUMPRODUCT(($L$2:$L$950=TRUE)*($X$2:$X$950>X10))+COUNTIFS($L$2:L10,L10,$X$2:X10,X10)-1,1+SUMPRODUCT(($L$2:$L$950=TRUE)*($Y$2:$Y$950>Y10))+COUNTIFS($L$2:L10,L10,$Y$2:Y10,Y10)-1,1+SUMPRODUCT(($L$2:$L$950=TRUE)*($Z$2:$Z$950>Z10))+COUNTIFS($L$2:L10,L10,$Z$2:Z10,Z10)-1,1+SUMPRODUCT(($L$2:$L$950=TRUE)*($AA$2:$AA$950>AA10))+COUNTIFS($L$2:L10,L10,$AA$2:AA10,AA10)-1,1+SUMPRODUCT(($L$2:$L$950=TRUE)*($AB$2:$AB$950>AB10))+COUNTIFS($L$2:L10,L10,$AB$2:AB10,AB10)-1,1+SUMPRODUCT(($L$2:$L$950=TRUE)*($AC$2:$AC$950>AC10))+COUNTIFS($L$2:L10,L10,$AC$2:AC10,AC10)-1,1+SUMPRODUCT(($L$2:$L$950=TRUE)*($AD$2:$AD$950>AD10))+COUNTIFS($L$2:L10,L10,$AD$2:AD10,AD10)-1,1+SUMPRODUCT(($L$2:$L$950=TRUE)*($AE$2:$AE$950>AE10))+COUNTIFS($L$2:L10,L10,$AE$2:AE10,AE10)-1,1+SUMPRODUCT(($L$2:$L$950=TRUE)*($AF$2:$AF$950>AF10))+COUNTIFS($L$2:L10,L10,$AF$2:AF10,AF10)-1,1+SUMPRODUCT(($L$2:$L$950=TRUE)*($AG$2:$AG$950>AG10))+COUNTIFS($L$2:L10,L10,$AG$2:AG10,AG10)-1,1+SUMPRODUCT(($L$2:$L$950=TRUE)*($AH$2:$AH$950>AH10))+COUNTIFS($L$2:L10,L10,$AH$2:AH10,AH10)-1,1+SUMPRODUCT(($L$2:$L$950=TRUE)*($AI$2:$AI$950>AI10))+COUNTIFS($L$2:L10,L10,$AI$2:AI10,AI10)-1,1+SUMPRODUCT(($L$2:$L$950=TRUE)*($AJ$2:$AJ$950>AJ10))+COUNTIFS($L$2:L10,L10,$AJ$2:AJ10,AJ10)-1,1+SUMPRODUCT(($L$2:$L$950=TRUE)*($AK$2:$AK$950>AK10))+COUNTIFS($L$2:L10,L10,$AK$2:AK10,AK10)-1,1+SUMPRODUCT(($L$2:$L$950=TRUE)*($AL$2:$AL$950>AL10))+COUNTIFS($L$2:L10,L10,$AL$2:AL10,AL10)-1,1+SUMPRODUCT(($L$2:$L$950=TRUE)*($AM$2:$AM$950>AM10))+COUNTIFS($L$2:L10,L10,$AM$2:AM10,AM10)-1,1+SUMPRODUCT(($L$2:$L$950=TRUE)*($AN$2:$AN$950>AN10))+COUNTIFS($L$2:L10,L10,$AN$2:AN10,AN10)-1)),"") -> 406 | D10: Jesus Aguilar | E10: =IFERROR(INDEX('Draft Log'!$D$4:$D$806,MATCH(D10,'Draft Log'!$C$4:$C$806,0)),"") ->  | F10: =IFERROR(INDEX('ADP-Rank'!$C$2:$C$819,MATCH(D10,'ADP-Rank'!$A$2:$A$819,0)),"") -> 1B | G10: =IFERROR(IF(F10=I10,"",IF(INDEX('Your Roto Draft'!$B$11:$B$634,MATCH(D10,'Your Roto Draft'!$C$11:$C$634,0))="",IF(I10<>"",I10,""),INDEX('Your Roto Draft'!$B$11:$B$634,MATCH(D10,'Your Roto Draft'!$C$11:$C$634,0)))),"") ->  | H10: 1B | J10: =INDEX('ADP-Rank'!$AH$2:$AH$819,MATCH(D10,'ADP-Rank'!$A$2:$A$819,0)) -> TRUE | K10: FALSE | L10: =IF(J10=FALSE,FALSE,IF(AND('Your Roto Draft'!$P$6="Hide Drafted Players",K10=TRUE),FALSE,IF(OR('Your Roto Draft'!$P$5="Show All Positions",AND('Your Roto Draft'!$P$5="Only Show: C",H10="C"),AND('Your Roto Draft'!$P$5="Only Show: 1B",H10="1B"),AND('Your Roto Draft'!$P$5="Only Show: 2B",H10="2B"),AND('Your Roto Draft'!$P$5="Only Show: 3B",H10="3B"),AND('Your Roto Draft'!$P$5="Only Show: SS",H10="SS"),AND('Your Roto Draft'!$P$5="Only Show: OF",H10="OF"),AND('Your Roto Draft'!$P$5="Only Show: SP",H10="SP"),AND('Your Roto Draft'!$P$5="Only Show: RP",H10="RP"),AND('Your Roto Draft'!$P$5="Only Show: CI",OR(H10={"1B","3B"})),AND('Your Roto Draft'!$P$5="Only Show: MI",OR(H10={"2B","SS"})),AND('Your Roto Draft'!$P$5="Only Show: IF",OR(H10={"C","1B","2B","3B","SS"})),AND('Your Roto Draft'!$P$5="Only Show: DH",OR(H10={"C","1B","2B","3B","SS","OF","DH"})),AND('Your Roto Draft'!$P$5="Only Show: P",OR(H10={"SP","RP"})),AND('Your Roto Draft'!$P$5="Only Show: LF",ISERROR(SEARCH("LF",VLOOKUP($D10,'ADP-Rank'!$A$2:$D$948,4,FALSE)))=FALSE),AND('Your Roto Draft'!$P$5="Only Show: RF",ISERROR(SEARCH("RF",VLOOKUP($D10,'ADP-Rank'!$A$2:$D$948,4,FALSE)))=FALSE),AND('Your Roto Draft'!$P$5="Only Show: CF",ISERROR(SEARCH("CF",VLOOKUP($D10,'ADP-Rank'!$A$2:$D$948,4,FALSE)))=FALSE)),TRUE,FALSE))) -> TRUE | M10: =IFERROR(IF(VLOOKUP($D10,'ADP-Rank'!$A$2:$AV$948,38,FALSE)="",9999,VLOOKUP($D10,'ADP-Rank'!$A$2:$AV$948,38,FALSE)),9999) -> 390.3 | N10: =IF(D10="Non-Ranked Player",-1001,IFERROR(VLOOKUP($D10,'All-WERTH'!$C$2:$E$949,3,FALSE),-1000)) -> -6.557295854 | O10: =IF(D10="Non-Ranked Player",10000,IFERROR(IF(VLOOKUP(D10,'ADP-Rank'!$A$2:$AJ$948,36,FALSE)="",9999,VLOOKUP(D10,'ADP-Rank'!$A$2:$AJ$948,36,FALSE)),9999)) -> 330 | P10: =IF($D10="Unlisted Player",-1001,IFERROR(IF(VLOOKUP($D10,'All-WERTH'!$C$2:$AC$949,4,FALSE)="",-1000,VLOOKUP($D10,'All-WERTH'!$C$2:$AC$949,4,FALSE)),-1000)) -> -1.20605513 | Q10: =IF($D10="Unlisted Player",-1001,IFERROR(IF(VLOOKUP($D10,'All-WERTH'!$C$2:$AC$949,5,FALSE)="",-1000,VLOOKUP($D10,'All-WERTH'!$C$2:$AC$949,5,FALSE)),-1000)) -> -0.9218543356 | R10: =IF($D10="Unlisted Player",-1001,IFERROR(IF(VLOOKUP($D10,'All-WERTH'!$C$2:$AC$949,6,FALSE)="",-1000,VLOOKUP($D10,'All-WERTH'!$C$2:$AC$949,6,FALSE)),-1000)) -> -1.948929788 | S10: =IF($D10="Unlisted Player",-1001,IFERROR(IF(VLOOKUP($D10,'All-WERTH'!$C$2:$AC$949,7,FALSE)="",-1000,VLOOKUP($D10,'All-WERTH'!$C$2:$AC$949,7,FALSE)),-1000)) -> -1.387377462 | T10: =IF($D10="Unlisted Player",-1001,IFERROR(IF(VLOOKUP($D10,'All-WERTH'!$C$2:$AC$949,8,FALSE)="",-1000,VLOOKUP($D10,'All-WERTH'!$C$2:$AC$949,8,FALSE)),-1000)) -> -1.093079139 | U10: =IF($D10="Unlisted Player",-1001,IFERROR(IF(VLOOKUP($D10,'All-WERTH'!$C$2:$AC$949,9,FALSE)="",-1000,VLOOKUP($D10,'All-WERTH'!$C$2:$AC$949,9,FALSE)),-1000)) -> -1000 | V10: =IF($D10="Unlisted Player",-1001,IFERROR(IF(VLOOKUP($D10,'All-WERTH'!$C$2:$AC$949,10,FALSE)="",-1000,VLOOKUP($D10,'All-WERTH'!$C$2:$AC$949,10,FALSE)),-1000)) -> -1000 | W10: =IF($D10="Unlisted Player",-1001,IFERROR(IF(VLOOKUP($D10,'All-WERTH'!$C$2:$AC$949,11,FALSE)="",-1000,VLOOKUP($D10,'All-WERTH'!$C$2:$AC$949,11,FALSE)),-1000)) -> -1000 | X10: =IF($D10="Unlisted Player",-1001,IFERROR(IF(VLOOKUP($D10,'All-WERTH'!$C$2:$AC$949,12,FALSE)="",-1000,VLOOKUP($D10,'All-WERTH'!$C$2:$AC$949,12,FALSE)),-1000)) -> -1000 | Y10: =IF($D10="Unlisted Player",-1001,IFERROR(IF(VLOOKUP($D10,'All-WERTH'!$C$2:$AC$949,13,FALSE)="",-1000,VLOOKUP($D10,'All-WERTH'!$C$2:$AC$949,13,FALSE)),-1000)) -> -1000 | Z10: =IF($D10="Unlisted Player",-1001,IFERROR(IF(VLOOKUP($D10,'All-WERTH'!$C$2:$AC$949,14,FALSE)="",-1000,VLOOKUP($D10,'All-WERTH'!$C$2:$AC$949,14,FALSE)),-1000)) -> -1000 | AA10: =IF($D10="Unlisted Player",-1001,IFERROR(IF(VLOOKUP($D10,'All-WERTH'!$C$2:$AC$949,15,FALSE)="",-1000,VLOOKUP($D10,'All-WERTH'!$C$2:$AC$949,15,FALSE)),-1000)) -> -1000 | AB10: =IF($D10="Unlisted Player",-1001,IFERROR(IF(VLOOKUP($D10,'All-WERTH'!$C$2:$AC$949,16,FALSE)="",-1000,VLOOKUP($D10,'All-WERTH'!$C$2:$AC$949,16,FALSE)),-1000)) -> -1000 | AC10: =IF($D10="Unlisted Player",-1001,IFERROR(IF(VLOOKUP($D10,'All-WERTH'!$C$2:$AC$949,17,FALSE)="",-1000,VLOOKUP($D10,'All-WERTH'!$C$2:$AC$949,17,FALSE)),-1000)) -> -1000 | AD10: =IF($D10="Unlisted Player",-1001,IFERROR(IF(VLOOKUP($D10,'All-WERTH'!$C$2:$AC$949,18,FALSE)="",-1000,VLOOKUP($D10,'All-WERTH'!$C$2:$AC$949,18,FALSE)),-1000)) -> -1000 | AE10: =IF($D10="Unlisted Player",-1001,IFERROR(IF(VLOOKUP($D10,'All-WERTH'!$C$2:$AC$949,19,FALSE)="",-1000,VLOOKUP($D10,'All-WERTH'!$C$2:$AC$949,19,FALSE)),-1000)) -> -1000 | AF10: =IF($D10="Unlisted Player",-1001,IFERROR(IF(VLOOKUP($D10,'All-WERTH'!$C$2:$AC$949,20,FALSE)="",-1000,VLOOKUP($D10,'All-WERTH'!$C$2:$AC$949,20,FALSE)),-1000)) -> -1000 | AG10: =IF($D10="Unlisted Player",-1001,IFERROR(IF(VLOOKUP($D10,'All-WERTH'!$C$2:$AC$949,21,FALSE)="",-1000,VLOOKUP($D10,'All-WERTH'!$C$2:$AC$949,21,FALSE)),-1000)) -> -1000 | AH10: =IF($D10="Unlisted Player",-1001,IFERROR(IF(VLOOKUP($D10,'All-WERTH'!$C$2:$AC$949,22,FALSE)="",-1000,VLOOKUP($D10,'All-WERTH'!$C$2:$AC$949,22,FALSE)),-1000)) -> -1000 | AI10: =IF($D10="Unlisted Player",-1001,IFERROR(IF(VLOOKUP($D10,'All-WERTH'!$C$2:$AC$949,23,FALSE)="",-1000,VLOOKUP($D10,'All-WERTH'!$C$2:$AC$949,23,FALSE)),-1000)) -> -1000 | AJ10: =IF($D10="Unlisted Player",-1001,IFERROR(IF(VLOOKUP($D10,'All-WERTH'!$C$2:$AC$949,24,FALSE)="",-1000,VLOOKUP($D10,'All-WERTH'!$C$2:$AC$949,24,FALSE)),-1000)) -> -1000 | AK10: =IF($D10="Unlisted Player",-1001,IFERROR(IF(VLOOKUP($D10,'All-WERTH'!$C$2:$AC$949,25,FALSE)="",-1000,VLOOKUP($D10,'All-WERTH'!$C$2:$AC$949,25,FALSE)),-1000)) -> -1000 | AL10: =IF($D10="Unlisted Player",-1001,IFERROR(IF(VLOOKUP($D10,'All-WERTH'!$C$2:$AC$949,26,FALSE)="",-1000,VLOOKUP($D10,'All-WERTH'!$C$2:$AC$949,26,FALSE)),-1000)) -> -1000 | AM10: =IF($D10="Unlisted Player",-1001,IFERROR(IF(VLOOKUP($D10,'All-WERTH'!$C$2:$AC$949,27,FALSE)="",-1000,VLOOKUP($D10,'All-WERTH'!$C$2:$AC$949,27,FALSE)),-1000)) -> -1000 | AN10: =IF(D10="Non-Ranked Player",-1001,IFERROR(VLOOKUP($D10,'All-WERTH'!$C$2:$AG$949,31,FALSE),-1000)) -> -4.096681767 | AO10: =IF(ISERROR(VLOOKUP($B9,Keepers!$C$2:$D$450,2,FALSE)),B9,"") -> Trevor Story | AP10: =IFERROR(INDEX($AO$1:$AO$949,SMALL(IF($AO$1:$AO$949<>"",ROW($AO$1:$AO$949)),ROW(AO10))),"") -> Nolan Arenado
A11: Nolan Arenado | B11: =IFERROR(INDEX($A$1:$A$949,SMALL(IF($A$1:$A$949<>"",ROW($A$1:$A$949)),ROW(A11))),"") -> Alex Bregman | C11: =IFERROR(IF(L11=FALSE,"",CHOOSE(MATCH(RIGHT('Your Roto Draft'!$P$4,LEN('Your Roto Draft'!$P$4)-8),$M$1:$AN$1,0),1+SUMPRODUCT(($L$2:$L$950=TRUE)*($M$2:$M$950<M11))+COUNTIFS($L$2:L11,L11,$M$2:M11,M11)-1,1+SUMPRODUCT(($L$2:$L$950=TRUE)*($N$2:$N$950>N11))+COUNTIFS($L$2:L11,L11,$N$2:N11,N11)-1,1+SUMPRODUCT(($L$2:$L$950=TRUE)*($O$2:$O$950<O11))+COUNTIFS($L$2:L11,L11,$O$2:O11,O11)-1,1+SUMPRODUCT(($L$2:$L$950=TRUE)*($P$2:$P$950>P11))+COUNTIFS($L$2:L11,L11,$P$2:P11,P11)-1,1+SUMPRODUCT(($L$2:$L$950=TRUE)*($Q$2:$Q$950>Q11))+COUNTIFS($L$2:L11,L11,$Q$2:Q11,Q11)-1,1+SUMPRODUCT(($L$2:$L$950=TRUE)*($R$2:$R$950>R11))+COUNTIFS($L$2:L11,L11,$R$2:R11,R11)-1,1+SUMPRODUCT(($L$2:$L$950=TRUE)*($S$2:$S$950>S11))+COUNTIFS($L$2:L11,L11,$S$2:S11,S11)-1,1+SUMPRODUCT(($L$2:$L$950=TRUE)*($T$2:$T$950>T11))+COUNTIFS($L$2:L11,L11,$T$2:T11,T11)-1,1+SUMPRODUCT(($L$2:$L$950=TRUE)*($U$2:$U$950>U11))+COUNTIFS($L$2:L11,L11,$U$2:U11,U11)-1,1+SUMPRODUCT(($L$2:$L$950=TRUE)*($V$2:$V$950>V11))+COUNTIFS($L$2:L11,L11,$V$2:V11,V11)-1,1+SUMPRODUCT(($L$2:$L$950=TRUE)*($W$2:$W$950>W11))+COUNTIFS($L$2:L11,L11,$W$2:W11,W11)-1,1+SUMPRODUCT(($L$2:$L$950=TRUE)*($X$2:$X$950>X11))+COUNTIFS($L$2:L11,L11,$X$2:X11,X11)-1,1+SUMPRODUCT(($L$2:$L$950=TRUE)*($Y$2:$Y$950>Y11))+COUNTIFS($L$2:L11,L11,$Y$2:Y11,Y11)-1,1+SUMPRODUCT(($L$2:$L$950=TRUE)*($Z$2:$Z$950>Z11))+COUNTIFS($L$2:L11,L11,$Z$2:Z11,Z11)-1,1+SUMPRODUCT(($L$2:$L$950=TRUE)*($AA$2:$AA$950>AA11))+COUNTIFS($L$2:L11,L11,$AA$2:AA11,AA11)-1,1+SUMPRODUCT(($L$2:$L$950=TRUE)*($AB$2:$AB$950>AB11))+COUNTIFS($L$2:L11,L11,$AB$2:AB11,AB11)-1,1+SUMPRODUCT(($L$2:$L$950=TRUE)*($AC$2:$AC$950>AC11))+COUNTIFS($L$2:L11,L11,$AC$2:AC11,AC11)-1,1+SUMPRODUCT(($L$2:$L$950=TRUE)*($AD$2:$AD$950>AD11))+COUNTIFS($L$2:L11,L11,$AD$2:AD11,AD11)-1,1+SUMPRODUCT(($L$2:$L$950=TRUE)*($AE$2:$AE$950>AE11))+COUNTIFS($L$2:L11,L11,$AE$2:AE11,AE11)-1,1+SUMPRODUCT(($L$2:$L$950=TRUE)*($AF$2:$AF$950>AF11))+COUNTIFS($L$2:L11,L11,$AF$2:AF11,AF11)-1,1+SUMPRODUCT(($L$2:$L$950=TRUE)*($AG$2:$AG$950>AG11))+COUNTIFS($L$2:L11,L11,$AG$2:AG11,AG11)-1,1+SUMPRODUCT(($L$2:$L$950=TRUE)*($AH$2:$AH$950>AH11))+COUNTIFS($L$2:L11,L11,$AH$2:AH11,AH11)-1,1+SUMPRODUCT(($L$2:$L$950=TRUE)*($AI$2:$AI$950>AI11))+COUNTIFS($L$2:L11,L11,$AI$2:AI11,AI11)-1,1+SUMPRODUCT(($L$2:$L$950=TRUE)*($AJ$2:$AJ$950>AJ11))+COUNTIFS($L$2:L11,L11,$AJ$2:AJ11,AJ11)-1,1+SUMPRODUCT(($L$2:$L$950=TRUE)*($AK$2:$AK$950>AK11))+COUNTIFS($L$2:L11,L11,$AK$2:AK11,AK11)-1,1+SUMPRODUCT(($L$2:$L$950=TRUE)*($AL$2:$AL$950>AL11))+COUNTIFS($L$2:L11,L11,$AL$2:AL11,AL11)-1,1+SUMPRODUCT(($L$2:$L$950=TRUE)*($AM$2:$AM$950>AM11))+COUNTIFS($L$2:L11,L11,$AM$2:AM11,AM11)-1,1+SUMPRODUCT(($L$2:$L$950=TRUE)*($AN$2:$AN$950>AN11))+COUNTIFS($L$2:L11,L11,$AN$2:AN11,AN11)-1)),"") -> 355 | D11: Nick Ahmed | E11: =IFERROR(INDEX('Draft Log'!$D$4:$D$806,MATCH(D11,'Draft Log'!$C$4:$C$806,0)),"") ->  | F11: =IFERROR(INDEX('ADP-Rank'!$C$2:$C$819,MATCH(D11,'ADP-Rank'!$A$2:$A$819,0)),"") -> SS | G11: =IFERROR(IF(F11=I11,"",IF(INDEX('Your Roto Draft'!$B$11:$B$634,MATCH(D11,'Your Roto Draft'!$C$11:$C$634,0))="",IF(I11<>"",I11,""),INDEX('Your Roto Draft'!$B$11:$B$634,MATCH(D11,'Your Roto Draft'!$C$11:$C$634,0)))),"") ->  | H11: SS | J11: =INDEX('ADP-Rank'!$AH$2:$AH$819,MATCH(D11,'ADP-Rank'!$A$2:$A$819,0)) -> TRUE | K11: FALSE | L11: =IF(J11=FALSE,FALSE,IF(AND('Your Roto Draft'!$P$6="Hide Drafted Players",K11=TRUE),FALSE,IF(OR('Your Roto Draft'!$P$5="Show All Positions",AND('Your Roto Draft'!$P$5="Only Show: C",H11="C"),AND('Your Roto Draft'!$P$5="Only Show: 1B",H11="1B"),AND('Your Roto Draft'!$P$5="Only Show: 2B",H11="2B"),AND('Your Roto Draft'!$P$5="Only Show: 3B",H11="3B"),AND('Your Roto Draft'!$P$5="Only Show: SS",H11="SS"),AND('Your Roto Draft'!$P$5="Only Show: OF",H11="OF"),AND('Your Roto Draft'!$P$5="Only Show: SP",H11="SP"),AND('Your Roto Draft'!$P$5="Only Show: RP",H11="RP"),AND('Your Roto Draft'!$P$5="Only Show: CI",OR(H11={"1B","3B"})),AND('Your Roto Draft'!$P$5="Only Show: MI",OR(H11={"2B","SS"})),AND('Your Roto Draft'!$P$5="Only Show: IF",OR(H11={"C","1B","2B","3B","SS"})),AND('Your Roto Draft'!$P$5="Only Show: DH",OR(H11={"C","1B","2B","3B","SS","OF","DH"})),AND('Your Roto Draft'!$P$5="Only Show: P",OR(H11={"SP","RP"})),AND('Your Roto Draft'!$P$5="Only Show: LF",ISERROR(SEARCH("LF",VLOOKUP($D11,'ADP-Rank'!$A$2:$D$948,4,FALSE)))=FALSE),AND('Your Roto Draft'!$P$5="Only Show: RF",ISERROR(SEARCH("RF",VLOOKUP($D11,'ADP-Rank'!$A$2:$D$948,4,FALSE)))=FALSE),AND('Your Roto Draft'!$P$5="Only Show: CF",ISERROR(SEARCH("CF",VLOOKUP($D11,'ADP-Rank'!$A$2:$D$948,4,FALSE)))=FALSE)),TRUE,FALSE))) -> TRUE | M11: =IFERROR(IF(VLOOKUP($D11,'ADP-Rank'!$A$2:$AV$948,38,FALSE)="",9999,VLOOKUP($D11,'ADP-Rank'!$A$2:$AV$948,38,FALSE)),9999) -> 349 | N11: =IF(D11="Non-Ranked Player",-1001,IFERROR(VLOOKUP($D11,'All-WERTH'!$C$2:$E$949,3,FALSE),-1000)) -> -3.895414796 | O11: =IF(D11="Non-Ranked Player",10000,IFERROR(IF(VLOOKUP(D11,'ADP-Rank'!$A$2:$AJ$948,36,FALSE)="",9999,VLOOKUP(D11,'ADP-Rank'!$A$2:$AJ$948,36,FALSE)),9999)) -> 320 | P11: =IF($D11="Unlisted Player",-1001,IFERROR(IF(VLOOKUP($D11,'All-WERTH'!$C$2:$AC$949,4,FALSE)="",-1000,VLOOKUP($D11,'All-WERTH'!$C$2:$AC$949,4,FALSE)),-1000)) -> -1.259729563 | Q11: =IF($D11="Unlisted Player",-1001,IFERROR(IF(VLOOKUP($D11,'All-WERTH'!$C$2:$AC$949,5,FALSE)="",-1000,VLOOKUP($D11,'All-WERTH'!$C$2:$AC$949,5,FALSE)),-1000)) -> -1.080473552 | R11: =IF($D11="Unlisted Player",-1001,IFERROR(IF(VLOOKUP($D11,'All-WERTH'!$C$2:$AC$949,6,FALSE)="",-1000,VLOOKUP($D11,'All-WERTH'!$C$2:$AC$949,6,FALSE)),-1000)) -> -0.787396754 | S11: =IF($D11="Unlisted Player",-1001,IFERROR(IF(VLOOKUP($D11,'All-WERTH'!$C$2:$AC$949,7,FALSE)="",-1000,VLOOKUP($D11,'All-WERTH'!$C$2:$AC$949,7,FALSE)),-1000)) -> -0.5647009173 | T11: =IF($D11="Unlisted Player",-1001,IFERROR(IF(VLOOKUP($D11,'All-WERTH'!$C$2:$AC$949,8,FALSE)="",-1000,VLOOKUP($D11,'All-WERTH'!$C$2:$AC$949,8,FALSE)),-1000)) -> -0.2031140098 | U11: =IF($D11="Unlisted Player",-1001,IFERROR(IF(VLOOKUP($D11,'All-WERTH'!$C$2:$AC$949,9,FALSE)="",-1000,VLOOKUP($D11,'All-WERTH'!$C$2:$AC$949,9,FALSE)),-1000)) -> -1000 | V11: =IF($D11="Unlisted Player",-1001,IFERROR(IF(VLOOKUP($D11,'All-WERTH'!$C$2:$AC$949,10,FALSE)="",-1000,VLOOKUP($D11,'All-WERTH'!$C$2:$AC$949,10,FALSE)),-1000)) -> -1000 | W11: =IF($D11="Unlisted Player",-1001,IFERROR(IF(VLOOKUP($D11,'All-WERTH'!$C$2:$AC$949,11,FALSE)="",-1000,VLOOKUP($D11,'All-WERTH'!$C$2:$AC$949,11,FALSE)),-1000)) -> -1000 | X11: =IF($D11="Unlisted Player",-1001,IFERROR(IF(VLOOKUP($D11,'All-WERTH'!$C$2:$AC$949,12,FALSE)="",-1000,VLOOKUP($D11,'All-WERTH'!$C$2:$AC$949,12,FALSE)),-1000)) -> -1000 | Y11: =IF($D11="Unlisted Player",-1001,IFERROR(IF(VLOOKUP($D11,'All-WERTH'!$C$2:$AC$949,13,FALSE)="",-1000,VLOOKUP($D11,'All-WERTH'!$C$2:$AC$949,13,FALSE)),-1000)) -> -1000 | Z11: =IF($D11="Unlisted Player",-1001,IFERROR(IF(VLOOKUP($D11,'All-WERTH'!$C$2:$AC$949,14,FALSE)="",-1000,VLOOKUP($D11,'All-WERTH'!$C$2:$AC$949,14,FALSE)),-1000)) -> -1000 | AA11: =IF($D11="Unlisted Player",-1001,IFERROR(IF(VLOOKUP($D11,'All-WERTH'!$C$2:$AC$949,15,FALSE)="",-1000,VLOOKUP($D11,'All-WERTH'!$C$2:$AC$949,15,FALSE)),-1000)) -> -1000 | AB11: =IF($D11="Unlisted Player",-1001,IFERROR(IF(VLOOKUP($D11,'All-WERTH'!$C$2:$AC$949,16,FALSE)="",-1000,VLOOKUP($D11,'All-WERTH'!$C$2:$AC$949,16,FALSE)),-1000)) -> -1000 | AC11: =IF($D11="Unlisted Player",-1001,IFERROR(IF(VLOOKUP($D11,'All-WERTH'!$C$2:$AC$949,17,FALSE)="",-1000,VLOOKUP($D11,'All-WERTH'!$C$2:$AC$949,17,FALSE)),-1000)) -> -1000 | AD11: =IF($D11="Unlisted Player",-1001,IFERROR(IF(VLOOKUP($D11,'All-WERTH'!$C$2:$AC$949,18,FALSE)="",-1000,VLOOKUP($D11,'All-WERTH'!$C$2:$AC$949,18,FALSE)),-1000)) -> -1000 | AE11: =IF($D11="Unlisted Player",-1001,IFERROR(IF(VLOOKUP($D11,'All-WERTH'!$C$2:$AC$949,19,FALSE)="",-1000,VLOOKUP($D11,'All-WERTH'!$C$2:$AC$949,19,FALSE)),-1000)) -> -1000 | AF11: =IF($D11="Unlisted Player",-1001,IFERROR(IF(VLOOKUP($D11,'All-WERTH'!$C$2:$AC$949,20,FALSE)="",-1000,VLOOKUP($D11,'All-WERTH'!$C$2:$AC$949,20,FALSE)),-1000)) -> -1000 | AG11: =IF($D11="Unlisted Player",-1001,IFERROR(IF(VLOOKUP($D11,'All-WERTH'!$C$2:$AC$949,21,FALSE)="",-1000,VLOOKUP($D11,'All-WERTH'!$C$2:$AC$949,21,FALSE)),-1000)) -> -1000 | AH11: =IF($D11="Unlisted Player",-1001,IFERROR(IF(VLOOKUP($D11,'All-WERTH'!$C$2:$AC$949,22,FALSE)="",-1000,VLOOKUP($D11,'All-WERTH'!$C$2:$AC$949,22,FALSE)),-1000)) -> -1000 | AI11: =IF($D11="Unlisted Player",-1001,IFERROR(IF(VLOOKUP($D11,'All-WERTH'!$C$2:$AC$949,23,FALSE)="",-1000,VLOOKUP($D11,'All-WERTH'!$C$2:$AC$949,23,FALSE)),-1000)) -> -1000 | AJ11: =IF($D11="Unlisted Player",-1001,IFERROR(IF(VLOOKUP($D11,'All-WERTH'!$C$2:$AC$949,24,FALSE)="",-1000,VLOOKUP($D11,'All-WERTH'!$C$2:$AC$949,24,FALSE)),-1000)) -> -1000 | AK11: =IF($D11="Unlisted Player",-1001,IFERROR(IF(VLOOKUP($D11,'All-WERTH'!$C$2:$AC$949,25,FALSE)="",-1000,VLOOKUP($D11,'All-WERTH'!$C$2:$AC$949,25,FALSE)),-1000)) -> -1000 | AL11: =IF($D11="Unlisted Player",-1001,IFERROR(IF(VLOOKUP($D11,'All-WERTH'!$C$2:$AC$949,26,FALSE)="",-1000,VLOOKUP($D11,'All-WERTH'!$C$2:$AC$949,26,FALSE)),-1000)) -> -1000 | AM11: =IF($D11="Unlisted Player",-1001,IFERROR(IF(VLOOKUP($D11,'All-WERTH'!$C$2:$AC$949,27,FALSE)="",-1000,VLOOKUP($D11,'All-WERTH'!$C$2:$AC$949,27,FALSE)),-1000)) -> -1000 | AN11: =IF(D11="Non-Ranked Player",-1001,IFERROR(VLOOKUP($D11,'All-WERTH'!$C$2:$AG$949,31,FALSE),-1000)) -> -0.6836191999 | AO11: =IF(ISERROR(VLOOKUP($B10,Keepers!$C$2:$D$450,2,FALSE)),B10,"") -> Nolan Arenado | AP11: =IFERROR(INDEX($AO$1:$AO$949,SMALL(IF($AO$1:$AO$949<>"",ROW($AO$1:$AO$949)),ROW(AO11))),"") -> Alex Bregman
A12: Alex Bregman | B12: =IFERROR(INDEX($A$1:$A$949,SMALL(IF($A$1:$A$949<>"",ROW($A$1:$A$949)),ROW(A12))),"") -> Juan Soto | C12: =IFERROR(IF(L12=FALSE,"",CHOOSE(MATCH(RIGHT('Your Roto Draft'!$P$4,LEN('Your Roto Draft'!$P$4)-8),$M$1:$AN$1,0),1+SUMPRODUCT(($L$2:$L$950=TRUE)*($M$2:$M$950<M12))+COUNTIFS($L$2:L12,L12,$M$2:M12,M12)-1,1+SUMPRODUCT(($L$2:$L$950=TRUE)*($N$2:$N$950>N12))+COUNTIFS($L$2:L12,L12,$N$2:N12,N12)-1,1+SUMPRODUCT(($L$2:$L$950=TRUE)*($O$2:$O$950<O12))+COUNTIFS($L$2:L12,L12,$O$2:O12,O12)-1,1+SUMPRODUCT(($L$2:$L$950=TRUE)*($P$2:$P$950>P12))+COUNTIFS($L$2:L12,L12,$P$2:P12,P12)-1,1+SUMPRODUCT(($L$2:$L$950=TRUE)*($Q$2:$Q$950>Q12))+COUNTIFS($L$2:L12,L12,$Q$2:Q12,Q12)-1,1+SUMPRODUCT(($L$2:$L$950=TRUE)*($R$2:$R$950>R12))+COUNTIFS($L$2:L12,L12,$R$2:R12,R12)-1,1+SUMPRODUCT(($L$2:$L$950=TRUE)*($S$2:$S$950>S12))+COUNTIFS($L$2:L12,L12,$S$2:S12,S12)-1,1+SUMPRODUCT(($L$2:$L$950=TRUE)*($T$2:$T$950>T12))+COUNTIFS($L$2:L12,L12,$T$2:T12,T12)-1,1+SUMPRODUCT(($L$2:$L$950=TRUE)*($U$2:$U$950>U12))+COUNTIFS($L$2:L12,L12,$U$2:U12,U12)-1,1+SUMPRODUCT(($L$2:$L$950=TRUE)*($V$2:$V$950>V12))+COUNTIFS($L$2:L12,L12,$V$2:V12,V12)-1,1+SUMPRODUCT(($L$2:$L$950=TRUE)*($W$2:$W$950>W12))+COUNTIFS($L$2:L12,L12,$W$2:W12,W12)-1,1+SUMPRODUCT(($L$2:$L$950=TRUE)*($X$2:$X$950>X12))+COUNTIFS($L$2:L12,L12,$X$2:X12,X12)-1,1+SUMPRODUCT(($L$2:$L$950=TRUE)*($Y$2:$Y$950>Y12))+COUNTIFS($L$2:L12,L12,$Y$2:Y12,Y12)-1,1+SUMPRODUCT(($L$2:$L$950=TRUE)*($Z$2:$Z$950>Z12))+COUNTIFS($L$2:L12,L12,$Z$2:Z12,Z12)-1,1+SUMPRODUCT(($L$2:$L$950=TRUE)*($AA$2:$AA$950>AA12))+COUNTIFS($L$2:L12,L12,$AA$2:AA12,AA12)-1,1+SUMPRODUCT(($L$2:$L$950=TRUE)*($AB$2:$AB$950>AB12))+COUNTIFS($L$2:L12,L12,$AB$2:AB12,AB12)-1,1+SUMPRODUCT(($L$2:$L$950=TRUE)*($AC$2:$AC$950>AC12))+COUNTIFS($L$2:L12,L12,$AC$2:AC12,AC12)-1,1+SUMPRODUCT(($L$2:$L$950=TRUE)*($AD$2:$AD$950>AD12))+COUNTIFS($L$2:L12,L12,$AD$2:AD12,AD12)-1,1+SUMPRODUCT(($L$2:$L$950=TRUE)*($AE$2:$AE$950>AE12))+COUNTIFS($L$2:L12,L12,$AE$2:AE12,AE12)-1,1+SUMPRODUCT(($L$2:$L$950=TRUE)*($AF$2:$AF$950>AF12))+COUNTIFS($L$2:L12,L12,$AF$2:AF12,AF12)-1,1+SUMPRODUCT(($L$2:$L$950=TRUE)*($AG$2:$AG$950>AG12))+COUNTIFS($L$2:L12,L12,$AG$2:AG12,AG12)-1,1+SUMPRODUCT(($L$2:$L$950=TRUE)*($AH$2:$AH$950>AH12))+COUNTIFS($L$2:L12,L12,$AH$2:AH12,AH12)-1,1+SUMPRODUCT(($L$2:$L$950=TRUE)*($AI$2:$AI$950>AI12))+COUNTIFS($L$2:L12,L12,$AI$2:AI12,AI12)-1,1+SUMPRODUCT(($L$2:$L$950=TRUE)*($AJ$2:$AJ$950>AJ12))+COUNTIFS($L$2:L12,L12,$AJ$2:AJ12,AJ12)-1,1+SUMPRODUCT(($L$2:$L$950=TRUE)*($AK$2:$AK$950>AK12))+COUNTIFS($L$2:L12,L12,$AK$2:AK12,AK12)-1,1+SUMPRODUCT(($L$2:$L$950=TRUE)*($AL$2:$AL$950>AL12))+COUNTIFS($L$2:L12,L12,$AL$2:AL12,AL12)-1,1+SUMPRODUCT(($L$2:$L$950=TRUE)*($AM$2:$AM$950>AM12))+COUNTIFS($L$2:L12,L12,$AM$2:AM12,AM12)-1,1+SUMPRODUCT(($L$2:$L$950=TRUE)*($AN$2:$AN$950>AN12))+COUNTIFS($L$2:L12,L12,$AN$2:AN12,AN12)-1)),"") -> 276 | D12: Shogo Akiyama | E12: =IFERROR(INDEX('Draft Log'!$D$4:$D$806,MATCH(D12,'Draft Log'!$C$4:$C$806,0)),"") ->  | F12: =IFERROR(INDEX('ADP-Rank'!$C$2:$C$819,MATCH(D12,'ADP-Rank'!$A$2:$A$819,0)),"") -> OF | G12: =IFERROR(IF(F12=I12,"",IF(INDEX('Your Roto Draft'!$B$11:$B$634,MATCH(D12,'Your Roto Draft'!$C$11:$C$634,0))="",IF(I12<>"",I12,""),INDEX('Your Roto Draft'!$B$11:$B$634,MATCH(D12,'Your Roto Draft'!$C$11:$C$634,0)))),"") ->  | H12: OF | J12: =INDEX('ADP-Rank'!$AH$2:$AH$819,MATCH(D12,'ADP-Rank'!$A$2:$A$819,0)) -> TRUE | K12: FALSE | L12: =IF(J12=FALSE,FALSE,IF(AND('Your Roto Draft'!$P$6="Hide Drafted Players",K12=TRUE),FALSE,IF(OR('Your Roto Draft'!$P$5="Show All Positions",AND('Your Roto Draft'!$P$5="Only Show: C",H12="C"),AND('Your Roto Draft'!$P$5="Only Show: 1B",H12="1B"),AND('Your Roto Draft'!$P$5="Only Show: 2B",H12="2B"),AND('Your Roto Draft'!$P$5="Only Show: 3B",H12="3B"),AND('Your Roto Draft'!$P$5="Only Show: SS",H12="SS"),AND('Your Roto Draft'!$P$5="Only Show: OF",H12="OF"),AND('Your Roto Draft'!$P$5="Only Show: SP",H12="SP"),AND('Your Roto Draft'!$P$5="Only Show: RP",H12="RP"),AND('Your Roto Draft'!$P$5="Only Show: CI",OR(H12={"1B","3B"})),AND('Your Roto Draft'!$P$5="Only Show: MI",OR(H12={"2B","SS"})),AND('Your Roto Draft'!$P$5="Only Show: IF",OR(H12={"C","1B","2B","3B","SS"})),AND('Your Roto Draft'!$P$5="Only Show: DH",OR(H12={"C","1B","2B","3B","SS","OF","DH"})),AND('Your Roto Draft'!$P$5="Only Show: P",OR(H12={"SP","RP"})),AND('Your Roto Draft'!$P$5="Only Show: LF",ISERROR(SEARCH("LF",VLOOKUP($D12,'ADP-Rank'!$A$2:$D$948,4,FALSE)))=FALSE),AND('Your Roto Draft'!$P$5="Only Show: RF",ISERROR(SEARCH("RF",VLOOKUP($D12,'ADP-Rank'!$A$2:$D$948,4,FALSE)))=FALSE),AND('Your Roto Draft'!$P$5="Only Show: CF",ISERROR(SEARCH("CF",VLOOKUP($D12,'ADP-Rank'!$A$2:$D$948,4,FALSE)))=FALSE)),TRUE,FALSE))) -> TRUE | M12: =IFERROR(IF(VLOOKUP($D12,'ADP-Rank'!$A$2:$AV$948,38,FALSE)="",9999,VLOOKUP($D12,'ADP-Rank'!$A$2:$AV$948,38,FALSE)),9999) -> 284.2 | N12: =IF(D12="Non-Ranked Player",-1001,IFERROR(VLOOKUP($D12,'All-WERTH'!$C$2:$E$949,3,FALSE),-1000)) -> -1.678292316 | O12: =IF(D12="Non-Ranked Player",10000,IFERROR(IF(VLOOKUP(D12,'ADP-Rank'!$A$2:$AJ$948,36,FALSE)="",9999,VLOOKUP(D12,'ADP-Rank'!$A$2:$AJ$948,36,FALSE)),9999)) -> 233 | P12: =IF($D12="Unlisted Player",-1001,IFERROR(IF(VLOOKUP($D12,'All-WERTH'!$C$2:$AC$949,4,FALSE)="",-1000,VLOOKUP($D12,'All-WERTH'!$C$2:$AC$949,4,FALSE)),-1000)) -> 0.2194351317 | Q12: =IF($D12="Unlisted Player",-1001,IFERROR(IF(VLOOKUP($D12,'All-WERTH'!$C$2:$AC$949,5,FALSE)="",-1000,VLOOKUP($D12,'All-WERTH'!$C$2:$AC$949,5,FALSE)),-1000)) -> -1.017046777 | R12: =IF($D12="Unlisted Player",-1001,IFERROR(IF(VLOOKUP($D12,'All-WERTH'!$C$2:$AC$949,6,FALSE)="",-1000,VLOOKUP($D12,'All-WERTH'!$C$2:$AC$949,6,FALSE)),-1000)) -> -0.04045493373 | S12: =IF($D12="Unlisted Player",-1001,IFERROR(IF(VLOOKUP($D12,'All-WERTH'!$C$2:$AC$949,7,FALSE)="",-1000,VLOOKUP($D12,'All-WERTH'!$C$2:$AC$949,7,FALSE)),-1000)) -> -1.051335737 | T12: =IF($D12="Unlisted Player",-1001,IFERROR(IF(VLOOKUP($D12,'All-WERTH'!$C$2:$AC$949,8,FALSE)="",-1000,VLOOKUP($D12,'All-WERTH'!$C$2:$AC$949,8,FALSE)),-1000)) -> 0.2111099998 | U12: =IF($D12="Unlisted Player",-1001,IFERROR(IF(VLOOKUP($D12,'All-WERTH'!$C$2:$AC$949,9,FALSE)="",-1000,VLOOKUP($D12,'All-WERTH'!$C$2:$AC$949,9,FALSE)),-1000)) -> -1000 | V12: =IF($D12="Unlisted Player",-1001,IFERROR(IF(VLOOKUP($D12,'All-WERTH'!$C$2:$AC$949,10,FALSE)="",-1000,VLOOKUP($D12,'All-WERTH'!$C$2:$AC$949,10,FALSE)),-1000)) -> -1000 | W12: =IF($D12="Unlisted Player",-1001,IFERROR(IF(VLOOKUP($D12,'All-WERTH'!$C$2:$AC$949,11,FALSE)="",-1000,VLOOKUP($D12,'All-WERTH'!$C$2:$AC$949,11,FALSE)),-1000)) -> -1000 | X12: =IF($D12="Unlisted Player",-1001,IFERROR(IF(VLOOKUP($D12,'All-WERTH'!$C$2:$AC$949,12,FALSE)="",-1000,VLOOKUP($D12,'All-WERTH'!$C$2:$AC$949,12,FALSE)),-1000)) -> -1000 | Y12: =IF($D12="Unlisted Player",-1001,IFERROR(IF(VLOOKUP($D12,'All-WERTH'!$C$2:$AC$949,13,FALSE)="",-1000,VLOOKUP($D12,'All-WERTH'!$C$2:$AC$949,13,FALSE)),-1000)) -> -1000 | Z12: =IF($D12="Unlisted Player",-1001,IFERROR(IF(VLOOKUP($D12,'All-WERTH'!$C$2:$AC$949,14,FALSE)="",-1000,VLOOKUP($D12,'All-WERTH'!$C$2:$AC$949,14,FALSE)),-1000)) -> -1000 | AA12: =IF($D12="Unlisted Player",-1001,IFERROR(IF(VLOOKUP($D12,'All-WERTH'!$C$2:$AC$949,15,FALSE)="",-1000,VLOOKUP($D12,'All-WERTH'!$C$2:$AC$949,15,FALSE)),-1000)) -> -1000 | AB12: =IF($D12="Unlisted Player",-1001,IFERROR(IF(VLOOKUP($D12,'All-WERTH'!$C$2:$AC$949,16,FALSE)="",-1000,VLOOKUP($D12,'All-WERTH'!$C$2:$AC$949,16,FALSE)),-1000)) -> -1000 | AC12: =IF($D12="Unlisted Player",-1001,IFERROR(IF(VLOOKUP($D12,'All-WERTH'!$C$2:$AC$949,17,FALSE)="",-1000,VLOOKUP($D12,'All-WERTH'!$C$2:$AC$949,17,FALSE)),-1000)) -> -1000 | AD12: =IF($D12="Unlisted Player",-1001,IFERROR(IF(VLOOKUP($D12,'All-WERTH'!$C$2:$AC$949,18,FALSE)="",-1000,VLOOKUP($D12,'All-WERTH'!$C$2:$AC$949,18,FALSE)),-1000)) -> -1000 | AE12: =IF($D12="Unlisted Player",-1001,IFERROR(IF(VLOOKUP($D12,'All-WERTH'!$C$2:$AC$949,19,FALSE)="",-1000,VLOOKUP($D12,'All-WERTH'!$C$2:$AC$949,19,FALSE)),-1000)) -> -1000 | AF12: =IF($D12="Unlisted Player",-1001,IFERROR(IF(VLOOKUP($D12,'All-WERTH'!$C$2:$AC$949,20,FALSE)="",-1000,VLOOKUP($D12,'All-WERTH'!$C$2:$AC$949,20,FALSE)),-1000)) -> -1000 | AG12: =IF($D12="Unlisted Player",-1001,IFERROR(IF(VLOOKUP($D12,'All-WERTH'!$C$2:$AC$949,21,FALSE)="",-1000,VLOOKUP($D12,'All-WERTH'!$C$2:$AC$949,21,FALSE)),-1000)) -> -1000 | AH12: =IF($D12="Unlisted Player",-1001,IFERROR(IF(VLOOKUP($D12,'All-WERTH'!$C$2:$AC$949,22,FALSE)="",-1000,VLOOKUP($D12,'All-WERTH'!$C$2:$AC$949,22,FALSE)),-1000)) -> -1000 | AI12: =IF($D12="Unlisted Player",-1001,IFERROR(IF(VLOOKUP($D12,'All-WERTH'!$C$2:$AC$949,23,FALSE)="",-1000,VLOOKUP($D12,'All-WERTH'!$C$2:$AC$949,23,FALSE)),-1000)) -> -1000 | AJ12: =IF($D12="Unlisted Player",-1001,IFERROR(IF(VLOOKUP($D12,'All-WERTH'!$C$2:$AC$949,24,FALSE)="",-1000,VLOOKUP($D12,'All-WERTH'!$C$2:$AC$949,24,FALSE)),-1000)) -> -1000 | AK12: =IF($D12="Unlisted Player",-1001,IFERROR(IF(VLOOKUP($D12,'All-WERTH'!$C$2:$AC$949,25,FALSE)="",-1000,VLOOKUP($D12,'All-WERTH'!$C$2:$AC$949,25,FALSE)),-1000)) -> -1000 | AL12: =IF($D12="Unlisted Player",-1001,IFERROR(IF(VLOOKUP($D12,'All-WERTH'!$C$2:$AC$949,26,FALSE)="",-1000,VLOOKUP($D12,'All-WERTH'!$C$2:$AC$949,26,FALSE)),-1000)) -> -1000 | AM12: =IF($D12="Unlisted Player",-1001,IFERROR(IF(VLOOKUP($D12,'All-WERTH'!$C$2:$AC$949,27,FALSE)="",-1000,VLOOKUP($D12,'All-WERTH'!$C$2:$AC$949,27,FALSE)),-1000)) -> -1000 | AN12: =IF(D12="Non-Ranked Player",-1001,IFERROR(VLOOKUP($D12,'All-WERTH'!$C$2:$AG$949,31,FALSE),-1000)) -> 2.0740292 | AO12: =IF(ISERROR(VLOOKUP($B11,Keepers!$C$2:$D$450,2,FALSE)),B11,"") -> Alex Bregman | AP12: =IFERROR(INDEX($AO$1:$AO$949,SMALL(IF($AO$1:$AO$949<>"",ROW($AO$1:$AO$949)),ROW(AO12))),"") -> Juan Soto
A13: Juan Soto | B13: =IFERROR(INDEX($A$1:$A$949,SMALL(IF($A$1:$A$949<>"",ROW($A$1:$A$949)),ROW(A13))),"") -> Trea Turner | C13: =IFERROR(IF(L13=FALSE,"",CHOOSE(MATCH(RIGHT('Your Roto Draft'!$P$4,LEN('Your Roto Draft'!$P$4)-8),$M$1:$AN$1,0),1+SUMPRODUCT(($L$2:$L$950=TRUE)*($M$2:$M$950<M13))+COUNTIFS($L$2:L13,L13,$M$2:M13,M13)-1,1+SUMPRODUCT(($L$2:$L$950=TRUE)*($N$2:$N$950>N13))+COUNTIFS($L$2:L13,L13,$N$2:N13,N13)-1,1+SUMPRODUCT(($L$2:$L$950=TRUE)*($O$2:$O$950<O13))+COUNTIFS($L$2:L13,L13,$O$2:O13,O13)-1,1+SUMPRODUCT(($L$2:$L$950=TRUE)*($P$2:$P$950>P13))+COUNTIFS($L$2:L13,L13,$P$2:P13,P13)-1,1+SUMPRODUCT(($L$2:$L$950=TRUE)*($Q$2:$Q$950>Q13))+COUNTIFS($L$2:L13,L13,$Q$2:Q13,Q13)-1,1+SUMPRODUCT(($L$2:$L$950=TRUE)*($R$2:$R$950>R13))+COUNTIFS($L$2:L13,L13,$R$2:R13,R13)-1,1+SUMPRODUCT(($L$2:$L$950=TRUE)*($S$2:$S$950>S13))+COUNTIFS($L$2:L13,L13,$S$2:S13,S13)-1,1+SUMPRODUCT(($L$2:$L$950=TRUE)*($T$2:$T$950>T13))+COUNTIFS($L$2:L13,L13,$T$2:T13,T13)-1,1+SUMPRODUCT(($L$2:$L$950=TRUE)*($U$2:$U$950>U13))+COUNTIFS($L$2:L13,L13,$U$2:U13,U13)-1,1+SUMPRODUCT(($L$2:$L$950=TRUE)*($V$2:$V$950>V13))+COUNTIFS($L$2:L13,L13,$V$2:V13,V13)-1,1+SUMPRODUCT(($L$2:$L$950=TRUE)*($W$2:$W$950>W13))+COUNTIFS($L$2:L13,L13,$W$2:W13,W13)-1,1+SUMPRODUCT(($L$2:$L$950=TRUE)*($X$2:$X$950>X13))+COUNTIFS($L$2:L13,L13,$X$2:X13,X13)-1,1+SUMPRODUCT(($L$2:$L$950=TRUE)*($Y$2:$Y$950>Y13))+COUNTIFS($L$2:L13,L13,$Y$2:Y13,Y13)-1,1+SUMPRODUCT(($L$2:$L$950=TRUE)*($Z$2:$Z$950>Z13))+COUNTIFS($L$2:L13,L13,$Z$2:Z13,Z13)-1,1+SUMPRODUCT(($L$2:$L$950=TRUE)*($AA$2:$AA$950>AA13))+COUNTIFS($L$2:L13,L13,$AA$2:AA13,AA13)-1,1+SUMPRODUCT(($L$2:$L$950=TRUE)*($AB$2:$AB$950>AB13))+COUNTIFS($L$2:L13,L13,$AB$2:AB13,AB13)-1,1+SUMPRODUCT(($L$2:$L$950=TRUE)*($AC$2:$AC$950>AC13))+COUNTIFS($L$2:L13,L13,$AC$2:AC13,AC13)-1,1+SUMPRODUCT(($L$2:$L$950=TRUE)*($AD$2:$AD$950>AD13))+COUNTIFS($L$2:L13,L13,$AD$2:AD13,AD13)-1,1+SUMPRODUCT(($L$2:$L$950=TRUE)*($AE$2:$AE$950>AE13))+COUNTIFS($L$2:L13,L13,$AE$2:AE13,AE13)-1,1+SUMPRODUCT(($L$2:$L$950=TRUE)*($AF$2:$AF$950>AF13))+COUNTIFS($L$2:L13,L13,$AF$2:AF13,AF13)-1,1+SUMPRODUCT(($L$2:$L$950=TRUE)*($AG$2:$AG$950>AG13))+COUNTIFS($L$2:L13,L13,$AG$2:AG13,AG13)-1,1+SUMPRODUCT(($L$2:$L$950=TRUE)*($AH$2:$AH$950>AH13))+COUNTIFS($L$2:L13,L13,$AH$2:AH13,AH13)-1,1+SUMPRODUCT(($L$2:$L$950=TRUE)*($AI$2:$AI$950>AI13))+COUNTIFS($L$2:L13,L13,$AI$2:AI13,AI13)-1,1+SUMPRODUCT(($L$2:$L$950=TRUE)*($AJ$2:$AJ$950>AJ13))+COUNTIFS($L$2:L13,L13,$AJ$2:AJ13,AJ13)-1,1+SUMPRODUCT(($L$2:$L$950=TRUE)*($AK$2:$AK$950>AK13))+COUNTIFS($L$2:L13,L13,$AK$2:AK13,AK13)-1,1+SUMPRODUCT(($L$2:$L$950=TRUE)*($AL$2:$AL$950>AL13))+COUNTIFS($L$2:L13,L13,$AL$2:AL13,AL13)-1,1+SUMPRODUCT(($L$2:$L$950=TRUE)*($AM$2:$AM$950>AM13))+COUNTIFS($L$2:L13,L13,$AM$2:AM13,AM13)-1,1+SUMPRODUCT(($L$2:$L$950=TRUE)*($AN$2:$AN$950>AN13))+COUNTIFS($L$2:L13,L13,$AN$2:AN13,AN13)-1)),"") -> 392 | D13: Hanser Alberto | E13: =IFERROR(INDEX('Draft Log'!$D$4:$D$806,MATCH(D13,'Draft Log'!$C$4:$C$806,0)),"") ->  | F13: =IFERROR(INDEX('ADP-Rank'!$C$2:$C$819,MATCH(D13,'ADP-Rank'!$A$2:$A$819,0)),"") -> 2B | G13: =IFERROR(IF(F13=I13,"",IF(INDEX('Your Roto Draft'!$B$11:$B$634,MATCH(D13,'Your Roto Draft'!$C$11:$C$634,0))="",IF(I13<>"",I13,""),INDEX('Your Roto Draft'!$B$11:$B$634,MATCH(D13,'Your Roto Draft'!$C$11:$C$634,0)))),"") ->  | H13: 2B | J13: =INDEX('ADP-Rank'!$AH$2:$AH$819,MATCH(D13,'ADP-Rank'!$A$2:$A$819,0)) -> TRUE | K13: FALSE | L13: =IF(J13=FALSE,FALSE,IF(AND('Your Roto Draft'!$P$6="Hide Drafted Players",K13=TRUE),FALSE,IF(OR('Your Roto Draft'!$P$5="Show All Positions",AND('Your Roto Draft'!$P$5="Only Show: C",H13="C"),AND('Your Roto Draft'!$P$5="Only Show: 1B",H13="1B"),AND('Your Roto Draft'!$P$5="Only Show: 2B",H13="2B"),AND('Your Roto Draft'!$P$5="Only Show: 3B",H13="3B"),AND('Your Roto Draft'!$P$5="Only Show: SS",H13="SS"),AND('Your Roto Draft'!$P$5="Only Show: OF",H13="OF"),AND('Your Roto Draft'!$P$5="Only Show: SP",H13="SP"),AND('Your Roto Draft'!$P$5="Only Show: RP",H13="RP"),AND('Your Roto Draft'!$P$5="Only Show: CI",OR(H13={"1B","3B"})),AND('Your Roto Draft'!$P$5="Only Show: MI",OR(H13={"2B","SS"})),AND('Your Roto Draft'!$P$5="Only Show: IF",OR(H13={"C","1B","2B","3B","SS"})),AND('Your Roto Draft'!$P$5="Only Show: DH",OR(H13={"C","1B","2B","3B","SS","OF","DH"})),AND('Your Roto Draft'!$P$5="Only Show: P",OR(H13={"SP","RP"})),AND('Your Roto Draft'!$P$5="Only Show: LF",ISERROR(SEARCH("LF",VLOOKUP($D13,'ADP-Rank'!$A$2:$D$948,4,FALSE)))=FALSE),AND('Your Roto Draft'!$P$5="Only Show: RF",ISERROR(SEARCH("RF",VLOOKUP($D13,'ADP-Rank'!$A$2:$D$948,4,FALSE)))=FALSE),AND('Your Roto Draft'!$P$5="Only Show: CF",ISERROR(SEARCH("CF",VLOOKUP($D13,'ADP-Rank'!$A$2:$D$948,4,FALSE)))=FALSE)),TRUE,FALSE))) -> TRUE | M13: =IFERROR(IF(VLOOKUP($D13,'ADP-Rank'!$A$2:$AV$948,38,FALSE)="",9999,VLOOKUP($D13,'ADP-Rank'!$A$2:$AV$948,38,FALSE)),9999) -> 378.3 | N13: =IF(D13="Non-Ranked Player",-1001,IFERROR(VLOOKUP($D13,'All-WERTH'!$C$2:$E$949,3,FALSE),-1000)) -> -4.076374066 | O13: =IF(D13="Non-Ranked Player",10000,IFERROR(IF(VLOOKUP(D13,'ADP-Rank'!$A$2:$AJ$948,36,FALSE)="",9999,VLOOKUP(D13,'ADP-Rank'!$A$2:$AJ$948,36,FALSE)),9999)) -> 333 | P13: =IF($D13="Unlisted Player",-1001,IFERROR(IF(VLOOKUP($D13,'All-WERTH'!$C$2:$AC$949,4,FALSE)="",-1000,VLOOKUP($D13,'All-WERTH'!$C$2:$AC$949,4,FALSE)),-1000)) -> 0.9378108271 | Q13: =IF($D13="Unlisted Player",-1001,IFERROR(IF(VLOOKUP($D13,'All-WERTH'!$C$2:$AC$949,5,FALSE)="",-1000,VLOOKUP($D13,'All-WERTH'!$C$2:$AC$949,5,FALSE)),-1000)) -> -1.669462838 | R13: =IF($D13="Unlisted Player",-1001,IFERROR(IF(VLOOKUP($D13,'All-WERTH'!$C$2:$AC$949,6,FALSE)="",-1000,VLOOKUP($D13,'All-WERTH'!$C$2:$AC$949,6,FALSE)),-1000)) -> -1.349660111 | S13: =IF($D13="Unlisted Player",-1001,IFERROR(IF(VLOOKUP($D13,'All-WERTH'!$C$2:$AC$949,7,FALSE)="",-1000,VLOOKUP($D13,'All-WERTH'!$C$2:$AC$949,7,FALSE)),-1000)) -> -1.401673803 | T13: =IF($D13="Unlisted Player",-1001,IFERROR(IF(VLOOKUP($D13,'All-WERTH'!$C$2:$AC$949,8,FALSE)="",-1000,VLOOKUP($D13,'All-WERTH'!$C$2:$AC$949,8,FALSE)),-1000)) -> -0.5933881422 | U13: =IF($D13="Unlisted Player",-1001,IFERROR(IF(VLOOKUP($D13,'All-WERTH'!$C$2:$AC$949,9,FALSE)="",-1000,VLOOKUP($D13,'All-WERTH'!$C$2:$AC$949,9,FALSE)),-1000)) -> -1000 | V13: =IF($D13="Unlisted Player",-1001,IFERROR(IF(VLOOKUP($D13,'All-WERTH'!$C$2:$AC$949,10,FALSE)="",-1000,VLOOKUP($D13,'All-WERTH'!$C$2:$AC$949,10,FALSE)),-1000)) -> -1000 | W13: =IF($D13="Unlisted Player",-1001,IFERROR(IF(VLOOKUP($D13,'All-WERTH'!$C$2:$AC$949,11,FALSE)="",-1000,VLOOKUP($D13,'All-WERTH'!$C$2:$AC$949,11,FALSE)),-1000)) -> -1000 | X13: =IF($D13="Unlisted Player",-1001,IFERROR(IF(VLOOKUP($D13,'All-WERTH'!$C$2:$AC$949,12,FALSE)="",-1000,VLOOKUP($D13,'All-WERTH'!$C$2:$AC$949,12,FALSE)),-1000)) -> -1000 | Y13: =IF($D13="Unlisted Player",-1001,IFERROR(IF(VLOOKUP($D13,'All-WERTH'!$C$2:$AC$949,13,FALSE)="",-1000,VLOOKUP($D13,'All-WERTH'!$C$2:$AC$949,13,FALSE)),-1000)) -> -1000 | Z13: =IF($D13="Unlisted Player",-1001,IFERROR(IF(VLOOKUP($D13,'All-WERTH'!$C$2:$AC$949,14,FALSE)="",-1000,VLOOKUP($D13,'All-WERTH'!$C$2:$AC$949,14,FALSE)),-1000)) -> -1000 | AA13: =IF($D13="Unlisted Player",-1001,IFERROR(IF(VLOOKUP($D13,'All-WERTH'!$C$2:$AC$949,15,FALSE)="",-1000,VLOOKUP($D13,'All-WERTH'!$C$2:$AC$949,15,FALSE)),-1000)) -> -1000 | AB13: =IF($D13="Unlisted Player",-1001,IFERROR(IF(VLOOKUP($D13,'All-WERTH'!$C$2:$AC$949,16,FALSE)="",-1000,VLOOKUP($D13,'All-WERTH'!$C$2:$AC$949,16,FALSE)),-1000)) -> -1000 | AC13: =IF($D13="Unlisted Player",-1001,IFERROR(IF(VLOOKUP($D13,'All-WERTH'!$C$2:$AC$949,17,FALSE)="",-1000,VLOOKUP($D13,'All-WERTH'!$C$2:$AC$949,17,FALSE)),-1000)) -> -1000 | AD13: =IF($D13="Unlisted Player",-1001,IFERROR(IF(VLOOKUP($D13,'All-WERTH'!$C$2:$AC$949,18,FALSE)="",-1000,VLOOKUP($D13,'All-WERTH'!$C$2:$AC$949,18,FALSE)),-1000)) -> -1000 | AE13: =IF($D13="Unlisted Player",-1001,IFERROR(IF(VLOOKUP($D13,'All-WERTH'!$C$2:$AC$949,19,FALSE)="",-1000,VLOOKUP($D13,'All-WERTH'!$C$2:$AC$949,19,FALSE)),-1000)) -> -1000 | AF13: =IF($D13="Unlisted Player",-1001,IFERROR(IF(VLOOKUP($D13,'All-WERTH'!$C$2:$AC$949,20,FALSE)="",-1000,VLOOKUP($D13,'All-WERTH'!$C$2:$AC$949,20,FALSE)),-1000)) -> -1000 | AG13: =IF($D13="Unlisted Player",-1001,IFERROR(IF(VLOOKUP($D13,'All-WERTH'!$C$2:$AC$949,21,FALSE)="",-1000,VLOOKUP($D13,'All-WERTH'!$C$2:$AC$949,21,FALSE)),-1000)) -> -1000 | AH13: =IF($D13="Unlisted Player",-1001,IFERROR(IF(VLOOKUP($D13,'All-WERTH'!$C$2:$AC$949,22,FALSE)="",-1000,VLOOKUP($D13,'All-WERTH'!$C$2:$AC$949,22,FALSE)),-1000)) -> -1000 | AI13: =IF($D13="Unlisted Player",-1001,IFERROR(IF(VLOOKUP($D13,'All-WERTH'!$C$2:$AC$949,23,FALSE)="",-1000,VLOOKUP($D13,'All-WERTH'!$C$2:$AC$949,23,FALSE)),-1000)) -> -1000 | AJ13: =IF($D13="Unlisted Player",-1001,IFERROR(IF(VLOOKUP($D13,'All-WERTH'!$C$2:$AC$949,24,FALSE)="",-1000,VLOOKUP($D13,'All-WERTH'!$C$2:$AC$949,24,FALSE)),-1000)) -> -1000 | AK13: =IF($D13="Unlisted Player",-1001,IFERROR(IF(VLOOKUP($D13,'All-WERTH'!$C$2:$AC$949,25,FALSE)="",-1000,VLOOKUP($D13,'All-WERTH'!$C$2:$AC$949,25,FALSE)),-1000)) -> -1000 | AL13: =IF($D13="Unlisted Player",-1001,IFERROR(IF(VLOOKUP($D13,'All-WERTH'!$C$2:$AC$949,26,FALSE)="",-1000,VLOOKUP($D13,'All-WERTH'!$C$2:$AC$949,26,FALSE)),-1000)) -> -1000 | AM13: =IF($D13="Unlisted Player",-1001,IFERROR(IF(VLOOKUP($D13,'All-WERTH'!$C$2:$AC$949,27,FALSE)="",-1000,VLOOKUP($D13,'All-WERTH'!$C$2:$AC$949,27,FALSE)),-1000)) -> -1000 | AN13: =IF(D13="Non-Ranked Player",-1001,IFERROR(VLOOKUP($D13,'All-WERTH'!$C$2:$AG$949,31,FALSE),-1000)) -> -0.6421325613 | AO13: =IF(ISERROR(VLOOKUP($B12,Keepers!$C$2:$D$450,2,FALSE)),B12,"") -> Juan Soto | AP13: =IFERROR(INDEX($AO$1:$AO$949,SMALL(IF($AO$1:$AO$949<>"",ROW($AO$1:$AO$949)),ROW(AO13))),"") -> Trea Turner
A14: Trea Turner | B14: =IFERROR(INDEX($A$1:$A$949,SMALL(IF($A$1:$A$949<>"",ROW($A$1:$A$949)),ROW(A14))),"") -> Max Scherzer | C14: =IFERROR(IF(L14=FALSE,"",CHOOSE(MATCH(RIGHT('Your Roto Draft'!$P$4,LEN('Your Roto Draft'!$P$4)-8),$M$1:$AN$1,0),1+SUMPRODUCT(($L$2:$L$950=TRUE)*($M$2:$M$950<M14))+COUNTIFS($L$2:L14,L14,$M$2:M14,M14)-1,1+SUMPRODUCT(($L$2:$L$950=TRUE)*($N$2:$N$950>N14))+COUNTIFS($L$2:L14,L14,$N$2:N14,N14)-1,1+SUMPRODUCT(($L$2:$L$950=TRUE)*($O$2:$O$950<O14))+COUNTIFS($L$2:L14,L14,$O$2:O14,O14)-1,1+SUMPRODUCT(($L$2:$L$950=TRUE)*($P$2:$P$950>P14))+COUNTIFS($L$2:L14,L14,$P$2:P14,P14)-1,1+SUMPRODUCT(($L$2:$L$950=TRUE)*($Q$2:$Q$950>Q14))+COUNTIFS($L$2:L14,L14,$Q$2:Q14,Q14)-1,1+SUMPRODUCT(($L$2:$L$950=TRUE)*($R$2:$R$950>R14))+COUNTIFS($L$2:L14,L14,$R$2:R14,R14)-1,1+SUMPRODUCT(($L$2:$L$950=TRUE)*($S$2:$S$950>S14))+COUNTIFS($L$2:L14,L14,$S$2:S14,S14)-1,1+SUMPRODUCT(($L$2:$L$950=TRUE)*($T$2:$T$950>T14))+COUNTIFS($L$2:L14,L14,$T$2:T14,T14)-1,1+SUMPRODUCT(($L$2:$L$950=TRUE)*($U$2:$U$950>U14))+COUNTIFS($L$2:L14,L14,$U$2:U14,U14)-1,1+SUMPRODUCT(($L$2:$L$950=TRUE)*($V$2:$V$950>V14))+COUNTIFS($L$2:L14,L14,$V$2:V14,V14)-1,1+SUMPRODUCT(($L$2:$L$950=TRUE)*($W$2:$W$950>W14))+COUNTIFS($L$2:L14,L14,$W$2:W14,W14)-1,1+SUMPRODUCT(($L$2:$L$950=TRUE)*($X$2:$X$950>X14))+COUNTIFS($L$2:L14,L14,$X$2:X14,X14)-1,1+SUMPRODUCT(($L$2:$L$950=TRUE)*($Y$2:$Y$950>Y14))+COUNTIFS($L$2:L14,L14,$Y$2:Y14,Y14)-1,1+SUMPRODUCT(($L$2:$L$950=TRUE)*($Z$2:$Z$950>Z14))+COUNTIFS($L$2:L14,L14,$Z$2:Z14,Z14)-1,1+SUMPRODUCT(($L$2:$L$950=TRUE)*($AA$2:$AA$950>AA14))+COUNTIFS($L$2:L14,L14,$AA$2:AA14,AA14)-1,1+SUMPRODUCT(($L$2:$L$950=TRUE)*($AB$2:$AB$950>AB14))+COUNTIFS($L$2:L14,L14,$AB$2:AB14,AB14)-1,1+SUMPRODUCT(($L$2:$L$950=TRUE)*($AC$2:$AC$950>AC14))+COUNTIFS($L$2:L14,L14,$AC$2:AC14,AC14)-1,1+SUMPRODUCT(($L$2:$L$950=TRUE)*($AD$2:$AD$950>AD14))+COUNTIFS($L$2:L14,L14,$AD$2:AD14,AD14)-1,1+SUMPRODUCT(($L$2:$L$950=TRUE)*($AE$2:$AE$950>AE14))+COUNTIFS($L$2:L14,L14,$AE$2:AE14,AE14)-1,1+SUMPRODUCT(($L$2:$L$950=TRUE)*($AF$2:$AF$950>AF14))+COUNTIFS($L$2:L14,L14,$AF$2:AF14,AF14)-1,1+SUMPRODUCT(($L$2:$L$950=TRUE)*($AG$2:$AG$950>AG14))+COUNTIFS($L$2:L14,L14,$AG$2:AG14,AG14)-1,1+SUMPRODUCT(($L$2:$L$950=TRUE)*($AH$2:$AH$950>AH14))+COUNTIFS($L$2:L14,L14,$AH$2:AH14,AH14)-1,1+SUMPRODUCT(($L$2:$L$950=TRUE)*($AI$2:$AI$950>AI14))+COUNTIFS($L$2:L14,L14,$AI$2:AI14,AI14)-1,1+SUMPRODUCT(($L$2:$L$950=TRUE)*($AJ$2:$AJ$950>AJ14))+COUNTIFS($L$2:L14,L14,$AJ$2:AJ14,AJ14)-1,1+SUMPRODUCT(($L$2:$L$950=TRUE)*($AK$2:$AK$950>AK14))+COUNTIFS($L$2:L14,L14,$AK$2:AK14,AK14)-1,1+SUMPRODUCT(($L$2:$L$950=TRUE)*($AL$2:$AL$950>AL14))+COUNTIFS($L$2:L14,L14,$AL$2:AL14,AL14)-1,1+SUMPRODUCT(($L$2:$L$950=TRUE)*($AM$2:$AM$950>AM14))+COUNTIFS($L$2:L14,L14,$AM$2:AM14,AM14)-1,1+SUMPRODUCT(($L$2:$L$950=TRUE)*($AN$2:$AN$950>AN14))+COUNTIFS($L$2:L14,L14,$AN$2:AN14,AN14)-1)),"") -> 36 | D14: Ozzie Albies | E14: =IFERROR(INDEX('Draft Log'!$D$4:$D$806,MATCH(D14,'Draft Log'!$C$4:$C$806,0)),"") ->  | F14: =IFERROR(INDEX('ADP-Rank'!$C$2:$C$819,MATCH(D14,'ADP-Rank'!$A$2:$A$819,0)),"") -> 2B | G14: =IFERROR(IF(F14=I14,"",IF(INDEX('Your Roto Draft'!$B$11:$B$634,MATCH(D14,'Your Roto Draft'!$C$11:$C$634,0))="",IF(I14<>"",I14,""),INDEX('Your Roto Draft'!$B$11:$B$634,MATCH(D14,'Your Roto Draft'!$C$11:$C$634,0)))),"") ->  | H14: 2B | J14: =INDEX('ADP-Rank'!$AH$2:$AH$819,MATCH(D14,'ADP-Rank'!$A$2:$A$819,0)) -> TRUE | K14: FALSE | L14: =IF(J14=FALSE,FALSE,IF(AND('Your Roto Draft'!$P$6="Hide Drafted Players",K14=TRUE),FALSE,IF(OR('Your Roto Draft'!$P$5="Show All Positions",AND('Your Roto Draft'!$P$5="Only Show: C",H14="C"),AND('Your Roto Draft'!$P$5="Only Show: 1B",H14="1B"),AND('Your Roto Draft'!$P$5="Only Show: 2B",H14="2B"),AND('Your Roto Draft'!$P$5="Only Show: 3B",H14="3B"),AND('Your Roto Draft'!$P$5="Only Show: SS",H14="SS"),AND('Your Roto Draft'!$P$5="Only Show: OF",H14="OF"),AND('Your Roto Draft'!$P$5="Only Show: SP",H14="SP"),AND('Your Roto Draft'!$P$5="Only Show: RP",H14="RP"),AND('Your Roto Draft'!$P$5="Only Show: CI",OR(H14={"1B","3B"})),AND('Your Roto Draft'!$P$5="Only Show: MI",OR(H14={"2B","SS"})),AND('Your Roto Draft'!$P$5="Only Show: IF",OR(H14={"C","1B","2B","3B","SS"})),AND('Your Roto Draft'!$P$5="Only Show: DH",OR(H14={"C","1B","2B","3B","SS","OF","DH"})),AND('Your Roto Draft'!$P$5="Only Show: P",OR(H14={"SP","RP"})),AND('Your Roto Draft'!$P$5="Only Show: LF",ISERROR(SEARCH("LF",VLOOKUP($D14,'ADP-Rank'!$A$2:$D$948,4,FALSE)))=FALSE),AND('Your Roto Draft'!$P$5="Only Show: RF",ISERROR(SEARCH("RF",VLOOKUP($D14,'ADP-Rank'!$A$2:$D$948,4,FALSE)))=FALSE),AND('Your Roto Draft'!$P$5="Only Show: CF",ISERROR(SEARCH("CF",VLOOKUP($D14,'ADP-Rank'!$A$2:$D$948,4,FALSE)))=FALSE)),TRUE,FALSE))) -> TRUE | M14: =IFERROR(IF(VLOOKUP($D14,'ADP-Rank'!$A$2:$AV$948,38,FALSE)="",9999,VLOOKUP($D14,'ADP-Rank'!$A$2:$AV$948,38,FALSE)),9999) -> 37 | N14: =IF(D14="Non-Ranked Player",-1001,IFERROR(VLOOKUP($D14,'All-WERTH'!$C$2:$E$949,3,FALSE),-1000)) -> 4.254578271 | O14: =IF(D14="Non-Ranked Player",10000,IFERROR(IF(VLOOKUP(D14,'ADP-Rank'!$A$2:$AJ$948,36,FALSE)="",9999,VLOOKUP(D14,'ADP-Rank'!$A$2:$AJ$948,36,FALSE)),9999)) -> 32 | P14: =IF($D14="Unlisted Player",-1001,IFERROR(IF(VLOOKUP($D14,'All-WERTH'!$C$2:$AC$949,4,FALSE)="",-1000,VLOOKUP($D14,'All-WERTH'!$C$2:$AC$949,4,FALSE)),-1000)) -> 1.562391704 | Q14: =IF($D14="Unlisted Player",-1001,IFERROR(IF(VLOOKUP($D14,'All-WERTH'!$C$2:$AC$949,5,FALSE)="",-1000,VLOOKUP($D14,'All-WERTH'!$C$2:$AC$949,5,FALSE)),-1000)) -> -0.03775627007 | R14: =IF($D14="Unlisted Player",-1001,IFERROR(IF(VLOOKUP($D14,'All-WERTH'!$C$2:$AC$949,6,FALSE)="",-1000,VLOOKUP($D14,'All-WERTH'!$C$2:$AC$949,6,FALSE)),-1000)) -> 1.573427763 | S14: =IF($D14="Unlisted Player",-1001,IFERROR(IF(VLOOKUP($D14,'All-WERTH'!$C$2:$AC$949,7,FALSE)="",-1000,VLOOKUP($D14,'All-WERTH'!$C$2:$AC$949,7,FALSE)),-1000)) -> 0.4442246214 | T14: =IF($D14="Unlisted Player",-1001,IFERROR(IF(VLOOKUP($D14,'All-WERTH'!$C$2:$AC$949,8,FALSE)="",-1000,VLOOKUP($D14,'All-WERTH'!$C$2:$AC$949,8,FALSE)),-1000)) -> 0.7122904531 | U14: =IF($D14="Unlisted Player",-1001,IFERROR(IF(VLOOKUP($D14,'All-WERTH'!$C$2:$AC$949,9,FALSE)="",-1000,VLOOKUP($D14,'All-WERTH'!$C$2:$AC$949,9,FALSE)),-1000)) -> -1000 | V14: =IF($D14="Unlisted Player",-1001,IFERROR(IF(VLOOKUP($D14,'All-WERTH'!$C$2:$AC$949,10,FALSE)="",-1000,VLOOKUP($D14,'All-WERTH'!$C$2:$AC$949,10,FALSE)),-1000)) -> -1000 | W14: =IF($D14="Unlisted Player",-1001,IFERROR(IF(VLOOKUP($D14,'All-WERTH'!$C$2:$AC$949,11,FALSE)="",-1000,VLOOKUP($D14,'All-WERTH'!$C$2:$AC$949,11,FALSE)),-1000)) -> -1000 | X14: =IF($D14="Unlisted Player",-1001,IFERROR(IF(VLOOKUP($D14,'All-WERTH'!$C$2:$AC$949,12,FALSE)="",-1000,VLOOKUP($D14,'All-WERTH'!$C$2:$AC$949,12,FALSE)),-1000)) -> -1000 | Y14: =IF($D14="Unlisted Player",-1001,IFERROR(IF(VLOOKUP($D14,'All-WERTH'!$C$2:$AC$949,13,FALSE)="",-1000,VLOOKUP($D14,'All-WERTH'!$C$2:$AC$949,13,FALSE)),-1000)) -> -1000 | Z14: =IF($D14="Unlisted Player",-1001,IFERROR(IF(VLOOKUP($D14,'All-WERTH'!$C$2:$AC$949,14,FALSE)="",-1000,VLOOKUP($D14,'All-WERTH'!$C$2:$AC$949,14,FALSE)),-1000)) -> -1000 | AA14: =IF($D14="Unlisted Player",-1001,IFERROR(IF(VLOOKUP($D14,'All-WERTH'!$C$2:$AC$949,15,FALSE)="",-1000,VLOOKUP($D14,'All-WERTH'!$C$2:$AC$949,15,FALSE)),-1000)) -> -1000 | AB14: =IF($D14="Unlisted Player",-1001,IFERROR(IF(VLOOKUP($D14,'All-WERTH'!$C$2:$AC$949,16,FALSE)="",-1000,VLOOKUP($D14,'All-WERTH'!$C$2:$AC$949,16,FALSE)),-1000)) -> -1000 | AC14: =IF($D14="Unlisted Player",-1001,IFERROR(IF(VLOOKUP($D14,'All-WERTH'!$C$2:$AC$949,17,FALSE)="",-1000,VLOOKUP($D14,'All-WERTH'!$C$2:$AC$949,17,FALSE)),-1000)) -> -1000 | AD14: =IF($D14="Unlisted Player",-1001,IFERROR(IF(VLOOKUP($D14,'All-WERTH'!$C$2:$AC$949,18,FALSE)="",-1000,VLOOKUP($D14,'All-WERTH'!$C$2:$AC$949,18,FALSE)),-1000)) -> -1000 | AE14: =IF($D14="Unlisted Player",-1001,IFERROR(IF(VLOOKUP($D14,'All-WERTH'!$C$2:$AC$949,19,FALSE)="",-1000,VLOOKUP($D14,'All-WERTH'!$C$2:$AC$949,19,FALSE)),-1000)) -> -1000 | AF14: =IF($D14="Unlisted Player",-1001,IFERROR(IF(VLOOKUP($D14,'All-WERTH'!$C$2:$AC$949,20,FALSE)="",-1000,VLOOKUP($D14,'All-WERTH'!$C$2:$AC$949,20,FALSE)),-1000)) -> -1000 | AG14: =IF($D14="Unlisted Player",-1001,IFERROR(IF(VLOOKUP($D14,'All-WERTH'!$C$2:$AC$949,21,FALSE)="",-1000,VLOOKUP($D14,'All-WERTH'!$C$2:$AC$949,21,FALSE)),-1000)) -> -1000 | AH14: =IF($D14="Unlisted Player",-1001,IFERROR(IF(VLOOKUP($D14,'All-WERTH'!$C$2:$AC$949,22,FALSE)="",-1000,VLOOKUP($D14,'All-WERTH'!$C$2:$AC$949,22,FALSE)),-1000)) -> -1000 | AI14: =IF($D14="Unlisted Player",-1001,IFERROR(IF(VLOOKUP($D14,'All-WERTH'!$C$2:$AC$949,23,FALSE)="",-1000,VLOOKUP($D14,'All-WERTH'!$C$2:$AC$949,23,FALSE)),-1000)) -> -1000 | AJ14: =IF($D14="Unlisted Player",-1001,IFERROR(IF(VLOOKUP($D14,'All-WERTH'!$C$2:$AC$949,24,FALSE)="",-1000,VLOOKUP($D14,'All-WERTH'!$C$2:$AC$949,24,FALSE)),-1000)) -> -1000 | AK14: =IF($D14="Unlisted Player",-1001,IFERROR(IF(VLOOKUP($D14,'All-WERTH'!$C$2:$AC$949,25,FALSE)="",-1000,VLOOKUP($D14,'All-WERTH'!$C$2:$AC$949,25,FALSE)),-1000)) -> -1000 | AL14: =IF($D14="Unlisted Player",-1001,IFERROR(IF(VLOOKUP($D14,'All-WERTH'!$C$2:$AC$949,26,FALSE)="",-1000,VLOOKUP($D14,'All-WERTH'!$C$2:$AC$949,26,FALSE)),-1000)) -> -1000 | AM14: =IF($D14="Unlisted Player",-1001,IFERROR(IF(VLOOKUP($D14,'All-WERTH'!$C$2:$AC$949,27,FALSE)="",-1000,VLOOKUP($D14,'All-WERTH'!$C$2:$AC$949,27,FALSE)),-1000)) -> -1000 | AN14: =IF(D14="Non-Ranked Player",-1001,IFERROR(VLOOKUP($D14,'All-WERTH'!$C$2:$AG$949,31,FALSE),-1000)) -> 7.688819776 | AO14: =IF(ISERROR(VLOOKUP($B13,Keepers!$C$2:$D$450,2,FALSE)),B13,"") -> Trea Turner | AP14: =IFERROR(INDEX($AO$1:$AO$949,SMALL(IF($AO$1:$AO$949<>"",ROW($AO$1:$AO$949)),ROW(AO14))),"") -> Max Scherzer
A15: Max Scherzer | B15: =IFERROR(INDEX($A$1:$A$949,SMALL(IF($A$1:$A$949<>"",ROW($A$1:$A$949)),ROW(A15))),"") -> Justin Verlander | C15: =IFERROR(IF(L15=FALSE,"",CHOOSE(MATCH(RIGHT('Your Roto Draft'!$P$4,LEN('Your Roto Draft'!$P$4)-8),$M$1:$AN$1,0),1+SUMPRODUCT(($L$2:$L$950=TRUE)*($M$2:$M$950<M15))+COUNTIFS($L$2:L15,L15,$M$2:M15,M15)-1,1+SUMPRODUCT(($L$2:$L$950=TRUE)*($N$2:$N$950>N15))+COUNTIFS($L$2:L15,L15,$N$2:N15,N15)-1,1+SUMPRODUCT(($L$2:$L$950=TRUE)*($O$2:$O$950<O15))+COUNTIFS($L$2:L15,L15,$O$2:O15,O15)-1,1+SUMPRODUCT(($L$2:$L$950=TRUE)*($P$2:$P$950>P15))+COUNTIFS($L$2:L15,L15,$P$2:P15,P15)-1,1+SUMPRODUCT(($L$2:$L$950=TRUE)*($Q$2:$Q$950>Q15))+COUNTIFS($L$2:L15,L15,$Q$2:Q15,Q15)-1,1+SUMPRODUCT(($L$2:$L$950=TRUE)*($R$2:$R$950>R15))+COUNTIFS($L$2:L15,L15,$R$2:R15,R15)-1,1+SUMPRODUCT(($L$2:$L$950=TRUE)*($S$2:$S$950>S15))+COUNTIFS($L$2:L15,L15,$S$2:S15,S15)-1,1+SUMPRODUCT(($L$2:$L$950=TRUE)*($T$2:$T$950>T15))+COUNTIFS($L$2:L15,L15,$T$2:T15,T15)-1,1+SUMPRODUCT(($L$2:$L$950=TRUE)*($U$2:$U$950>U15))+COUNTIFS($L$2:L15,L15,$U$2:U15,U15)-1,1+SUMPRODUCT(($L$2:$L$950=TRUE)*($V$2:$V$950>V15))+COUNTIFS($L$2:L15,L15,$V$2:V15,V15)-1,1+SUMPRODUCT(($L$2:$L$950=TRUE)*($W$2:$W$950>W15))+COUNTIFS($L$2:L15,L15,$W$2:W15,W15)-1,1+SUMPRODUCT(($L$2:$L$950=TRUE)*($X$2:$X$950>X15))+COUNTIFS($L$2:L15,L15,$X$2:X15,X15)-1,1+SUMPRODUCT(($L$2:$L$950=TRUE)*($Y$2:$Y$950>Y15))+COUNTIFS($L$2:L15,L15,$Y$2:Y15,Y15)-1,1+SUMPRODUCT(($L$2:$L$950=TRUE)*($Z$2:$Z$950>Z15))+COUNTIFS($L$2:L15,L15,$Z$2:Z15,Z15)-1,1+SUMPRODUCT(($L$2:$L$950=TRUE)*($AA$2:$AA$950>AA15))+COUNTIFS($L$2:L15,L15,$AA$2:AA15,AA15)-1,1+SUMPRODUCT(($L$2:$L$950=TRUE)*($AB$2:$AB$950>AB15))+COUNTIFS($L$2:L15,L15,$AB$2:AB15,AB15)-1,1+SUMPRODUCT(($L$2:$L$950=TRUE)*($AC$2:$AC$950>AC15))+COUNTIFS($L$2:L15,L15,$AC$2:AC15,AC15)-1,1+SUMPRODUCT(($L$2:$L$950=TRUE)*($AD$2:$AD$950>AD15))+COUNTIFS($L$2:L15,L15,$AD$2:AD15,AD15)-1,1+SUMPRODUCT(($L$2:$L$950=TRUE)*($AE$2:$AE$950>AE15))+COUNTIFS($L$2:L15,L15,$AE$2:AE15,AE15)-1,1+SUMPRODUCT(($L$2:$L$950=TRUE)*($AF$2:$AF$950>AF15))+COUNTIFS($L$2:L15,L15,$AF$2:AF15,AF15)-1,1+SUMPRODUCT(($L$2:$L$950=TRUE)*($AG$2:$AG$950>AG15))+COUNTIFS($L$2:L15,L15,$AG$2:AG15,AG15)-1,1+SUMPRODUCT(($L$2:$L$950=TRUE)*($AH$2:$AH$950>AH15))+COUNTIFS($L$2:L15,L15,$AH$2:AH15,AH15)-1,1+SUMPRODUCT(($L$2:$L$950=TRUE)*($AI$2:$AI$950>AI15))+COUNTIFS($L$2:L15,L15,$AI$2:AI15,AI15)-1,1+SUMPRODUCT(($L$2:$L$950=TRUE)*($AJ$2:$AJ$950>AJ15))+COUNTIFS($L$2:L15,L15,$AJ$2:AJ15,AJ15)-1,1+SUMPRODUCT(($L$2:$L$950=TRUE)*($AK$2:$AK$950>AK15))+COUNTIFS($L$2:L15,L15,$AK$2:AK15,AK15)-1,1+SUMPRODUCT(($L$2:$L$950=TRUE)*($AL$2:$AL$950>AL15))+COUNTIFS($L$2:L15,L15,$AL$2:AL15,AL15)-1,1+SUMPRODUCT(($L$2:$L$950=TRUE)*($AM$2:$AM$950>AM15))+COUNTIFS($L$2:L15,L15,$AM$2:AM15,AM15)-1,1+SUMPRODUCT(($L$2:$L$950=TRUE)*($AN$2:$AN$950>AN15))+COUNTIFS($L$2:L15,L15,$AN$2:AN15,AN15)-1)),"") -> 264 | D15: Sandy Alcantara | E15: =IFERROR(INDEX('Draft Log'!$D$4:$D$806,MATCH(D15,'Draft Log'!$C$4:$C$806,0)),"") ->  | F15: =IFERROR(INDEX('ADP-Rank'!$C$2:$C$819,MATCH(D15,'ADP-Rank'!$A$2:$A$819,0)),"") -> SP | G15: =IFERROR(IF(F15=I15,"",IF(INDEX('Your Roto Draft'!$B$11:$B$634,MATCH(D15,'Your Roto Draft'!$C$11:$C$634,0))="",IF(I15<>"",I15,""),INDEX('Your Roto Draft'!$B$11:$B$634,MATCH(D15,'Your Roto Draft'!$C$11:$C$634,0)))),"") ->  | H15: SP | J15: =INDEX('ADP-Rank'!$AH$2:$AH$819,MATCH(D15,'ADP-Rank'!$A$2:$A$819,0)) -> TRUE | K15: FALSE | L15: =IF(J15=FALSE,FALSE,IF(AND('Your Roto Draft'!$P$6="Hide Drafted Players",K15=TRUE),FALSE,IF(OR('Your Roto Draft'!$P$5="Show All Positions",AND('Your Roto Draft'!$P$5="Only Show: C",H15="C"),AND('Your Roto Draft'!$P$5="Only Show: 1B",H15="1B"),AND('Your Roto Draft'!$P$5="Only Show: 2B",H15="2B"),AND('Your Roto Draft'!$P$5="Only Show: 3B",H15="3B"),AND('Your Roto Draft'!$P$5="Only Show: SS",H15="SS"),AND('Your Roto Draft'!$P$5="Only Show: OF",H15="OF"),AND('Your Roto Draft'!$P$5="Only Show: SP",H15="SP"),AND('Your Roto Draft'!$P$5="Only Show: RP",H15="RP"),AND('Your Roto Draft'!$P$5="Only Show: CI",OR(H15={"1B","3B"})),AND('Your Roto Draft'!$P$5="Only Show: MI",OR(H15={"2B","SS"})),AND('Your Roto Draft'!$P$5="Only Show: IF",OR(H15={"C","1B","2B","3B","SS"})),AND('Your Roto Draft'!$P$5="Only Show: DH",OR(H15={"C","1B","2B","3B","SS","OF","DH"})),AND('Your Roto Draft'!$P$5="Only Show: P",OR(H15={"SP","RP"})),AND('Your Roto Draft'!$P$5="Only Show: LF",ISERROR(SEARCH("LF",VLOOKUP($D15,'ADP-Rank'!$A$2:$D$948,4,FALSE)))=FALSE),AND('Your Roto Draft'!$P$5="Only Show: RF",ISERROR(SEARCH("RF",VLOOKUP($D15,'ADP-Rank'!$A$2:$D$948,4,FALSE)))=FALSE),AND('Your Roto Draft'!$P$5="Only Show: CF",ISERROR(SEARCH("CF",VLOOKUP($D15,'ADP-Rank'!$A$2:$D$948,4,FALSE)))=FALSE)),TRUE,FALSE))) -> TRUE | M15: =IFERROR(IF(VLOOKUP($D15,'ADP-Rank'!$A$2:$AV$948,38,FALSE)="",9999,VLOOKUP($D15,'ADP-Rank'!$A$2:$AV$948,38,FALSE)),9999) -> 279.4 | N15: =IF(D15="Non-Ranked Player",-1001,IFERROR(VLOOKUP($D15,'All-WERTH'!$C$2:$E$949,3,FALSE),-1000)) -> -6.92288497 | O15: =IF(D15="Non-Ranked Player",10000,IFERROR(IF(VLOOKUP(D15,'ADP-Rank'!$A$2:$AJ$948,36,FALSE)="",9999,VLOOKUP(D15,'ADP-Rank'!$A$2:$AJ$948,36,FALSE)),9999)) -> 257 | P15: =IF($D15="Unlisted Player",-1001,IFERROR(IF(VLOOKUP($D15,'All-WERTH'!$C$2:$AC$949,4,FALSE)="",-1000,VLOOKUP($D15,'All-WERTH'!$C$2:$AC$949,4,FALSE)),-1000)) -> -1000 | Q15: =IF($D15="Unlisted Player",-1001,IFERROR(IF(VLOOKUP($D15,'All-WERTH'!$C$2:$AC$949,5,FALSE)="",-1000,VLOOKUP($D15,'All-WERTH'!$C$2:$AC$949,5,FALSE)),-1000)) -> -1000 | R15: =IF($D15="Unlisted Player",-1001,IFERROR(IF(VLOOKUP($D15,'All-WERTH'!$C$2:$AC$949,6,FALSE)="",-1000,VLOOKUP($D15,'All-WERTH'!$C$2:$AC$949,6,FALSE)),-1000)) -> -1000 | S15: =IF($D15="Unlisted Player",-1001,IFERROR(IF(VLOOKUP($D15,'All-WERTH'!$C$2:$AC$949,7,FALSE)="",-1000,VLOOKUP($D15,'All-WERTH'!$C$2:$AC$949,7,FALSE)),-1000)) -> -1000 | T15: =IF($D15="Unlisted Player",-1001,IFERROR(IF(VLOOKUP($D15,'All-WERTH'!$C$2:$AC$949,8,FALSE)="",-1000,VLOOKUP($D15,'All-WERTH'!$C$2:$AC$949,8,FALSE)),-1000)) -> -1000 | U15: =IF($D15="Unlisted Player",-1001,IFERROR(IF(VLOOKUP($D15,'All-WERTH'!$C$2:$AC$949,9,FALSE)="",-1000,VLOOKUP($D15,'All-WERTH'!$C$2:$AC$949,9,FALSE)),-1000)) -> -1000 | V15: =IF($D15="Unlisted Player",-1001,IFERROR(IF(VLOOKUP($D15,'All-WERTH'!$C$2:$AC$949,10,FALSE)="",-1000,VLOOKUP($D15,'All-WERTH'!$C$2:$AC$949,10,FALSE)),-1000)) -> -1000 | W15: =IF($D15="Unlisted Player",-1001,IFERROR(IF(VLOOKUP($D15,'All-WERTH'!$C$2:$AC$949,11,FALSE)="",-1000,VLOOKUP($D15,'All-WERTH'!$C$2:$AC$949,11,FALSE)),-1000)) -> -1000 | X15: =IF($D15="Unlisted Player",-1001,IFERROR(IF(VLOOKUP($D15,'All-WERTH'!$C$2:$AC$949,12,FALSE)="",-1000,VLOOKUP($D15,'All-WERTH'!$C$2:$AC$949,12,FALSE)),-1000)) -> -1000 | Y15: =IF($D15="Unlisted Player",-1001,IFERROR(IF(VLOOKUP($D15,'All-WERTH'!$C$2:$AC$949,13,FALSE)="",-1000,VLOOKUP($D15,'All-WERTH'!$C$2:$AC$949,13,FALSE)),-1000)) -> -1000 | Z15: =IF($D15="Unlisted Player",-1001,IFERROR(IF(VLOOKUP($D15,'All-WERTH'!$C$2:$AC$949,14,FALSE)="",-1000,VLOOKUP($D15,'All-WERTH'!$C$2:$AC$949,14,FALSE)),-1000)) -> -1000 | AA15: =IF($D15="Unlisted Player",-1001,IFERROR(IF(VLOOKUP($D15,'All-WERTH'!$C$2:$AC$949,15,FALSE)="",-1000,VLOOKUP($D15,'All-WERTH'!$C$2:$AC$949,15,FALSE)),-1000)) -> -1000 | AB15: =IF($D15="Unlisted Player",-1001,IFERROR(IF(VLOOKUP($D15,'All-WERTH'!$C$2:$AC$949,16,FALSE)="",-1000,VLOOKUP($D15,'All-WERTH'!$C$2:$AC$949,16,FALSE)),-1000)) -> -0.2389410165 | AC15: =IF($D15="Unlisted Player",-1001,IFERROR(IF(VLOOKUP($D15,'All-WERTH'!$C$2:$AC$949,17,FALSE)="",-1000,VLOOKUP($D15,'All-WERTH'!$C$2:$AC$949,17,FALSE)),-1000)) -> -0.466236193 | AD15: =IF($D15="Unlisted Player",-1001,IFERROR(IF(VLOOKUP($D15,'All-WERTH'!$C$2:$AC$949,18,FALSE)="",-1000,VLOOKUP($D15,'All-WERTH'!$C$2:$AC$949,18,FALSE)),-1000)) -> -0.1957496733 | AE15: =IF($D15="Unlisted Player",-1001,IFERROR(IF(VLOOKUP($D15,'All-WERTH'!$C$2:$AC$949,19,FALSE)="",-1000,VLOOKUP($D15,'All-WERTH'!$C$2:$AC$949,19,FALSE)),-1000)) -> -2.490047457 | AF15: =IF($D15="Unlisted Player",-1001,IFERROR(IF(VLOOKUP($D15,'All-WERTH'!$C$2:$AC$949,20,FALSE)="",-1000,VLOOKUP($D15,'All-WERTH'!$C$2:$AC$949,20,FALSE)),-1000)) -> -3.531910631 | AG15: =IF($D15="Unlisted Player",-1001,IFERROR(IF(VLOOKUP($D15,'All-WERTH'!$C$2:$AC$949,21,FALSE)="",-1000,VLOOKUP($D15,'All-WERTH'!$C$2:$AC$949,21,FALSE)),-1000)) -> -1000 | AH15: =IF($D15="Unlisted Player",-1001,IFERROR(IF(VLOOKUP($D15,'All-WERTH'!$C$2:$AC$949,22,FALSE)="",-1000,VLOOKUP($D15,'All-WERTH'!$C$2:$AC$949,22,FALSE)),-1000)) -> -1000 | AI15: =IF($D15="Unlisted Player",-1001,IFERROR(IF(VLOOKUP($D15,'All-WERTH'!$C$2:$AC$949,23,FALSE)="",-1000,VLOOKUP($D15,'All-WERTH'!$C$2:$AC$949,23,FALSE)),-1000)) -> -1000 | AJ15: =IF($D15="Unlisted Player",-1001,IFERROR(IF(VLOOKUP($D15,'All-WERTH'!$C$2:$AC$949,24,FALSE)="",-1000,VLOOKUP($D15,'All-WERTH'!$C$2:$AC$949,24,FALSE)),-1000)) -> -1000 | AK15: =IF($D15="Unlisted Player",-1001,IFERROR(IF(VLOOKUP($D15,'All-WERTH'!$C$2:$AC$949,25,FALSE)="",-1000,VLOOKUP($D15,'All-WERTH'!$C$2:$AC$949,25,FALSE)),-1000)) -> -1000 | AL15: =IF($D15="Unlisted Player",-1001,IFERROR(IF(VLOOKUP($D15,'All-WERTH'!$C$2:$AC$949,26,FALSE)="",-1000,VLOOKUP($D15,'All-WERTH'!$C$2:$AC$949,26,FALSE)),-1000)) -> -1000 | AM15: =IF($D15="Unlisted Player",-1001,IFERROR(IF(VLOOKUP($D15,'All-WERTH'!$C$2:$AC$949,27,FALSE)="",-1000,VLOOKUP($D15,'All-WERTH'!$C$2:$AC$949,27,FALSE)),-1000)) -> -1000 | AN15: =IF(D15="Non-Ranked Player",-1001,IFERROR(VLOOKUP($D15,'All-WERTH'!$C$2:$AG$949,31,FALSE),-1000)) -> -3.773870514 | AO15: =IF(ISERROR(VLOOKUP($B14,Keepers!$C$2:$D$450,2,FALSE)),B14,"") -> Max Scherzer | AP15: =IFERROR(INDEX($AO$1:$AO$949,SMALL(IF($AO$1:$AO$949<>"",ROW($AO$1:$AO$949)),ROW(AO15))),"") -> Justin Verlander
A16: Justin Verlander | B16: =IFERROR(INDEX($A$1:$A$949,SMALL(IF($A$1:$A$949<>"",ROW($A$1:$A$949)),ROW(A16))),"") -> Walker Buehler | C16: =IFERROR(IF(L16=FALSE,"",CHOOSE(MATCH(RIGHT('Your Roto Draft'!$P$4,LEN('Your Roto Draft'!$P$4)-8),$M$1:$AN$1,0),1+SUMPRODUCT(($L$2:$L$950=TRUE)*($M$2:$M$950<M16))+COUNTIFS($L$2:L16,L16,$M$2:M16,M16)-1,1+SUMPRODUCT(($L$2:$L$950=TRUE)*($N$2:$N$950>N16))+COUNTIFS($L$2:L16,L16,$N$2:N16,N16)-1,1+SUMPRODUCT(($L$2:$L$950=TRUE)*($O$2:$O$950<O16))+COUNTIFS($L$2:L16,L16,$O$2:O16,O16)-1,1+SUMPRODUCT(($L$2:$L$950=TRUE)*($P$2:$P$950>P16))+COUNTIFS($L$2:L16,L16,$P$2:P16,P16)-1,1+SUMPRODUCT(($L$2:$L$950=TRUE)*($Q$2:$Q$950>Q16))+COUNTIFS($L$2:L16,L16,$Q$2:Q16,Q16)-1,1+SUMPRODUCT(($L$2:$L$950=TRUE)*($R$2:$R$950>R16))+COUNTIFS($L$2:L16,L16,$R$2:R16,R16)-1,1+SUMPRODUCT(($L$2:$L$950=TRUE)*($S$2:$S$950>S16))+COUNTIFS($L$2:L16,L16,$S$2:S16,S16)-1,1+SUMPRODUCT(($L$2:$L$950=TRUE)*($T$2:$T$950>T16))+COUNTIFS($L$2:L16,L16,$T$2:T16,T16)-1,1+SUMPRODUCT(($L$2:$L$950=TRUE)*($U$2:$U$950>U16))+COUNTIFS($L$2:L16,L16,$U$2:U16,U16)-1,1+SUMPRODUCT(($L$2:$L$950=TRUE)*($V$2:$V$950>V16))+COUNTIFS($L$2:L16,L16,$V$2:V16,V16)-1,1+SUMPRODUCT(($L$2:$L$950=TRUE)*($W$2:$W$950>W16))+COUNTIFS($L$2:L16,L16,$W$2:W16,W16)-1,1+SUMPRODUCT(($L$2:$L$950=TRUE)*($X$2:$X$950>X16))+COUNTIFS($L$2:L16,L16,$X$2:X16,X16)-1,1+SUMPRODUCT(($L$2:$L$950=TRUE)*($Y$2:$Y$950>Y16))+COUNTIFS($L$2:L16,L16,$Y$2:Y16,Y16)-1,1+SUMPRODUCT(($L$2:$L$950=TRUE)*($Z$2:$Z$950>Z16))+COUNTIFS($L$2:L16,L16,$Z$2:Z16,Z16)-1,1+SUMPRODUCT(($L$2:$L$950=TRUE)*($AA$2:$AA$950>AA16))+COUNTIFS($L$2:L16,L16,$AA$2:AA16,AA16)-1,1+SUMPRODUCT(($L$2:$L$950=TRUE)*($AB$2:$AB$950>AB16))+COUNTIFS($L$2:L16,L16,$AB$2:AB16,AB16)-1,1+SUMPRODUCT(($L$2:$L$950=TRUE)*($AC$2:$AC$950>AC16))+COUNTIFS($L$2:L16,L16,$AC$2:AC16,AC16)-1,1+SUMPRODUCT(($L$2:$L$950=TRUE)*($AD$2:$AD$950>AD16))+COUNTIFS($L$2:L16,L16,$AD$2:AD16,AD16)-1,1+SUMPRODUCT(($L$2:$L$950=TRUE)*($AE$2:$AE$950>AE16))+COUNTIFS($L$2:L16,L16,$AE$2:AE16,AE16)-1,1+SUMPRODUCT(($L$2:$L$950=TRUE)*($AF$2:$AF$950>AF16))+COUNTIFS($L$2:L16,L16,$AF$2:AF16,AF16)-1,1+SUMPRODUCT(($L$2:$L$950=TRUE)*($AG$2:$AG$950>AG16))+COUNTIFS($L$2:L16,L16,$AG$2:AG16,AG16)-1,1+SUMPRODUCT(($L$2:$L$950=TRUE)*($AH$2:$AH$950>AH16))+COUNTIFS($L$2:L16,L16,$AH$2:AH16,AH16)-1,1+SUMPRODUCT(($L$2:$L$950=TRUE)*($AI$2:$AI$950>AI16))+COUNTIFS($L$2:L16,L16,$AI$2:AI16,AI16)-1,1+SUMPRODUCT(($L$2:$L$950=TRUE)*($AJ$2:$AJ$950>AJ16))+COUNTIFS($L$2:L16,L16,$AJ$2:AJ16,AJ16)-1,1+SUMPRODUCT(($L$2:$L$950=TRUE)*($AK$2:$AK$950>AK16))+COUNTIFS($L$2:L16,L16,$AK$2:AK16,AK16)-1,1+SUMPRODUCT(($L$2:$L$950=TRUE)*($AL$2:$AL$950>AL16))+COUNTIFS($L$2:L16,L16,$AL$2:AL16,AL16)-1,1+SUMPRODUCT(($L$2:$L$950=TRUE)*($AM$2:$AM$950>AM16))+COUNTIFS($L$2:L16,L16,$AM$2:AM16,AM16)-1,1+SUMPRODUCT(($L$2:$L$950=TRUE)*($AN$2:$AN$950>AN16))+COUNTIFS($L$2:L16,L16,$AN$2:AN16,AN16)-1)),"") -> 235 | D16: Jorge Alfaro | E16: =IFERROR(INDEX('Draft Log'!$D$4:$D$806,MATCH(D16,'Draft Log'!$C$4:$C$806,0)),"") ->  | F16: =IFERROR(INDEX('ADP-Rank'!$C$2:$C$819,MATCH(D16,'ADP-Rank'!$A$2:$A$819,0)),"") -> C | G16: =IFERROR(IF(F16=I16,"",IF(INDEX('Your Roto Draft'!$B$11:$B$634,MATCH(D16,'Your Roto Draft'!$C$11:$C$634,0))="",IF(I16<>"",I16,""),INDEX('Your Roto Draft'!$B$11:$B$634,MATCH(D16,'Your Roto Draft'!$C$11:$C$634,0)))),"") ->  | H16: C | J16: =INDEX('ADP-Rank'!$AH$2:$AH$819,MATCH(D16,'ADP-Rank'!$A$2:$A$819,0)) -> TRUE | K16: FALSE | L16: =IF(J16=FALSE,FALSE,IF(AND('Your Roto Draft'!$P$6="Hide Drafted Players",K16=TRUE),FALSE,IF(OR('Your Roto Draft'!$P$5="Show All Positions",AND('Your Roto Draft'!$P$5="Only Show: C",H16="C"),AND('Your Roto Draft'!$P$5="Only Show: 1B",H16="1B"),AND('Your Roto Draft'!$P$5="Only Show: 2B",H16="2B"),AND('Your Roto Draft'!$P$5="Only Show: 3B",H16="3B"),AND('Your Roto Draft'!$P$5="Only Show: SS",H16="SS"),AND('Your Roto Draft'!$P$5="Only Show: OF",H16="OF"),AND('Your Roto Draft'!$P$5="Only Show: SP",H16="SP"),AND('Your Roto Draft'!$P$5="Only Show: RP",H16="RP"),AND('Your Roto Draft'!$P$5="Only Show: CI",OR(H16={"1B","3B"})),AND('Your Roto Draft'!$P$5="Only Show: MI",OR(H16={"2B","SS"})),AND('Your Roto Draft'!$P$5="Only Show: IF",OR(H16={"C","1B","2B","3B","SS"})),AND('Your Roto Draft'!$P$5="Only Show: DH",OR(H16={"C","1B","2B","3B","SS","OF","DH"})),AND('Your Roto Draft'!$P$5="Only Show: P",OR(H16={"SP","RP"})),AND('Your Roto Draft'!$P$5="Only Show: LF",ISERROR(SEARCH("LF",VLOOKUP($D16,'ADP-Rank'!$A$2:$D$948,4,FALSE)))=FALSE),AND('Your Roto Draft'!$P$5="Only Show: RF",ISERROR(SEARCH("RF",VLOOKUP($D16,'ADP-Rank'!$A$2:$D$948,4,FALSE)))=FALSE),AND('Your Roto Draft'!$P$5="Only Show: CF",ISERROR(SEARCH("CF",VLOOKUP($D16,'ADP-Rank'!$A$2:$D$948,4,FALSE)))=FALSE)),TRUE,FALSE))) -> TRUE | M16: =IFERROR(IF(VLOOKUP($D16,'ADP-Rank'!$A$2:$AV$948,38,FALSE)="",9999,VLOOKUP($D16,'ADP-Rank'!$A$2:$AV$948,38,FALSE)),9999) -> 239 | N16: =IF(D16="Non-Ranked Player",-1001,IFERROR(VLOOKUP($D16,'All-WERTH'!$C$2:$E$949,3,FALSE),-1000)) -> -7.726674426 | O16: =IF(D16="Non-Ranked Player",10000,IFERROR(IF(VLOOKUP(D16,'ADP-Rank'!$A$2:$AJ$948,36,FALSE)="",9999,VLOOKUP(D16,'ADP-Rank'!$A$2:$AJ$948,36,FALSE)),9999)) -> 287 | P16: =IF($D16="Unlisted Player",-1001,IFERROR(IF(VLOOKUP($D16,'All-WERTH'!$C$2:$AC$949,4,FALSE)="",-1000,VLOOKUP($D16,'All-WERTH'!$C$2:$AC$949,4,FALSE)),-1000)) -> -1.317455539 | Q16: =IF($D16="Unlisted Player",-1001,IFERROR(IF(VLOOKUP($D16,'All-WERTH'!$C$2:$AC$949,5,FALSE)="",-1000,VLOOKUP($D16,'All-WERTH'!$C$2:$AC$949,5,FALSE)),-1000)) -> -1.349915464 | R16: =IF($D16="Unlisted Player",-1001,IFERROR(IF(VLOOKUP($D16,'All-WERTH'!$C$2:$AC$949,6,FALSE)="",-1000,VLOOKUP($D16,'All-WERTH'!$C$2:$AC$949,6,FALSE)),-1000)) -> -2.405530105 | S16: =IF($D16="Unlisted Player",-1001,IFERROR(IF(VLOOKUP($D16,'All-WERTH'!$C$2:$AC$949,7,FALSE)="",-1000,VLOOKUP($D16,'All-WERTH'!$C$2:$AC$949,7,FALSE)),-1000)) -> -1.889223904 | T16: =IF($D16="Unlisted Player",-1001,IFERROR(IF(VLOOKUP($D16,'All-WERTH'!$C$2:$AC$949,8,FALSE)="",-1000,VLOOKUP($D16,'All-WERTH'!$C$2:$AC$949,8,FALSE)),-1000)) -> -0.7645494143 | U16: =IF($D16="Unlisted Player",-1001,IFERROR(IF(VLOOKUP($D16,'All-WERTH'!$C$2:$AC$949,9,FALSE)="",-1000,VLOOKUP($D16,'All-WERTH'!$C$2:$AC$949,9,FALSE)),-1000)) -> -1000 | V16: =IF($D16="Unlisted Player",-1001,IFERROR(IF(VLOOKUP($D16,'All-WERTH'!$C$2:$AC$949,10,FALSE)="",-1000,VLOOKUP($D16,'All-WERTH'!$C$2:$AC$949,10,FALSE)),-1000)) -> -1000 | W16: =IF($D16="Unlisted Player",-1001,IFERROR(IF(VLOOKUP($D16,'All-WERTH'!$C$2:$AC$949,11,FALSE)="",-1000,VLOOKUP($D16,'All-WERTH'!$C$2:$AC$949,11,FALSE)),-1000)) -> -1000 | X16: =IF($D16="Unlisted Player",-1001,IFERROR(IF(VLOOKUP($D16,'All-WERTH'!$C$2:$AC$949,12,FALSE)="",-1000,VLOOKUP($D16,'All-WERTH'!$C$2:$AC$949,12,FALSE)),-1000)) -> -1000 | Y16: =IF($D16="Unlisted Player",-1001,IFERROR(IF(VLOOKUP($D16,'All-WERTH'!$C$2:$AC$949,13,FALSE)="",-1000,VLOOKUP($D16,'All-WERTH'!$C$2:$AC$949,13,FALSE)),-1000)) -> -1000 | Z16: =IF($D16="Unlisted Player",-1001,IFERROR(IF(VLOOKUP($D16,'All-WERTH'!$C$2:$AC$949,14,FALSE)="",-1000,VLOOKUP($D16,'All-WERTH'!$C$2:$AC$949,14,FALSE)),-1000)) -> -1000 | AA16: =IF($D16="Unlisted Player",-1001,IFERROR(IF(VLOOKUP($D16,'All-WERTH'!$C$2:$AC$949,15,FALSE)="",-1000,VLOOKUP($D16,'All-WERTH'!$C$2:$AC$949,15,FALSE)),-1000)) -> -1000 | AB16: =IF($D16="Unlisted Player",-1001,IFERROR(IF(VLOOKUP($D16,'All-WERTH'!$C$2:$AC$949,16,FALSE)="",-1000,VLOOKUP($D16,'All-WERTH'!$C$2:$AC$949,16,FALSE)),-1000)) -> -1000 | AC16: =IF($D16="Unlisted Player",-1001,IFERROR(IF(VLOOKUP($D16,'All-WERTH'!$C$2:$AC$949,17,FALSE)="",-1000,VLOOKUP($D16,'All-WERTH'!$C$2:$AC$949,17,FALSE)),-1000)) -> -1000 | AD16: =IF($D16="Unlisted Player",-1001,IFERROR(IF(VLOOKUP($D16,'All-WERTH'!$C$2:$AC$949,18,FALSE)="",-1000,VLOOKUP($D16,'All-WERTH'!$C$2:$AC$949,18,FALSE)),-1000)) -> -1000 | AE16: =IF($D16="Unlisted Player",-1001,IFERROR(IF(VLOOKUP($D16,'All-WERTH'!$C$2:$AC$949,19,FALSE)="",-1000,VLOOKUP($D16,'All-WERTH'!$C$2:$AC$949,19,FALSE)),-1000)) -> -1000 | AF16: =IF($D16="Unlisted Player",-1001,IFERROR(IF(VLOOKUP($D16,'All-WERTH'!$C$2:$AC$949,20,FALSE)="",-1000,VLOOKUP($D16,'All-WERTH'!$C$2:$AC$949,20,FALSE)),-1000)) -> -1000 | AG16: =IF($D16="Unlisted Player",-1001,IFERROR(IF(VLOOKUP($D16,'All-WERTH'!$C$2:$AC$949,21,FALSE)="",-1000,VLOOKUP($D16,'All-WERTH'!$C$2:$AC$949,21,FALSE)),-1000)) -> -1000 | AH16: =IF($D16="Unlisted Player",-1001,IFERROR(IF(VLOOKUP($D16,'All-WERTH'!$C$2:$AC$949,22,FALSE)="",-1000,VLOOKUP($D16,'All-WERTH'!$C$2:$AC$949,22,FALSE)),-1000)) -> -1000 | AI16: =IF($D16="Unlisted Player",-1001,IFERROR(IF(VLOOKUP($D16,'All-WERTH'!$C$2:$AC$949,23,FALSE)="",-1000,VLOOKUP($D16,'All-WERTH'!$C$2:$AC$949,23,FALSE)),-1000)) -> -1000 | AJ16: =IF($D16="Unlisted Player",-1001,IFERROR(IF(VLOOKUP($D16,'All-WERTH'!$C$2:$AC$949,24,FALSE)="",-1000,VLOOKUP($D16,'All-WERTH'!$C$2:$AC$949,24,FALSE)),-1000)) -> -1000 | AK16: =IF($D16="Unlisted Player",-1001,IFERROR(IF(VLOOKUP($D16,'All-WERTH'!$C$2:$AC$949,25,FALSE)="",-1000,VLOOKUP($D16,'All-WERTH'!$C$2:$AC$949,25,FALSE)),-1000)) -> -1000 | AL16: =IF($D16="Unlisted Player",-1001,IFERROR(IF(VLOOKUP($D16,'All-WERTH'!$C$2:$AC$949,26,FALSE)="",-1000,VLOOKUP($D16,'All-WERTH'!$C$2:$AC$949,26,FALSE)),-1000)) -> -1000 | AM16: =IF($D16="Unlisted Player",-1001,IFERROR(IF(VLOOKUP($D16,'All-WERTH'!$C$2:$AC$949,27,FALSE)="",-1000,VLOOKUP($D16,'All-WERTH'!$C$2:$AC$949,27,FALSE)),-1000)) -> -1000 | AN16: =IF(D16="Non-Ranked Player",-1001,IFERROR(VLOOKUP($D16,'All-WERTH'!$C$2:$AG$949,31,FALSE),-1000)) -> -0.1814175999 | AO16: =IF(ISERROR(VLOOKUP($B15,Keepers!$C$2:$D$450,2,FALSE)),B15,"") -> Justin Verlander | AP16: =IFERROR(INDEX($AO$1:$AO$949,SMALL(IF($AO$1:$AO$949<>"",ROW($AO$1:$AO$949)),ROW(AO16))),"") -> Walker Buehler
A17: Walker Buehler | B17: =IFERROR(INDEX($A$1:$A$949,SMALL(IF($A$1:$A$949<>"",ROW($A$1:$A$949)),ROW(A17))),"") -> Freddie Freeman | C17: =IFERROR(IF(L17=FALSE,"",CHOOSE(MATCH(RIGHT('Your Roto Draft'!$P$4,LEN('Your Roto Draft'!$P$4)-8),$M$1:$AN$1,0),1+SUMPRODUCT(($L$2:$L$950=TRUE)*($M$2:$M$950<M17))+COUNTIFS($L$2:L17,L17,$M$2:M17,M17)-1,1+SUMPRODUCT(($L$2:$L$950=TRUE)*($N$2:$N$950>N17))+COUNTIFS($L$2:L17,L17,$N$2:N17,N17)-1,1+SUMPRODUCT(($L$2:$L$950=TRUE)*($O$2:$O$950<O17))+COUNTIFS($L$2:L17,L17,$O$2:O17,O17)-1,1+SUMPRODUCT(($L$2:$L$950=TRUE)*($P$2:$P$950>P17))+COUNTIFS($L$2:L17,L17,$P$2:P17,P17)-1,1+SUMPRODUCT(($L$2:$L$950=TRUE)*($Q$2:$Q$950>Q17))+COUNTIFS($L$2:L17,L17,$Q$2:Q17,Q17)-1,1+SUMPRODUCT(($L$2:$L$950=TRUE)*($R$2:$R$950>R17))+COUNTIFS($L$2:L17,L17,$R$2:R17,R17)-1,1+SUMPRODUCT(($L$2:$L$950=TRUE)*($S$2:$S$950>S17))+COUNTIFS($L$2:L17,L17,$S$2:S17,S17)-1,1+SUMPRODUCT(($L$2:$L$950=TRUE)*($T$2:$T$950>T17))+COUNTIFS($L$2:L17,L17,$T$2:T17,T17)-1,1+SUMPRODUCT(($L$2:$L$950=TRUE)*($U$2:$U$950>U17))+COUNTIFS($L$2:L17,L17,$U$2:U17,U17)-1,1+SUMPRODUCT(($L$2:$L$950=TRUE)*($V$2:$V$950>V17))+COUNTIFS($L$2:L17,L17,$V$2:V17,V17)-1,1+SUMPRODUCT(($L$2:$L$950=TRUE)*($W$2:$W$950>W17))+COUNTIFS($L$2:L17,L17,$W$2:W17,W17)-1,1+SUMPRODUCT(($L$2:$L$950=TRUE)*($X$2:$X$950>X17))+COUNTIFS($L$2:L17,L17,$X$2:X17,X17)-1,1+SUMPRODUCT(($L$2:$L$950=TRUE)*($Y$2:$Y$950>Y17))+COUNTIFS($L$2:L17,L17,$Y$2:Y17,Y17)-1,1+SUMPRODUCT(($L$2:$L$950=TRUE)*($Z$2:$Z$950>Z17))+COUNTIFS($L$2:L17,L17,$Z$2:Z17,Z17)-1,1+SUMPRODUCT(($L$2:$L$950=TRUE)*($AA$2:$AA$950>AA17))+COUNTIFS($L$2:L17,L17,$AA$2:AA17,AA17)-1,1+SUMPRODUCT(($L$2:$L$950=TRUE)*($AB$2:$AB$950>AB17))+COUNTIFS($L$2:L17,L17,$AB$2:AB17,AB17)-1,1+SUMPRODUCT(($L$2:$L$950=TRUE)*($AC$2:$AC$950>AC17))+COUNTIFS($L$2:L17,L17,$AC$2:AC17,AC17)-1,1+SUMPRODUCT(($L$2:$L$950=TRUE)*($AD$2:$AD$950>AD17))+COUNTIFS($L$2:L17,L17,$AD$2:AD17,AD17)-1,1+SUMPRODUCT(($L$2:$L$950=TRUE)*($AE$2:$AE$950>AE17))+COUNTIFS($L$2:L17,L17,$AE$2:AE17,AE17)-1,1+SUMPRODUCT(($L$2:$L$950=TRUE)*($AF$2:$AF$950>AF17))+COUNTIFS($L$2:L17,L17,$AF$2:AF17,AF17)-1,1+SUMPRODUCT(($L$2:$L$950=TRUE)*($AG$2:$AG$950>AG17))+COUNTIFS($L$2:L17,L17,$AG$2:AG17,AG17)-1,1+SUMPRODUCT(($L$2:$L$950=TRUE)*($AH$2:$AH$950>AH17))+COUNTIFS($L$2:L17,L17,$AH$2:AH17,AH17)-1,1+SUMPRODUCT(($L$2:$L$950=TRUE)*($AI$2:$AI$950>AI17))+COUNTIFS($L$2:L17,L17,$AI$2:AI17,AI17)-1,1+SUMPRODUCT(($L$2:$L$950=TRUE)*($AJ$2:$AJ$950>AJ17))+COUNTIFS($L$2:L17,L17,$AJ$2:AJ17,AJ17)-1,1+SUMPRODUCT(($L$2:$L$950=TRUE)*($AK$2:$AK$950>AK17))+COUNTIFS($L$2:L17,L17,$AK$2:AK17,AK17)-1,1+SUMPRODUCT(($L$2:$L$950=TRUE)*($AL$2:$AL$950>AL17))+COUNTIFS($L$2:L17,L17,$AL$2:AL17,AL17)-1,1+SUMPRODUCT(($L$2:$L$950=TRUE)*($AM$2:$AM$950>AM17))+COUNTIFS($L$2:L17,L17,$AM$2:AM17,AM17)-1,1+SUMPRODUCT(($L$2:$L$950=TRUE)*($AN$2:$AN$950>AN17))+COUNTIFS($L$2:L17,L17,$AN$2:AN17,AN17)-1)),"") -> 631 | D17: Kolby Allard | E17: =IFERROR(INDEX('Draft Log'!$D$4:$D$806,MATCH(D17,'Draft Log'!$C$4:$C$806,0)),"") ->  | F17: =IFERROR(INDEX('ADP-Rank'!$C$2:$C$819,MATCH(D17,'ADP-Rank'!$A$2:$A$819,0)),"") -> SP | G17: =IFERROR(IF(F17=I17,"",IF(INDEX('Your Roto Draft'!$B$11:$B$634,MATCH(D17,'Your Roto Draft'!$C$11:$C$634,0))="",IF(I17<>"",I17,""),INDEX('Your Roto Draft'!$B$11:$B$634,MATCH(D17,'Your Roto Draft'!$C$11:$C$634,0)))),"") ->  | H17: SP | J17: =INDEX('ADP-Rank'!$AH$2:$AH$819,MATCH(D17,'ADP-Rank'!$A$2:$A$819,0)) -> TRUE | K17: FALSE | L17: =IF(J17=FALSE,FALSE,IF(AND('Your Roto Draft'!$P$6="Hide Drafted Players",K17=TRUE),FALSE,IF(OR('Your Roto Draft'!$P$5="Show All Positions",AND('Your Roto Draft'!$P$5="Only Show: C",H17="C"),AND('Your Roto Draft'!$P$5="Only Show: 1B",H17="1B"),AND('Your Roto Draft'!$P$5="Only Show: 2B",H17="2B"),AND('Your Roto Draft'!$P$5="Only Show: 3B",H17="3B"),AND('Your Roto Draft'!$P$5="Only Show: SS",H17="SS"),AND('Your Roto Draft'!$P$5="Only Show: OF",H17="OF"),AND('Your Roto Draft'!$P$5="Only Show: SP",H17="SP"),AND('Your Roto Draft'!$P$5="Only Show: RP",H17="RP"),AND('Your Roto Draft'!$P$5="Only Show: CI",OR(H17={"1B","3B"})),AND('Your Roto Draft'!$P$5="Only Show: MI",OR(H17={"2B","SS"})),AND('Your Roto Draft'!$P$5="Only Show: IF",OR(H17={"C","1B","2B","3B","SS"})),AND('Your Roto Draft'!$P$5="Only Show: DH",OR(H17={"C","1B","2B","3B","SS","OF","DH"})),AND('Your Roto Draft'!$P$5="Only Show: P",OR(H17={"SP","RP"})),AND('Your Roto Draft'!$P$5="Only Show: LF",ISERROR(SEARCH("LF",VLOOKUP($D17,'ADP-Rank'!$A$2:$D$948,4,FALSE)))=FALSE),AND('Your Roto Draft'!$P$5="Only Show: RF",ISERROR(SEARCH("RF",VLOOKUP($D17,'ADP-Rank'!$A$2:$D$948,4,FALSE)))=FALSE),AND('Your Roto Draft'!$P$5="Only Show: CF",ISERROR(SEARCH("CF",VLOOKUP($D17,'ADP-Rank'!$A$2:$D$948,4,FALSE)))=FALSE)),TRUE,FALSE))) -> TRUE | M17: =IFERROR(IF(VLOOKUP($D17,'ADP-Rank'!$A$2:$AV$948,38,FALSE)="",9999,VLOOKUP($D17,'ADP-Rank'!$A$2:$AV$948,38,FALSE)),9999) -> 9999 | N17: =IF(D17="Non-Ranked Player",-1001,IFERROR(VLOOKUP($D17,'All-WERTH'!$C$2:$E$949,3,FALSE),-1000)) -> -9.023007497 | O17: =IF(D17="Non-Ranked Player",10000,IFERROR(IF(VLOOKUP(D17,'ADP-Rank'!$A$2:$AJ$948,36,FALSE)="",9999,VLOOKUP(D17,'ADP-Rank'!$A$2:$AJ$948,36,FALSE)),9999)) -> 633 | P17: =IF($D17="Unlisted Player",-1001,IFERROR(IF(VLOOKUP($D17,'All-WERTH'!$C$2:$AC$949,4,FALSE)="",-1000,VLOOKUP($D17,'All-WERTH'!$C$2:$AC$949,4,FALSE)),-1000)) -> -1000 | Q17: =IF($D17="Unlisted Player",-1001,IFERROR(IF(VLOOKUP($D17,'All-WERTH'!$C$2:$AC$949,5,FALSE)="",-1000,VLOOKUP($D17,'All-WERTH'!$C$2:$AC$949,5,FALSE)),-1000)) -> -1000 | R17: =IF($D17="Unlisted Player",-1001,IFERROR(IF(VLOOKUP($D17,'All-WERTH'!$C$2:$AC$949,6,FALSE)="",-1000,VLOOKUP($D17,'All-WERTH'!$C$2:$AC$949,6,FALSE)),-1000)) -> -1000 | S17: =IF($D17="Unlisted Player",-1001,IFERROR(IF(VLOOKUP($D17,'All-WERTH'!$C$2:$AC$949,7,FALSE)="",-1000,VLOOKUP($D17,'All-WERTH'!$C$2:$AC$949,7,FALSE)),-1000)) -> -1000 | T17: =IF($D17="Unlisted Player",-1001,IFERROR(IF(VLOOKUP($D17,'All-WERTH'!$C$2:$AC$949,8,FALSE)="",-1000,VLOOKUP($D17,'All-WERTH'!$C$2:$AC$949,8,FALSE)),-1000)) -> -1000 | U17: =IF($D17="Unlisted Player",-1001,IFERROR(IF(VLOOKUP($D17,'All-WERTH'!$C$2:$AC$949,9,FALSE)="",-1000,VLOOKUP($D17,'All-WERTH'!$C$2:$AC$949,9,FALSE)),-1000)) -> -1000 | V17: =IF($D17="Unlisted Player",-1001,IFERROR(IF(VLOOKUP($D17,'All-WERTH'!$C$2:$AC$949,10,FALSE)="",-1000,VLOOKUP($D17,'All-WERTH'!$C$2:$AC$949,10,FALSE)),-1000)) -> -1000 | W17: =IF($D17="Unlisted Player",-1001,IFERROR(IF(VLOOKUP($D17,'All-WERTH'!$C$2:$AC$949,11,FALSE)="",-1000,VLOOKUP($D17,'All-WERTH'!$C$2:$AC$949,11,FALSE)),-1000)) -> -1000 | X17: =IF($D17="Unlisted Player",-1001,IFERROR(IF(VLOOKUP($D17,'All-WERTH'!$C$2:$AC$949,12,FALSE)="",-1000,VLOOKUP($D17,'All-WERTH'!$C$2:$AC$949,12,FALSE)),-1000)) -> -1000 | Y17: =IF($D17="Unlisted Player",-1001,IFERROR(IF(VLOOKUP($D17,'All-WERTH'!$C$2:$AC$949,13,FALSE)="",-1000,VLOOKUP($D17,'All-WERTH'!$C$2:$AC$949,13,FALSE)),-1000)) -> -1000 | Z17: =IF($D17="Unlisted Player",-1001,IFERROR(IF(VLOOKUP($D17,'All-WERTH'!$C$2:$AC$949,14,FALSE)="",-1000,VLOOKUP($D17,'All-WERTH'!$C$2:$AC$949,14,FALSE)),-1000)) -> -1000 | AA17: =IF($D17="Unlisted Player",-1001,IFERROR(IF(VLOOKUP($D17,'All-WERTH'!$C$2:$AC$949,15,FALSE)="",-1000,VLOOKUP($D17,'All-WERTH'!$C$2:$AC$949,15,FALSE)),-1000)) -> -1000 | AB17: =IF($D17="Unlisted Player",-1001,IFERROR(IF(VLOOKUP($D17,'All-WERTH'!$C$2:$AC$949,16,FALSE)="",-1000,VLOOKUP($D17,'All-WERTH'!$C$2:$AC$949,16,FALSE)),-1000)) -> -0.98218714 | AC17: =IF($D17="Unlisted Player",-1001,IFERROR(IF(VLOOKUP($D17,'All-WERTH'!$C$2:$AC$949,17,FALSE)="",-1000,VLOOKUP($D17,'All-WERTH'!$C$2:$AC$949,17,FALSE)),-1000)) -> -0.466236193 | AD17: =IF($D17="Unlisted Player",-1001,IFERROR(IF(VLOOKUP($D17,'All-WERTH'!$C$2:$AC$949,18,FALSE)="",-1000,VLOOKUP($D17,'All-WERTH'!$C$2:$AC$949,18,FALSE)),-1000)) -> -1.683872229 | AE17: =IF($D17="Unlisted Player",-1001,IFERROR(IF(VLOOKUP($D17,'All-WERTH'!$C$2:$AC$949,19,FALSE)="",-1000,VLOOKUP($D17,'All-WERTH'!$C$2:$AC$949,19,FALSE)),-1000)) -> -2.406507112 | AF17: =IF($D17="Unlisted Player",-1001,IFERROR(IF(VLOOKUP($D17,'All-WERTH'!$C$2:$AC$949,20,FALSE)="",-1000,VLOOKUP($D17,'All-WERTH'!$C$2:$AC$949,20,FALSE)),-1000)) -> -3.484204824 | AG17: =IF($D17="Unlisted Player",-1001,IFERROR(IF(VLOOKUP($D17,'All-WERTH'!$C$2:$AC$949,21,FALSE)="",-1000,VLOOKUP($D17,'All-WERTH'!$C$2:$AC$949,21,FALSE)),-1000)) -> -1000 | AH17: =IF($D17="Unlisted Player",-1001,IFERROR(IF(VLOOKUP($D17,'All-WERTH'!$C$2:$AC$949,22,FALSE)="",-1000,VLOOKUP($D17,'All-WERTH'!$C$2:$AC$949,22,FALSE)),-1000)) -> -1000 | AI17: =IF($D17="Unlisted Player",-1001,IFERROR(IF(VLOOKUP($D17,'All-WERTH'!$C$2:$AC$949,23,FALSE)="",-1000,VLOOKUP($D17,'All-WERTH'!$C$2:$AC$949,23,FALSE)),-1000)) -> -1000 | AJ17: =IF($D17="Unlisted Player",-1001,IFERROR(IF(VLOOKUP($D17,'All-WERTH'!$C$2:$AC$949,24,FALSE)="",-1000,VLOOKUP($D17,'All-WERTH'!$C$2:$AC$949,24,FALSE)),-1000)) -> -1000 | AK17: =IF($D17="Unlisted Player",-1001,IFERROR(IF(VLOOKUP($D17,'All-WERTH'!$C$2:$AC$949,25,FALSE)="",-1000,VLOOKUP($D17,'All-WERTH'!$C$2:$AC$949,25,FALSE)),-1000)) -> -1000 | AL17: =IF($D17="Unlisted Player",-1001,IFERROR(IF(VLOOKUP($D17,'All-WERTH'!$C$2:$AC$949,26,FALSE)="",-1000,VLOOKUP($D17,'All-WERTH'!$C$2:$AC$949,26,FALSE)),-1000)) -> -1000 | AM17: =IF($D17="Unlisted Player",-1001,IFERROR(IF(VLOOKUP($D17,'All-WERTH'!$C$2:$AC$949,27,FALSE)="",-1000,VLOOKUP($D17,'All-WERTH'!$C$2:$AC$949,27,FALSE)),-1000)) -> -1000 | AN17: =IF(D17="Non-Ranked Player",-1001,IFERROR(VLOOKUP($D17,'All-WERTH'!$C$2:$AG$949,31,FALSE),-1000)) -> -5.873993041 | AO17: =IF(ISERROR(VLOOKUP($B16,Keepers!$C$2:$D$450,2,FALSE)),B16,"") -> Walker Buehler | AP17: =IFERROR(INDEX($AO$1:$AO$949,SMALL(IF($AO$1:$AO$949<>"",ROW($AO$1:$AO$949)),ROW(AO17))),"") -> Freddie Freeman
A18: Freddie Freeman | B18: =IFERROR(INDEX($A$1:$A$949,SMALL(IF($A$1:$A$949<>"",ROW($A$1:$A$949)),ROW(A18))),"") -> Jose Ramirez | C18: =IFERROR(IF(L18=FALSE,"",CHOOSE(MATCH(RIGHT('Your Roto Draft'!$P$4,LEN('Your Roto Draft'!$P$4)-8),$M$1:$AN$1,0),1+SUMPRODUCT(($L$2:$L$950=TRUE)*($M$2:$M$950<M18))+COUNTIFS($L$2:L18,L18,$M$2:M18,M18)-1,1+SUMPRODUCT(($L$2:$L$950=TRUE)*($N$2:$N$950>N18))+COUNTIFS($L$2:L18,L18,$N$2:N18,N18)-1,1+SUMPRODUCT(($L$2:$L$950=TRUE)*($O$2:$O$950<O18))+COUNTIFS($L$2:L18,L18,$O$2:O18,O18)-1,1+SUMPRODUCT(($L$2:$L$950=TRUE)*($P$2:$P$950>P18))+COUNTIFS($L$2:L18,L18,$P$2:P18,P18)-1,1+SUMPRODUCT(($L$2:$L$950=TRUE)*($Q$2:$Q$950>Q18))+COUNTIFS($L$2:L18,L18,$Q$2:Q18,Q18)-1,1+SUMPRODUCT(($L$2:$L$950=TRUE)*($R$2:$R$950>R18))+COUNTIFS($L$2:L18,L18,$R$2:R18,R18)-1,1+SUMPRODUCT(($L$2:$L$950=TRUE)*($S$2:$S$950>S18))+COUNTIFS($L$2:L18,L18,$S$2:S18,S18)-1,1+SUMPRODUCT(($L$2:$L$950=TRUE)*($T$2:$T$950>T18))+COUNTIFS($L$2:L18,L18,$T$2:T18,T18)-1,1+SUMPRODUCT(($L$2:$L$950=TRUE)*($U$2:$U$950>U18))+COUNTIFS($L$2:L18,L18,$U$2:U18,U18)-1,1+SUMPRODUCT(($L$2:$L$950=TRUE)*($V$2:$V$950>V18))+COUNTIFS($L$2:L18,L18,$V$2:V18,V18)-1,1+SUMPRODUCT(($L$2:$L$950=TRUE)*($W$2:$W$950>W18))+COUNTIFS($L$2:L18,L18,$W$2:W18,W18)-1,1+SUMPRODUCT(($L$2:$L$950=TRUE)*($X$2:$X$950>X18))+COUNTIFS($L$2:L18,L18,$X$2:X18,X18)-1,1+SUMPRODUCT(($L$2:$L$950=TRUE)*($Y$2:$Y$950>Y18))+COUNTIFS($L$2:L18,L18,$Y$2:Y18,Y18)-1,1+SUMPRODUCT(($L$2:$L$950=TRUE)*($Z$2:$Z$950>Z18))+COUNTIFS($L$2:L18,L18,$Z$2:Z18,Z18)-1,1+SUMPRODUCT(($L$2:$L$950=TRUE)*($AA$2:$AA$950>AA18))+COUNTIFS($L$2:L18,L18,$AA$2:AA18,AA18)-1,1+SUMPRODUCT(($L$2:$L$950=TRUE)*($AB$2:$AB$950>AB18))+COUNTIFS($L$2:L18,L18,$AB$2:AB18,AB18)-1,1+SUMPRODUCT(($L$2:$L$950=TRUE)*($AC$2:$AC$950>AC18))+COUNTIFS($L$2:L18,L18,$AC$2:AC18,AC18)-1,1+SUMPRODUCT(($L$2:$L$950=TRUE)*($AD$2:$AD$950>AD18))+COUNTIFS($L$2:L18,L18,$AD$2:AD18,AD18)-1,1+SUMPRODUCT(($L$2:$L$950=TRUE)*($AE$2:$AE$950>AE18))+COUNTIFS($L$2:L18,L18,$AE$2:AE18,AE18)-1,1+SUMPRODUCT(($L$2:$L$950=TRUE)*($AF$2:$AF$950>AF18))+COUNTIFS($L$2:L18,L18,$AF$2:AF18,AF18)-1,1+SUMPRODUCT(($L$2:$L$950=TRUE)*($AG$2:$AG$950>AG18))+COUNTIFS($L$2:L18,L18,$AG$2:AG18,AG18)-1,1+SUMPRODUCT(($L$2:$L$950=TRUE)*($AH$2:$AH$950>AH18))+COUNTIFS($L$2:L18,L18,$AH$2:AH18,AH18)-1,1+SUMPRODUCT(($L$2:$L$950=TRUE)*($AI$2:$AI$950>AI18))+COUNTIFS($L$2:L18,L18,$AI$2:AI18,AI18)-1,1+SUMPRODUCT(($L$2:$L$950=TRUE)*($AJ$2:$AJ$950>AJ18))+COUNTIFS($L$2:L18,L18,$AJ$2:AJ18,AJ18)-1,1+SUMPRODUCT(($L$2:$L$950=TRUE)*($AK$2:$AK$950>AK18))+COUNTIFS($L$2:L18,L18,$AK$2:AK18,AK18)-1,1+SUMPRODUCT(($L$2:$L$950=TRUE)*($AL$2:$AL$950>AL18))+COUNTIFS($L$2:L18,L18,$AL$2:AL18,AL18)-1,1+SUMPRODUCT(($L$2:$L$950=TRUE)*($AM$2:$AM$950>AM18))+COUNTIFS($L$2:L18,L18,$AM$2:AM18,AM18)-1,1+SUMPRODUCT(($L$2:$L$950=TRUE)*($AN$2:$AN$950>AN18))+COUNTIFS($L$2:L18,L18,$AN$2:AN18,AN18)-1)),"") -> 547 | D18: Austin Allen | E18: =IFERROR(INDEX('Draft Log'!$D$4:$D$806,MATCH(D18,'Draft Log'!$C$4:$C$806,0)),"") ->  | F18: =IFERROR(INDEX('ADP-Rank'!$C$2:$C$819,MATCH(D18,'ADP-Rank'!$A$2:$A$819,0)),"") -> C | G18: =IFERROR(IF(F18=I18,"",IF(INDEX('Your Roto Draft'!$B$11:$B$634,MATCH(D18,'Your Roto Draft'!$C$11:$C$634,0))="",IF(I18<>"",I18,""),INDEX('Your Roto Draft'!$B$11:$B$634,MATCH(D18,'Your Roto Draft'!$C$11:$C$634,0)))),"") ->  | H18: C | J18: =INDEX('ADP-Rank'!$AH$2:$AH$819,MATCH(D18,'ADP-Rank'!$A$2:$A$819,0)) -> TRUE | K18: FALSE | L18: =IF(J18=FALSE,FALSE,IF(AND('Your Roto Draft'!$P$6="Hide Drafted Players",K18=TRUE),FALSE,IF(OR('Your Roto Draft'!$P$5="Show All Positions",AND('Your Roto Draft'!$P$5="Only Show: C",H18="C"),AND('Your Roto Draft'!$P$5="Only Show: 1B",H18="1B"),AND('Your Roto Draft'!$P$5="Only Show: 2B",H18="2B"),AND('Your Roto Draft'!$P$5="Only Show: 3B",H18="3B"),AND('Your Roto Draft'!$P$5="Only Show: SS",H18="SS"),AND('Your Roto Draft'!$P$5="Only Show: OF",H18="OF"),AND('Your Roto Draft'!$P$5="Only Show: SP",H18="SP"),AND('Your Roto Draft'!$P$5="Only Show: RP",H18="RP"),AND('Your Roto Draft'!$P$5="Only Show: CI",OR(H18={"1B","3B"})),AND('Your Roto Draft'!$P$5="Only Show: MI",OR(H18={"2B","SS"})),AND('Your Roto Draft'!$P$5="Only Show: IF",OR(H18={"C","1B","2B","3B","SS"})),AND('Your Roto Draft'!$P$5="Only Show: DH",OR(H18={"C","1B","2B","3B","SS","OF","DH"})),AND('Your Roto Draft'!$P$5="Only Show: P",OR(H18={"SP","RP"})),AND('Your Roto Draft'!$P$5="Only Show: LF",ISERROR(SEARCH("LF",VLOOKUP($D18,'ADP-Rank'!$A$2:$D$948,4,FALSE)))=FALSE),AND('Your Roto Draft'!$P$5="Only Show: RF",ISERROR(SEARCH("RF",VLOOKUP($D18,'ADP-Rank'!$A$2:$D$948,4,FALSE)))=FALSE),AND('Your Roto Draft'!$P$5="Only Show: CF",ISERROR(SEARCH("CF",VLOOKUP($D18,'ADP-Rank'!$A$2:$D$948,4,FALSE)))=FALSE)),TRUE,FALSE))) -> TRUE | M18: =IFERROR(IF(VLOOKUP($D18,'ADP-Rank'!$A$2:$AV$948,38,FALSE)="",9999,VLOOKUP($D18,'ADP-Rank'!$A$2:$AV$948,38,FALSE)),9999) -> 547 | N18: =IF(D18="Non-Ranked Player",-1001,IFERROR(VLOOKUP($D18,'All-WERTH'!$C$2:$E$949,3,FALSE),-1000)) -> -9.412967494 | O18: =IF(D18="Non-Ranked Player",10000,IFERROR(IF(VLOOKUP(D18,'ADP-Rank'!$A$2:$AJ$948,36,FALSE)="",9999,VLOOKUP(D18,'ADP-Rank'!$A$2:$AJ$948,36,FALSE)),9999)) -> 668 | P18: =IF($D18="Unlisted Player",-1001,IFERROR(IF(VLOOKUP($D18,'All-WERTH'!$C$2:$AC$949,4,FALSE)="",-1000,VLOOKUP($D18,'All-WERTH'!$C$2:$AC$949,4,FALSE)),-1000)) -> -1.085051889 | Q18: =IF($D18="Unlisted Player",-1001,IFERROR(IF(VLOOKUP($D18,'All-WERTH'!$C$2:$AC$949,5,FALSE)="",-1000,VLOOKUP($D18,'All-WERTH'!$C$2:$AC$949,5,FALSE)),-1000)) -> -2.048507187 | R18: =IF($D18="Unlisted Player",-1001,IFERROR(IF(VLOOKUP($D18,'All-WERTH'!$C$2:$AC$949,6,FALSE)="",-1000,VLOOKUP($D18,'All-WERTH'!$C$2:$AC$949,6,FALSE)),-1000)) -> -2.882502254 | S18: =IF($D18="Unlisted Player",-1001,IFERROR(IF(VLOOKUP($D18,'All-WERTH'!$C$2:$AC$949,7,FALSE)="",-1000,VLOOKUP($D18,'All-WERTH'!$C$2:$AC$949,7,FALSE)),-1000)) -> -2.303827026 | T18: =IF($D18="Unlisted Player",-1001,IFERROR(IF(VLOOKUP($D18,'All-WERTH'!$C$2:$AC$949,8,FALSE)="",-1000,VLOOKUP($D18,'All-WERTH'!$C$2:$AC$949,8,FALSE)),-1000)) -> -1.093079139 | U18: =IF($D18="Unlisted Player",-1001,IFERROR(IF(VLOOKUP($D18,'All-WERTH'!$C$2:$AC$949,9,FALSE)="",-1000,VLOOKUP($D18,'All-WERTH'!$C$2:$AC$949,9,FALSE)),-1000)) -> -1000 | V18: =IF($D18="Unlisted Player",-1001,IFERROR(IF(VLOOKUP($D18,'All-WERTH'!$C$2:$AC$949,10,FALSE)="",-1000,VLOOKUP($D18,'All-WERTH'!$C$2:$AC$949,10,FALSE)),-1000)) -> -1000 | W18: =IF($D18="Unlisted Player",-1001,IFERROR(IF(VLOOKUP($D18,'All-WERTH'!$C$2:$AC$949,11,FALSE)="",-1000,VLOOKUP($D18,'All-WERTH'!$C$2:$AC$949,11,FALSE)),-1000)) -> -1000 | X18: =IF($D18="Unlisted Player",-1001,IFERROR(IF(VLOOKUP($D18,'All-WERTH'!$C$2:$AC$949,12,FALSE)="",-1000,VLOOKUP($D18,'All-WERTH'!$C$2:$AC$949,12,FALSE)),-1000)) -> -1000 | Y18: =IF($D18="Unlisted Player",-1001,IFERROR(IF(VLOOKUP($D18,'All-WERTH'!$C$2:$AC$949,13,FALSE)="",-1000,VLOOKUP($D18,'All-WERTH'!$C$2:$AC$949,13,FALSE)),-1000)) -> -1000 | Z18: =IF($D18="Unlisted Player",-1001,IFERROR(IF(VLOOKUP($D18,'All-WERTH'!$C$2:$AC$949,14,FALSE)="",-1000,VLOOKUP($D18,'All-WERTH'!$C$2:$AC$949,14,FALSE)),-1000)) -> -1000 | AA18: =IF($D18="Unlisted Player",-1001,IFERROR(IF(VLOOKUP($D18,'All-WERTH'!$C$2:$AC$949,15,FALSE)="",-1000,VLOOKUP($D18,'All-WERTH'!$C$2:$AC$949,15,FALSE)),-1000)) -> -1000 | AB18: =IF($D18="Unlisted Player",-1001,IFERROR(IF(VLOOKUP($D18,'All-WERTH'!$C$2:$AC$949,16,FALSE)="",-1000,VLOOKUP($D18,'All-WERTH'!$C$2:$AC$949,16,FALSE)),-1000)) -> -1000 | AC18: =IF($D18="Unlisted Player",-1001,IFERROR(IF(VLOOKUP($D18,'All-WERTH'!$C$2:$AC$949,17,FALSE)="",-1000,VLOOKUP($D18,'All-WERTH'!$C$2:$AC$949,17,FALSE)),-1000)) -> -1000 | AD18: =IF($D18="Unlisted Player",-1001,IFERROR(IF(VLOOKUP($D18,'All-WERTH'!$C$2:$AC$949,18,FALSE)="",-1000,VLOOKUP($D18,'All-WERTH'!$C$2:$AC$949,18,FALSE)),-1000)) -> -1000 | AE18: =IF($D18="Unlisted Player",-1001,IFERROR(IF(VLOOKUP($D18,'All-WERTH'!$C$2:$AC$949,19,FALSE)="",-1000,VLOOKUP($D18,'All-WERTH'!$C$2:$AC$949,19,FALSE)),-1000)) -> -1000 | AF18: =IF($D18="Unlisted Player",-1001,IFERROR(IF(VLOOKUP($D18,'All-WERTH'!$C$2:$AC$949,20,FALSE)="",-1000,VLOOKUP($D18,'All-WERTH'!$C$2:$AC$949,20,FALSE)),-1000)) -> -1000 | AG18: =IF($D18="Unlisted Player",-1001,IFERROR(IF(VLOOKUP($D18,'All-WERTH'!$C$2:$AC$949,21,FALSE)="",-1000,VLOOKUP($D18,'All-WERTH'!$C$2:$AC$949,21,FALSE)),-1000)) -> -1000 | AH18: =IF($D18="Unlisted Player",-1001,IFERROR(IF(VLOOKUP($D18,'All-WERTH'!$C$2:$AC$949,22,FALSE)="",-1000,VLOOKUP($D18,'All-WERTH'!$C$2:$AC$949,22,FALSE)),-1000)) -> -1000 | AI18: =IF($D18="Unlisted Player",-1001,IFERROR(IF(VLOOKUP($D18,'All-WERTH'!$C$2:$AC$949,23,FALSE)="",-1000,VLOOKUP($D18,'All-WERTH'!$C$2:$AC$949,23,FALSE)),-1000)) -> -1000 | AJ18: =IF($D18="Unlisted Player",-1001,IFERROR(IF(VLOOKUP($D18,'All-WERTH'!$C$2:$AC$949,24,FALSE)="",-1000,VLOOKUP($D18,'All-WERTH'!$C$2:$AC$949,24,FALSE)),-1000)) -> -1000 | AK18: =IF($D18="Unlisted Player",-1001,IFERROR(IF(VLOOKUP($D18,'All-WERTH'!$C$2:$AC$949,25,FALSE)="",-1000,VLOOKUP($D18,'All-WERTH'!$C$2:$AC$949,25,FALSE)),-1000)) -> -1000 | AL18: =IF($D18="Unlisted Player",-1001,IFERROR(IF(VLOOKUP($D18,'All-WERTH'!$C$2:$AC$949,26,FALSE)="",-1000,VLOOKUP($D18,'All-WERTH'!$C$2:$AC$949,26,FALSE)),-1000)) -> -1000 | AM18: =IF($D18="Unlisted Player",-1001,IFERROR(IF(VLOOKUP($D18,'All-WERTH'!$C$2:$AC$949,27,FALSE)="",-1000,VLOOKUP($D18,'All-WERTH'!$C$2:$AC$949,27,FALSE)),-1000)) -> -1000 | AN18: =IF(D18="Non-Ranked Player",-1001,IFERROR(VLOOKUP($D18,'All-WERTH'!$C$2:$AG$949,31,FALSE),-1000)) -> -1.867710668 | AO18: =IF(ISERROR(VLOOKUP($B17,Keepers!$C$2:$D$450,2,FALSE)),B17,"") -> Freddie Freeman | AP18: =IFERROR(INDEX($AO$1:$AO$949,SMALL(IF($AO$1:$AO$949<>"",ROW($AO$1:$AO$949)),ROW(AO18))),"") -> Jose Ramirez
A19: Jose Ramirez | B19: =IFERROR(INDEX($A$1:$A$949,SMALL(IF($A$1:$A$949<>"",ROW($A$1:$A$949)),ROW(A19))),"") -> Fernando Tatis Jr. | C19: =IFERROR(IF(L19=FALSE,"",CHOOSE(MATCH(RIGHT('Your Roto Draft'!$P$4,LEN('Your Roto Draft'!$P$4)-8),$M$1:$AN$1,0),1+SUMPRODUCT(($L$2:$L$950=TRUE)*($M$2:$M$950<M19))+COUNTIFS($L$2:L19,L19,$M$2:M19,M19)-1,1+SUMPRODUCT(($L$2:$L$950=TRUE)*($N$2:$N$950>N19))+COUNTIFS($L$2:L19,L19,$N$2:N19,N19)-1,1+SUMPRODUCT(($L$2:$L$950=TRUE)*($O$2:$O$950<O19))+COUNTIFS($L$2:L19,L19,$O$2:O19,O19)-1,1+SUMPRODUCT(($L$2:$L$950=TRUE)*($P$2:$P$950>P19))+COUNTIFS($L$2:L19,L19,$P$2:P19,P19)-1,1+SUMPRODUCT(($L$2:$L$950=TRUE)*($Q$2:$Q$950>Q19))+COUNTIFS($L$2:L19,L19,$Q$2:Q19,Q19)-1,1+SUMPRODUCT(($L$2:$L$950=TRUE)*($R$2:$R$950>R19))+COUNTIFS($L$2:L19,L19,$R$2:R19,R19)-1,1+SUMPRODUCT(($L$2:$L$950=TRUE)*($S$2:$S$950>S19))+COUNTIFS($L$2:L19,L19,$S$2:S19,S19)-1,1+SUMPRODUCT(($L$2:$L$950=TRUE)*($T$2:$T$950>T19))+COUNTIFS($L$2:L19,L19,$T$2:T19,T19)-1,1+SUMPRODUCT(($L$2:$L$950=TRUE)*($U$2:$U$950>U19))+COUNTIFS($L$2:L19,L19,$U$2:U19,U19)-1,1+SUMPRODUCT(($L$2:$L$950=TRUE)*($V$2:$V$950>V19))+COUNTIFS($L$2:L19,L19,$V$2:V19,V19)-1,1+SUMPRODUCT(($L$2:$L$950=TRUE)*($W$2:$W$950>W19))+COUNTIFS($L$2:L19,L19,$W$2:W19,W19)-1,1+SUMPRODUCT(($L$2:$L$950=TRUE)*($X$2:$X$950>X19))+COUNTIFS($L$2:L19,L19,$X$2:X19,X19)-1,1+SUMPRODUCT(($L$2:$L$950=TRUE)*($Y$2:$Y$950>Y19))+COUNTIFS($L$2:L19,L19,$Y$2:Y19,Y19)-1,1+SUMPRODUCT(($L$2:$L$950=TRUE)*($Z$2:$Z$950>Z19))+COUNTIFS($L$2:L19,L19,$Z$2:Z19,Z19)-1,1+SUMPRODUCT(($L$2:$L$950=TRUE)*($AA$2:$AA$950>AA19))+COUNTIFS($L$2:L19,L19,$AA$2:AA19,AA19)-1,1+SUMPRODUCT(($L$2:$L$950=TRUE)*($AB$2:$AB$950>AB19))+COUNTIFS($L$2:L19,L19,$AB$2:AB19,AB19)-1,1+SUMPRODUCT(($L$2:$L$950=TRUE)*($AC$2:$AC$950>AC19))+COUNTIFS($L$2:L19,L19,$AC$2:AC19,AC19)-1,1+SUMPRODUCT(($L$2:$L$950=TRUE)*($AD$2:$AD$950>AD19))+COUNTIFS($L$2:L19,L19,$AD$2:AD19,AD19)-1,1+SUMPRODUCT(($L$2:$L$950=TRUE)*($AE$2:$AE$950>AE19))+COUNTIFS($L$2:L19,L19,$AE$2:AE19,AE19)-1,1+SUMPRODUCT(($L$2:$L$950=TRUE)*($AF$2:$AF$950>AF19))+COUNTIFS($L$2:L19,L19,$AF$2:AF19,AF19)-1,1+SUMPRODUCT(($L$2:$L$950=TRUE)*($AG$2:$AG$950>AG19))+COUNTIFS($L$2:L19,L19,$AG$2:AG19,AG19)-1,1+SUMPRODUCT(($L$2:$L$950=TRUE)*($AH$2:$AH$950>AH19))+COUNTIFS($L$2:L19,L19,$AH$2:AH19,AH19)-1,1+SUMPRODUCT(($L$2:$L$950=TRUE)*($AI$2:$AI$950>AI19))+COUNTIFS($L$2:L19,L19,$AI$2:AI19,AI19)-1,1+SUMPRODUCT(($L$2:$L$950=TRUE)*($AJ$2:$AJ$950>AJ19))+COUNTIFS($L$2:L19,L19,$AJ$2:AJ19,AJ19)-1,1+SUMPRODUCT(($L$2:$L$950=TRUE)*($AK$2:$AK$950>AK19))+COUNTIFS($L$2:L19,L19,$AK$2:AK19,AK19)-1,1+SUMPRODUCT(($L$2:$L$950=TRUE)*($AL$2:$AL$950>AL19))+COUNTIFS($L$2:L19,L19,$AL$2:AL19,AL19)-1,1+SUMPRODUCT(($L$2:$L$950=TRUE)*($AM$2:$AM$950>AM19))+COUNTIFS($L$2:L19,L19,$AM$2:AM19,AM19)-1,1+SUMPRODUCT(($L$2:$L$950=TRUE)*($AN$2:$AN$950>AN19))+COUNTIFS($L$2:L19,L19,$AN$2:AN19,AN19)-1)),"") -> 632 | D19: Greg Allen | E19: =IFERROR(INDEX('Draft Log'!$D$4:$D$806,MATCH(D19,'Draft Log'!$C$4:$C$806,0)),"") ->  | F19: =IFERROR(INDEX('ADP-Rank'!$C$2:$C$819,MATCH(D19,'ADP-Rank'!$A$2:$A$819,0)),"") -> OF | G19: =IFERROR(IF(F19=I19,"",IF(INDEX('Your Roto Draft'!$B$11:$B$634,MATCH(D19,'Your Roto Draft'!$C$11:$C$634,0))="",IF(I19<>"",I19,""),INDEX('Your Roto Draft'!$B$11:$B$634,MATCH(D19,'Your Roto Draft'!$C$11:$C$634,0)))),"") ->  | H19: OF | J19: =INDEX('ADP-Rank'!$AH$2:$AH$819,MATCH(D19,'ADP-Rank'!$A$2:$A$819,0)) -> TRUE | K19: FALSE | L19: =IF(J19=FALSE,FALSE,IF(AND('Your Roto Draft'!$P$6="Hide Drafted Players",K19=TRUE),FALSE,IF(OR('Your Roto Draft'!$P$5="Show All Positions",AND('Your Roto Draft'!$P$5="Only Show: C",H19="C"),AND('Your Roto Draft'!$P$5="Only Show: 1B",H19="1B"),AND('Your Roto Draft'!$P$5="Only Show: 2B",H19="2B"),AND('Your Roto Draft'!$P$5="Only Show: 3B",H19="3B"),AND('Your Roto Draft'!$P$5="Only Show: SS",H19="SS"),AND('Your Roto Draft'!$P$5="Only Show: OF",H19="OF"),AND('Your Roto Draft'!$P$5="Only Show: SP",H19="SP"),AND('Your Roto Draft'!$P$5="Only Show: RP",H19="RP"),AND('Your Roto Draft'!$P$5="Only Show: CI",OR(H19={"1B","3B"})),AND('Your Roto Draft'!$P$5="Only Show: MI",OR(H19={"2B","SS"})),AND('Your Roto Draft'!$P$5="Only Show: IF",OR(H19={"C","1B","2B","3B","SS"})),AND('Your Roto Draft'!$P$5="Only Show: DH",OR(H19={"C","1B","2B","3B","SS","OF","DH"})),AND('Your Roto Draft'!$P$5="Only Show: P",OR(H19={"SP","RP"})),AND('Your Roto Draft'!$P$5="Only Show: LF",ISERROR(SEARCH("LF",VLOOKUP($D19,'ADP-Rank'!$A$2:$D$948,4,FALSE)))=FALSE),AND('Your Roto Draft'!$P$5="Only Show: RF",ISERROR(SEARCH("RF",VLOOKUP($D19,'ADP-Rank'!$A$2:$D$948,4,FALSE)))=FALSE),AND('Your Roto Draft'!$P$5="Only Show: CF",ISERROR(SEARCH("CF",VLOOKUP($D19,'ADP-Rank'!$A$2:$D$948,4,FALSE)))=FALSE)),TRUE,FALSE))) -> TRUE | M19: =IFERROR(IF(VLOOKUP($D19,'ADP-Rank'!$A$2:$AV$948,38,FALSE)="",9999,VLOOKUP($D19,'ADP-Rank'!$A$2:$AV$948,38,FALSE)),9999) -> 9999 | N19: =IF(D19="Non-Ranked Player",-1001,IFERROR(VLOOKUP($D19,'All-WERTH'!$C$2:$E$949,3,FALSE),-1000)) -> -8.988077833 | O19: =IF(D19="Non-Ranked Player",10000,IFERROR(IF(VLOOKUP(D19,'ADP-Rank'!$A$2:$AJ$948,36,FALSE)="",9999,VLOOKUP(D19,'ADP-Rank'!$A$2:$AJ$948,36,FALSE)),9999)) -> 637 | P19: =IF($D19="Unlisted Player",-1001,IFERROR(IF(VLOOKUP($D19,'All-WERTH'!$C$2:$AC$949,4,FALSE)="",-1000,VLOOKUP($D19,'All-WERTH'!$C$2:$AC$949,4,FALSE)),-1000)) -> -0.876673639 | Q19: =IF($D19="Unlisted Player",-1001,IFERROR(IF(VLOOKUP($D19,'All-WERTH'!$C$2:$AC$949,5,FALSE)="",-1000,VLOOKUP($D19,'All-WERTH'!$C$2:$AC$949,5,FALSE)),-1000)) -> -2.600793147 | R19: =IF($D19="Unlisted Player",-1001,IFERROR(IF(VLOOKUP($D19,'All-WERTH'!$C$2:$AC$949,6,FALSE)="",-1000,VLOOKUP($D19,'All-WERTH'!$C$2:$AC$949,6,FALSE)),-1000)) -> -2.682443934 | S19: =IF($D19="Unlisted Player",-1001,IFERROR(IF(VLOOKUP($D19,'All-WERTH'!$C$2:$AC$949,7,FALSE)="",-1000,VLOOKUP($D19,'All-WERTH'!$C$2:$AC$949,7,FALSE)),-1000)) -> -3.044642693 | T19: =IF($D19="Unlisted Player",-1001,IFERROR(IF(VLOOKUP($D19,'All-WERTH'!$C$2:$AC$949,8,FALSE)="",-1000,VLOOKUP($D19,'All-WERTH'!$C$2:$AC$949,8,FALSE)),-1000)) -> 0.216475579 | U19: =IF($D19="Unlisted Player",-1001,IFERROR(IF(VLOOKUP($D19,'All-WERTH'!$C$2:$AC$949,9,FALSE)="",-1000,VLOOKUP($D19,'All-WERTH'!$C$2:$AC$949,9,FALSE)),-1000)) -> -1000 | V19: =IF($D19="Unlisted Player",-1001,IFERROR(IF(VLOOKUP($D19,'All-WERTH'!$C$2:$AC$949,10,FALSE)="",-1000,VLOOKUP($D19,'All-WERTH'!$C$2:$AC$949,10,FALSE)),-1000)) -> -1000 | W19: =IF($D19="Unlisted Player",-1001,IFERROR(IF(VLOOKUP($D19,'All-WERTH'!$C$2:$AC$949,11,FALSE)="",-1000,VLOOKUP($D19,'All-WERTH'!$C$2:$AC$949,11,FALSE)),-1000)) -> -1000 | X19: =IF($D19="Unlisted Player",-1001,IFERROR(IF(VLOOKUP($D19,'All-WERTH'!$C$2:$AC$949,12,FALSE)="",-1000,VLOOKUP($D19,'All-WERTH'!$C$2:$AC$949,12,FALSE)),-1000)) -> -1000 | Y19: =IF($D19="Unlisted Player",-1001,IFERROR(IF(VLOOKUP($D19,'All-WERTH'!$C$2:$AC$949,13,FALSE)="",-1000,VLOOKUP($D19,'All-WERTH'!$C$2:$AC$949,13,FALSE)),-1000)) -> -1000 | Z19: =IF($D19="Unlisted Player",-1001,IFERROR(IF(VLOOKUP($D19,'All-WERTH'!$C$2:$AC$949,14,FALSE)="",-1000,VLOOKUP($D19,'All-WERTH'!$C$2:$AC$949,14,FALSE)),-1000)) -> -1000 | AA19: =IF($D19="Unlisted Player",-1001,IFERROR(IF(VLOOKUP($D19,'All-WERTH'!$C$2:$AC$949,15,FALSE)="",-1000,VLOOKUP($D19,'All-WERTH'!$C$2:$AC$949,15,FALSE)),-1000)) -> -1000 | AB19: =IF($D19="Unlisted Player",-1001,IFERROR(IF(VLOOKUP($D19,'All-WERTH'!$C$2:$AC$949,16,FALSE)="",-1000,VLOOKUP($D19,'All-WERTH'!$C$2:$AC$949,16,FALSE)),-1000)) -> -1000 | AC19: =IF($D19="Unlisted Player",-1001,IFERROR(IF(VLOOKUP($D19,'All-WERTH'!$C$2:$AC$949,17,FALSE)="",-1000,VLOOKUP($D19,'All-WERTH'!$C$2:$AC$949,17,FALSE)),-1000)) -> -1000 | AD19: =IF($D19="Unlisted Player",-1001,IFERROR(IF(VLOOKUP($D19,'All-WERTH'!$C$2:$AC$949,18,FALSE)="",-1000,VLOOKUP($D19,'All-WERTH'!$C$2:$AC$949,18,FALSE)),-1000)) -> -1000 | AE19: =IF($D19="Unlisted Player",-1001,IFERROR(IF(VLOOKUP($D19,'All-WERTH'!$C$2:$AC$949,19,FALSE)="",-1000,VLOOKUP($D19,'All-WERTH'!$C$2:$AC$949,19,FALSE)),-1000)) -> -1000 | AF19: =IF($D19="Unlisted Player",-1001,IFERROR(IF(VLOOKUP($D19,'All-WERTH'!$C$2:$AC$949,20,FALSE)="",-1000,VLOOKUP($D19,'All-WERTH'!$C$2:$AC$949,20,FALSE)),-1000)) -> -1000 | AG19: =IF($D19="Unlisted Player",-1001,IFERROR(IF(VLOOKUP($D19,'All-WERTH'!$C$2:$AC$949,21,FALSE)="",-1000,VLOOKUP($D19,'All-WERTH'!$C$2:$AC$949,21,FALSE)),-1000)) -> -1000 | AH19: =IF($D19="Unlisted Player",-1001,IFERROR(IF(VLOOKUP($D19,'All-WERTH'!$C$2:$AC$949,22,FALSE)="",-1000,VLOOKUP($D19,'All-WERTH'!$C$2:$AC$949,22,FALSE)),-1000)) -> -1000 | AI19: =IF($D19="Unlisted Player",-1001,IFERROR(IF(VLOOKUP($D19,'All-WERTH'!$C$2:$AC$949,23,FALSE)="",-1000,VLOOKUP($D19,'All-WERTH'!$C$2:$AC$949,23,FALSE)),-1000)) -> -1000 | AJ19: =IF($D19="Unlisted Player",-1001,IFERROR(IF(VLOOKUP($D19,'All-WERTH'!$C$2:$AC$949,24,FALSE)="",-1000,VLOOKUP($D19,'All-WERTH'!$C$2:$AC$949,24,FALSE)),-1000)) -> -1000 | AK19: =IF($D19="Unlisted Player",-1001,IFERROR(IF(VLOOKUP($D19,'All-WERTH'!$C$2:$AC$949,25,FALSE)="",-1000,VLOOKUP($D19,'All-WERTH'!$C$2:$AC$949,25,FALSE)),-1000)) -> -1000 | AL19: =IF($D19="Unlisted Player",-1001,IFERROR(IF(VLOOKUP($D19,'All-WERTH'!$C$2:$AC$949,26,FALSE)="",-1000,VLOOKUP($D19,'All-WERTH'!$C$2:$AC$949,26,FALSE)),-1000)) -> -1000 | AM19: =IF($D19="Unlisted Player",-1001,IFERROR(IF(VLOOKUP($D19,'All-WERTH'!$C$2:$AC$949,27,FALSE)="",-1000,VLOOKUP($D19,'All-WERTH'!$C$2:$AC$949,27,FALSE)),-1000)) -> -1000 | AN19: =IF(D19="Non-Ranked Player",-1001,IFERROR(VLOOKUP($D19,'All-WERTH'!$C$2:$AG$949,31,FALSE),-1000)) -> -5.235756317 | AO19: =IF(ISERROR(VLOOKUP($B18,Keepers!$C$2:$D$450,2,FALSE)),B18,"") -> Jose Ramirez | AP19: =IFERROR(INDEX($AO$1:$AO$949,SMALL(IF($AO$1:$AO$949<>"",ROW($AO$1:$AO$949)),ROW(AO19))),"") -> Fernando Tatis Jr.
A20: Fernando Tatis Jr. | B20: =IFERROR(INDEX($A$1:$A$949,SMALL(IF($A$1:$A$949<>"",ROW($A$1:$A$949)),ROW(A20))),"") -> Anthony Rendon | C20: =IFERROR(IF(L20=FALSE,"",CHOOSE(MATCH(RIGHT('Your Roto Draft'!$P$4,LEN('Your Roto Draft'!$P$4)-8),$M$1:$AN$1,0),1+SUMPRODUCT(($L$2:$L$950=TRUE)*($M$2:$M$950<M20))+COUNTIFS($L$2:L20,L20,$M$2:M20,M20)-1,1+SUMPRODUCT(($L$2:$L$950=TRUE)*($N$2:$N$950>N20))+COUNTIFS($L$2:L20,L20,$N$2:N20,N20)-1,1+SUMPRODUCT(($L$2:$L$950=TRUE)*($O$2:$O$950<O20))+COUNTIFS($L$2:L20,L20,$O$2:O20,O20)-1,1+SUMPRODUCT(($L$2:$L$950=TRUE)*($P$2:$P$950>P20))+COUNTIFS($L$2:L20,L20,$P$2:P20,P20)-1,1+SUMPRODUCT(($L$2:$L$950=TRUE)*($Q$2:$Q$950>Q20))+COUNTIFS($L$2:L20,L20,$Q$2:Q20,Q20)-1,1+SUMPRODUCT(($L$2:$L$950=TRUE)*($R$2:$R$950>R20))+COUNTIFS($L$2:L20,L20,$R$2:R20,R20)-1,1+SUMPRODUCT(($L$2:$L$950=TRUE)*($S$2:$S$950>S20))+COUNTIFS($L$2:L20,L20,$S$2:S20,S20)-1,1+SUMPRODUCT(($L$2:$L$950=TRUE)*($T$2:$T$950>T20))+COUNTIFS($L$2:L20,L20,$T$2:T20,T20)-1,1+SUMPRODUCT(($L$2:$L$950=TRUE)*($U$2:$U$950>U20))+COUNTIFS($L$2:L20,L20,$U$2:U20,U20)-1,1+SUMPRODUCT(($L$2:$L$950=TRUE)*($V$2:$V$950>V20))+COUNTIFS($L$2:L20,L20,$V$2:V20,V20)-1,1+SUMPRODUCT(($L$2:$L$950=TRUE)*($W$2:$W$950>W20))+COUNTIFS($L$2:L20,L20,$W$2:W20,W20)-1,1+SUMPRODUCT(($L$2:$L$950=TRUE)*($X$2:$X$950>X20))+COUNTIFS($L$2:L20,L20,$X$2:X20,X20)-1,1+SUMPRODUCT(($L$2:$L$950=TRUE)*($Y$2:$Y$950>Y20))+COUNTIFS($L$2:L20,L20,$Y$2:Y20,Y20)-1,1+SUMPRODUCT(($L$2:$L$950=TRUE)*($Z$2:$Z$950>Z20))+COUNTIFS($L$2:L20,L20,$Z$2:Z20,Z20)-1,1+SUMPRODUCT(($L$2:$L$950=TRUE)*($AA$2:$AA$950>AA20))+COUNTIFS($L$2:L20,L20,$AA$2:AA20,AA20)-1,1+SUMPRODUCT(($L$2:$L$950=TRUE)*($AB$2:$AB$950>AB20))+COUNTIFS($L$2:L20,L20,$AB$2:AB20,AB20)-1,1+SUMPRODUCT(($L$2:$L$950=TRUE)*($AC$2:$AC$950>AC20))+COUNTIFS($L$2:L20,L20,$AC$2:AC20,AC20)-1,1+SUMPRODUCT(($L$2:$L$950=TRUE)*($AD$2:$AD$950>AD20))+COUNTIFS($L$2:L20,L20,$AD$2:AD20,AD20)-1,1+SUMPRODUCT(($L$2:$L$950=TRUE)*($AE$2:$AE$950>AE20))+COUNTIFS($L$2:L20,L20,$AE$2:AE20,AE20)-1,1+SUMPRODUCT(($L$2:$L$950=TRUE)*($AF$2:$AF$950>AF20))+COUNTIFS($L$2:L20,L20,$AF$2:AF20,AF20)-1,1+SUMPRODUCT(($L$2:$L$950=TRUE)*($AG$2:$AG$950>AG20))+COUNTIFS($L$2:L20,L20,$AG$2:AG20,AG20)-1,1+SUMPRODUCT(($L$2:$L$950=TRUE)*($AH$2:$AH$950>AH20))+COUNTIFS($L$2:L20,L20,$AH$2:AH20,AH20)-1,1+SUMPRODUCT(($L$2:$L$950=TRUE)*($AI$2:$AI$950>AI20))+COUNTIFS($L$2:L20,L20,$AI$2:AI20,AI20)-1,1+SUMPRODUCT(($L$2:$L$950=TRUE)*($AJ$2:$AJ$950>AJ20))+COUNTIFS($L$2:L20,L20,$AJ$2:AJ20,AJ20)-1,1+SUMPRODUCT(($L$2:$L$950=TRUE)*($AK$2:$AK$950>AK20))+COUNTIFS($L$2:L20,L20,$AK$2:AK20,AK20)-1,1+SUMPRODUCT(($L$2:$L$950=TRUE)*($AL$2:$AL$950>AL20))+COUNTIFS($L$2:L20,L20,$AL$2:AL20,AL20)-1,1+SUMPRODUCT(($L$2:$L$950=TRUE)*($AM$2:$AM$950>AM20))+COUNTIFS($L$2:L20,L20,$AM$2:AM20,AM20)-1,1+SUMPRODUCT(($L$2:$L$950=TRUE)*($AN$2:$AN$950>AN20))+COUNTIFS($L$2:L20,L20,$AN$2:AN20,AN20)-1)),"") -> 633 | D20: Logan Allen | E20: =IFERROR(INDEX('Draft Log'!$D$4:$D$806,MATCH(D20,'Draft Log'!$C$4:$C$806,0)),"") ->  | F20: =IFERROR(INDEX('ADP-Rank'!$C$2:$C$819,MATCH(D20,'ADP-Rank'!$A$2:$A$819,0)),"") -> RP | G20: =IFERROR(IF(F20=I20,"",IF(INDEX('Your Roto Draft'!$B$11:$B$634,MATCH(D20,'Your Roto Draft'!$C$11:$C$634,0))="",IF(I20<>"",I20,""),INDEX('Your Roto Draft'!$B$11:$B$634,MATCH(D20,'Your Roto Draft'!$C$11:$C$634,0)))),"") ->  | H20: RP | J20: =INDEX('ADP-Rank'!$AH$2:$AH$819,MATCH(D20,'ADP-Rank'!$A$2:$A$819,0)) -> TRUE | K20: FALSE | L20: =IF(J20=FALSE,FALSE,IF(AND('Your Roto Draft'!$P$6="Hide Drafted Players",K20=TRUE),FALSE,IF(OR('Your Roto Draft'!$P$5="Show All Positions",AND('Your Roto Draft'!$P$5="Only Show: C",H20="C"),AND('Your Roto Draft'!$P$5="Only Show: 1B",H20="1B"),AND('Your Roto Draft'!$P$5="Only Show: 2B",H20="2B"),AND('Your Roto Draft'!$P$5="Only Show: 3B",H20="3B"),AND('Your Roto Draft'!$P$5="Only Show: SS",H20="SS"),AND('Your Roto Draft'!$P$5="Only Show: OF",H20="OF"),AND('Your Roto Draft'!$P$5="Only Show: SP",H20="SP"),AND('Your Roto Draft'!$P$5="Only Show: RP",H20="RP"),AND('Your Roto Draft'!$P$5="Only Show: CI",OR(H20={"1B","3B"})),AND('Your Roto Draft'!$P$5="Only Show: MI",OR(H20={"2B","SS"})),AND('Your Roto Draft'!$P$5="Only Show: IF",OR(H20={"C","1B","2B","3B","SS"})),AND('Your Roto Draft'!$P$5="Only Show: DH",OR(H20={"C","1B","2B","3B","SS","OF","DH"})),AND('Your Roto Draft'!$P$5="Only Show: P",OR(H20={"SP","RP"})),AND('Your Roto Draft'!$P$5="Only Show: LF",ISERROR(SEARCH("LF",VLOOKUP($D20,'ADP-Rank'!$A$2:$D$948,4,FALSE)))=FALSE),AND('Your Roto Draft'!$P$5="Only Show: RF",ISERROR(SEARCH("RF",VLOOKUP($D20,'ADP-Rank'!$A$2:$D$948,4,FALSE)))=FALSE),AND('Your Roto Draft'!$P$5="Only Show: CF",ISERROR(SEARCH("CF",VLOOKUP($D20,'ADP-Rank'!$A$2:$D$948,4,FALSE)))=FALSE)),TRUE,FALSE))) -> TRUE | M20: =IFERROR(IF(VLOOKUP($D20,'ADP-Rank'!$A$2:$AV$948,38,FALSE)="",9999,VLOOKUP($D20,'ADP-Rank'!$A$2:$AV$948,38,FALSE)),9999) -> 9999 | N20: =IF(D20="Non-Ranked Player",-1001,IFERROR(VLOOKUP($D20,'All-WERTH'!$C$2:$E$949,3,FALSE),-1000)) -> -8.268502001 | O20: =IF(D20="Non-Ranked Player",10000,IFERROR(IF(VLOOKUP(D20,'ADP-Rank'!$A$2:$AJ$948,36,FALSE)="",9999,VLOOKUP(D20,'ADP-Rank'!$A$2:$AJ$948,36,FALSE)),9999)) -> 625 | P20: =IF($D20="Unlisted Player",-1001,IFERROR(IF(VLOOKUP($D20,'All-WERTH'!$C$2:$AC$949,4,FALSE)="",-1000,VLOOKUP($D20,'All-WERTH'!$C$2:$AC$949,4,FALSE)),-1000)) -> -1000 | Q20: =IF($D20="Unlisted Player",-1001,IFERROR(IF(VLOOKUP($D20,'All-WERTH'!$C$2:$AC$949,5,FALSE)="",-1000,VLOOKUP($D20,'All-WERTH'!$C$2:$AC$949,5,FALSE)),-1000)) -> -1000 | R20: =IF($D20="Unlisted Player",-1001,IFERROR(IF(VLOOKUP($D20,'All-WERTH'!$C$2:$AC$949,6,FALSE)="",-1000,VLOOKUP($D20,'All-WERTH'!$C$2:$AC$949,6,FALSE)),-1000)) -> -1000 | S20: =IF($D20="Unlisted Player",-1001,IFERROR(IF(VLOOKUP($D20,'All-WERTH'!$C$2:$AC$949,7,FALSE)="",-1000,VLOOKUP($D20,'All-WERTH'!$C$2:$AC$949,7,FALSE)),-1000)) -> -1000 | T20: =IF($D20="Unlisted Player",-1001,IFERROR(IF(VLOOKUP($D20,'All-WERTH'!$C$2:$AC$949,8,FALSE)="",-1000,VLOOKUP($D20,'All-WERTH'!$C$2:$AC$949,8,FALSE)),-1000)) -> -1000 | U20: =IF($D20="Unlisted Player",-1001,IFERROR(IF(VLOOKUP($D20,'All-WERTH'!$C$2:$AC$949,9,FALSE)="",-1000,VLOOKUP($D20,'All-WERTH'!$C$2:$AC$949,9,FALSE)),-1000)) -> -1000 | V20: =IF($D20="Unlisted Player",-1001,IFERROR(IF(VLOOKUP($D20,'All-WERTH'!$C$2:$AC$949,10,FALSE)="",-1000,VLOOKUP($D20,'All-WERTH'!$C$2:$AC$949,10,FALSE)),-1000)) -> -1000 | W20: =IF($D20="Unlisted Player",-1001,IFERROR(IF(VLOOKUP($D20,'All-WERTH'!$C$2:$AC$949,11,FALSE)="",-1000,VLOOKUP($D20,'All-WERTH'!$C$2:$AC$949,11,FALSE)),-1000)) -> -1000 | X20: =IF($D20="Unlisted Player",-1001,IFERROR(IF(VLOOKUP($D20,'All-WERTH'!$C$2:$AC$949,12,FALSE)="",-1000,VLOOKUP($D20,'All-WERTH'!$C$2:$AC$949,12,FALSE)),-1000)) -> -1000 | Y20: =IF($D20="Unlisted Player",-1001,IFERROR(IF(VLOOKUP($D20,'All-WERTH'!$C$2:$AC$949,13,FALSE)="",-1000,VLOOKUP($D20,'All-WERTH'!$C$2:$AC$949,13,FALSE)),-1000)) -> -1000 | Z20: =IF($D20="Unlisted Player",-1001,IFERROR(IF(VLOOKUP($D20,'All-WERTH'!$C$2:$AC$949,14,FALSE)="",-1000,VLOOKUP($D20,'All-WERTH'!$C$2:$AC$949,14,FALSE)),-1000)) -> -1000 | AA20: =IF($D20="Unlisted Player",-1001,IFERROR(IF(VLOOKUP($D20,'All-WERTH'!$C$2:$AC$949,15,FALSE)="",-1000,VLOOKUP($D20,'All-WERTH'!$C$2:$AC$949,15,FALSE)),-1000)) -> -1000 | AB20: =IF($D20="Unlisted Player",-1001,IFERROR(IF(VLOOKUP($D20,'All-WERTH'!$C$2:$AC$949,16,FALSE)="",-1000,VLOOKUP($D20,'All-WERTH'!$C$2:$AC$949,16,FALSE)),-1000)) -> -1.036768368 | AC20: =IF($D20="Unlisted Player",-1001,IFERROR(IF(VLOOKUP($D20,'All-WERTH'!$C$2:$AC$949,17,FALSE)="",-1000,VLOOKUP($D20,'All-WERTH'!$C$2:$AC$949,17,FALSE)),-1000)) -> -0.466236193 | AD20: =IF($D20="Unlisted Player",-1001,IFERROR(IF(VLOOKUP($D20,'All-WERTH'!$C$2:$AC$949,18,FALSE)="",-1000,VLOOKUP($D20,'All-WERTH'!$C$2:$AC$949,18,FALSE)),-1000)) -> -1.387917006 | AE20: =IF($D20="Unlisted Player",-1001,IFERROR(IF(VLOOKUP($D20,'All-WERTH'!$C$2:$AC$949,19,FALSE)="",-1000,VLOOKUP($D20,'All-WERTH'!$C$2:$AC$949,19,FALSE)),-1000)) -> -2.476744797 | AF20: =IF($D20="Unlisted Player",-1001,IFERROR(IF(VLOOKUP($D20,'All-WERTH'!$C$2:$AC$949,20,FALSE)="",-1000,VLOOKUP($D20,'All-WERTH'!$C$2:$AC$949,20,FALSE)),-1000)) -> -2.900835636 | AG20: =IF($D20="Unlisted Player",-1001,IFERROR(IF(VLOOKUP($D20,'All-WERTH'!$C$2:$AC$949,21,FALSE)="",-1000,VLOOKUP($D20,'All-WERTH'!$C$2:$AC$949,21,FALSE)),-1000)) -> -1000 | AH20: =IF($D20="Unlisted Player",-1001,IFERROR(IF(VLOOKUP($D20,'All-WERTH'!$C$2:$AC$949,22,FALSE)="",-1000,VLOOKUP($D20,'All-WERTH'!$C$2:$AC$949,22,FALSE)),-1000)) -> -1000 | AI20: =IF($D20="Unlisted Player",-1001,IFERROR(IF(VLOOKUP($D20,'All-WERTH'!$C$2:$AC$949,23,FALSE)="",-1000,VLOOKUP($D20,'All-WERTH'!$C$2:$AC$949,23,FALSE)),-1000)) -> -1000 | AJ20: =IF($D20="Unlisted Player",-1001,IFERROR(IF(VLOOKUP($D20,'All-WERTH'!$C$2:$AC$949,24,FALSE)="",-1000,VLOOKUP($D20,'All-WERTH'!$C$2:$AC$949,24,FALSE)),-1000)) -> -1000 | AK20: =IF($D20="Unlisted Player",-1001,IFERROR(IF(VLOOKUP($D20,'All-WERTH'!$C$2:$AC$949,25,FALSE)="",-1000,VLOOKUP($D20,'All-WERTH'!$C$2:$AC$949,25,FALSE)),-1000)) -> -1000 | AL20: =IF($D20="Unlisted Player",-1001,IFERROR(IF(VLOOKUP($D20,'All-WERTH'!$C$2:$AC$949,26,FALSE)="",-1000,VLOOKUP($D20,'All-WERTH'!$C$2:$AC$949,26,FALSE)),-1000)) -> -1000 | AM20: =IF($D20="Unlisted Player",-1001,IFERROR(IF(VLOOKUP($D20,'All-WERTH'!$C$2:$AC$949,27,FALSE)="",-1000,VLOOKUP($D20,'All-WERTH'!$C$2:$AC$949,27,FALSE)),-1000)) -> -1000 | AN20: =IF(D20="Non-Ranked Player",-1001,IFERROR(VLOOKUP($D20,'All-WERTH'!$C$2:$AG$949,31,FALSE),-1000)) -> -5.40581041 | AO20: =IF(ISERROR(VLOOKUP($B19,Keepers!$C$2:$D$450,2,FALSE)),B19,"") -> Fernando Tatis Jr. | AP20: =IFERROR(INDEX($AO$1:$AO$949,SMALL(IF($AO$1:$AO$949<>"",ROW($AO$1:$AO$949)),ROW(AO20))),"") -> Anthony Rendon
A21: Anthony Rendon | B21: =IFERROR(INDEX($A$1:$A$949,SMALL(IF($A$1:$A$949<>"",ROW($A$1:$A$949)),ROW(A21))),"") -> J.D. Martinez | C21: =IFERROR(IF(L21=FALSE,"",CHOOSE(MATCH(RIGHT('Your Roto Draft'!$P$4,LEN('Your Roto Draft'!$P$4)-8),$M$1:$AN$1,0),1+SUMPRODUCT(($L$2:$L$950=TRUE)*($M$2:$M$950<M21))+COUNTIFS($L$2:L21,L21,$M$2:M21,M21)-1,1+SUMPRODUCT(($L$2:$L$950=TRUE)*($N$2:$N$950>N21))+COUNTIFS($L$2:L21,L21,$N$2:N21,N21)-1,1+SUMPRODUCT(($L$2:$L$950=TRUE)*($O$2:$O$950<O21))+COUNTIFS($L$2:L21,L21,$O$2:O21,O21)-1,1+SUMPRODUCT(($L$2:$L$950=TRUE)*($P$2:$P$950>P21))+COUNTIFS($L$2:L21,L21,$P$2:P21,P21)-1,1+SUMPRODUCT(($L$2:$L$950=TRUE)*($Q$2:$Q$950>Q21))+COUNTIFS($L$2:L21,L21,$Q$2:Q21,Q21)-1,1+SUMPRODUCT(($L$2:$L$950=TRUE)*($R$2:$R$950>R21))+COUNTIFS($L$2:L21,L21,$R$2:R21,R21)-1,1+SUMPRODUCT(($L$2:$L$950=TRUE)*($S$2:$S$950>S21))+COUNTIFS($L$2:L21,L21,$S$2:S21,S21)-1,1+SUMPRODUCT(($L$2:$L$950=TRUE)*($T$2:$T$950>T21))+COUNTIFS($L$2:L21,L21,$T$2:T21,T21)-1,1+SUMPRODUCT(($L$2:$L$950=TRUE)*($U$2:$U$950>U21))+COUNTIFS($L$2:L21,L21,$U$2:U21,U21)-1,1+SUMPRODUCT(($L$2:$L$950=TRUE)*($V$2:$V$950>V21))+COUNTIFS($L$2:L21,L21,$V$2:V21,V21)-1,1+SUMPRODUCT(($L$2:$L$950=TRUE)*($W$2:$W$950>W21))+COUNTIFS($L$2:L21,L21,$W$2:W21,W21)-1,1+SUMPRODUCT(($L$2:$L$950=TRUE)*($X$2:$X$950>X21))+COUNTIFS($L$2:L21,L21,$X$2:X21,X21)-1,1+SUMPRODUCT(($L$2:$L$950=TRUE)*($Y$2:$Y$950>Y21))+COUNTIFS($L$2:L21,L21,$Y$2:Y21,Y21)-1,1+SUMPRODUCT(($L$2:$L$950=TRUE)*($Z$2:$Z$950>Z21))+COUNTIFS($L$2:L21,L21,$Z$2:Z21,Z21)-1,1+SUMPRODUCT(($L$2:$L$950=TRUE)*($AA$2:$AA$950>AA21))+COUNTIFS($L$2:L21,L21,$AA$2:AA21,AA21)-1,1+SUMPRODUCT(($L$2:$L$950=TRUE)*($AB$2:$AB$950>AB21))+COUNTIFS($L$2:L21,L21,$AB$2:AB21,AB21)-1,1+SUMPRODUCT(($L$2:$L$950=TRUE)*($AC$2:$AC$950>AC21))+COUNTIFS($L$2:L21,L21,$AC$2:AC21,AC21)-1,1+SUMPRODUCT(($L$2:$L$950=TRUE)*($AD$2:$AD$950>AD21))+COUNTIFS($L$2:L21,L21,$AD$2:AD21,AD21)-1,1+SUMPRODUCT(($L$2:$L$950=TRUE)*($AE$2:$AE$950>AE21))+COUNTIFS($L$2:L21,L21,$AE$2:AE21,AE21)-1,1+SUMPRODUCT(($L$2:$L$950=TRUE)*($AF$2:$AF$950>AF21))+COUNTIFS($L$2:L21,L21,$AF$2:AF21,AF21)-1,1+SUMPRODUCT(($L$2:$L$950=TRUE)*($AG$2:$AG$950>AG21))+COUNTIFS($L$2:L21,L21,$AG$2:AG21,AG21)-1,1+SUMPRODUCT(($L$2:$L$950=TRUE)*($AH$2:$AH$950>AH21))+COUNTIFS($L$2:L21,L21,$AH$2:AH21,AH21)-1,1+SUMPRODUCT(($L$2:$L$950=TRUE)*($AI$2:$AI$950>AI21))+COUNTIFS($L$2:L21,L21,$AI$2:AI21,AI21)-1,1+SUMPRODUCT(($L$2:$L$950=TRUE)*($AJ$2:$AJ$950>AJ21))+COUNTIFS($L$2:L21,L21,$AJ$2:AJ21,AJ21)-1,1+SUMPRODUCT(($L$2:$L$950=TRUE)*($AK$2:$AK$950>AK21))+COUNTIFS($L$2:L21,L21,$AK$2:AK21,AK21)-1,1+SUMPRODUCT(($L$2:$L$950=TRUE)*($AL$2:$AL$950>AL21))+COUNTIFS($L$2:L21,L21,$AL$2:AL21,AL21)-1,1+SUMPRODUCT(($L$2:$L$950=TRUE)*($AM$2:$AM$950>AM21))+COUNTIFS($L$2:L21,L21,$AM$2:AM21,AM21)-1,1+SUMPRODUCT(($L$2:$L$950=TRUE)*($AN$2:$AN$950>AN21))+COUNTIFS($L$2:L21,L21,$AN$2:AN21,AN21)-1)),"") -> 603 | D21: Albert Almora | E21: =IFERROR(INDEX('Draft Log'!$D$4:$D$806,MATCH(D21,'Draft Log'!$C$4:$C$806,0)),"") ->  | F21: =IFERROR(INDEX('ADP-Rank'!$C$2:$C$819,MATCH(D21,'ADP-Rank'!$A$2:$A$819,0)),"") -> OF | G21: =IFERROR(IF(F21=I21,"",IF(INDEX('Your Roto Draft'!$B$11:$B$634,MATCH(D21,'Your Roto Draft'!$C$11:$C$634,0))="",IF(I21<>"",I21,""),INDEX('Your Roto Draft'!$B$11:$B$634,MATCH(D21,'Your Roto Draft'!$C$11:$C$634,0)))),"") ->  | H21: OF | J21: =INDEX('ADP-Rank'!$AH$2:$AH$819,MATCH(D21,'ADP-Rank'!$A$2:$A$819,0)) -> TRUE | K21: FALSE | L21: =IF(J21=FALSE,FALSE,IF(AND('Your Roto Draft'!$P$6="Hide Drafted Players",K21=TRUE),FALSE,IF(OR('Your Roto Draft'!$P$5="Show All Positions",AND('Your Roto Draft'!$P$5="Only Show: C",H21="C"),AND('Your Roto Draft'!$P$5="Only Show: 1B",H21="1B"),AND('Your Roto Draft'!$P$5="Only Show: 2B",H21="2B"),AND('Your Roto Draft'!$P$5="Only Show: 3B",H21="3B"),AND('Your Roto Draft'!$P$5="Only Show: SS",H21="SS"),AND('Your Roto Draft'!$P$5="Only Show: OF",H21="OF"),AND('Your Roto Draft'!$P$5="Only Show: SP",H21="SP"),AND('Your Roto Draft'!$P$5="Only Show: RP",H21="RP"),AND('Your Roto Draft'!$P$5="Only Show: CI",OR(H21={"1B","3B"})),AND('Your Roto Draft'!$P$5="Only Show: MI",OR(H21={"2B","SS"})),AND('Your Roto Draft'!$P$5="Only Show: IF",OR(H21={"C","1B","2B","3B","SS"})),AND('Your Roto Draft'!$P$5="Only Show: DH",OR(H21={"C","1B","2B","3B","SS","OF","DH"})),AND('Your Roto Draft'!$P$5="Only Show: P",OR(H21={"SP","RP"})),AND('Your Roto Draft'!$P$5="Only Show: LF",ISERROR(SEARCH("LF",VLOOKUP($D21,'ADP-Rank'!$A$2:$D$948,4,FALSE)))=FALSE),AND('Your Roto Draft'!$P$5="Only Show: RF",ISERROR(SEARCH("RF",VLOOKUP($D21,'ADP-Rank'!$A$2:$D$948,4,FALSE)))=FALSE),AND('Your Roto Draft'!$P$5="Only Show: CF",ISERROR(SEARCH("CF",VLOOKUP($D21,'ADP-Rank'!$A$2:$D$948,4,FALSE)))=FALSE)),TRUE,FALSE))) -> TRUE | M21: =IFERROR(IF(VLOOKUP($D21,'ADP-Rank'!$A$2:$AV$948,38,FALSE)="",9999,VLOOKUP($D21,'ADP-Rank'!$A$2:$AV$948,38,FALSE)),9999) -> 620.7 | N21: =IF(D21="Non-Ranked Player",-1001,IFERROR(VLOOKUP($D21,'All-WERTH'!$C$2:$E$949,3,FALSE),-1000)) -> -7.588579022 | O21: =IF(D21="Non-Ranked Player",10000,IFERROR(IF(VLOOKUP(D21,'ADP-Rank'!$A$2:$AJ$948,36,FALSE)="",9999,VLOOKUP(D21,'ADP-Rank'!$A$2:$AJ$948,36,FALSE)),9999)) -> 666 | P21: =IF($D21="Unlisted Player",-1001,IFERROR(IF(VLOOKUP($D21,'All-WERTH'!$C$2:$AC$949,4,FALSE)="",-1000,VLOOKUP($D21,'All-WERTH'!$C$2:$AC$949,4,FALSE)),-1000)) -> -0.2069837433 | Q21: =IF($D21="Unlisted Player",-1001,IFERROR(IF(VLOOKUP($D21,'All-WERTH'!$C$2:$AC$949,5,FALSE)="",-1000,VLOOKUP($D21,'All-WERTH'!$C$2:$AC$949,5,FALSE)),-1000)) -> -1.982609065 | R21: =IF($D21="Unlisted Player",-1001,IFERROR(IF(VLOOKUP($D21,'All-WERTH'!$C$2:$AC$949,6,FALSE)="",-1000,VLOOKUP($D21,'All-WERTH'!$C$2:$AC$949,6,FALSE)),-1000)) -> -2.253206034 | S21: =IF($D21="Unlisted Player",-1001,IFERROR(IF(VLOOKUP($D21,'All-WERTH'!$C$2:$AC$949,7,FALSE)="",-1000,VLOOKUP($D21,'All-WERTH'!$C$2:$AC$949,7,FALSE)),-1000)) -> -2.385302894 | T21: =IF($D21="Unlisted Player",-1001,IFERROR(IF(VLOOKUP($D21,'All-WERTH'!$C$2:$AC$949,8,FALSE)="",-1000,VLOOKUP($D21,'All-WERTH'!$C$2:$AC$949,8,FALSE)),-1000)) -> -0.760477286 | U21: =IF($D21="Unlisted Player",-1001,IFERROR(IF(VLOOKUP($D21,'All-WERTH'!$C$2:$AC$949,9,FALSE)="",-1000,VLOOKUP($D21,'All-WERTH'!$C$2:$AC$949,9,FALSE)),-1000)) -> -1000 | V21: =IF($D21="Unlisted Player",-1001,IFERROR(IF(VLOOKUP($D21,'All-WERTH'!$C$2:$AC$949,10,FALSE)="",-1000,VLOOKUP($D21,'All-WERTH'!$C$2:$AC$949,10,FALSE)),-1000)) -> -1000 | W21: =IF($D21="Unlisted Player",-1001,IFERROR(IF(VLOOKUP($D21,'All-WERTH'!$C$2:$AC$949,11,FALSE)="",-1000,VLOOKUP($D21,'All-WERTH'!$C$2:$AC$949,11,FALSE)),-1000)) -> -1000 | X21: =IF($D21="Unlisted Player",-1001,IFERROR(IF(VLOOKUP($D21,'All-WERTH'!$C$2:$AC$949,12,FALSE)="",-1000,VLOOKUP($D21,'All-WERTH'!$C$2:$AC$949,12,FALSE)),-1000)) -> -1000 | Y21: =IF($D21="Unlisted Player",-1001,IFERROR(IF(VLOOKUP($D21,'All-WERTH'!$C$2:$AC$949,13,FALSE)="",-1000,VLOOKUP($D21,'All-WERTH'!$C$2:$AC$949,13,FALSE)),-1000)) -> -1000 | Z21: =IF($D21="Unlisted Player",-1001,IFERROR(IF(VLOOKUP($D21,'All-WERTH'!$C$2:$AC$949,14,FALSE)="",-1000,VLOOKUP($D21,'All-WERTH'!$C$2:$AC$949,14,FALSE)),-1000)) -> -1000 | AA21: =IF($D21="Unlisted Player",-1001,IFERROR(IF(VLOOKUP($D21,'All-WERTH'!$C$2:$AC$949,15,FALSE)="",-1000,VLOOKUP($D21,'All-WERTH'!$C$2:$AC$949,15,FALSE)),-1000)) -> -1000 | AB21: =IF($D21="Unlisted Player",-1001,IFERROR(IF(VLOOKUP($D21,'All-WERTH'!$C$2:$AC$949,16,FALSE)="",-1000,VLOOKUP($D21,'All-WERTH'!$C$2:$AC$949,16,FALSE)),-1000)) -> -1000 | AC21: =IF($D21="Unlisted Player",-1001,IFERROR(IF(VLOOKUP($D21,'All-WERTH'!$C$2:$AC$949,17,FALSE)="",-1000,VLOOKUP($D21,'All-WERTH'!$C$2:$AC$949,17,FALSE)),-1000)) -> -1000 | AD21: =IF($D21="Unlisted Player",-1001,IFERROR(IF(VLOOKUP($D21,'All-WERTH'!$C$2:$AC$949,18,FALSE)="",-1000,VLOOKUP($D21,'All-WERTH'!$C$2:$AC$949,18,FALSE)),-1000)) -> -1000 | AE21: =IF($D21="Unlisted Player",-1001,IFERROR(IF(VLOOKUP($D21,'All-WERTH'!$C$2:$AC$949,19,FALSE)="",-1000,VLOOKUP($D21,'All-WERTH'!$C$2:$AC$949,19,FALSE)),-1000)) -> -1000 | AF21: =IF($D21="Unlisted Player",-1001,IFERROR(IF(VLOOKUP($D21,'All-WERTH'!$C$2:$AC$949,20,FALSE)="",-1000,VLOOKUP($D21,'All-WERTH'!$C$2:$AC$949,20,FALSE)),-1000)) -> -1000 | AG21: =IF($D21="Unlisted Player",-1001,IFERROR(IF(VLOOKUP($D21,'All-WERTH'!$C$2:$AC$949,21,FALSE)="",-1000,VLOOKUP($D21,'All-WERTH'!$C$2:$AC$949,21,FALSE)),-1000)) -> -1000 | AH21: =IF($D21="Unlisted Player",-1001,IFERROR(IF(VLOOKUP($D21,'All-WERTH'!$C$2:$AC$949,22,FALSE)="",-1000,VLOOKUP($D21,'All-WERTH'!$C$2:$AC$949,22,FALSE)),-1000)) -> -1000 | AI21: =IF($D21="Unlisted Player",-1001,IFERROR(IF(VLOOKUP($D21,'All-WERTH'!$C$2:$AC$949,23,FALSE)="",-1000,VLOOKUP($D21,'All-WERTH'!$C$2:$AC$949,23,FALSE)),-1000)) -> -1000 | AJ21: =IF($D21="Unlisted Player",-1001,IFERROR(IF(VLOOKUP($D21,'All-WERTH'!$C$2:$AC$949,24,FALSE)="",-1000,VLOOKUP($D21,'All-WERTH'!$C$2:$AC$949,24,FALSE)),-1000)) -> -1000 | AK21: =IF($D21="Unlisted Player",-1001,IFERROR(IF(VLOOKUP($D21,'All-WERTH'!$C$2:$AC$949,25,FALSE)="",-1000,VLOOKUP($D21,'All-WERTH'!$C$2:$AC$949,25,FALSE)),-1000)) -> -1000 | AL21: =IF($D21="Unlisted Player",-1001,IFERROR(IF(VLOOKUP($D21,'All-WERTH'!$C$2:$AC$949,26,FALSE)="",-1000,VLOOKUP($D21,'All-WERTH'!$C$2:$AC$949,26,FALSE)),-1000)) -> -1000 | AM21: =IF($D21="Unlisted Player",-1001,IFERROR(IF(VLOOKUP($D21,'All-WERTH'!$C$2:$AC$949,27,FALSE)="",-1000,VLOOKUP($D21,'All-WERTH'!$C$2:$AC$949,27,FALSE)),-1000)) -> -1000 | AN21: =IF(D21="Non-Ranked Player",-1001,IFERROR(VLOOKUP($D21,'All-WERTH'!$C$2:$AG$949,31,FALSE),-1000)) -> -3.836257505 | AO21: =IF(ISERROR(VLOOKUP($B20,Keepers!$C$2:$D$450,2,FALSE)),B20,"") -> Anthony Rendon | AP21: =IFERROR(INDEX($AO$1:$AO$949,SMALL(IF($AO$1:$AO$949<>"",ROW($AO$1:$AO$949)),ROW(AO21))),"") -> J.D. Martinez
A22: J.D. Martinez | B22: =IFERROR(INDEX($A$1:$A$949,SMALL(IF($A$1:$A$949<>"",ROW($A$1:$A$949)),ROW(A22))),"") -> Bryce Harper | C22: =IFERROR(IF(L22=FALSE,"",CHOOSE(MATCH(RIGHT('Your Roto Draft'!$P$4,LEN('Your Roto Draft'!$P$4)-8),$M$1:$AN$1,0),1+SUMPRODUCT(($L$2:$L$950=TRUE)*($M$2:$M$950<M22))+COUNTIFS($L$2:L22,L22,$M$2:M22,M22)-1,1+SUMPRODUCT(($L$2:$L$950=TRUE)*($N$2:$N$950>N22))+COUNTIFS($L$2:L22,L22,$N$2:N22,N22)-1,1+SUMPRODUCT(($L$2:$L$950=TRUE)*($O$2:$O$950<O22))+COUNTIFS($L$2:L22,L22,$O$2:O22,O22)-1,1+SUMPRODUCT(($L$2:$L$950=TRUE)*($P$2:$P$950>P22))+COUNTIFS($L$2:L22,L22,$P$2:P22,P22)-1,1+SUMPRODUCT(($L$2:$L$950=TRUE)*($Q$2:$Q$950>Q22))+COUNTIFS($L$2:L22,L22,$Q$2:Q22,Q22)-1,1+SUMPRODUCT(($L$2:$L$950=TRUE)*($R$2:$R$950>R22))+COUNTIFS($L$2:L22,L22,$R$2:R22,R22)-1,1+SUMPRODUCT(($L$2:$L$950=TRUE)*($S$2:$S$950>S22))+COUNTIFS($L$2:L22,L22,$S$2:S22,S22)-1,1+SUMPRODUCT(($L$2:$L$950=TRUE)*($T$2:$T$950>T22))+COUNTIFS($L$2:L22,L22,$T$2:T22,T22)-1,1+SUMPRODUCT(($L$2:$L$950=TRUE)*($U$2:$U$950>U22))+COUNTIFS($L$2:L22,L22,$U$2:U22,U22)-1,1+SUMPRODUCT(($L$2:$L$950=TRUE)*($V$2:$V$950>V22))+COUNTIFS($L$2:L22,L22,$V$2:V22,V22)-1,1+SUMPRODUCT(($L$2:$L$950=TRUE)*($W$2:$W$950>W22))+COUNTIFS($L$2:L22,L22,$W$2:W22,W22)-1,1+SUMPRODUCT(($L$2:$L$950=TRUE)*($X$2:$X$950>X22))+COUNTIFS($L$2:L22,L22,$X$2:X22,X22)-1,1+SUMPRODUCT(($L$2:$L$950=TRUE)*($Y$2:$Y$950>Y22))+COUNTIFS($L$2:L22,L22,$Y$2:Y22,Y22)-1,1+SUMPRODUCT(($L$2:$L$950=TRUE)*($Z$2:$Z$950>Z22))+COUNTIFS($L$2:L22,L22,$Z$2:Z22,Z22)-1,1+SUMPRODUCT(($L$2:$L$950=TRUE)*($AA$2:$AA$950>AA22))+COUNTIFS($L$2:L22,L22,$AA$2:AA22,AA22)-1,1+SUMPRODUCT(($L$2:$L$950=TRUE)*($AB$2:$AB$950>AB22))+COUNTIFS($L$2:L22,L22,$AB$2:AB22,AB22)-1,1+SUMPRODUCT(($L$2:$L$950=TRUE)*($AC$2:$AC$950>AC22))+COUNTIFS($L$2:L22,L22,$AC$2:AC22,AC22)-1,1+SUMPRODUCT(($L$2:$L$950=TRUE)*($AD$2:$AD$950>AD22))+COUNTIFS($L$2:L22,L22,$AD$2:AD22,AD22)-1,1+SUMPRODUCT(($L$2:$L$950=TRUE)*($AE$2:$AE$950>AE22))+COUNTIFS($L$2:L22,L22,$AE$2:AE22,AE22)-1,1+SUMPRODUCT(($L$2:$L$950=TRUE)*($AF$2:$AF$950>AF22))+COUNTIFS($L$2:L22,L22,$AF$2:AF22,AF22)-1,1+SUMPRODUCT(($L$2:$L$950=TRUE)*($AG$2:$AG$950>AG22))+COUNTIFS($L$2:L22,L22,$AG$2:AG22,AG22)-1,1+SUMPRODUCT(($L$2:$L$950=TRUE)*($AH$2:$AH$950>AH22))+COUNTIFS($L$2:L22,L22,$AH$2:AH22,AH22)-1,1+SUMPRODUCT(($L$2:$L$950=TRUE)*($AI$2:$AI$950>AI22))+COUNTIFS($L$2:L22,L22,$AI$2:AI22,AI22)-1,1+SUMPRODUCT(($L$2:$L$950=TRUE)*($AJ$2:$AJ$950>AJ22))+COUNTIFS($L$2:L22,L22,$AJ$2:AJ22,AJ22)-1,1+SUMPRODUCT(($L$2:$L$950=TRUE)*($AK$2:$AK$950>AK22))+COUNTIFS($L$2:L22,L22,$AK$2:AK22,AK22)-1,1+SUMPRODUCT(($L$2:$L$950=TRUE)*($AL$2:$AL$950>AL22))+COUNTIFS($L$2:L22,L22,$AL$2:AL22,AL22)-1,1+SUMPRODUCT(($L$2:$L$950=TRUE)*($AM$2:$AM$950>AM22))+COUNTIFS($L$2:L22,L22,$AM$2:AM22,AM22)-1,1+SUMPRODUCT(($L$2:$L$950=TRUE)*($AN$2:$AN$950>AN22))+COUNTIFS($L$2:L22,L22,$AN$2:AN22,AN22)-1)),"") -> 26 | D22: Pete Alonso | E22: =IFERROR(INDEX('Draft Log'!$D$4:$D$806,MATCH(D22,'Draft Log'!$C$4:$C$806,0)),"") ->  | F22: =IFERROR(INDEX('ADP-Rank'!$C$2:$C$819,MATCH(D22,'ADP-Rank'!$A$2:$A$819,0)),"") -> 1B | G22: =IFERROR(IF(F22=I22,"",IF(INDEX('Your Roto Draft'!$B$11:$B$634,MATCH(D22,'Your Roto Draft'!$C$11:$C$634,0))="",IF(I22<>"",I22,""),INDEX('Your Roto Draft'!$B$11:$B$634,MATCH(D22,'Your Roto Draft'!$C$11:$C$634,0)))),"") ->  | H22: 1B | J22: =INDEX('ADP-Rank'!$AH$2:$AH$819,MATCH(D22,'ADP-Rank'!$A$2:$A$819,0)) -> TRUE | K22: FALSE | L22: =IF(J22=FALSE,FALSE,IF(AND('Your Roto Draft'!$P$6="Hide Drafted Players",K22=TRUE),FALSE,IF(OR('Your Roto Draft'!$P$5="Show All Positions",AND('Your Roto Draft'!$P$5="Only Show: C",H22="C"),AND('Your Roto Draft'!$P$5="Only Show: 1B",H22="1B"),AND('Your Roto Draft'!$P$5="Only Show: 2B",H22="2B"),AND('Your Roto Draft'!$P$5="Only Show: 3B",H22="3B"),AND('Your Roto Draft'!$P$5="Only Show: SS",H22="SS"),AND('Your Roto Draft'!$P$5="Only Show: OF",H22="OF"),AND('Your Roto Draft'!$P$5="Only Show: SP",H22="SP"),AND('Your Roto Draft'!$P$5="Only Show: RP",H22="RP"),AND('Your Roto Draft'!$P$5="Only Show: CI",OR(H22={"1B","3B"})),AND('Your Roto Draft'!$P$5="Only Show: MI",OR(H22={"2B","SS"})),AND('Your Roto Draft'!$P$5="Only Show: IF",OR(H22={"C","1B","2B","3B","SS"})),AND('Your Roto Draft'!$P$5="Only Show: DH",OR(H22={"C","1B","2B","3B","SS","OF","DH"})),AND('Your Roto Draft'!$P$5="Only Show: P",OR(H22={"SP","RP"})),AND('Your Roto Draft'!$P$5="Only Show: LF",ISERROR(SEARCH("LF",VLOOKUP($D22,'ADP-Rank'!$A$2:$D$948,4,FALSE)))=FALSE),AND('Your Roto Draft'!$P$5="Only Show: RF",ISERROR(SEARCH("RF",VLOOKUP($D22,'ADP-Rank'!$A$2:$D$948,4,FALSE)))=FALSE),AND('Your Roto Draft'!$P$5="Only Show: CF",ISERROR(SEARCH("CF",VLOOKUP($D22,'ADP-Rank'!$A$2:$D$948,4,FALSE)))=FALSE)),TRUE,FALSE))) -> TRUE | M22: =IFERROR(IF(VLOOKUP($D22,'ADP-Rank'!$A$2:$AV$948,38,FALSE)="",9999,VLOOKUP($D22,'ADP-Rank'!$A$2:$AV$948,38,FALSE)),9999) -> 25.8 | N22: =IF(D22="Non-Ranked Player",-1001,IFERROR(VLOOKUP($D22,'All-WERTH'!$C$2:$E$949,3,FALSE),-1000)) -> 2.919826793 | O22: =IF(D22="Non-Ranked Player",10000,IFERROR(IF(VLOOKUP(D22,'ADP-Rank'!$A$2:$AJ$948,36,FALSE)="",9999,VLOOKUP(D22,'ADP-Rank'!$A$2:$AJ$948,36,FALSE)),9999)) -> 35 | P22: =IF($D22="Unlisted Player",-1001,IFERROR(IF(VLOOKUP($D22,'All-WERTH'!$C$2:$AC$949,4,FALSE)="",-1000,VLOOKUP($D22,'All-WERTH'!$C$2:$AC$949,4,FALSE)),-1000)) -> -0.875207262 | Q22: =IF($D22="Unlisted Player",-1001,IFERROR(IF(VLOOKUP($D22,'All-WERTH'!$C$2:$AC$949,5,FALSE)="",-1000,VLOOKUP($D22,'All-WERTH'!$C$2:$AC$949,5,FALSE)),-1000)) -> 2.33806079 | R22: =IF($D22="Unlisted Player",-1001,IFERROR(IF(VLOOKUP($D22,'All-WERTH'!$C$2:$AC$949,6,FALSE)="",-1000,VLOOKUP($D22,'All-WERTH'!$C$2:$AC$949,6,FALSE)),-1000)) -> 0.7464070943 | S22: =IF($D22="Unlisted Player",-1001,IFERROR(IF(VLOOKUP($D22,'All-WERTH'!$C$2:$AC$949,7,FALSE)="",-1000,VLOOKUP($D22,'All-WERTH'!$C$2:$AC$949,7,FALSE)),-1000)) -> 1.688872394 | T22: =IF($D22="Unlisted Player",-1001,IFERROR(IF(VLOOKUP($D22,'All-WERTH'!$C$2:$AC$949,8,FALSE)="",-1000,VLOOKUP($D22,'All-WERTH'!$C$2:$AC$949,8,FALSE)),-1000)) -> -0.9783062237 | U22: =IF($D22="Unlisted Player",-1001,IFERROR(IF(VLOOKUP($D22,'All-WERTH'!$C$2:$AC$949,9,FALSE)="",-1000,VLOOKUP($D22,'All-WERTH'!$C$2:$AC$949,9,FALSE)),-1000)) -> -1000 | V22: =IF($D22="Unlisted Player",-1001,IFERROR(IF(VLOOKUP($D22,'All-WERTH'!$C$2:$AC$949,10,FALSE)="",-1000,VLOOKUP($D22,'All-WERTH'!$C$2:$AC$949,10,FALSE)),-1000)) -> -1000 | W22: =IF($D22="Unlisted Player",-1001,IFERROR(IF(VLOOKUP($D22,'All-WERTH'!$C$2:$AC$949,11,FALSE)="",-1000,VLOOKUP($D22,'All-WERTH'!$C$2:$AC$949,11,FALSE)),-1000)) -> -1000 | X22: =IF($D22="Unlisted Player",-1001,IFERROR(IF(VLOOKUP($D22,'All-WERTH'!$C$2:$AC$949,12,FALSE)="",-1000,VLOOKUP($D22,'All-WERTH'!$C$2:$AC$949,12,FALSE)),-1000)) -> -1000 | Y22: =IF($D22="Unlisted Player",-1001,IFERROR(IF(VLOOKUP($D22,'All-WERTH'!$C$2:$AC$949,13,FALSE)="",-1000,VLOOKUP($D22,'All-WERTH'!$C$2:$AC$949,13,FALSE)),-1000)) -> -1000 | Z22: =IF($D22="Unlisted Player",-1001,IFERROR(IF(VLOOKUP($D22,'All-WERTH'!$C$2:$AC$949,14,FALSE)="",-1000,VLOOKUP($D22,'All-WERTH'!$C$2:$AC$949,14,FALSE)),-1000)) -> -1000 | AA22: =IF($D22="Unlisted Player",-1001,IFERROR(IF(VLOOKUP($D22,'All-WERTH'!$C$2:$AC$949,15,FALSE)="",-1000,VLOOKUP($D22,'All-WERTH'!$C$2:$AC$949,15,FALSE)),-1000)) -> -1000 | AB22: =IF($D22="Unlisted Player",-1001,IFERROR(IF(VLOOKUP($D22,'All-WERTH'!$C$2:$AC$949,16,FALSE)="",-1000,VLOOKUP($D22,'All-WERTH'!$C$2:$AC$949,16,FALSE)),-1000)) -> -1000 | AC22: =IF($D22="Unlisted Player",-1001,IFERROR(IF(VLOOKUP($D22,'All-WERTH'!$C$2:$AC$949,17,FALSE)="",-1000,VLOOKUP($D22,'All-WERTH'!$C$2:$AC$949,17,FALSE)),-1000)) -> -1000 | AD22: =IF($D22="Unlisted Player",-1001,IFERROR(IF(VLOOKUP($D22,'All-WERTH'!$C$2:$AC$949,18,FALSE)="",-1000,VLOOKUP($D22,'All-WERTH'!$C$2:$AC$949,18,FALSE)),-1000)) -> -1000 | AE22: =IF($D22="Unlisted Player",-1001,IFERROR(IF(VLOOKUP($D22,'All-WERTH'!$C$2:$AC$949,19,FALSE)="",-1000,VLOOKUP($D22,'All-WERTH'!$C$2:$AC$949,19,FALSE)),-1000)) -> -1000 | AF22: =IF($D22="Unlisted Player",-1001,IFERROR(IF(VLOOKUP($D22,'All-WERTH'!$C$2:$AC$949,20,FALSE)="",-1000,VLOOKUP($D22,'All-WERTH'!$C$2:$AC$949,20,FALSE)),-1000)) -> -1000 | AG22: =IF($D22="Unlisted Player",-1001,IFERROR(IF(VLOOKUP($D22,'All-WERTH'!$C$2:$AC$949,21,FALSE)="",-1000,VLOOKUP($D22,'All-WERTH'!$C$2:$AC$949,21,FALSE)),-1000)) -> -1000 | AH22: =IF($D22="Unlisted Player",-1001,IFERROR(IF(VLOOKUP($D22,'All-WERTH'!$C$2:$AC$949,22,FALSE)="",-1000,VLOOKUP($D22,'All-WERTH'!$C$2:$AC$949,22,FALSE)),-1000)) -> -1000 | AI22: =IF($D22="Unlisted Player",-1001,IFERROR(IF(VLOOKUP($D22,'All-WERTH'!$C$2:$AC$949,23,FALSE)="",-1000,VLOOKUP($D22,'All-WERTH'!$C$2:$AC$949,23,FALSE)),-1000)) -> -1000 | AJ22: =IF($D22="Unlisted Player",-1001,IFERROR(IF(VLOOKUP($D22,'All-WERTH'!$C$2:$AC$949,24,FALSE)="",-1000,VLOOKUP($D22,'All-WERTH'!$C$2:$AC$949,24,FALSE)),-1000)) -> -1000 | AK22: =IF($D22="Unlisted Player",-1001,IFERROR(IF(VLOOKUP($D22,'All-WERTH'!$C$2:$AC$949,25,FALSE)="",-1000,VLOOKUP($D22,'All-WERTH'!$C$2:$AC$949,25,FALSE)),-1000)) -> -1000 | AL22: =IF($D22="Unlisted Player",-1001,IFERROR(IF(VLOOKUP($D22,'All-WERTH'!$C$2:$AC$949,26,FALSE)="",-1000,VLOOKUP($D22,'All-WERTH'!$C$2:$AC$949,26,FALSE)),-1000)) -> -1000 | AM22: =IF($D22="Unlisted Player",-1001,IFERROR(IF(VLOOKUP($D22,'All-WERTH'!$C$2:$AC$949,27,FALSE)="",-1000,VLOOKUP($D22,'All-WERTH'!$C$2:$AC$949,27,FALSE)),-1000)) -> -1000 | AN22: =IF(D22="Non-Ranked Player",-1001,IFERROR(VLOOKUP($D22,'All-WERTH'!$C$2:$AG$949,31,FALSE),-1000)) -> 5.380440881 | AO22: =IF(ISERROR(VLOOKUP($B21,Keepers!$C$2:$D$450,2,FALSE)),B21,"") -> J.D. Martinez | AP22: =IFERROR(INDEX($AO$1:$AO$949,SMALL(IF($AO$1:$AO$949<>"",ROW($AO$1:$AO$949)),ROW(AO22))),"") -> Bryce Harper
A23: Bryce Harper | B23: =IFERROR(INDEX($A$1:$A$949,SMALL(IF($A$1:$A$949<>"",ROW($A$1:$A$949)),ROW(A23))),"") -> Stephen Strasburg | C23: =IFERROR(IF(L23=FALSE,"",CHOOSE(MATCH(RIGHT('Your Roto Draft'!$P$4,LEN('Your Roto Draft'!$P$4)-8),$M$1:$AN$1,0),1+SUMPRODUCT(($L$2:$L$950=TRUE)*($M$2:$M$950<M23))+COUNTIFS($L$2:L23,L23,$M$2:M23,M23)-1,1+SUMPRODUCT(($L$2:$L$950=TRUE)*($N$2:$N$950>N23))+COUNTIFS($L$2:L23,L23,$N$2:N23,N23)-1,1+SUMPRODUCT(($L$2:$L$950=TRUE)*($O$2:$O$950<O23))+COUNTIFS($L$2:L23,L23,$O$2:O23,O23)-1,1+SUMPRODUCT(($L$2:$L$950=TRUE)*($P$2:$P$950>P23))+COUNTIFS($L$2:L23,L23,$P$2:P23,P23)-1,1+SUMPRODUCT(($L$2:$L$950=TRUE)*($Q$2:$Q$950>Q23))+COUNTIFS($L$2:L23,L23,$Q$2:Q23,Q23)-1,1+SUMPRODUCT(($L$2:$L$950=TRUE)*($R$2:$R$950>R23))+COUNTIFS($L$2:L23,L23,$R$2:R23,R23)-1,1+SUMPRODUCT(($L$2:$L$950=TRUE)*($S$2:$S$950>S23))+COUNTIFS($L$2:L23,L23,$S$2:S23,S23)-1,1+SUMPRODUCT(($L$2:$L$950=TRUE)*($T$2:$T$950>T23))+COUNTIFS($L$2:L23,L23,$T$2:T23,T23)-1,1+SUMPRODUCT(($L$2:$L$950=TRUE)*($U$2:$U$950>U23))+COUNTIFS($L$2:L23,L23,$U$2:U23,U23)-1,1+SUMPRODUCT(($L$2:$L$950=TRUE)*($V$2:$V$950>V23))+COUNTIFS($L$2:L23,L23,$V$2:V23,V23)-1,1+SUMPRODUCT(($L$2:$L$950=TRUE)*($W$2:$W$950>W23))+COUNTIFS($L$2:L23,L23,$W$2:W23,W23)-1,1+SUMPRODUCT(($L$2:$L$950=TRUE)*($X$2:$X$950>X23))+COUNTIFS($L$2:L23,L23,$X$2:X23,X23)-1,1+SUMPRODUCT(($L$2:$L$950=TRUE)*($Y$2:$Y$950>Y23))+COUNTIFS($L$2:L23,L23,$Y$2:Y23,Y23)-1,1+SUMPRODUCT(($L$2:$L$950=TRUE)*($Z$2:$Z$950>Z23))+COUNTIFS($L$2:L23,L23,$Z$2:Z23,Z23)-1,1+SUMPRODUCT(($L$2:$L$950=TRUE)*($AA$2:$AA$950>AA23))+COUNTIFS($L$2:L23,L23,$AA$2:AA23,AA23)-1,1+SUMPRODUCT(($L$2:$L$950=TRUE)*($AB$2:$AB$950>AB23))+COUNTIFS($L$2:L23,L23,$AB$2:AB23,AB23)-1,1+SUMPRODUCT(($L$2:$L$950=TRUE)*($AC$2:$AC$950>AC23))+COUNTIFS($L$2:L23,L23,$AC$2:AC23,AC23)-1,1+SUMPRODUCT(($L$2:$L$950=TRUE)*($AD$2:$AD$950>AD23))+COUNTIFS($L$2:L23,L23,$AD$2:AD23,AD23)-1,1+SUMPRODUCT(($L$2:$L$950=TRUE)*($AE$2:$AE$950>AE23))+COUNTIFS($L$2:L23,L23,$AE$2:AE23,AE23)-1,1+SUMPRODUCT(($L$2:$L$950=TRUE)*($AF$2:$AF$950>AF23))+COUNTIFS($L$2:L23,L23,$AF$2:AF23,AF23)-1,1+SUMPRODUCT(($L$2:$L$950=TRUE)*($AG$2:$AG$950>AG23))+COUNTIFS($L$2:L23,L23,$AG$2:AG23,AG23)-1,1+SUMPRODUCT(($L$2:$L$950=TRUE)*($AH$2:$AH$950>AH23))+COUNTIFS($L$2:L23,L23,$AH$2:AH23,AH23)-1,1+SUMPRODUCT(($L$2:$L$950=TRUE)*($AI$2:$AI$950>AI23))+COUNTIFS($L$2:L23,L23,$AI$2:AI23,AI23)-1,1+SUMPRODUCT(($L$2:$L$950=TRUE)*($AJ$2:$AJ$950>AJ23))+COUNTIFS($L$2:L23,L23,$AJ$2:AJ23,AJ23)-1,1+SUMPRODUCT(($L$2:$L$950=TRUE)*($AK$2:$AK$950>AK23))+COUNTIFS($L$2:L23,L23,$AK$2:AK23,AK23)-1,1+SUMPRODUCT(($L$2:$L$950=TRUE)*($AL$2:$AL$950>AL23))+COUNTIFS($L$2:L23,L23,$AL$2:AL23,AL23)-1,1+SUMPRODUCT(($L$2:$L$950=TRUE)*($AM$2:$AM$950>AM23))+COUNTIFS($L$2:L23,L23,$AM$2:AM23,AM23)-1,1+SUMPRODUCT(($L$2:$L$950=TRUE)*($AN$2:$AN$950>AN23))+COUNTIFS($L$2:L23,L23,$AN$2:AN23,AN23)-1)),"") -> 619 | D23: Yonder Alonso | E23: =IFERROR(INDEX('Draft Log'!$D$4:$D$806,MATCH(D23,'Draft Log'!$C$4:$C$806,0)),"") ->  | F23: =IFERROR(INDEX('ADP-Rank'!$C$2:$C$819,MATCH(D23,'ADP-Rank'!$A$2:$A$819,0)),"") -> 1B | G23: =IFERROR(IF(F23=I23,"",IF(INDEX('Your Roto Draft'!$B$11:$B$634,MATCH(D23,'Your Roto Draft'!$C$11:$C$634,0))="",IF(I23<>"",I23,""),INDEX('Your Roto Draft'!$B$11:$B$634,MATCH(D23,'Your Roto Draft'!$C$11:$C$634,0)))),"") ->  | H23: 1B | J23: =INDEX('ADP-Rank'!$AH$2:$AH$819,MATCH(D23,'ADP-Rank'!$A$2:$A$819,0)) -> TRUE | K23: FALSE | L23: =IF(J23=FALSE,FALSE,IF(AND('Your Roto Draft'!$P$6="Hide Drafted Players",K23=TRUE),FALSE,IF(OR('Your Roto Draft'!$P$5="Show All Positions",AND('Your Roto Draft'!$P$5="Only Show: C",H23="C"),AND('Your Roto Draft'!$P$5="Only Show: 1B",H23="1B"),AND('Your Roto Draft'!$P$5="Only Show: 2B",H23="2B"),AND('Your Roto Draft'!$P$5="Only Show: 3B",H23="3B"),AND('Your Roto Draft'!$P$5="Only Show: SS",H23="SS"),AND('Your Roto Draft'!$P$5="Only Show: OF",H23="OF"),AND('Your Roto Draft'!$P$5="Only Show: SP",H23="SP"),AND('Your Roto Draft'!$P$5="Only Show: RP",H23="RP"),AND('Your Roto Draft'!$P$5="Only Show: CI",OR(H23={"1B","3B"})),AND('Your Roto Draft'!$P$5="Only Show: MI",OR(H23={"2B","SS"})),AND('Your Roto Draft'!$P$5="Only Show: IF",OR(H23={"C","1B","2B","3B","SS"})),AND('Your Roto Draft'!$P$5="Only Show: DH",OR(H23={"C","1B","2B","3B","SS","OF","DH"})),AND('Your Roto Draft'!$P$5="Only Show: P",OR(H23={"SP","RP"})),AND('Your Roto Draft'!$P$5="Only Show: LF",ISERROR(SEARCH("LF",VLOOKUP($D23,'ADP-Rank'!$A$2:$D$948,4,FALSE)))=FALSE),AND('Your Roto Draft'!$P$5="Only Show: RF",ISERROR(SEARCH("RF",VLOOKUP($D23,'ADP-Rank'!$A$2:$D$948,4,FALSE)))=FALSE),AND('Your Roto Draft'!$P$5="Only Show: CF",ISERROR(SEARCH("CF",VLOOKUP($D23,'ADP-Rank'!$A$2:$D$948,4,FALSE)))=FALSE)),TRUE,FALSE))) -> TRUE | M23: =IFERROR(IF(VLOOKUP($D23,'ADP-Rank'!$A$2:$AV$948,38,FALSE)="",9999,VLOOKUP($D23,'ADP-Rank'!$A$2:$AV$948,38,FALSE)),9999) -> 651.5 | N23: =IF(D23="Non-Ranked Player",-1001,IFERROR(VLOOKUP($D23,'All-WERTH'!$C$2:$E$949,3,FALSE),-1000)) -> -10.15237157 | O23: =IF(D23="Non-Ranked Player",10000,IFERROR(IF(VLOOKUP(D23,'ADP-Rank'!$A$2:$AJ$948,36,FALSE)="",9999,VLOOKUP(D23,'ADP-Rank'!$A$2:$AJ$948,36,FALSE)),9999)) -> 686 | P23: =IF($D23="Unlisted Player",-1001,IFERROR(IF(VLOOKUP($D23,'All-WERTH'!$C$2:$AC$949,4,FALSE)="",-1000,VLOOKUP($D23,'All-WERTH'!$C$2:$AC$949,4,FALSE)),-1000)) -> -0.8777867841 | Q23: =IF($D23="Unlisted Player",-1001,IFERROR(IF(VLOOKUP($D23,'All-WERTH'!$C$2:$AC$949,5,FALSE)="",-1000,VLOOKUP($D23,'All-WERTH'!$C$2:$AC$949,5,FALSE)),-1000)) -> -2.134555198 | R23: =IF($D23="Unlisted Player",-1001,IFERROR(IF(VLOOKUP($D23,'All-WERTH'!$C$2:$AC$949,6,FALSE)="",-1000,VLOOKUP($D23,'All-WERTH'!$C$2:$AC$949,6,FALSE)),-1000)) -> -3.230594746 | S23: =IF($D23="Unlisted Player",-1001,IFERROR(IF(VLOOKUP($D23,'All-WERTH'!$C$2:$AC$949,7,FALSE)="",-1000,VLOOKUP($D23,'All-WERTH'!$C$2:$AC$949,7,FALSE)),-1000)) -> -2.816355707 | T23: =IF($D23="Unlisted Player",-1001,IFERROR(IF(VLOOKUP($D23,'All-WERTH'!$C$2:$AC$949,8,FALSE)="",-1000,VLOOKUP($D23,'All-WERTH'!$C$2:$AC$949,8,FALSE)),-1000)) -> -1.093079139 | U23: =IF($D23="Unlisted Player",-1001,IFERROR(IF(VLOOKUP($D23,'All-WERTH'!$C$2:$AC$949,9,FALSE)="",-1000,VLOOKUP($D23,'All-WERTH'!$C$2:$AC$949,9,FALSE)),-1000)) -> -1000 | V23: =IF($D23="Unlisted Player",-1001,IFERROR(IF(VLOOKUP($D23,'All-WERTH'!$C$2:$AC$949,10,FALSE)="",-1000,VLOOKUP($D23,'All-WERTH'!$C$2:$AC$949,10,FALSE)),-1000)) -> -1000 | W23: =IF($D23="Unlisted Player",-1001,IFERROR(IF(VLOOKUP($D23,'All-WERTH'!$C$2:$AC$949,11,FALSE)="",-1000,VLOOKUP($D23,'All-WERTH'!$C$2:$AC$949,11,FALSE)),-1000)) -> -1000 | X23: =IF($D23="Unlisted Player",-1001,IFERROR(IF(VLOOKUP($D23,'All-WERTH'!$C$2:$AC$949,12,FALSE)="",-1000,VLOOKUP($D23,'All-WERTH'!$C$2:$AC$949,12,FALSE)),-1000)) -> -1000 | Y23: =IF($D23="Unlisted Player",-1001,IFERROR(IF(VLOOKUP($D23,'All-WERTH'!$C$2:$AC$949,13,FALSE)="",-1000,VLOOKUP($D23,'All-WERTH'!$C$2:$AC$949,13,FALSE)),-1000)) -> -1000 | Z23: =IF($D23="Unlisted Player",-1001,IFERROR(IF(VLOOKUP($D23,'All-WERTH'!$C$2:$AC$949,14,FALSE)="",-1000,VLOOKUP($D23,'All-WERTH'!$C$2:$AC$949,14,FALSE)),-1000)) -> -1000 | AA23: =IF($D23="Unlisted Player",-1001,IFERROR(IF(VLOOKUP($D23,'All-WERTH'!$C$2:$AC$949,15,FALSE)="",-1000,VLOOKUP($D23,'All-WERTH'!$C$2:$AC$949,15,FALSE)),-1000)) -> -1000 | AB23: =IF($D23="Unlisted Player",-1001,IFERROR(IF(VLOOKUP($D23,'All-WERTH'!$C$2:$AC$949,16,FALSE)="",-1000,VLOOKUP($D23,'All-WERTH'!$C$2:$AC$949,16,FALSE)),-1000)) -> -1000 | AC23: =IF($D23="Unlisted Player",-1001,IFERROR(IF(VLOOKUP($D23,'All-WERTH'!$C$2:$AC$949,17,FALSE)="",-1000,VLOOKUP($D23,'All-WERTH'!$C$2:$AC$949,17,FALSE)),-1000)) -> -1000 | AD23: =IF($D23="Unlisted Player",-1001,IFERROR(IF(VLOOKUP($D23,'All-WERTH'!$C$2:$AC$949,18,FALSE)="",-1000,VLOOKUP($D23,'All-WERTH'!$C$2:$AC$949,18,FALSE)),-1000)) -> -1000 | AE23: =IF($D23="Unlisted Player",-1001,IFERROR(IF(VLOOKUP($D23,'All-WERTH'!$C$2:$AC$949,19,FALSE)="",-1000,VLOOKUP($D23,'All-WERTH'!$C$2:$AC$949,19,FALSE)),-1000)) -> -1000 | AF23: =IF($D23="Unlisted Player",-1001,IFERROR(IF(VLOOKUP($D23,'All-WERTH'!$C$2:$AC$949,20,FALSE)="",-1000,VLOOKUP($D23,'All-WERTH'!$C$2:$AC$949,20,FALSE)),-1000)) -> -1000 | AG23: =IF($D23="Unlisted Player",-1001,IFERROR(IF(VLOOKUP($D23,'All-WERTH'!$C$2:$AC$949,21,FALSE)="",-1000,VLOOKUP($D23,'All-WERTH'!$C$2:$AC$949,21,FALSE)),-1000)) -> -1000 | AH23: =IF($D23="Unlisted Player",-1001,IFERROR(IF(VLOOKUP($D23,'All-WERTH'!$C$2:$AC$949,22,FALSE)="",-1000,VLOOKUP($D23,'All-WERTH'!$C$2:$AC$949,22,FALSE)),-1000)) -> -1000 | AI23: =IF($D23="Unlisted Player",-1001,IFERROR(IF(VLOOKUP($D23,'All-WERTH'!$C$2:$AC$949,23,FALSE)="",-1000,VLOOKUP($D23,'All-WERTH'!$C$2:$AC$949,23,FALSE)),-1000)) -> -1000 | AJ23: =IF($D23="Unlisted Player",-1001,IFERROR(IF(VLOOKUP($D23,'All-WERTH'!$C$2:$AC$949,24,FALSE)="",-1000,VLOOKUP($D23,'All-WERTH'!$C$2:$AC$949,24,FALSE)),-1000)) -> -1000 | AK23: =IF($D23="Unlisted Player",-1001,IFERROR(IF(VLOOKUP($D23,'All-WERTH'!$C$2:$AC$949,25,FALSE)="",-1000,VLOOKUP($D23,'All-WERTH'!$C$2:$AC$949,25,FALSE)),-1000)) -> -1000 | AL23: =IF($D23="Unlisted Player",-1001,IFERROR(IF(VLOOKUP($D23,'All-WERTH'!$C$2:$AC$949,26,FALSE)="",-1000,VLOOKUP($D23,'All-WERTH'!$C$2:$AC$949,26,FALSE)),-1000)) -> -1000 | AM23: =IF($D23="Unlisted Player",-1001,IFERROR(IF(VLOOKUP($D23,'All-WERTH'!$C$2:$AC$949,27,FALSE)="",-1000,VLOOKUP($D23,'All-WERTH'!$C$2:$AC$949,27,FALSE)),-1000)) -> -1000 | AN23: =IF(D23="Non-Ranked Player",-1001,IFERROR(VLOOKUP($D23,'All-WERTH'!$C$2:$AG$949,31,FALSE),-1000)) -> -7.691757486 | AO23: =IF(ISERROR(VLOOKUP($B22,Keepers!$C$2:$D$450,2,FALSE)),B22,"") -> Bryce Harper | AP23: =IFERROR(INDEX($AO$1:$AO$949,SMALL(IF($AO$1:$AO$949<>"",ROW($AO$1:$AO$949)),ROW(AO23))),"") -> Stephen Strasburg
A24: Stephen Strasburg | B24: =IFERROR(INDEX($A$1:$A$949,SMALL(IF($A$1:$A$949<>"",ROW($A$1:$A$949)),ROW(A24))),"") -> Jack Flaherty | C24: =IFERROR(IF(L24=FALSE,"",CHOOSE(MATCH(RIGHT('Your Roto Draft'!$P$4,LEN('Your Roto Draft'!$P$4)-8),$M$1:$AN$1,0),1+SUMPRODUCT(($L$2:$L$950=TRUE)*($M$2:$M$950<M24))+COUNTIFS($L$2:L24,L24,$M$2:M24,M24)-1,1+SUMPRODUCT(($L$2:$L$950=TRUE)*($N$2:$N$950>N24))+COUNTIFS($L$2:L24,L24,$N$2:N24,N24)-1,1+SUMPRODUCT(($L$2:$L$950=TRUE)*($O$2:$O$950<O24))+COUNTIFS($L$2:L24,L24,$O$2:O24,O24)-1,1+SUMPRODUCT(($L$2:$L$950=TRUE)*($P$2:$P$950>P24))+COUNTIFS($L$2:L24,L24,$P$2:P24,P24)-1,1+SUMPRODUCT(($L$2:$L$950=TRUE)*($Q$2:$Q$950>Q24))+COUNTIFS($L$2:L24,L24,$Q$2:Q24,Q24)-1,1+SUMPRODUCT(($L$2:$L$950=TRUE)*($R$2:$R$950>R24))+COUNTIFS($L$2:L24,L24,$R$2:R24,R24)-1,1+SUMPRODUCT(($L$2:$L$950=TRUE)*($S$2:$S$950>S24))+COUNTIFS($L$2:L24,L24,$S$2:S24,S24)-1,1+SUMPRODUCT(($L$2:$L$950=TRUE)*($T$2:$T$950>T24))+COUNTIFS($L$2:L24,L24,$T$2:T24,T24)-1,1+SUMPRODUCT(($L$2:$L$950=TRUE)*($U$2:$U$950>U24))+COUNTIFS($L$2:L24,L24,$U$2:U24,U24)-1,1+SUMPRODUCT(($L$2:$L$950=TRUE)*($V$2:$V$950>V24))+COUNTIFS($L$2:L24,L24,$V$2:V24,V24)-1,1+SUMPRODUCT(($L$2:$L$950=TRUE)*($W$2:$W$950>W24))+COUNTIFS($L$2:L24,L24,$W$2:W24,W24)-1,1+SUMPRODUCT(($L$2:$L$950=TRUE)*($X$2:$X$950>X24))+COUNTIFS($L$2:L24,L24,$X$2:X24,X24)-1,1+SUMPRODUCT(($L$2:$L$950=TRUE)*($Y$2:$Y$950>Y24))+COUNTIFS($L$2:L24,L24,$Y$2:Y24,Y24)-1,1+SUMPRODUCT(($L$2:$L$950=TRUE)*($Z$2:$Z$950>Z24))+COUNTIFS($L$2:L24,L24,$Z$2:Z24,Z24)-1,1+SUMPRODUCT(($L$2:$L$950=TRUE)*($AA$2:$AA$950>AA24))+COUNTIFS($L$2:L24,L24,$AA$2:AA24,AA24)-1,1+SUMPRODUCT(($L$2:$L$950=TRUE)*($AB$2:$AB$950>AB24))+COUNTIFS($L$2:L24,L24,$AB$2:AB24,AB24)-1,1+SUMPRODUCT(($L$2:$L$950=TRUE)*($AC$2:$AC$950>AC24))+COUNTIFS($L$2:L24,L24,$AC$2:AC24,AC24)-1,1+SUMPRODUCT(($L$2:$L$950=TRUE)*($AD$2:$AD$950>AD24))+COUNTIFS($L$2:L24,L24,$AD$2:AD24,AD24)-1,1+SUMPRODUCT(($L$2:$L$950=TRUE)*($AE$2:$AE$950>AE24))+COUNTIFS($L$2:L24,L24,$AE$2:AE24,AE24)-1,1+SUMPRODUCT(($L$2:$L$950=TRUE)*($AF$2:$AF$950>AF24))+COUNTIFS($L$2:L24,L24,$AF$2:AF24,AF24)-1,1+SUMPRODUCT(($L$2:$L$950=TRUE)*($AG$2:$AG$950>AG24))+COUNTIFS($L$2:L24,L24,$AG$2:AG24,AG24)-1,1+SUMPRODUCT(($L$2:$L$950=TRUE)*($AH$2:$AH$950>AH24))+COUNTIFS($L$2:L24,L24,$AH$2:AH24,AH24)-1,1+SUMPRODUCT(($L$2:$L$950=TRUE)*($AI$2:$AI$950>AI24))+COUNTIFS($L$2:L24,L24,$AI$2:AI24,AI24)-1,1+SUMPRODUCT(($L$2:$L$950=TRUE)*($AJ$2:$AJ$950>AJ24))+COUNTIFS($L$2:L24,L24,$AJ$2:AJ24,AJ24)-1,1+SUMPRODUCT(($L$2:$L$950=TRUE)*($AK$2:$AK$950>AK24))+COUNTIFS($L$2:L24,L24,$AK$2:AK24,AK24)-1,1+SUMPRODUCT(($L$2:$L$950=TRUE)*($AL$2:$AL$950>AL24))+COUNTIFS($L$2:L24,L24,$AL$2:AL24,AL24)-1,1+SUMPRODUCT(($L$2:$L$950=TRUE)*($AM$2:$AM$950>AM24))+COUNTIFS($L$2:L24,L24,$AM$2:AM24,AM24)-1,1+SUMPRODUCT(($L$2:$L$950=TRUE)*($AN$2:$AN$950>AN24))+COUNTIFS($L$2:L24,L24,$AN$2:AN24,AN24)-1)),"") -> 31 | D24: Jose Altuve | E24: =IFERROR(INDEX('Draft Log'!$D$4:$D$806,MATCH(D24,'Draft Log'!$C$4:$C$806,0)),"") ->  | F24: =IFERROR(INDEX('ADP-Rank'!$C$2:$C$819,MATCH(D24,'ADP-Rank'!$A$2:$A$819,0)),"") -> 2B | G24: =IFERROR(IF(F24=I24,"",IF(INDEX('Your Roto Draft'!$B$11:$B$634,MATCH(D24,'Your Roto Draft'!$C$11:$C$634,0))="",IF(I24<>"",I24,""),INDEX('Your Roto Draft'!$B$11:$B$634,MATCH(D24,'Your Roto Draft'!$C$11:$C$634,0)))),"") ->  | H24: 2B | J24: =INDEX('ADP-Rank'!$AH$2:$AH$819,MATCH(D24,'ADP-Rank'!$A$2:$A$819,0)) -> TRUE | K24: FALSE | L24: =IF(J24=FALSE,FALSE,IF(AND('Your Roto Draft'!$P$6="Hide Drafted Players",K24=TRUE),FALSE,IF(OR('Your Roto Draft'!$P$5="Show All Positions",AND('Your Roto Draft'!$P$5="Only Show: C",H24="C"),AND('Your Roto Draft'!$P$5="Only Show: 1B",H24="1B"),AND('Your Roto Draft'!$P$5="Only Show: 2B",H24="2B"),AND('Your Roto Draft'!$P$5="Only Show: 3B",H24="3B"),AND('Your Roto Draft'!$P$5="Only Show: SS",H24="SS"),AND('Your Roto Draft'!$P$5="Only Show: OF",H24="OF"),AND('Your Roto Draft'!$P$5="Only Show: SP",H24="SP"),AND('Your Roto Draft'!$P$5="Only Show: RP",H24="RP"),AND('Your Roto Draft'!$P$5="Only Show: CI",OR(H24={"1B","3B"})),AND('Your Roto Draft'!$P$5="Only Show: MI",OR(H24={"2B","SS"})),AND('Your Roto Draft'!$P$5="Only Show: IF",OR(H24={"C","1B","2B","3B","SS"})),AND('Your Roto Draft'!$P$5="Only Show: DH",OR(H24={"C","1B","2B","3B","SS","OF","DH"})),AND('Your Roto Draft'!$P$5="Only Show: P",OR(H24={"SP","RP"})),AND('Your Roto Draft'!$P$5="Only Show: LF",ISERROR(SEARCH("LF",VLOOKUP($D24,'ADP-Rank'!$A$2:$D$948,4,FALSE)))=FALSE),AND('Your Roto Draft'!$P$5="Only Show: RF",ISERROR(SEARCH("RF",VLOOKUP($D24,'ADP-Rank'!$A$2:$D$948,4,FALSE)))=FALSE),AND('Your Roto Draft'!$P$5="Only Show: CF",ISERROR(SEARCH("CF",VLOOKUP($D24,'ADP-Rank'!$A$2:$D$948,4,FALSE)))=FALSE)),TRUE,FALSE))) -> TRUE | M24: =IFERROR(IF(VLOOKUP($D24,'ADP-Rank'!$A$2:$AV$948,38,FALSE)="",9999,VLOOKUP($D24,'ADP-Rank'!$A$2:$AV$948,38,FALSE)),9999) -> 31.6 | N24: =IF(D24="Non-Ranked Player",-1001,IFERROR(VLOOKUP($D24,'All-WERTH'!$C$2:$E$949,3,FALSE),-1000)) -> 4.039062139 | O24: =IF(D24="Non-Ranked Player",10000,IFERROR(IF(VLOOKUP(D24,'ADP-Rank'!$A$2:$AJ$948,36,FALSE)="",9999,VLOOKUP(D24,'ADP-Rank'!$A$2:$AJ$948,36,FALSE)),9999)) -> 29 | P24: =IF($D24="Unlisted Player",-1001,IFERROR(IF(VLOOKUP($D24,'All-WERTH'!$C$2:$AC$949,4,FALSE)="",-1000,VLOOKUP($D24,'All-WERTH'!$C$2:$AC$949,4,FALSE)),-1000)) -> 2.047865963 | Q24: =IF($D24="Unlisted Player",-1001,IFERROR(IF(VLOOKUP($D24,'All-WERTH'!$C$2:$AC$949,5,FALSE)="",-1000,VLOOKUP($D24,'All-WERTH'!$C$2:$AC$949,5,FALSE)),-1000)) -> -0.03289421555 | R24: =IF($D24="Unlisted Player",-1001,IFERROR(IF(VLOOKUP($D24,'All-WERTH'!$C$2:$AC$949,6,FALSE)="",-1000,VLOOKUP($D24,'All-WERTH'!$C$2:$AC$949,6,FALSE)),-1000)) -> 1.123880358 | S24: =IF($D24="Unlisted Player",-1001,IFERROR(IF(VLOOKUP($D24,'All-WERTH'!$C$2:$AC$949,7,FALSE)="",-1000,VLOOKUP($D24,'All-WERTH'!$C$2:$AC$949,7,FALSE)),-1000)) -> 0.2968438186 | T24: =IF($D24="Unlisted Player",-1001,IFERROR(IF(VLOOKUP($D24,'All-WERTH'!$C$2:$AC$949,8,FALSE)="",-1000,VLOOKUP($D24,'All-WERTH'!$C$2:$AC$949,8,FALSE)),-1000)) -> 0.6033662154 | U24: =IF($D24="Unlisted Player",-1001,IFERROR(IF(VLOOKUP($D24,'All-WERTH'!$C$2:$AC$949,9,FALSE)="",-1000,VLOOKUP($D24,'All-WERTH'!$C$2:$AC$949,9,FALSE)),-1000)) -> -1000 | V24: =IF($D24="Unlisted Player",-1001,IFERROR(IF(VLOOKUP($D24,'All-WERTH'!$C$2:$AC$949,10,FALSE)="",-1000,VLOOKUP($D24,'All-WERTH'!$C$2:$AC$949,10,FALSE)),-1000)) -> -1000 | W24: =IF($D24="Unlisted Player",-1001,IFERROR(IF(VLOOKUP($D24,'All-WERTH'!$C$2:$AC$949,11,FALSE)="",-1000,VLOOKUP($D24,'All-WERTH'!$C$2:$AC$949,11,FALSE)),-1000)) -> -1000 | X24: =IF($D24="Unlisted Player",-1001,IFERROR(IF(VLOOKUP($D24,'All-WERTH'!$C$2:$AC$949,12,FALSE)="",-1000,VLOOKUP($D24,'All-WERTH'!$C$2:$AC$949,12,FALSE)),-1000)) -> -1000 | Y24: =IF($D24="Unlisted Player",-1001,IFERROR(IF(VLOOKUP($D24,'All-WERTH'!$C$2:$AC$949,13,FALSE)="",-1000,VLOOKUP($D24,'All-WERTH'!$C$2:$AC$949,13,FALSE)),-1000)) -> -1000 | Z24: =IF($D24="Unlisted Player",-1001,IFERROR(IF(VLOOKUP($D24,'All-WERTH'!$C$2:$AC$949,14,FALSE)="",-1000,VLOOKUP($D24,'All-WERTH'!$C$2:$AC$949,14,FALSE)),-1000)) -> -1000 | AA24: =IF($D24="Unlisted Player",-1001,IFERROR(IF(VLOOKUP($D24,'All-WERTH'!$C$2:$AC$949,15,FALSE)="",-1000,VLOOKUP($D24,'All-WERTH'!$C$2:$AC$949,15,FALSE)),-1000)) -> -1000 | AB24: =IF($D24="Unlisted Player",-1001,IFERROR(IF(VLOOKUP($D24,'All-WERTH'!$C$2:$AC$949,16,FALSE)="",-1000,VLOOKUP($D24,'All-WERTH'!$C$2:$AC$949,16,FALSE)),-1000)) -> -1000 | AC24: =IF($D24="Unlisted Player",-1001,IFERROR(IF(VLOOKUP($D24,'All-WERTH'!$C$2:$AC$949,17,FALSE)="",-1000,VLOOKUP($D24,'All-WERTH'!$C$2:$AC$949,17,FALSE)),-1000)) -> -1000 | AD24: =IF($D24="Unlisted Player",-1001,IFERROR(IF(VLOOKUP($D24,'All-WERTH'!$C$2:$AC$949,18,FALSE)="",-1000,VLOOKUP($D24,'All-WERTH'!$C$2:$AC$949,18,FALSE)),-1000)) -> -1000 | AE24: =IF($D24="Unlisted Player",-1001,IFERROR(IF(VLOOKUP($D24,'All-WERTH'!$C$2:$AC$949,19,FALSE)="",-1000,VLOOKUP($D24,'All-WERTH'!$C$2:$AC$949,19,FALSE)),-1000)) -> -1000 | AF24: =IF($D24="Unlisted Player",-1001,IFERROR(IF(VLOOKUP($D24,'All-WERTH'!$C$2:$AC$949,20,FALSE)="",-1000,VLOOKUP($D24,'All-WERTH'!$C$2:$AC$949,20,FALSE)),-1000)) -> -1000 | AG24: =IF($D24="Unlisted Player",-1001,IFERROR(IF(VLOOKUP($D24,'All-WERTH'!$C$2:$AC$949,21,FALSE)="",-1000,VLOOKUP($D24,'All-WERTH'!$C$2:$AC$949,21,FALSE)),-1000)) -> -1000 | AH24: =IF($D24="Unlisted Player",-1001,IFERROR(IF(VLOOKUP($D24,'All-WERTH'!$C$2:$AC$949,22,FALSE)="",-1000,VLOOKUP($D24,'All-WERTH'!$C$2:$AC$949,22,FALSE)),-1000)) -> -1000 | AI24: =IF($D24="Unlisted Player",-1001,IFERROR(IF(VLOOKUP($D24,'All-WERTH'!$C$2:$AC$949,23,FALSE)="",-1000,VLOOKUP($D24,'All-WERTH'!$C$2:$AC$949,23,FALSE)),-1000)) -> -1000 | AJ24: =IF($D24="Unlisted Player",-1001,IFERROR(IF(VLOOKUP($D24,'All-WERTH'!$C$2:$AC$949,24,FALSE)="",-1000,VLOOKUP($D24,'All-WERTH'!$C$2:$AC$949,24,FALSE)),-1000)) -> -1000 | AK24: =IF($D24="Unlisted Player",-1001,IFERROR(IF(VLOOKUP($D24,'All-WERTH'!$C$2:$AC$949,25,FALSE)="",-1000,VLOOKUP($D24,'All-WERTH'!$C$2:$AC$949,25,FALSE)),-1000)) -> -1000 | AL24: =IF($D24="Unlisted Player",-1001,IFERROR(IF(VLOOKUP($D24,'All-WERTH'!$C$2:$AC$949,26,FALSE)="",-1000,VLOOKUP($D24,'All-WERTH'!$C$2:$AC$949,26,FALSE)),-1000)) -> -1000 | AM24: =IF($D24="Unlisted Player",-1001,IFERROR(IF(VLOOKUP($D24,'All-WERTH'!$C$2:$AC$949,27,FALSE)="",-1000,VLOOKUP($D24,'All-WERTH'!$C$2:$AC$949,27,FALSE)),-1000)) -> -1000 | AN24: =IF(D24="Non-Ranked Player",-1001,IFERROR(VLOOKUP($D24,'All-WERTH'!$C$2:$AG$949,31,FALSE),-1000)) -> 7.473303644 | AO24: =IF(ISERROR(VLOOKUP($B23,Keepers!$C$2:$D$450,2,FALSE)),B23,"") -> Stephen Strasburg | AP24: =IFERROR(INDEX($AO$1:$AO$949,SMALL(IF($AO$1:$AO$949<>"",ROW($AO$1:$AO$949)),ROW(AO24))),"") -> Jack Flaherty
A25: Jack Flaherty | B25: =IFERROR(INDEX($A$1:$A$949,SMALL(IF($A$1:$A$949<>"",ROW($A$1:$A$949)),ROW(A25))),"") -> Rafael Devers | C25: =IFERROR(IF(L25=FALSE,"",CHOOSE(MATCH(RIGHT('Your Roto Draft'!$P$4,LEN('Your Roto Draft'!$P$4)-8),$M$1:$AN$1,0),1+SUMPRODUCT(($L$2:$L$950=TRUE)*($M$2:$M$950<M25))+COUNTIFS($L$2:L25,L25,$M$2:M25,M25)-1,1+SUMPRODUCT(($L$2:$L$950=TRUE)*($N$2:$N$950>N25))+COUNTIFS($L$2:L25,L25,$N$2:N25,N25)-1,1+SUMPRODUCT(($L$2:$L$950=TRUE)*($O$2:$O$950<O25))+COUNTIFS($L$2:L25,L25,$O$2:O25,O25)-1,1+SUMPRODUCT(($L$2:$L$950=TRUE)*($P$2:$P$950>P25))+COUNTIFS($L$2:L25,L25,$P$2:P25,P25)-1,1+SUMPRODUCT(($L$2:$L$950=TRUE)*($Q$2:$Q$950>Q25))+COUNTIFS($L$2:L25,L25,$Q$2:Q25,Q25)-1,1+SUMPRODUCT(($L$2:$L$950=TRUE)*($R$2:$R$950>R25))+COUNTIFS($L$2:L25,L25,$R$2:R25,R25)-1,1+SUMPRODUCT(($L$2:$L$950=TRUE)*($S$2:$S$950>S25))+COUNTIFS($L$2:L25,L25,$S$2:S25,S25)-1,1+SUMPRODUCT(($L$2:$L$950=TRUE)*($T$2:$T$950>T25))+COUNTIFS($L$2:L25,L25,$T$2:T25,T25)-1,1+SUMPRODUCT(($L$2:$L$950=TRUE)*($U$2:$U$950>U25))+COUNTIFS($L$2:L25,L25,$U$2:U25,U25)-1,1+SUMPRODUCT(($L$2:$L$950=TRUE)*($V$2:$V$950>V25))+COUNTIFS($L$2:L25,L25,$V$2:V25,V25)-1,1+SUMPRODUCT(($L$2:$L$950=TRUE)*($W$2:$W$950>W25))+COUNTIFS($L$2:L25,L25,$W$2:W25,W25)-1,1+SUMPRODUCT(($L$2:$L$950=TRUE)*($X$2:$X$950>X25))+COUNTIFS($L$2:L25,L25,$X$2:X25,X25)-1,1+SUMPRODUCT(($L$2:$L$950=TRUE)*($Y$2:$Y$950>Y25))+COUNTIFS($L$2:L25,L25,$Y$2:Y25,Y25)-1,1+SUMPRODUCT(($L$2:$L$950=TRUE)*($Z$2:$Z$950>Z25))+COUNTIFS($L$2:L25,L25,$Z$2:Z25,Z25)-1,1+SUMPRODUCT(($L$2:$L$950=TRUE)*($AA$2:$AA$950>AA25))+COUNTIFS($L$2:L25,L25,$AA$2:AA25,AA25)-1,1+SUMPRODUCT(($L$2:$L$950=TRUE)*($AB$2:$AB$950>AB25))+COUNTIFS($L$2:L25,L25,$AB$2:AB25,AB25)-1,1+SUMPRODUCT(($L$2:$L$950=TRUE)*($AC$2:$AC$950>AC25))+COUNTIFS($L$2:L25,L25,$AC$2:AC25,AC25)-1,1+SUMPRODUCT(($L$2:$L$950=TRUE)*($AD$2:$AD$950>AD25))+COUNTIFS($L$2:L25,L25,$AD$2:AD25,AD25)-1,1+SUMPRODUCT(($L$2:$L$950=TRUE)*($AE$2:$AE$950>AE25))+COUNTIFS($L$2:L25,L25,$AE$2:AE25,AE25)-1,1+SUMPRODUCT(($L$2:$L$950=TRUE)*($AF$2:$AF$950>AF25))+COUNTIFS($L$2:L25,L25,$AF$2:AF25,AF25)-1,1+SUMPRODUCT(($L$2:$L$950=TRUE)*($AG$2:$AG$950>AG25))+COUNTIFS($L$2:L25,L25,$AG$2:AG25,AG25)-1,1+SUMPRODUCT(($L$2:$L$950=TRUE)*($AH$2:$AH$950>AH25))+COUNTIFS($L$2:L25,L25,$AH$2:AH25,AH25)-1,1+SUMPRODUCT(($L$2:$L$950=TRUE)*($AI$2:$AI$950>AI25))+COUNTIFS($L$2:L25,L25,$AI$2:AI25,AI25)-1,1+SUMPRODUCT(($L$2:$L$950=TRUE)*($AJ$2:$AJ$950>AJ25))+COUNTIFS($L$2:L25,L25,$AJ$2:AJ25,AJ25)-1,1+SUMPRODUCT(($L$2:$L$950=TRUE)*($AK$2:$AK$950>AK25))+COUNTIFS($L$2:L25,L25,$AK$2:AK25,AK25)-1,1+SUMPRODUCT(($L$2:$L$950=TRUE)*($AL$2:$AL$950>AL25))+COUNTIFS($L$2:L25,L25,$AL$2:AL25,AL25)-1,1+SUMPRODUCT(($L$2:$L$950=TRUE)*($AM$2:$AM$950>AM25))+COUNTIFS($L$2:L25,L25,$AM$2:AM25,AM25)-1,1+SUMPRODUCT(($L$2:$L$950=TRUE)*($AN$2:$AN$950>AN25))+COUNTIFS($L$2:L25,L25,$AN$2:AN25,AN25)-1)),"") -> 420 | D25: Jose Alvarado | E25: =IFERROR(INDEX('Draft Log'!$D$4:$D$806,MATCH(D25,'Draft Log'!$C$4:$C$806,0)),"") ->  | F25: =IFERROR(INDEX('ADP-Rank'!$C$2:$C$819,MATCH(D25,'ADP-Rank'!$A$2:$A$819,0)),"") -> RP | G25: =IFERROR(IF(F25=I25,"",IF(INDEX('Your Roto Draft'!$B$11:$B$634,MATCH(D25,'Your Roto Draft'!$C$11:$C$634,0))="",IF(I25<>"",I25,""),INDEX('Your Roto Draft'!$B$11:$B$634,MATCH(D25,'Your Roto Draft'!$C$11:$C$634,0)))),"") ->  | H25: RP | J25: =INDEX('ADP-Rank'!$AH$2:$AH$819,MATCH(D25,'ADP-Rank'!$A$2:$A$819,0)) -> TRUE | K25: FALSE | L25: =IF(J25=FALSE,FALSE,IF(AND('Your Roto Draft'!$P$6="Hide Drafted Players",K25=TRUE),FALSE,IF(OR('Your Roto Draft'!$P$5="Show All Positions",AND('Your Roto Draft'!$P$5="Only Show: C",H25="C"),AND('Your Roto Draft'!$P$5="Only Show: 1B",H25="1B"),AND('Your Roto Draft'!$P$5="Only Show: 2B",H25="2B"),AND('Your Roto Draft'!$P$5="Only Show: 3B",H25="3B"),AND('Your Roto Draft'!$P$5="Only Show: SS",H25="SS"),AND('Your Roto Draft'!$P$5="Only Show: OF",H25="OF"),AND('Your Roto Draft'!$P$5="Only Show: SP",H25="SP"),AND('Your Roto Draft'!$P$5="Only Show: RP",H25="RP"),AND('Your Roto Draft'!$P$5="Only Show: CI",OR(H25={"1B","3B"})),AND('Your Roto Draft'!$P$5="Only Show: MI",OR(H25={"2B","SS"})),AND('Your Roto Draft'!$P$5="Only Show: IF",OR(H25={"C","1B","2B","3B","SS"})),AND('Your Roto Draft'!$P$5="Only Show: DH",OR(H25={"C","1B","2B","3B","SS","OF","DH"})),AND('Your Roto Draft'!$P$5="Only Show: P",OR(H25={"SP","RP"})),AND('Your Roto Draft'!$P$5="Only Show: LF",ISERROR(SEARCH("LF",VLOOKUP($D25,'ADP-Rank'!$A$2:$D$948,4,FALSE)))=FALSE),AND('Your Roto Draft'!$P$5="Only Show: RF",ISERROR(SEARCH("RF",VLOOKUP($D25,'ADP-Rank'!$A$2:$D$948,4,FALSE)))=FALSE),AND('Your Roto Draft'!$P$5="Only Show: CF",ISERROR(SEARCH("CF",VLOOKUP($D25,'ADP-Rank'!$A$2:$D$948,4,FALSE)))=FALSE)),TRUE,FALSE))) -> TRUE | M25: =IFERROR(IF(VLOOKUP($D25,'ADP-Rank'!$A$2:$AV$948,38,FALSE)="",9999,VLOOKUP($D25,'ADP-Rank'!$A$2:$AV$948,38,FALSE)),9999) -> 401 | N25: =IF(D25="Non-Ranked Player",-1001,IFERROR(VLOOKUP($D25,'All-WERTH'!$C$2:$E$949,3,FALSE),-1000)) -> -4.406949995 | O25: =IF(D25="Non-Ranked Player",10000,IFERROR(IF(VLOOKUP(D25,'ADP-Rank'!$A$2:$AJ$948,36,FALSE)="",9999,VLOOKUP(D25,'ADP-Rank'!$A$2:$AJ$948,36,FALSE)),9999)) -> 365 | P25: =IF($D25="Unlisted Player",-1001,IFERROR(IF(VLOOKUP($D25,'All-WERTH'!$C$2:$AC$949,4,FALSE)="",-1000,VLOOKUP($D25,'All-WERTH'!$C$2:$AC$949,4,FALSE)),-1000)) -> -1000 | Q25: =IF($D25="Unlisted Player",-1001,IFERROR(IF(VLOOKUP($D25,'All-WERTH'!$C$2:$AC$949,5,FALSE)="",-1000,VLOOKUP($D25,'All-WERTH'!$C$2:$AC$949,5,FALSE)),-1000)) -> -1000 | R25: =IF($D25="Unlisted Player",-1001,IFERROR(IF(VLOOKUP($D25,'All-WERTH'!$C$2:$AC$949,6,FALSE)="",-1000,VLOOKUP($D25,'All-WERTH'!$C$2:$AC$949,6,FALSE)),-1000)) -> -1000 | S25: =IF($D25="Unlisted Player",-1001,IFERROR(IF(VLOOKUP($D25,'All-WERTH'!$C$2:$AC$949,7,FALSE)="",-1000,VLOOKUP($D25,'All-WERTH'!$C$2:$AC$949,7,FALSE)),-1000)) -> -1000 | T25: =IF($D25="Unlisted Player",-1001,IFERROR(IF(VLOOKUP($D25,'All-WERTH'!$C$2:$AC$949,8,FALSE)="",-1000,VLOOKUP($D25,'All-WERTH'!$C$2:$AC$949,8,FALSE)),-1000)) -> -1000 | U25: =IF($D25="Unlisted Player",-1001,IFERROR(IF(VLOOKUP($D25,'All-WERTH'!$C$2:$AC$949,9,FALSE)="",-1000,VLOOKUP($D25,'All-WERTH'!$C$2:$AC$949,9,FALSE)),-1000)) -> -1000 | V25: =IF($D25="Unlisted Player",-1001,IFERROR(IF(VLOOKUP($D25,'All-WERTH'!$C$2:$AC$949,10,FALSE)="",-1000,VLOOKUP($D25,'All-WERTH'!$C$2:$AC$949,10,FALSE)),-1000)) -> -1000 | W25: =IF($D25="Unlisted Player",-1001,IFERROR(IF(VLOOKUP($D25,'All-WERTH'!$C$2:$AC$949,11,FALSE)="",-1000,VLOOKUP($D25,'All-WERTH'!$C$2:$AC$949,11,FALSE)),-1000)) -> -1000 | X25: =IF($D25="Unlisted Player",-1001,IFERROR(IF(VLOOKUP($D25,'All-WERTH'!$C$2:$AC$949,12,FALSE)="",-1000,VLOOKUP($D25,'All-WERTH'!$C$2:$AC$949,12,FALSE)),-1000)) -> -1000 | Y25: =IF($D25="Unlisted Player",-1001,IFERROR(IF(VLOOKUP($D25,'All-WERTH'!$C$2:$AC$949,13,FALSE)="",-1000,VLOOKUP($D25,'All-WERTH'!$C$2:$AC$949,13,FALSE)),-1000)) -> -1000 | Z25: =IF($D25="Unlisted Player",-1001,IFERROR(IF(VLOOKUP($D25,'All-WERTH'!$C$2:$AC$949,14,FALSE)="",-1000,VLOOKUP($D25,'All-WERTH'!$C$2:$AC$949,14,FALSE)),-1000)) -> -1000 | AA25: =IF($D25="Unlisted Player",-1001,IFERROR(IF(VLOOKUP($D25,'All-WERTH'!$C$2:$AC$949,15,FALSE)="",-1000,VLOOKUP($D25,'All-WERTH'!$C$2:$AC$949,15,FALSE)),-1000)) -> -1000 | AB25: =IF($D25="Unlisted Player",-1001,IFERROR(IF(VLOOKUP($D25,'All-WERTH'!$C$2:$AC$949,16,FALSE)="",-1000,VLOOKUP($D25,'All-WERTH'!$C$2:$AC$949,16,FALSE)),-1000)) -> -1.50449165 | AC25: =IF($D25="Unlisted Player",-1001,IFERROR(IF(VLOOKUP($D25,'All-WERTH'!$C$2:$AC$949,17,FALSE)="",-1000,VLOOKUP($D25,'All-WERTH'!$C$2:$AC$949,17,FALSE)),-1000)) -> 0.1696794014 | AD25: =IF($D25="Unlisted Player",-1001,IFERROR(IF(VLOOKUP($D25,'All-WERTH'!$C$2:$AC$949,18,FALSE)="",-1000,VLOOKUP($D25,'All-WERTH'!$C$2:$AC$949,18,FALSE)),-1000)) -> -1.708488926 | AE25: =IF($D25="Unlisted Player",-1001,IFERROR(IF(VLOOKUP($D25,'All-WERTH'!$C$2:$AC$949,19,FALSE)="",-1000,VLOOKUP($D25,'All-WERTH'!$C$2:$AC$949,19,FALSE)),-1000)) -> -0.1231694383 | AF25: =IF($D25="Unlisted Player",-1001,IFERROR(IF(VLOOKUP($D25,'All-WERTH'!$C$2:$AC$949,20,FALSE)="",-1000,VLOOKUP($D25,'All-WERTH'!$C$2:$AC$949,20,FALSE)),-1000)) -> -1.240479382 | AG25: =IF($D25="Unlisted Player",-1001,IFERROR(IF(VLOOKUP($D25,'All-WERTH'!$C$2:$AC$949,21,FALSE)="",-1000,VLOOKUP($D25,'All-WERTH'!$C$2:$AC$949,21,FALSE)),-1000)) -> -1000 | AH25: =IF($D25="Unlisted Player",-1001,IFERROR(IF(VLOOKUP($D25,'All-WERTH'!$C$2:$AC$949,22,FALSE)="",-1000,VLOOKUP($D25,'All-WERTH'!$C$2:$AC$949,22,FALSE)),-1000)) -> -1000 | AI25: =IF($D25="Unlisted Player",-1001,IFERROR(IF(VLOOKUP($D25,'All-WERTH'!$C$2:$AC$949,23,FALSE)="",-1000,VLOOKUP($D25,'All-WERTH'!$C$2:$AC$949,23,FALSE)),-1000)) -> -1000 | AJ25: =IF($D25="Unlisted Player",-1001,IFERROR(IF(VLOOKUP($D25,'All-WERTH'!$C$2:$AC$949,24,FALSE)="",-1000,VLOOKUP($D25,'All-WERTH'!$C$2:$AC$949,24,FALSE)),-1000)) -> -1000 | AK25: =IF($D25="Unlisted Player",-1001,IFERROR(IF(VLOOKUP($D25,'All-WERTH'!$C$2:$AC$949,25,FALSE)="",-1000,VLOOKUP($D25,'All-WERTH'!$C$2:$AC$949,25,FALSE)),-1000)) -> -1000 | AL25: =IF($D25="Unlisted Player",-1001,IFERROR(IF(VLOOKUP($D25,'All-WERTH'!$C$2:$AC$949,26,FALSE)="",-1000,VLOOKUP($D25,'All-WERTH'!$C$2:$AC$949,26,FALSE)),-1000)) -> -1000 | AM25: =IF($D25="Unlisted Player",-1001,IFERROR(IF(VLOOKUP($D25,'All-WERTH'!$C$2:$AC$949,27,FALSE)="",-1000,VLOOKUP($D25,'All-WERTH'!$C$2:$AC$949,27,FALSE)),-1000)) -> -1000 | AN25: =IF(D25="Non-Ranked Player",-1001,IFERROR(VLOOKUP($D25,'All-WERTH'!$C$2:$AG$949,31,FALSE),-1000)) -> -1.544258404 | AO25: =IF(ISERROR(VLOOKUP($B24,Keepers!$C$2:$D$450,2,FALSE)),B24,"") -> Jack Flaherty | AP25: =IFERROR(INDEX($AO$1:$AO$949,SMALL(IF($AO$1:$AO$949<>"",ROW($AO$1:$AO$949)),ROW(AO25))),"") -> Rafael Devers
A26: Rafael Devers | B26: =IFERROR(INDEX($A$1:$A$949,SMALL(IF($A$1:$A$949<>"",ROW($A$1:$A$949)),ROW(A26))),"") -> Pete Alonso | C26: =IFERROR(IF(L26=FALSE,"",CHOOSE(MATCH(RIGHT('Your Roto Draft'!$P$4,LEN('Your Roto Draft'!$P$4)-8),$M$1:$AN$1,0),1+SUMPRODUCT(($L$2:$L$950=TRUE)*($M$2:$M$950<M26))+COUNTIFS($L$2:L26,L26,$M$2:M26,M26)-1,1+SUMPRODUCT(($L$2:$L$950=TRUE)*($N$2:$N$950>N26))+COUNTIFS($L$2:L26,L26,$N$2:N26,N26)-1,1+SUMPRODUCT(($L$2:$L$950=TRUE)*($O$2:$O$950<O26))+COUNTIFS($L$2:L26,L26,$O$2:O26,O26)-1,1+SUMPRODUCT(($L$2:$L$950=TRUE)*($P$2:$P$950>P26))+COUNTIFS($L$2:L26,L26,$P$2:P26,P26)-1,1+SUMPRODUCT(($L$2:$L$950=TRUE)*($Q$2:$Q$950>Q26))+COUNTIFS($L$2:L26,L26,$Q$2:Q26,Q26)-1,1+SUMPRODUCT(($L$2:$L$950=TRUE)*($R$2:$R$950>R26))+COUNTIFS($L$2:L26,L26,$R$2:R26,R26)-1,1+SUMPRODUCT(($L$2:$L$950=TRUE)*($S$2:$S$950>S26))+COUNTIFS($L$2:L26,L26,$S$2:S26,S26)-1,1+SUMPRODUCT(($L$2:$L$950=TRUE)*($T$2:$T$950>T26))+COUNTIFS($L$2:L26,L26,$T$2:T26,T26)-1,1+SUMPRODUCT(($L$2:$L$950=TRUE)*($U$2:$U$950>U26))+COUNTIFS($L$2:L26,L26,$U$2:U26,U26)-1,1+SUMPRODUCT(($L$2:$L$950=TRUE)*($V$2:$V$950>V26))+COUNTIFS($L$2:L26,L26,$V$2:V26,V26)-1,1+SUMPRODUCT(($L$2:$L$950=TRUE)*($W$2:$W$950>W26))+COUNTIFS($L$2:L26,L26,$W$2:W26,W26)-1,1+SUMPRODUCT(($L$2:$L$950=TRUE)*($X$2:$X$950>X26))+COUNTIFS($L$2:L26,L26,$X$2:X26,X26)-1,1+SUMPRODUCT(($L$2:$L$950=TRUE)*($Y$2:$Y$950>Y26))+COUNTIFS($L$2:L26,L26,$Y$2:Y26,Y26)-1,1+SUMPRODUCT(($L$2:$L$950=TRUE)*($Z$2:$Z$950>Z26))+COUNTIFS($L$2:L26,L26,$Z$2:Z26,Z26)-1,1+SUMPRODUCT(($L$2:$L$950=TRUE)*($AA$2:$AA$950>AA26))+COUNTIFS($L$2:L26,L26,$AA$2:AA26,AA26)-1,1+SUMPRODUCT(($L$2:$L$950=TRUE)*($AB$2:$AB$950>AB26))+COUNTIFS($L$2:L26,L26,$AB$2:AB26,AB26)-1,1+SUMPRODUCT(($L$2:$L$950=TRUE)*($AC$2:$AC$950>AC26))+COUNTIFS($L$2:L26,L26,$AC$2:AC26,AC26)-1,1+SUMPRODUCT(($L$2:$L$950=TRUE)*($AD$2:$AD$950>AD26))+COUNTIFS($L$2:L26,L26,$AD$2:AD26,AD26)-1,1+SUMPRODUCT(($L$2:$L$950=TRUE)*($AE$2:$AE$950>AE26))+COUNTIFS($L$2:L26,L26,$AE$2:AE26,AE26)-1,1+SUMPRODUCT(($L$2:$L$950=TRUE)*($AF$2:$AF$950>AF26))+COUNTIFS($L$2:L26,L26,$AF$2:AF26,AF26)-1,1+SUMPRODUCT(($L$2:$L$950=TRUE)*($AG$2:$AG$950>AG26))+COUNTIFS($L$2:L26,L26,$AG$2:AG26,AG26)-1,1+SUMPRODUCT(($L$2:$L$950=TRUE)*($AH$2:$AH$950>AH26))+COUNTIFS($L$2:L26,L26,$AH$2:AH26,AH26)-1,1+SUMPRODUCT(($L$2:$L$950=TRUE)*($AI$2:$AI$950>AI26))+COUNTIFS($L$2:L26,L26,$AI$2:AI26,AI26)-1,1+SUMPRODUCT(($L$2:$L$950=TRUE)*($AJ$2:$AJ$950>AJ26))+COUNTIFS($L$2:L26,L26,$AJ$2:AJ26,AJ26)-1,1+SUMPRODUCT(($L$2:$L$950=TRUE)*($AK$2:$AK$950>AK26))+COUNTIFS($L$2:L26,L26,$AK$2:AK26,AK26)-1,1+SUMPRODUCT(($L$2:$L$950=TRUE)*($AL$2:$AL$950>AL26))+COUNTIFS($L$2:L26,L26,$AL$2:AL26,AL26)-1,1+SUMPRODUCT(($L$2:$L$950=TRUE)*($AM$2:$AM$950>AM26))+COUNTIFS($L$2:L26,L26,$AM$2:AM26,AM26)-1,1+SUMPRODUCT(($L$2:$L$950=TRUE)*($AN$2:$AN$950>AN26))+COUNTIFS($L$2:L26,L26,$AN$2:AN26,AN26)-1)),"") -> 40 | D26: Yordan Alvarez | E26: =IFERROR(INDEX('Draft Log'!$D$4:$D$806,MATCH(D26,'Draft Log'!$C$4:$C$806,0)),"") ->  | F26: =IFERROR(INDEX('ADP-Rank'!$C$2:$C$819,MATCH(D26,'ADP-Rank'!$A$2:$A$819,0)),"") -> DH | G26: =IFERROR(IF(F26=I26,"",IF(INDEX('Your Roto Draft'!$B$11:$B$634,MATCH(D26,'Your Roto Draft'!$C$11:$C$634,0))="",IF(I26<>"",I26,""),INDEX('Your Roto Draft'!$B$11:$B$634,MATCH(D26,'Your Roto Draft'!$C$11:$C$634,0)))),"") ->  | H26: DH | J26: =INDEX('ADP-Rank'!$AH$2:$AH$819,MATCH(D26,'ADP-Rank'!$A$2:$A$819,0)) -> TRUE | K26: FALSE | L26: =IF(J26=FALSE,FALSE,IF(AND('Your Roto Draft'!$P$6="Hide Drafted Players",K26=TRUE),FALSE,IF(OR('Your Roto Draft'!$P$5="Show All Positions",AND('Your Roto Draft'!$P$5="Only Show: C",H26="C"),AND('Your Roto Draft'!$P$5="Only Show: 1B",H26="1B"),AND('Your Roto Draft'!$P$5="Only Show: 2B",H26="2B"),AND('Your Roto Draft'!$P$5="Only Show: 3B",H26="3B"),AND('Your Roto Draft'!$P$5="Only Show: SS",H26="SS"),AND('Your Roto Draft'!$P$5="Only Show: OF",H26="OF"),AND('Your Roto Draft'!$P$5="Only Show: SP",H26="SP"),AND('Your Roto Draft'!$P$5="Only Show: RP",H26="RP"),AND('Your Roto Draft'!$P$5="Only Show: CI",OR(H26={"1B","3B"})),AND('Your Roto Draft'!$P$5="Only Show: MI",OR(H26={"2B","SS"})),AND('Your Roto Draft'!$P$5="Only Show: IF",OR(H26={"C","1B","2B","3B","SS"})),AND('Your Roto Draft'!$P$5="Only Show: DH",OR(H26={"C","1B","2B","3B","SS","OF","DH"})),AND('Your Roto Draft'!$P$5="Only Show: P",OR(H26={"SP","RP"})),AND('Your Roto Draft'!$P$5="Only Show: LF",ISERROR(SEARCH("LF",VLOOKUP($D26,'ADP-Rank'!$A$2:$D$948,4,FALSE)))=FALSE),AND('Your Roto Draft'!$P$5="Only Show: RF",ISERROR(SEARCH("RF",VLOOKUP($D26,'ADP-Rank'!$A$2:$D$948,4,FALSE)))=FALSE),AND('Your Roto Draft'!$P$5="Only Show: CF",ISERROR(SEARCH("CF",VLOOKUP($D26,'ADP-Rank'!$A$2:$D$948,4,FALSE)))=FALSE)),TRUE,FALSE))) -> TRUE | M26: =IFERROR(IF(VLOOKUP($D26,'ADP-Rank'!$A$2:$AV$948,38,FALSE)="",9999,VLOOKUP($D26,'ADP-Rank'!$A$2:$AV$948,38,FALSE)),9999) -> 41.2 | N26: =IF(D26="Non-Ranked Player",-1001,IFERROR(VLOOKUP($D26,'All-WERTH'!$C$2:$E$949,3,FALSE),-1000)) -> 2.578071133 | O26: =IF(D26="Non-Ranked Player",10000,IFERROR(IF(VLOOKUP(D26,'ADP-Rank'!$A$2:$AJ$948,36,FALSE)="",9999,VLOOKUP(D26,'ADP-Rank'!$A$2:$AJ$948,36,FALSE)),9999)) -> 49 | P26: =IF($D26="Unlisted Player",-1001,IFERROR(IF(VLOOKUP($D26,'All-WERTH'!$C$2:$AC$949,4,FALSE)="",-1000,VLOOKUP($D26,'All-WERTH'!$C$2:$AC$949,4,FALSE)),-1000)) -> 0.5939683058 | Q26: =IF($D26="Unlisted Player",-1001,IFERROR(IF(VLOOKUP($D26,'All-WERTH'!$C$2:$AC$949,5,FALSE)="",-1000,VLOOKUP($D26,'All-WERTH'!$C$2:$AC$949,5,FALSE)),-1000)) -> 1.215900093 | R26: =IF($D26="Unlisted Player",-1001,IFERROR(IF(VLOOKUP($D26,'All-WERTH'!$C$2:$AC$949,6,FALSE)="",-1000,VLOOKUP($D26,'All-WERTH'!$C$2:$AC$949,6,FALSE)),-1000)) -> 0.2398722364 | S26: =IF($D26="Unlisted Player",-1001,IFERROR(IF(VLOOKUP($D26,'All-WERTH'!$C$2:$AC$949,7,FALSE)="",-1000,VLOOKUP($D26,'All-WERTH'!$C$2:$AC$949,7,FALSE)),-1000)) -> 1.287453651 | T26: =IF($D26="Unlisted Player",-1001,IFERROR(IF(VLOOKUP($D26,'All-WERTH'!$C$2:$AC$949,8,FALSE)="",-1000,VLOOKUP($D26,'All-WERTH'!$C$2:$AC$949,8,FALSE)),-1000)) -> -0.7591231532 | U26: =IF($D26="Unlisted Player",-1001,IFERROR(IF(VLOOKUP($D26,'All-WERTH'!$C$2:$AC$949,9,FALSE)="",-1000,VLOOKUP($D26,'All-WERTH'!$C$2:$AC$949,9,FALSE)),-1000)) -> -1000 | V26: =IF($D26="Unlisted Player",-1001,IFERROR(IF(VLOOKUP($D26,'All-WERTH'!$C$2:$AC$949,10,FALSE)="",-1000,VLOOKUP($D26,'All-WERTH'!$C$2:$AC$949,10,FALSE)),-1000)) -> -1000 | W26: =IF($D26="Unlisted Player",-1001,IFERROR(IF(VLOOKUP($D26,'All-WERTH'!$C$2:$AC$949,11,FALSE)="",-1000,VLOOKUP($D26,'All-WERTH'!$C$2:$AC$949,11,FALSE)),-1000)) -> -1000 | X26: =IF($D26="Unlisted Player",-1001,IFERROR(IF(VLOOKUP($D26,'All-WERTH'!$C$2:$AC$949,12,FALSE)="",-1000,VLOOKUP($D26,'All-WERTH'!$C$2:$AC$949,12,FALSE)),-1000)) -> -1000 | Y26: =IF($D26="Unlisted Player",-1001,IFERROR(IF(VLOOKUP($D26,'All-WERTH'!$C$2:$AC$949,13,FALSE)="",-1000,VLOOKUP($D26,'All-WERTH'!$C$2:$AC$949,13,FALSE)),-1000)) -> -1000 | Z26: =IF($D26="Unlisted Player",-1001,IFERROR(IF(VLOOKUP($D26,'All-WERTH'!$C$2:$AC$949,14,FALSE)="",-1000,VLOOKUP($D26,'All-WERTH'!$C$2:$AC$949,14,FALSE)),-1000)) -> -1000 | AA26: =IF($D26="Unlisted Player",-1001,IFERROR(IF(VLOOKUP($D26,'All-WERTH'!$C$2:$AC$949,15,FALSE)="",-1000,VLOOKUP($D26,'All-WERTH'!$C$2:$AC$949,15,FALSE)),-1000)) -> -1000 | AB26: =IF($D26="Unlisted Player",-1001,IFERROR(IF(VLOOKUP($D26,'All-WERTH'!$C$2:$AC$949,16,FALSE)="",-1000,VLOOKUP($D26,'All-WERTH'!$C$2:$AC$949,16,FALSE)),-1000)) -> -1000 | AC26: =IF($D26="Unlisted Player",-1001,IFERROR(IF(VLOOKUP($D26,'All-WERTH'!$C$2:$AC$949,17,FALSE)="",-1000,VLOOKUP($D26,'All-WERTH'!$C$2:$AC$949,17,FALSE)),-1000)) -> -1000 | AD26: =IF($D26="Unlisted Player",-1001,IFERROR(IF(VLOOKUP($D26,'All-WERTH'!$C$2:$AC$949,18,FALSE)="",-1000,VLOOKUP($D26,'All-WERTH'!$C$2:$AC$949,18,FALSE)),-1000)) -> -1000 | AE26: =IF($D26="Unlisted Player",-1001,IFERROR(IF(VLOOKUP($D26,'All-WERTH'!$C$2:$AC$949,19,FALSE)="",-1000,VLOOKUP($D26,'All-WERTH'!$C$2:$AC$949,19,FALSE)),-1000)) -> -1000 | AF26: =IF($D26="Unlisted Player",-1001,IFERROR(IF(VLOOKUP($D26,'All-WERTH'!$C$2:$AC$949,20,FALSE)="",-1000,VLOOKUP($D26,'All-WERTH'!$C$2:$AC$949,20,FALSE)),-1000)) -> -1000 | AG26: =IF($D26="Unlisted Player",-1001,IFERROR(IF(VLOOKUP($D26,'All-WERTH'!$C$2:$AC$949,21,FALSE)="",-1000,VLOOKUP($D26,'All-WERTH'!$C$2:$AC$949,21,FALSE)),-1000)) -> -1000 | AH26: =IF($D26="Unlisted Player",-1001,IFERROR(IF(VLOOKUP($D26,'All-WERTH'!$C$2:$AC$949,22,FALSE)="",-1000,VLOOKUP($D26,'All-WERTH'!$C$2:$AC$949,22,FALSE)),-1000)) -> -1000 | AI26: =IF($D26="Unlisted Player",-1001,IFERROR(IF(VLOOKUP($D26,'All-WERTH'!$C$2:$AC$949,23,FALSE)="",-1000,VLOOKUP($D26,'All-WERTH'!$C$2:$AC$949,23,FALSE)),-1000)) -> -1000 | AJ26: =IF($D26="Unlisted Player",-1001,IFERROR(IF(VLOOKUP($D26,'All-WERTH'!$C$2:$AC$949,24,FALSE)="",-1000,VLOOKUP($D26,'All-WERTH'!$C$2:$AC$949,24,FALSE)),-1000)) -> -1000 | AK26: =IF($D26="Unlisted Player",-1001,IFERROR(IF(VLOOKUP($D26,'All-WERTH'!$C$2:$AC$949,25,FALSE)="",-1000,VLOOKUP($D26,'All-WERTH'!$C$2:$AC$949,25,FALSE)),-1000)) -> -1000 | AL26: =IF($D26="Unlisted Player",-1001,IFERROR(IF(VLOOKUP($D26,'All-WERTH'!$C$2:$AC$949,26,FALSE)="",-1000,VLOOKUP($D26,'All-WERTH'!$C$2:$AC$949,26,FALSE)),-1000)) -> -1000 | AM26: =IF($D26="Unlisted Player",-1001,IFERROR(IF(VLOOKUP($D26,'All-WERTH'!$C$2:$AC$949,27,FALSE)="",-1000,VLOOKUP($D26,'All-WERTH'!$C$2:$AC$949,27,FALSE)),-1000)) -> -1000 | AN26: =IF(D26="Non-Ranked Player",-1001,IFERROR(VLOOKUP($D26,'All-WERTH'!$C$2:$AG$949,31,FALSE),-1000)) -> 5.038685221 | AO26: =IF(ISERROR(VLOOKUP($B25,Keepers!$C$2:$D$450,2,FALSE)),B25,"") -> Rafael Devers | AP26: =IFERROR(INDEX($AO$1:$AO$949,SMALL(IF($AO$1:$AO$949<>"",ROW($AO$1:$AO$949)),ROW(AO26))),"") -> Pete Alonso
A27: Pete Alonso | B27: =IFERROR(INDEX($A$1:$A$949,SMALL(IF($A$1:$A$949<>"",ROW($A$1:$A$949)),ROW(A27))),"") -> Shane Bieber | C27: =IFERROR(IF(L27=FALSE,"",CHOOSE(MATCH(RIGHT('Your Roto Draft'!$P$4,LEN('Your Roto Draft'!$P$4)-8),$M$1:$AN$1,0),1+SUMPRODUCT(($L$2:$L$950=TRUE)*($M$2:$M$950<M27))+COUNTIFS($L$2:L27,L27,$M$2:M27,M27)-1,1+SUMPRODUCT(($L$2:$L$950=TRUE)*($N$2:$N$950>N27))+COUNTIFS($L$2:L27,L27,$N$2:N27,N27)-1,1+SUMPRODUCT(($L$2:$L$950=TRUE)*($O$2:$O$950<O27))+COUNTIFS($L$2:L27,L27,$O$2:O27,O27)-1,1+SUMPRODUCT(($L$2:$L$950=TRUE)*($P$2:$P$950>P27))+COUNTIFS($L$2:L27,L27,$P$2:P27,P27)-1,1+SUMPRODUCT(($L$2:$L$950=TRUE)*($Q$2:$Q$950>Q27))+COUNTIFS($L$2:L27,L27,$Q$2:Q27,Q27)-1,1+SUMPRODUCT(($L$2:$L$950=TRUE)*($R$2:$R$950>R27))+COUNTIFS($L$2:L27,L27,$R$2:R27,R27)-1,1+SUMPRODUCT(($L$2:$L$950=TRUE)*($S$2:$S$950>S27))+COUNTIFS($L$2:L27,L27,$S$2:S27,S27)-1,1+SUMPRODUCT(($L$2:$L$950=TRUE)*($T$2:$T$950>T27))+COUNTIFS($L$2:L27,L27,$T$2:T27,T27)-1,1+SUMPRODUCT(($L$2:$L$950=TRUE)*($U$2:$U$950>U27))+COUNTIFS($L$2:L27,L27,$U$2:U27,U27)-1,1+SUMPRODUCT(($L$2:$L$950=TRUE)*($V$2:$V$950>V27))+COUNTIFS($L$2:L27,L27,$V$2:V27,V27)-1,1+SUMPRODUCT(($L$2:$L$950=TRUE)*($W$2:$W$950>W27))+COUNTIFS($L$2:L27,L27,$W$2:W27,W27)-1,1+SUMPRODUCT(($L$2:$L$950=TRUE)*($X$2:$X$950>X27))+COUNTIFS($L$2:L27,L27,$X$2:X27,X27)-1,1+SUMPRODUCT(($L$2:$L$950=TRUE)*($Y$2:$Y$950>Y27))+COUNTIFS($L$2:L27,L27,$Y$2:Y27,Y27)-1,1+SUMPRODUCT(($L$2:$L$950=TRUE)*($Z$2:$Z$950>Z27))+COUNTIFS($L$2:L27,L27,$Z$2:Z27,Z27)-1,1+SUMPRODUCT(($L$2:$L$950=TRUE)*($AA$2:$AA$950>AA27))+COUNTIFS($L$2:L27,L27,$AA$2:AA27,AA27)-1,1+SUMPRODUCT(($L$2:$L$950=TRUE)*($AB$2:$AB$950>AB27))+COUNTIFS($L$2:L27,L27,$AB$2:AB27,AB27)-1,1+SUMPRODUCT(($L$2:$L$950=TRUE)*($AC$2:$AC$950>AC27))+COUNTIFS($L$2:L27,L27,$AC$2:AC27,AC27)-1,1+SUMPRODUCT(($L$2:$L$950=TRUE)*($AD$2:$AD$950>AD27))+COUNTIFS($L$2:L27,L27,$AD$2:AD27,AD27)-1,1+SUMPRODUCT(($L$2:$L$950=TRUE)*($AE$2:$AE$950>AE27))+COUNTIFS($L$2:L27,L27,$AE$2:AE27,AE27)-1,1+SUMPRODUCT(($L$2:$L$950=TRUE)*($AF$2:$AF$950>AF27))+COUNTIFS($L$2:L27,L27,$AF$2:AF27,AF27)-1,1+SUMPRODUCT(($L$2:$L$950=TRUE)*($AG$2:$AG$950>AG27))+COUNTIFS($L$2:L27,L27,$AG$2:AG27,AG27)-1,1+SUMPRODUCT(($L$2:$L$950=TRUE)*($AH$2:$AH$950>AH27))+COUNTIFS($L$2:L27,L27,$AH$2:AH27,AH27)-1,1+SUMPRODUCT(($L$2:$L$950=TRUE)*($AI$2:$AI$950>AI27))+COUNTIFS($L$2:L27,L27,$AI$2:AI27,AI27)-1,1+SUMPRODUCT(($L$2:$L$950=TRUE)*($AJ$2:$AJ$950>AJ27))+COUNTIFS($L$2:L27,L27,$AJ$2:AJ27,AJ27)-1,1+SUMPRODUCT(($L$2:$L$950=TRUE)*($AK$2:$AK$950>AK27))+COUNTIFS($L$2:L27,L27,$AK$2:AK27,AK27)-1,1+SUMPRODUCT(($L$2:$L$950=TRUE)*($AL$2:$AL$950>AL27))+COUNTIFS($L$2:L27,L27,$AL$2:AL27,AL27)-1,1+SUMPRODUCT(($L$2:$L$950=TRUE)*($AM$2:$AM$950>AM27))+COUNTIFS($L$2:L27,L27,$AM$2:AM27,AM27)-1,1+SUMPRODUCT(($L$2:$L$950=TRUE)*($AN$2:$AN$950>AN27))+COUNTIFS($L$2:L27,L27,$AN$2:AN27,AN27)-1)),"") -> 634 | D27: Adbert Alzolay | E27: =IFERROR(INDEX('Draft Log'!$D$4:$D$806,MATCH(D27,'Draft Log'!$C$4:$C$806,0)),"") ->  | F27: =IFERROR(INDEX('ADP-Rank'!$C$2:$C$819,MATCH(D27,'ADP-Rank'!$A$2:$A$819,0)),"") -> SP | G27: =IFERROR(IF(F27=I27,"",IF(INDEX('Your Roto Draft'!$B$11:$B$634,MATCH(D27,'Your Roto Draft'!$C$11:$C$634,0))="",IF(I27<>"",I27,""),INDEX('Your Roto Draft'!$B$11:$B$634,MATCH(D27,'Your Roto Draft'!$C$11:$C$634,0)))),"") ->  | H27: SP | J27: =INDEX('ADP-Rank'!$AH$2:$AH$819,MATCH(D27,'ADP-Rank'!$A$2:$A$819,0)) -> TRUE | K27: FALSE | L27: =IF(J27=FALSE,FALSE,IF(AND('Your Roto Draft'!$P$6="Hide Drafted Players",K27=TRUE),FALSE,IF(OR('Your Roto Draft'!$P$5="Show All Positions",AND('Your Roto Draft'!$P$5="Only Show: C",H27="C"),AND('Your Roto Draft'!$P$5="Only Show: 1B",H27="1B"),AND('Your Roto Draft'!$P$5="Only Show: 2B",H27="2B"),AND('Your Roto Draft'!$P$5="Only Show: 3B",H27="3B"),AND('Your Roto Draft'!$P$5="Only Show: SS",H27="SS"),AND('Your Roto Draft'!$P$5="Only Show: OF",H27="OF"),AND('Your Roto Draft'!$P$5="Only Show: SP",H27="SP"),AND('Your Roto Draft'!$P$5="Only Show: RP",H27="RP"),AND('Your Roto Draft'!$P$5="Only Show: CI",OR(H27={"1B","3B"})),AND('Your Roto Draft'!$P$5="Only Show: MI",OR(H27={"2B","SS"})),AND('Your Roto Draft'!$P$5="Only Show: IF",OR(H27={"C","1B","2B","3B","SS"})),AND('Your Roto Draft'!$P$5="Only Show: DH",OR(H27={"C","1B","2B","3B","SS","OF","DH"})),AND('Your Roto Draft'!$P$5="Only Show: P",OR(H27={"SP","RP"})),AND('Your Roto Draft'!$P$5="Only Show: LF",ISERROR(SEARCH("LF",VLOOKUP($D27,'ADP-Rank'!$A$2:$D$948,4,FALSE)))=FALSE),AND('Your Roto Draft'!$P$5="Only Show: RF",ISERROR(SEARCH("RF",VLOOKUP($D27,'ADP-Rank'!$A$2:$D$948,4,FALSE)))=FALSE),AND('Your Roto Draft'!$P$5="Only Show: CF",ISERROR(SEARCH("CF",VLOOKUP($D27,'ADP-Rank'!$A$2:$D$948,4,FALSE)))=FALSE)),TRUE,FALSE))) -> TRUE | M27: =IFERROR(IF(VLOOKUP($D27,'ADP-Rank'!$A$2:$AV$948,38,FALSE)="",9999,VLOOKUP($D27,'ADP-Rank'!$A$2:$AV$948,38,FALSE)),9999) -> 9999 | N27: =IF(D27="Non-Ranked Player",-1001,IFERROR(VLOOKUP($D27,'All-WERTH'!$C$2:$E$949,3,FALSE),-1000)) -> -1000 | O27: =IF(D27="Non-Ranked Player",10000,IFERROR(IF(VLOOKUP(D27,'ADP-Rank'!$A$2:$AJ$948,36,FALSE)="",9999,VLOOKUP(D27,'ADP-Rank'!$A$2:$AJ$948,36,FALSE)),9999)) -> 9999 | P27: =IF($D27="Unlisted Player",-1001,IFERROR(IF(VLOOKUP($D27,'All-WERTH'!$C$2:$AC$949,4,FALSE)="",-1000,VLOOKUP($D27,'All-WERTH'!$C$2:$AC$949,4,FALSE)),-1000)) -> -1000 | Q27: =IF($D27="Unlisted Player",-1001,IFERROR(IF(VLOOKUP($D27,'All-WERTH'!$C$2:$AC$949,5,FALSE)="",-1000,VLOOKUP($D27,'All-WERTH'!$C$2:$AC$949,5,FALSE)),-1000)) -> -1000 | R27: =IF($D27="Unlisted Player",-1001,IFERROR(IF(VLOOKUP($D27,'All-WERTH'!$C$2:$AC$949,6,FALSE)="",-1000,VLOOKUP($D27,'All-WERTH'!$C$2:$AC$949,6,FALSE)),-1000)) -> -1000 | S27: =IF($D27="Unlisted Player",-1001,IFERROR(IF(VLOOKUP($D27,'All-WERTH'!$C$2:$AC$949,7,FALSE)="",-1000,VLOOKUP($D27,'All-WERTH'!$C$2:$AC$949,7,FALSE)),-1000)) -> -1000 | T27: =IF($D27="Unlisted Player",-1001,IFERROR(IF(VLOOKUP($D27,'All-WERTH'!$C$2:$AC$949,8,FALSE)="",-1000,VLOOKUP($D27,'All-WERTH'!$C$2:$AC$949,8,FALSE)),-1000)) -> -1000 | U27: =IF($D27="Unlisted Player",-1001,IFERROR(IF(VLOOKUP($D27,'All-WERTH'!$C$2:$AC$949,9,FALSE)="",-1000,VLOOKUP($D27,'All-WERTH'!$C$2:$AC$949,9,FALSE)),-1000)) -> -1000 | V27: =IF($D27="Unlisted Player",-1001,IFERROR(IF(VLOOKUP($D27,'All-WERTH'!$C$2:$AC$949,10,FALSE)="",-1000,VLOOKUP($D27,'All-WERTH'!$C$2:$AC$949,10,FALSE)),-1000)) -> -1000 | W27: =IF($D27="Unlisted Player",-1001,IFERROR(IF(VLOOKUP($D27,'All-WERTH'!$C$2:$AC$949,11,FALSE)="",-1000,VLOOKUP($D27,'All-WERTH'!$C$2:$AC$949,11,FALSE)),-1000)) -> -1000 | X27: =IF($D27="Unlisted Player",-1001,IFERROR(IF(VLOOKUP($D27,'All-WERTH'!$C$2:$AC$949,12,FALSE)="",-1000,VLOOKUP($D27,'All-WERTH'!$C$2:$AC$949,12,FALSE)),-1000)) -> -1000 | Y27: =IF($D27="Unlisted Player",-1001,IFERROR(IF(VLOOKUP($D27,'All-WERTH'!$C$2:$AC$949,13,FALSE)="",-1000,VLOOKUP($D27,'All-WERTH'!$C$2:$AC$949,13,FALSE)),-1000)) -> -1000 | Z27: =IF($D27="Unlisted Player",-1001,IFERROR(IF(VLOOKUP($D27,'All-WERTH'!$C$2:$AC$949,14,FALSE)="",-1000,VLOOKUP($D27,'All-WERTH'!$C$2:$AC$949,14,FALSE)),-1000)) -> -1000 | AA27: =IF($D27="Unlisted Player",-1001,IFERROR(IF(VLOOKUP($D27,'All-WERTH'!$C$2:$AC$949,15,FALSE)="",-1000,VLOOKUP($D27,'All-WERTH'!$C$2:$AC$949,15,FALSE)),-1000)) -> -1000 | AB27: =IF($D27="Unlisted Player",-1001,IFERROR(IF(VLOOKUP($D27,'All-WERTH'!$C$2:$AC$949,16,FALSE)="",-1000,VLOOKUP($D27,'All-WERTH'!$C$2:$AC$949,16,FALSE)),-1000)) -> -1000 | AC27: =IF($D27="Unlisted Player",-1001,IFERROR(IF(VLOOKUP($D27,'All-WERTH'!$C$2:$AC$949,17,FALSE)="",-1000,VLOOKUP($D27,'All-WERTH'!$C$2:$AC$949,17,FALSE)),-1000)) -> -1000 | AD27: =IF($D27="Unlisted Player",-1001,IFERROR(IF(VLOOKUP($D27,'All-WERTH'!$C$2:$AC$949,18,FALSE)="",-1000,VLOOKUP($D27,'All-WERTH'!$C$2:$AC$949,18,FALSE)),-1000)) -> -1000 | AE27: =IF($D27="Unlisted Player",-1001,IFERROR(IF(VLOOKUP($D27,'All-WERTH'!$C$2:$AC$949,19,FALSE)="",-1000,VLOOKUP($D27,'All-WERTH'!$C$2:$AC$949,19,FALSE)),-1000)) -> -1000 | AF27: =IF($D27="Unlisted Player",-1001,IFERROR(IF(VLOOKUP($D27,'All-WERTH'!$C$2:$AC$949,20,FALSE)="",-1000,VLOOKUP($D27,'All-WERTH'!$C$2:$AC$949,20,FALSE)),-1000)) -> -1000 | AG27: =IF($D27="Unlisted Player",-1001,IFERROR(IF(VLOOKUP($D27,'All-WERTH'!$C$2:$AC$949,21,FALSE)="",-1000,VLOOKUP($D27,'All-WERTH'!$C$2:$AC$949,21,FALSE)),-1000)) -> -1000 | AH27: =IF($D27="Unlisted Player",-1001,IFERROR(IF(VLOOKUP($D27,'All-WERTH'!$C$2:$AC$949,22,FALSE)="",-1000,VLOOKUP($D27,'All-WERTH'!$C$2:$AC$949,22,FALSE)),-1000)) -> -1000 | AI27: =IF($D27="Unlisted Player",-1001,IFERROR(IF(VLOOKUP($D27,'All-WERTH'!$C$2:$AC$949,23,FALSE)="",-1000,VLOOKUP($D27,'All-WERTH'!$C$2:$AC$949,23,FALSE)),-1000)) -> -1000 | AJ27: =IF($D27="Unlisted Player",-1001,IFERROR(IF(VLOOKUP($D27,'All-WERTH'!$C$2:$AC$949,24,FALSE)="",-1000,VLOOKUP($D27,'All-WERTH'!$C$2:$AC$949,24,FALSE)),-1000)) -> -1000 | AK27: =IF($D27="Unlisted Player",-1001,IFERROR(IF(VLOOKUP($D27,'All-WERTH'!$C$2:$AC$949,25,FALSE)="",-1000,VLOOKUP($D27,'All-WERTH'!$C$2:$AC$949,25,FALSE)),-1000)) -> -1000 | AL27: =IF($D27="Unlisted Player",-1001,IFERROR(IF(VLOOKUP($D27,'All-WERTH'!$C$2:$AC$949,26,FALSE)="",-1000,VLOOKUP($D27,'All-WERTH'!$C$2:$AC$949,26,FALSE)),-1000)) -> -1000 | AM27: =IF($D27="Unlisted Player",-1001,IFERROR(IF(VLOOKUP($D27,'All-WERTH'!$C$2:$AC$949,27,FALSE)="",-1000,VLOOKUP($D27,'All-WERTH'!$C$2:$AC$949,27,FALSE)),-1000)) -> -1000 | AN27: =IF(D27="Non-Ranked Player",-1001,IFERROR(VLOOKUP($D27,'All-WERTH'!$C$2:$AG$949,31,FALSE),-1000)) -> -996.8509855 | AO27: =IF(ISERROR(VLOOKUP($B26,Keepers!$C$2:$D$450,2,FALSE)),B26,"") -> Pete Alonso | AP27: =IFERROR(INDEX($AO$1:$AO$949,SMALL(IF($AO$1:$AO$949<>"",ROW($AO$1:$AO$949)),ROW(AO27))),"") -> Shane Bieber
